Workbook

Sheet Definitions
C1: http://baseballguru.com
C3: PITCHING
C4: throws | D4: Pitching Arm
C5: teamid | D5: Team
C6: LG | D6: League
C7: yearp | D7: Year of prediction
C8: age | D8: Age at year of prediction
C9: POS | D9: SP=Starters / LP=Long Relief, Swing / JP=Junk Starters / EP=Elite Relief Pitchers / DP=Decent RP / BP=Bad RP/ AP=Avoid RP
C10: reliability | D10: Percent of forecast based on players own stats
C11: play | D11: Played last year (I.e. 2016 forecast, played in 2015)
C12: mIP | D12: Forecasted innings pitched
C13: mW | D13: Forecasted wins
C14: mGP | D14: Forecasted games pitched
C15: mGS | D15: Forecasted games started
C16: mCG | D16: Forecasted complete games
C17: mSHO | D17: Forecasted shut outs
C18: mSV | D18: Forecasted saves
C19: mGF | D19: Forecasted games finished
C20: mBFP | D20: Forecasted batters faced
C21: mHRA | D21: Forecasted home runs allowed
C22: mBBA | D22: Forecasted walks allowed
C23: mIBBA | D23: Forecasted intentional walks
C24: mSOA | D24: Forecasted strike outs allowed
C25: mIPouts | D25: Forecasted IP outs
C26: mHA | D26: Forecasted hits allowed
C27: mER | D27: Forecasted earned runs allowed
C28: mWP | D28: Forecasted wild pitches
C29: mHPBA | D29: Forecasted hit batters
C30: mBK | D30: Forecasted balks
C31: mRA | D31: Forecasted runs allowed
C32: mDERA | D32: Forecasted Earned Run Average.
C33: mLOB | D33: Forecasted left on base, mha+mbba-mer
C34: mloba | D34: Forecasted LOB per IP
C35: mCMD | D35: Forecasted Command: Strike out to walk ratio
C36: mDOM | D36: Forecasted Dominance: Strike outs per 9 IP
C37: mCTL | D37: Forecasted Control: Walks per 9 IP
C38: mHR9 | D38: Forecasted home runs allowed per 9 IP
C39: mBABIP | D39: Forecasted bases allowed per 9 IP, (mha-mhra)/(mip*3-msoa-mhra)
C40: mWHIP | D40: Forecasted walks+hits per IP, (mbba+mha)/mip
C41: mWRIP | D41: Forecasted walks+hrs*10 per IP, (mbba+10*mhra)/mip
C42: mHRBIB | D42: Forecasted home runs allowed per bases allowed, mhra/(mip*3-mhra-msoa)
C43: mSTUFF | D43: Forecasted STUFF. This is NOT the same definition as PECOTA's. The formula is: mDOM*6- 1.333*(mDERA+ mDERA)- 3*mCTL -5*mHR9; if mSTUFF<1 then mSTUFF=1;mSTUFF=mSTUFF*mSTUFF/10;
C44: ERAi | D44: Forecasted Indexed ERA, where 100 is average and 80 is 20% lower than average
C45: mGURU | D45: Forecasted Pitching Value (note the formula changed beginning with the 2013 forecasts to be more in line with batters)
C46: mVORP | D46: Value (runs allowed) Over Replacement Player at same position. It is (mDERA-xDERA)*mIP. xDERA ranges from 6 for someone who only starts to 5 for somone never starts.
C47: mROTO | D47: Dollar value, based on 5x5 Rotisserie: ERA, Wins, SV, WHIP, Strike outs
C48: POS2 | D48: 2 year projection
C49: mIP2 | D49: 2 year projected Innings pitched
C50: mDERA2 | D50: 2 year projected ERA
C51: ERAi2 | D51: 2 year projected Indexed ERA
C52: mGURU2 | D52: 2 year projected mGURU
C53: POS3 | D53: 3 year projected
C54: mIP3 | D54: 3 year projected Innings pitched
C55: mDERA3 | D55: 3 year projected ERA
C56: ERAi3 | D56: 3 year projected Indexed ERA
C57: mGURU3 | D57: 3 year projected mGURU
C58: Year | D58: Last Year
C59: IP | D59: Last Years IP
C60: ERA | D60: Last Years ERA
C61: DERA | D61: Last Years "Dips" ERA
C62: GURU | D62: Last Years GURU player value
C63: DIF | D63: mDERA-ERA (forecasted era minus era from year before)
C64: gurud | D64: Difference between forecasted value and last years value. The higher the number the bigger value, the lower the number the more overpriced, mguru-guru
C65: Value | D65: S=Sleeper, R=Regular, O=Overpriced
C66: DIF_IP3 | D66: mIP3-ip
C67: traj | D67: mDERA3-ERA-dif
C68: lrank | D68: League Rank (I.e. among AL or NL)
C69: prank | D69: Position League Rank (I.e. mSN mLN mJN mEN mDN mBN mAN mSA mLA mJA mEA mDA mBA mAA)
C70: playerID | D70: Sean Lahman's playerid from baseball1.com and baseball-databank.org
C71: MLBAN_ID | D71: MLB ID
C72: Match1 | D72: Most Similar Player
C73: Match2 | D73: Second Most Similar Player
C74: Match3 | D74: Third Most Similar Player
C76: BATTING
C77: yearp | D77: Year of prediction
C78: age | D78: Age at year of prediction
C79: teamID | D79: Team
C80: lg | D80: League
C81: pos | D81: Primary position
C82: pos2 | D82: Second position with at least 20 games played last year
C83: pos3 | D83: Third position with at least 20 games played last year
C84: reliability | D84: Percent of forecast based on players own stats
C85: xwOBA | D85: eXpected mwOBA for someone at his position and playing time
C86: xGURU | D86: eXpected mGURU for someone at his position and playing time
C87: play | D87: Played last year
C88: mG | D88: Predicted games
C89: mTAP | D89: Predicted Times at Plate
C90: mAB | D90: Predicted at bats
C91: mR | D91: Predicted runs
C92: mH | D92: Predicted hits
C93: mDB | D93: Predicted doubles
C94: mTR | D94: Predicted triples
C95: mHR | D95: Predicted home runs
C96: mRBI | D96: Predicted runs batted in
C97: mSB | D97: Predicted stolen bases
C98: mCS | D98: Predicted times caught stealing
C99: mBB | D99: Predicted walks
C100: mSO | D100: Predicted strike outs
C101: mIBB | D101: Predicted intentional walks
C102: mHPB | D102: Predicted hit by pitch
C103: mSH | D103: Predicted sacrifice hits
C104: mSF | D104: Predicted sacrifice flies
C105: mGIDP | D105: Predicted ground into double play
C106: mAVG | D106: Predicted batting average
C107: mOBP | D107: Predicted on base percentage
C108: mSLG | D108: Predicted slugging percentage
C109: mwOBA | D109: Predicted rate of performace, like OPS but more accurate. Based on Tom Tango's "The Book"
C110: mPRO | D110: Predicted production, like linear weights. It is wOBA * mTAP
C111: mGURU | D111: Forecasted batting value, based on weighting between m WOBA and mPRO
C112: mGURUwt | D112: Forecasted batting value, where mGURU is weighted by positional scarcity
C113: mROTO | D113: Dollar value, based on 5x5 Rotisserie: Avg, HR, SB, RBI, R
C114: mROTOwt | D114: Dollar value, based on 5x5: Avg, HR, SB, RBI, R. Weighted by positional scarcity
C115: mVORP | D115: Value (runs contributed) Over Replacement Player at same position. It is (mwOBA-xwOBA)*mTAP. Uses xwOBA of non-starters.
C116: prank | D116: Forecasted position rank
C117: rank | D117: Forecasted rank overall among batters
C118: plrank | D118: Forecasted position league rank
C119: mstarter | D119: Predicted playing time, Y=Starter, N=Not Full time Starter or Inj risk or Performance Risk, B=Bench
C120: wOBAd | D120: Difference between forecasted performace rate and last years. Positive numbers are sleepers, mwOBA-wOBA
C121: gurud | D121: Difference between forecasted value and last years value. The higher the number the bigger value, the lower the number the more overpriced, mguru-guru
C122: Value | D122: S=Sleeper, R=Regular, O=Overpriced
C123: year | D123: Last year
C124: tap | D124: Last years times at plate
C125: avg | D125: Last years batting average
C126: obp | D126: Last years on base percent
C127: slg | D127: Last years slugging avg
C128: wOBA | D128: Last years rate of production
C129: PRO | D129: Last years production
C130: GURU | D130: Last years GURU player value
C131: playerID | D131: Sean Lahman's playerid from baseball1.com and baseball-databank.org
C132: MLBAN_ID | D132: MLB ID
C133: Description | D133: Description of Player for predicted season
C134: Match1 | D134: Most Similar Player
C135: Match2 | D135: Second Most Similar Player
C136: Match3 | D136: Third Most Similar Player
C137: Advice | D137: Words to the wise

Sheet DEMO
B1: ="http://www.baseball-reference.com/players/"&LEFT(VLOOKUP(choice,stats!$A$2:$DV$769,126),1)&"/"&VLOOKUP(choice,stats!$A$2:$DV$769,126)&".shtml" -> http://www.baseball-reference.com/players/a/adamsma01.shtml | C1: http://www.baseball-reference.com/players/c/castiwe01.shtml | D1: ="http://mlb.mlb.com/team/player.jsp?player_id="&VLOOKUP(choice,stats!$A$2:$DV$769,5) -> http://mlb.mlb.com/team/player.jsp?player_id=571431 | E1: http://mlb.mlb.com/team/player.jsp?player_id=571431 | O1: FALSE | P1: =IF(allow_news_feed=TRUE,"http://mlb.mlb.com/images/players/mugshot/ph_"&VLOOKUP(choice,stats!$A$2:$DV$769,5)&".jpg","http://baseballguru.com/bbguru.jpg") -> http://baseballguru.com/bbguru.jpg | Q1: http://baseballguru.com/bbguru.jpg
C2: 7 | F2: ="FANTASY ADVICE: "&VLOOKUP(VLOOKUP((choice-1)*5+$A7,stacked_bats!$A$2:$H$3837,8),stats!$A$1:$BV$769,11)&". "&VLOOKUP(VLOOKUP((choice-1)*5+$A7,stacked_bats!$A$2:$H$3837,8),stats!$A$1:$BW$769,75)&" " -> FANTASY ADVICE: Slugger. Running out of time to prove himself. This year could establish who he is. Will outperform last year, assuming regular playing time.
I3: =IF(AND($D$8="DNP",$H$7>37),"Given that he didn't play last year and based on his age, he might be retired. ",IF($D$8="DNP",batter&" didn't play last year, so take forecasts with a grain of salt.",IF(AND(D9="DNP",I8<131),batter&" doesn't have enough MLB experience to produce reliable forecasts.",""))&IF($H$8<23,batter&" might have decent upside, given age of MLB debut. ","")) -> 
A5: 5 | B5: =VLOOKUP(VLOOKUP((choice-1)*5+$A7,stacked_bats!$A$2:$H$3837,8),stats!$A$1:$BV$769,4)&" "&VLOOKUP(VLOOKUP((choice-1)*5+$A7,stacked_bats!$A$2:$H$3837,8),stats!$A$1:$BV$769,3) -> Matt Adams | I5: Times at Plate | J5: Home runs | K5: Stolen bases | L5: Walk Rate | M5: Strike Out Rate | N5: Batting avg | O5: On base pct | P5: Slugging pct | Q5: Rate of production | R5: Production | S5: Batting value | T5: Positional Scarcity | U5: 5x5 Rotisserie | W5: Value Over Replacement Player
B6: League | C6: Year | D6: Team | E6: Pos | F6: Bats | G6: CORR | H6: Age | I6: TAP | J6: HR | K6: SB | L6: mBB% | M6: mSO% | N6: AVG | O6: OBP | P6: SLG | Q6: WOBA | R6: PRO | S6: GURU | T6: GURUwt | U6: ROTO | V6: Cluster | W6: VORP | X6: Description
A7: 1 | B7: =VLOOKUP(VLOOKUP((choice-1)*5+$A$7,stacked_bats!$A$2:$H$3837,8),stats!$A$1:$DU$769,77) -> NL | C7: =BAT2016forecast!$D$3&"p" -> 2016p | D7: =VLOOKUP(VLOOKUP((choice-1)*5+$A$7,stacked_bats!$A$2:$H$3837,8),stats!$A$1:$DU$769,76) -> SLN | E7: =VLOOKUP(VLOOKUP((choice-1)*5+$A$7,stacked_bats!$A$2:$H$3837,8),stats!$A$1:$BV$769,6)&IF(VLOOKUP(VLOOKUP((choice-1)*5+$A$7,stacked_bats!$A$2:$H$3837,8),stats!$A$1:$BV$769,7)=0,"","-"&VLOOKUP(VLOOKUP((choice-1)*5+$A$7,stacked_bats!$A$2:$H$3837,8),stats!$A$1:$BV$769,7))&IF(VLOOKUP(VLOOKUP((choice-1)*5+$A$7,stacked_bats!$A$2:$H$3837,8),stats!$A$1:$BV$769,8)=0,"","-"&VLOOKUP(VLOOKUP((choice-1)*5+$A$7,stacked_bats!$A$2:$H$3837,8),stats!$A$1:$BV$769,8)) -> 1B | F7: =VLOOKUP(VLOOKUP((choice-1)*5+$A$7,stacked_bats!$A$2:$H$3837,8),stats!$A$1:$BV$769,9) -> L | G7: =ROUND(VLOOKUP((choice-1)*5+$A$7,stacked_bats!$A$2:$G$3837,3),3) -> 1 | H7: =VLOOKUP(VLOOKUP((choice-1)*5+$A$7,stacked_bats!$A$2:$H$3837,8),stats!$A$1:$BV$769,24) -> 27 | I7: =VLOOKUP(VLOOKUP((choice-1)*5+$A$7,stacked_bats!$A$2:$H$3837,8),stats!$A$1:$BV$769,25) -> 349 | J7: =VLOOKUP(VLOOKUP((choice-1)*5+$A$7,stacked_bats!$A$2:$H$3837,8),stats!$A$1:$BV$769,26) -> 10 | K7: =VLOOKUP(VLOOKUP((choice-1)*5+$A$7,stacked_bats!$A$2:$H$3837,8),stats!$A$1:$BV$769,27) -> 2 | L7: =VLOOKUP(VLOOKUP((choice-1)*5+$A$7,stacked_bats!$A$2:$H$3837,8),stats!$A$1:$BV$769,42) -> 0.0535055326 | M7: =VLOOKUP(VLOOKUP((choice-1)*5+$A$7,stacked_bats!$A$2:$H$3837,8),stats!$A$1:$BV$769,43) -> 0.2074723006 | N7: =VLOOKUP(VLOOKUP((choice-1)*5+$A$7,stacked_bats!$A$2:$H$3837,8),stats!$A$1:$BV$769,28) -> 0.258 | O7: =VLOOKUP(VLOOKUP((choice-1)*5+$A$7,stacked_bats!$A$2:$H$3837,8),stats!$A$1:$BV$769,29) -> 0.301 | P7: =VLOOKUP(VLOOKUP((choice-1)*5+$A$7,stacked_bats!$A$2:$H$3837,8),stats!$A$1:$BV$769,30) -> 0.408 | Q7: =VLOOKUP(VLOOKUP((choice-1)*5+$A$7,stacked_bats!$A$2:$H$3837,8),stats!$A$1:$BV$769,31) -> 0.308 | R7: =Q7*I7 -> 107.492 | S7: =VLOOKUP(VLOOKUP((choice-1)*5+$A$7,stacked_bats!$A$2:$H$3837,8),stats!$A$1:$BV$769,32) -> 31 | T7: =VLOOKUP(VLOOKUP((choice-1)*5+$A$7,stacked_bats!$A$2:$H$3837,8),stats!$A$1:$BV$769,33) -> 28 | U7: =VLOOKUP(VLOOKUP((choice-1)*5+$A$7,stacked_bats!$A$2:$H$3837,8),stats!$A$1:$BV$769,34) -> 11 | V7: =VLOOKUP(VLOOKUP((choice-1)*5+$A$7,stacked_bats!$A$2:$H$3837,8),stats!$A$1:$BV$769,10)&" " -> 14 | W7: =VLOOKUP(VLOOKUP((choice-1)*5+$A$7,stacked_bats!$A$2:$H$3837,8),stats!$A$1:$BV$769,35) -> -4 | X7: =" "&VLOOKUP(VLOOKUP((choice-1)*5+$A$7,stacked_bats!$A$2:$H$3837,8),stats!$A$1:$BV$769,11)&" " -> Slugger
A8: =IF(VLOOKUP(VLOOKUP((choice-1)*5+$A$7,stacked_bats!$A$2:$H$3837,8),stats!$A$1:$DU$769,84)=0,"",1) -> 1 | B8: =VLOOKUP(D8,clusters!$A$94:$B$124,2) -> NL | C8: =BAT2016forecast!$D$3-1 -> 2015 | D8: =IF($A8="","DNP",VLOOKUP(VLOOKUP((choice-1)*5+$A$7,stacked_bats!$A$2:$H$3837,8),stats!$A$1:$DU$769,78)) -> STL | E8: =IF($A8="","",VLOOKUP(VLOOKUP((choice-1)*5+$A$7,stacked_bats!$A$2:$H$3837,8),stats!$A$1:$DU$769,92)) -> 1B | F8: =IF($A8="","",F$7) -> L | G8: =ROUND(VLOOKUP((choice-1)*5+$A$7,stacked_bats!$A$2:$G$3837,3),3) -> 1 | H8: =IF($A8="","",H$7-1) -> 26 | I8: =IF($A8="","",VLOOKUP(VLOOKUP((choice-1)*5+$A$7,stacked_bats!$A$2:$H$3837,8),stats!$A$1:$DU$769,84)) -> 186 | J8: =IF($A8="","",VLOOKUP(VLOOKUP((choice-1)*5+$A$7,stacked_bats!$A$2:$H$3837,8),stats!$A$1:$DU$769,81)) -> 5 | K8: =IF($A8="","",VLOOKUP(VLOOKUP((choice-1)*5+$A$7,stacked_bats!$A$2:$H$3837,8),stats!$A$1:$DU$769,82)) -> 1 | N8: =IF($A8="","",VLOOKUP(VLOOKUP((choice-1)*5+$A$7,stacked_bats!$A$2:$H$3837,8),stats!$A$1:$DU$769,85)) -> 0.24 | O8: =IF($A8="","",VLOOKUP(VLOOKUP((choice-1)*5+$A$7,stacked_bats!$A$2:$H$3837,8),stats!$A$1:$DU$769,89)) -> 0.287 | P8: =IF($A8="","",VLOOKUP(VLOOKUP((choice-1)*5+$A$7,stacked_bats!$A$2:$H$3837,8),stats!$A$1:$DU$769,87)) -> 0.377 | Q8: =IF($A8="","",VLOOKUP(VLOOKUP((choice-1)*5+$A$7,stacked_bats!$A$2:$H$3837,8),stats!$A$1:$DU$769,89)) -> 0.287 | R8: =IF($A8="","",Q8*I8) -> 53.382 | S8: =IF($A8="","",VLOOKUP(VLOOKUP((choice-1)*5+$A$7,stacked_bats!$A$2:$H$3837,8),stats!$A$1:$DU$769,90)) -> 16 | U8: =IF($A8="","",VLOOKUP(VLOOKUP((choice-1)*5+$A$7,stacked_bats!$A$2:$H$3837,8),stats!$A$1:$DU$769,91)) -> 4
A9: =IF(VLOOKUP(VLOOKUP((choice-1)*5+$A$7,stacked_bats!$A$2:$H$3837,8),stats!$A$1:$DU$769,100)=0,"",1) -> 1 | B9: =VLOOKUP(D9,clusters!$A$94:$B$124,2) -> NL | C9: =BAT2016forecast!$D$3-2 -> 2014 | D9: =IF($A$9="","DNP",VLOOKUP(VLOOKUP((choice-1)*5+$A$7,stacked_bats!$A$2:$H$3837,8),stats!$A$1:$DU$769,94)) -> STL | E9: =IF($A9="","",VLOOKUP(VLOOKUP((choice-1)*5+$A$7,stacked_bats!$A$2:$H$3837,8),stats!$A$1:$DU$769,108)) -> 1B | F9: =IF($A9="","",F$7) -> L | G9: =ROUND(VLOOKUP((choice-1)*5+$A$7,stacked_bats!$A$2:$G$3837,3),3) -> 1 | H9: =IF($A9="","",H$7-2) -> 25 | I9: =IF($A9="","",VLOOKUP(VLOOKUP((choice-1)*5+$A$7,stacked_bats!$A$2:$H$3837,8),stats!$A$1:$DU$769,100)) -> 563 | J9: =IF($A9="","",VLOOKUP(VLOOKUP((choice-1)*5+$A$7,stacked_bats!$A$2:$H$3837,8),stats!$A$1:$DU$769,97)) -> 15 | K9: =IF($A9="","",VLOOKUP(VLOOKUP((choice-1)*5+$A$7,stacked_bats!$A$2:$H$3837,8),stats!$A$1:$DU$769,98)) -> 3 | N9: =IF($A9="","",VLOOKUP(VLOOKUP((choice-1)*5+$A$7,stacked_bats!$A$2:$H$3837,8),stats!$A$1:$DU$769,101)) -> 0.288 | O9: =IF($A9="","",VLOOKUP(VLOOKUP((choice-1)*5+$A$7,stacked_bats!$A$2:$H$3837,8),stats!$A$1:$DU$769,105)) -> 0.335 | P9: =IF($A9="","",VLOOKUP(VLOOKUP((choice-1)*5+$A$7,stacked_bats!$A$2:$H$3837,8),stats!$A$1:$DU$769,103)) -> 0.457 | Q9: =IF($A9="","",VLOOKUP(VLOOKUP((choice-1)*5+$A$7,stacked_bats!$A$2:$H$3837,8),stats!$A$1:$DU$769,105)) -> 0.335 | R9: =IF($A9="","",Q9*I9) -> 188.605 | S9: =IF($A9="","",VLOOKUP(VLOOKUP((choice-1)*5+$A$7,stacked_bats!$A$2:$H$3837,8),stats!$A$1:$DU$769,106)) -> 56 | U9: =IF($A9="","",VLOOKUP(VLOOKUP((choice-1)*5+$A$7,stacked_bats!$A$2:$H$3837,8),stats!$A$1:$DU$769,107)) -> 21
A10: =IF(VLOOKUP(VLOOKUP((choice-1)*5+$A$7,stacked_bats!$A$2:$H$3837,8),stats!$A$1:$DU$769,116)=0,"",1) -> 1 | B10: =VLOOKUP(D10,clusters!$A$94:$B$124,2) -> NL | C10: =BAT2016forecast!$D$3-3 -> 2013 | D10: =IF($A$10="","DNP",VLOOKUP(VLOOKUP((choice-1)*5+$A$7,stacked_bats!$A$2:$H$3837,8),stats!$A$1:$DU$769,110)) -> STL | E10: =IF($A10="","",VLOOKUP(VLOOKUP((choice-1)*5+$A$7,stacked_bats!$A$2:$H$3837,8),stats!$A$1:$DU$769,124)) -> 1B | F10: =IF($A10="","",F$7) -> L | G10: =ROUND(VLOOKUP((choice-1)*5+$A$7,stacked_bats!$A$2:$G$3837,3),3) -> 1 | H10: =IF($A10="","",H$7-3) -> 24 | I10: =IF($A10="","",VLOOKUP(VLOOKUP((choice-1)*5+$A$7,stacked_bats!$A$2:$H$3837,8),stats!$A$1:$DU$769,116)) -> 319 | J10: =IF($A10="","",VLOOKUP(VLOOKUP((choice-1)*5+$A$7,stacked_bats!$A$2:$H$3837,8),stats!$A$1:$DU$769,113)) -> 17 | K10: =IF($A10="","",VLOOKUP(VLOOKUP((choice-1)*5+$A$7,stacked_bats!$A$2:$H$3837,8),stats!$A$1:$DU$769,114)) -> 0 | N10: =IF($A10="","",VLOOKUP(VLOOKUP((choice-1)*5+$A$7,stacked_bats!$A$2:$H$3837,8),stats!$A$1:$DU$769,117)) -> 0.284 | O10: =IF($A10="","",VLOOKUP(VLOOKUP((choice-1)*5+$A$7,stacked_bats!$A$2:$H$3837,8),stats!$A$1:$DU$769,121)) -> 0.36 | P10: =IF($A10="","",VLOOKUP(VLOOKUP((choice-1)*5+$A$7,stacked_bats!$A$2:$H$3837,8),stats!$A$1:$DU$769,119)) -> 0.503 | Q10: =IF($A10="","",VLOOKUP(VLOOKUP((choice-1)*5+$A$7,stacked_bats!$A$2:$H$3837,8),stats!$A$1:$DU$769,121)) -> 0.36 | R10: =IF($A10="","",Q10*I10) -> 114.84 | S10: =IF($A10="","",VLOOKUP(VLOOKUP((choice-1)*5+$A$7,stacked_bats!$A$2:$H$3837,8),stats!$A$1:$DU$769,122)) -> 51 | U10: =IF($A10="","",VLOOKUP(VLOOKUP((choice-1)*5+$A$7,stacked_bats!$A$2:$H$3837,8),stats!$A$1:$DU$769,123)) -> 16
B11: Comparables | D11: ="(based on "&BAT2016forecast!D3&" projections below)" -> (based on 2016 projections below)
A12: 2 | B12: =" "&VLOOKUP((choice-1)*5+$A12,stacked_bats!$A$2:$G$3837,6)&", "&VLOOKUP((choice-1)*5+$A12,stacked_bats!$A$2:$G$3837,7) -> Rosario, Wilin | D12: =VLOOKUP(VLOOKUP((choice-1)*5+$A12,stacked_bats!$A$2:$H$3837,8),stats!$A$1:$DU$769,76) -> COL | E12: =VLOOKUP(VLOOKUP((choice-1)*5+$A12,stacked_bats!$A$2:$H$3837,8),stats!$A$1:$BV$769,6)&IF(VLOOKUP(VLOOKUP((choice-1)*5+$A12,stacked_bats!$A$2:$H$3837,8),stats!$A$1:$BV$769,7)=0,"","-"&VLOOKUP(VLOOKUP((choice-1)*5+$A12,stacked_bats!$A$2:$H$3837,8),stats!$A$1:$BV$769,7))&IF(VLOOKUP(VLOOKUP((choice-1)*5+$A12,stacked_bats!$A$2:$H$3837,8),stats!$A$1:$BV$769,8)=0,"","-"&VLOOKUP(VLOOKUP((choice-1)*5+$A12,stacked_bats!$A$2:$H$3837,8),stats!$A$1:$BV$769,8)) -> 1B | F12: =VLOOKUP(VLOOKUP((choice-1)*5+$A12,stacked_bats!$A$2:$H$3837,8),stats!$A$1:$BV$769,9) -> R | G12: =ROUND(VLOOKUP((choice-1)*5+$A12,stacked_bats!$A$2:$G$3837,3),3) -> 0.942 | H12: =VLOOKUP(VLOOKUP((choice-1)*5+$A12,stacked_bats!$A$2:$H$3837,8),stats!$A$1:$BV$769,24) -> 27 | I12: =VLOOKUP(VLOOKUP((choice-1)*5+$A12,stacked_bats!$A$2:$H$3837,8),stats!$A$1:$BV$769,25) -> 309 | J12: =VLOOKUP(VLOOKUP((choice-1)*5+$A12,stacked_bats!$A$2:$H$3837,8),stats!$A$1:$BV$769,26) -> 9 | K12: =VLOOKUP(VLOOKUP((choice-1)*5+$A12,stacked_bats!$A$2:$H$3837,8),stats!$A$1:$BV$769,27) -> 2 | L12: =VLOOKUP(VLOOKUP((choice-1)*5+$A12,stacked_bats!$A$2:$H$3837,8),stats!$A$1:$BV$769,42) -> 0.0450978527 | M12: =VLOOKUP(VLOOKUP((choice-1)*5+$A12,stacked_bats!$A$2:$H$3837,8),stats!$A$1:$BV$769,43) -> 0.2010043594 | N12: =VLOOKUP(VLOOKUP((choice-1)*5+$A12,stacked_bats!$A$2:$H$3837,8),stats!$A$1:$BV$769,28) -> 0.257 | O12: =VLOOKUP(VLOOKUP((choice-1)*5+$A12,stacked_bats!$A$2:$H$3837,8),stats!$A$1:$BV$769,29) -> 0.294 | P12: =VLOOKUP(VLOOKUP((choice-1)*5+$A12,stacked_bats!$A$2:$H$3837,8),stats!$A$1:$BV$769,30) -> 0.406 | Q12: =VLOOKUP(VLOOKUP((choice-1)*5+$A12,stacked_bats!$A$2:$H$3837,8),stats!$A$1:$BV$769,31) -> 0.304 | R12: =Q12*I12 -> 93.936 | S12: =VLOOKUP(VLOOKUP((choice-1)*5+$A12,stacked_bats!$A$2:$H$3837,8),stats!$A$1:$BV$769,32) -> 27 | T12: =VLOOKUP(VLOOKUP((choice-1)*5+$A12,stacked_bats!$A$2:$H$3837,8),stats!$A$1:$BV$769,33) -> 24 | U12: =VLOOKUP(VLOOKUP((choice-1)*5+$A12,stacked_bats!$A$2:$H$3837,8),stats!$A$1:$BV$769,34) -> 10 | V12: =VLOOKUP(VLOOKUP((choice-1)*5+$A12,stacked_bats!$A$2:$H$3837,8),stats!$A$1:$BV$769,10)&" " -> 7 | W12: =VLOOKUP(VLOOKUP((choice-1)*5+$A12,stacked_bats!$A$2:$H$3837,8),stats!$A$1:$BV$769,35) -> -5 | X12: =" "&VLOOKUP(VLOOKUP((choice-1)*5+$A12,stacked_bats!$A$2:$H$3837,8),stats!$A$1:$BV$769,11)&" " -> Slugger
A13: 3 | B13: =" "&VLOOKUP((choice-1)*5+$A13,stacked_bats!$A$2:$G$3837,6)&", "&VLOOKUP((choice-1)*5+$A13,stacked_bats!$A$2:$G$3837,7) -> Cron, Christopher | D13: =VLOOKUP(VLOOKUP((choice-1)*5+$A13,stacked_bats!$A$2:$H$3837,8),stats!$A$1:$DU$769,76) -> LAA | E13: =VLOOKUP(VLOOKUP((choice-1)*5+$A13,stacked_bats!$A$2:$H$3837,8),stats!$A$1:$BV$769,6)&IF(VLOOKUP(VLOOKUP((choice-1)*5+$A13,stacked_bats!$A$2:$H$3837,8),stats!$A$1:$BV$769,7)=0,"","-"&VLOOKUP(VLOOKUP((choice-1)*5+$A13,stacked_bats!$A$2:$H$3837,8),stats!$A$1:$BV$769,7))&IF(VLOOKUP(VLOOKUP((choice-1)*5+$A13,stacked_bats!$A$2:$H$3837,8),stats!$A$1:$BV$769,8)=0,"","-"&VLOOKUP(VLOOKUP((choice-1)*5+$A13,stacked_bats!$A$2:$H$3837,8),stats!$A$1:$BV$769,8)) -> 1B | F13: =VLOOKUP(VLOOKUP((choice-1)*5+$A13,stacked_bats!$A$2:$H$3837,8),stats!$A$1:$BV$769,9) -> R | G13: =ROUND(VLOOKUP((choice-1)*5+$A13,stacked_bats!$A$2:$G$3837,3),3) -> 0.896 | H13: =VLOOKUP(VLOOKUP((choice-1)*5+$A13,stacked_bats!$A$2:$H$3837,8),stats!$A$1:$BV$769,24) -> 26 | I13: =VLOOKUP(VLOOKUP((choice-1)*5+$A13,stacked_bats!$A$2:$H$3837,8),stats!$A$1:$BV$769,25) -> 371 | J13: =VLOOKUP(VLOOKUP((choice-1)*5+$A13,stacked_bats!$A$2:$H$3837,8),stats!$A$1:$BV$769,26) -> 12 | K13: =VLOOKUP(VLOOKUP((choice-1)*5+$A13,stacked_bats!$A$2:$H$3837,8),stats!$A$1:$BV$769,27) -> 2 | L13: =VLOOKUP(VLOOKUP((choice-1)*5+$A13,stacked_bats!$A$2:$H$3837,8),stats!$A$1:$BV$769,42) -> 0.0474439902 | M13: =VLOOKUP(VLOOKUP((choice-1)*5+$A13,stacked_bats!$A$2:$H$3837,8),stats!$A$1:$BV$769,43) -> 0.2106966723 | N13: =VLOOKUP(VLOOKUP((choice-1)*5+$A13,stacked_bats!$A$2:$H$3837,8),stats!$A$1:$BV$769,28) -> 0.247 | O13: =VLOOKUP(VLOOKUP((choice-1)*5+$A13,stacked_bats!$A$2:$H$3837,8),stats!$A$1:$BV$769,29) -> 0.288 | P13: =VLOOKUP(VLOOKUP((choice-1)*5+$A13,stacked_bats!$A$2:$H$3837,8),stats!$A$1:$BV$769,30) -> 0.407 | Q13: =VLOOKUP(VLOOKUP((choice-1)*5+$A13,stacked_bats!$A$2:$H$3837,8),stats!$A$1:$BV$769,31) -> 0.301 | R13: =Q13*I13 -> 111.671 | S13: =VLOOKUP(VLOOKUP((choice-1)*5+$A13,stacked_bats!$A$2:$H$3837,8),stats!$A$1:$BV$769,32) -> 29 | T13: =VLOOKUP(VLOOKUP((choice-1)*5+$A13,stacked_bats!$A$2:$H$3837,8),stats!$A$1:$BV$769,33) -> 27 | U13: =VLOOKUP(VLOOKUP((choice-1)*5+$A13,stacked_bats!$A$2:$H$3837,8),stats!$A$1:$BV$769,34) -> 10 | V13: =VLOOKUP(VLOOKUP((choice-1)*5+$A13,stacked_bats!$A$2:$H$3837,8),stats!$A$1:$BV$769,10)&" " -> 7 | W13: =VLOOKUP(VLOOKUP((choice-1)*5+$A13,stacked_bats!$A$2:$H$3837,8),stats!$A$1:$BV$769,35) -> -7 | X13: =" "&VLOOKUP(VLOOKUP((choice-1)*5+$A13,stacked_bats!$A$2:$H$3837,8),stats!$A$1:$BV$769,11)&" " -> Slugger
A14: 4 | B14: =" "&VLOOKUP((choice-1)*5+$A14,stacked_bats!$A$2:$G$3837,6)&", "&VLOOKUP((choice-1)*5+$A14,stacked_bats!$A$2:$G$3837,7) -> Belt, Brandon | D14: =VLOOKUP(VLOOKUP((choice-1)*5+$A14,stacked_bats!$A$2:$H$3837,8),stats!$A$1:$DU$769,76) -> SFN | E14: =VLOOKUP(VLOOKUP((choice-1)*5+$A14,stacked_bats!$A$2:$H$3837,8),stats!$A$1:$BV$769,6)&IF(VLOOKUP(VLOOKUP((choice-1)*5+$A14,stacked_bats!$A$2:$H$3837,8),stats!$A$1:$BV$769,7)=0,"","-"&VLOOKUP(VLOOKUP((choice-1)*5+$A14,stacked_bats!$A$2:$H$3837,8),stats!$A$1:$BV$769,7))&IF(VLOOKUP(VLOOKUP((choice-1)*5+$A14,stacked_bats!$A$2:$H$3837,8),stats!$A$1:$BV$769,8)=0,"","-"&VLOOKUP(VLOOKUP((choice-1)*5+$A14,stacked_bats!$A$2:$H$3837,8),stats!$A$1:$BV$769,8)) -> 1B | F14: =VLOOKUP(VLOOKUP((choice-1)*5+$A14,stacked_bats!$A$2:$H$3837,8),stats!$A$1:$BV$769,9) -> L | G14: =ROUND(VLOOKUP((choice-1)*5+$A14,stacked_bats!$A$2:$G$3837,3),3) -> 0.889 | H14: =VLOOKUP(VLOOKUP((choice-1)*5+$A14,stacked_bats!$A$2:$H$3837,8),stats!$A$1:$BV$769,24) -> 28 | I14: =VLOOKUP(VLOOKUP((choice-1)*5+$A14,stacked_bats!$A$2:$H$3837,8),stats!$A$1:$BV$769,25) -> 444 | J14: =VLOOKUP(VLOOKUP((choice-1)*5+$A14,stacked_bats!$A$2:$H$3837,8),stats!$A$1:$BV$769,26) -> 14 | K14: =VLOOKUP(VLOOKUP((choice-1)*5+$A14,stacked_bats!$A$2:$H$3837,8),stats!$A$1:$BV$769,27) -> 6 | L14: =VLOOKUP(VLOOKUP((choice-1)*5+$A14,stacked_bats!$A$2:$H$3837,8),stats!$A$1:$BV$769,42) -> 0.0639861879 | M14: =VLOOKUP(VLOOKUP((choice-1)*5+$A14,stacked_bats!$A$2:$H$3837,8),stats!$A$1:$BV$769,43) -> 0.2363908528 | N14: =VLOOKUP(VLOOKUP((choice-1)*5+$A14,stacked_bats!$A$2:$H$3837,8),stats!$A$1:$BV$769,28) -> 0.258 | O14: =VLOOKUP(VLOOKUP((choice-1)*5+$A14,stacked_bats!$A$2:$H$3837,8),stats!$A$1:$BV$769,29) -> 0.311 | P14: =VLOOKUP(VLOOKUP((choice-1)*5+$A14,stacked_bats!$A$2:$H$3837,8),stats!$A$1:$BV$769,30) -> 0.428 | Q14: =VLOOKUP(VLOOKUP((choice-1)*5+$A14,stacked_bats!$A$2:$H$3837,8),stats!$A$1:$BV$769,31) -> 0.32 | R14: =Q14*I14 -> 142.08 | S14: =VLOOKUP(VLOOKUP((choice-1)*5+$A14,stacked_bats!$A$2:$H$3837,8),stats!$A$1:$BV$769,32) -> 41 | T14: =VLOOKUP(VLOOKUP((choice-1)*5+$A14,stacked_bats!$A$2:$H$3837,8),stats!$A$1:$BV$769,33) -> 37 | U14: =VLOOKUP(VLOOKUP((choice-1)*5+$A14,stacked_bats!$A$2:$H$3837,8),stats!$A$1:$BV$769,34) -> 16 | V14: =VLOOKUP(VLOOKUP((choice-1)*5+$A14,stacked_bats!$A$2:$H$3837,8),stats!$A$1:$BV$769,10)&" " -> 7 | W14: =VLOOKUP(VLOOKUP((choice-1)*5+$A14,stacked_bats!$A$2:$H$3837,8),stats!$A$1:$BV$769,35) -> 0 | X14: =" "&VLOOKUP(VLOOKUP((choice-1)*5+$A14,stacked_bats!$A$2:$H$3837,8),stats!$A$1:$BV$769,11)&" " -> Agile Dominant Hitter
A15: 5 | B15: =" "&VLOOKUP((choice-1)*5+$A15,stacked_bats!$A$2:$G$3837,6)&", "&VLOOKUP((choice-1)*5+$A15,stacked_bats!$A$2:$G$3837,7) -> Dickerson, Corey | D15: =VLOOKUP(VLOOKUP((choice-1)*5+$A15,stacked_bats!$A$2:$H$3837,8),stats!$A$1:$DU$769,76) -> TBA | E15: =VLOOKUP(VLOOKUP((choice-1)*5+$A15,stacked_bats!$A$2:$H$3837,8),stats!$A$1:$BV$769,6)&IF(VLOOKUP(VLOOKUP((choice-1)*5+$A15,stacked_bats!$A$2:$H$3837,8),stats!$A$1:$BV$769,7)=0,"","-"&VLOOKUP(VLOOKUP((choice-1)*5+$A15,stacked_bats!$A$2:$H$3837,8),stats!$A$1:$BV$769,7))&IF(VLOOKUP(VLOOKUP((choice-1)*5+$A15,stacked_bats!$A$2:$H$3837,8),stats!$A$1:$BV$769,8)=0,"","-"&VLOOKUP(VLOOKUP((choice-1)*5+$A15,stacked_bats!$A$2:$H$3837,8),stats!$A$1:$BV$769,8)) -> OF | F15: =VLOOKUP(VLOOKUP((choice-1)*5+$A15,stacked_bats!$A$2:$H$3837,8),stats!$A$1:$BV$769,9) -> L | G15: =ROUND(VLOOKUP((choice-1)*5+$A15,stacked_bats!$A$2:$G$3837,3),3) -> 0.867 | H15: =VLOOKUP(VLOOKUP((choice-1)*5+$A15,stacked_bats!$A$2:$H$3837,8),stats!$A$1:$BV$769,24) -> 26 | I15: =VLOOKUP(VLOOKUP((choice-1)*5+$A15,stacked_bats!$A$2:$H$3837,8),stats!$A$1:$BV$769,25) -> 388 | J15: =VLOOKUP(VLOOKUP((choice-1)*5+$A15,stacked_bats!$A$2:$H$3837,8),stats!$A$1:$BV$769,26) -> 12 | K15: =VLOOKUP(VLOOKUP((choice-1)*5+$A15,stacked_bats!$A$2:$H$3837,8),stats!$A$1:$BV$769,27) -> 4 | L15: =VLOOKUP(VLOOKUP((choice-1)*5+$A15,stacked_bats!$A$2:$H$3837,8),stats!$A$1:$BV$769,42) -> 0.0591899107 | M15: =VLOOKUP(VLOOKUP((choice-1)*5+$A15,stacked_bats!$A$2:$H$3837,8),stats!$A$1:$BV$769,43) -> 0.2056877763 | N15: =VLOOKUP(VLOOKUP((choice-1)*5+$A15,stacked_bats!$A$2:$H$3837,8),stats!$A$1:$BV$769,28) -> 0.271 | O15: =VLOOKUP(VLOOKUP((choice-1)*5+$A15,stacked_bats!$A$2:$H$3837,8),stats!$A$1:$BV$769,29) -> 0.318 | P15: =VLOOKUP(VLOOKUP((choice-1)*5+$A15,stacked_bats!$A$2:$H$3837,8),stats!$A$1:$BV$769,30) -> 0.454 | Q15: =VLOOKUP(VLOOKUP((choice-1)*5+$A15,stacked_bats!$A$2:$H$3837,8),stats!$A$1:$BV$769,31) -> 0.333 | R15: =Q15*I15 -> 129.204 | S15: =VLOOKUP(VLOOKUP((choice-1)*5+$A15,stacked_bats!$A$2:$H$3837,8),stats!$A$1:$BV$769,32) -> 43 | T15: =VLOOKUP(VLOOKUP((choice-1)*5+$A15,stacked_bats!$A$2:$H$3837,8),stats!$A$1:$BV$769,33) -> 40 | U15: =VLOOKUP(VLOOKUP((choice-1)*5+$A15,stacked_bats!$A$2:$H$3837,8),stats!$A$1:$BV$769,34) -> 16 | V15: =VLOOKUP(VLOOKUP((choice-1)*5+$A15,stacked_bats!$A$2:$H$3837,8),stats!$A$1:$BV$769,10)&" " -> 14 | W15: =VLOOKUP(VLOOKUP((choice-1)*5+$A15,stacked_bats!$A$2:$H$3837,8),stats!$A$1:$BV$769,35) -> 5 | X15: =" "&VLOOKUP(VLOOKUP((choice-1)*5+$A15,stacked_bats!$A$2:$H$3837,8),stats!$A$1:$BV$769,11)&" " -> Slugger
B31: =" "&VLOOKUP((choice-1)*5+$A7,stacked_bats!$A$2:$F$3837,6)&" also leans towards "&VLOOKUP(VALUE(V7),clusters!$A$2:$B$76,2)&" ("&ROUND(100*VLOOKUP(VALUE(V7),clusters!$A$2:$C$76,3)/clusters!C$2,1)&"% of players)" -> Adams also leans towards Young Speedy Slugger (2.5% of players)
B32: http://baseballguru.com/bbinside4.html

Sheet PITCH2016forecast
A1: http://baseballguru.com | C1: FORECAST AS OF 2/29/2016 | H1: SP=Starters / LP=Long Relief, Swing / JP=Junk Starters / EP=Elite RP / DP=Decent RP / BP=Bad RP/ AP=Avoid RP | I1: Percent of forecast based on players own stats | J1: Played last year | K1: Innings pitched | L1: Wins | M1: Games pitched | N1: Games started | O1: Complete games | P1: Shut outs | Q1: Saves | R1: Games finished | S1: Batters faced | T1: Home runs allowed | U1: Walks allowed | V1: Intentional walks | W1: Strike outs allowed | X1: IP outs | Y1: Hits allowed | Z1: Earned runs allowed | AA1: Wild pitches | AB1: Hit batters | AC1: Balks | AD1: Runs allowed | AE1: Earned Run Average | AF1: Left on base | AG1: LOB per IP | AH1: Command: Strike out to walk ratio | AI1: Dominance: Strike outs per 9 IP | AJ1: Control: Walks per 9 IP | AK1: Home runs allowed per 9 IP | AL1: Bases allowed per 9 IP | AM1: walks+hits per IP | AN1: walks+hrs*10 per IP | AO1: Home runs allowed per bases allowed | AP1: STUFF: Upside based on power and control | AQ1: Indexed ERA, (100 is average. 80 is 20% lower than average) | AR1: Pitching Value | AS1: Value (runs allowed) Over Replacement Player at same position | AT1: Dollar value, based on 5x5 Rotisserie: ERA, Wins, SV, WHIP, Strike outs | AU1: League Rank | AV1: Position League Rank | AW1: mDERA3-ERA-dif | AX1: 2 year projection | AY1: 2 year projected Innings pitched | AZ1: 2 year projected ERA | BA1: 2 year projected Indexed ERA | BB1: 2 year projected mGURU | BC1: 3 year projected | BD1: 3 year projected Innings pitched | BE1: 3 year projected ERA | BF1: 3 year projected Indexed ERA | BG1: 3 year projected mGURU | BH1: Last Years IP | BI1: Last Years ERA | BJ1: Last Years "Dips" ERA | BK1: Last Years GURU player value | BL1: mDERA-ERA (forecasted era minus era from year before) | BM1: Difference between forecast and last years value. Sleepers have high values. | BN1: Draft Value: S=Sleeper, R=Regular, O=Overpriced | BO1: mIP3-ip | BP1: Lahman PlayerID | BQ1: MLB ID | BR1: Description of player for predicted season | BS1: Most Similar Player | BT1: Second Most Similar Player | BU1: Third Most Similar Player | BV1: Words to the wise
A2: nameLast | B2: nameFirst | C2: throws | D2: yearp | E2: age | F2: teamID | G2: LG | H2: POS | I2: reliability | J2: play | K2: mIP | L2: mW | M2: mGP | N2: mGS | O2: mCG | P2: mSHO | Q2: mSV | R2: mGF | S2: mBFP | T2: mHRA | U2: mBBA | V2: mIBBA | W2: mSOA | X2: mIPouts | Y2: mHA | Z2: mER | AA2: mWP | AB2: mHPBA | AC2: mBK | AD2: mRA | AE2: mDERA | AF2: mLOB | AG2: mloba | AH2: mCMD | AI2: mDOM | AJ2: mCTL | AK2: mHR9 | AL2: mBABIP | AM2: mWHIP | AN2: mWRIP | AO2: mHRBIB | AP2: mSTUFF | AQ2: ERAi | AR2: mGURU | AS2: mVORP | AT2: mROTO | AU2: lrank | AV2: prank | AW2: traj | AX2: POS2 | AY2: mIP2 | AZ2: mDERA2 | BA2: ERAi2 | BB2: mGURU2 | BC2: POS3 | BD2: mIP3 | BE2: mDERA3 | BF2: ERAi3 | BG2: mGURU3 | BH2: IP_2015 | BI2: ERA_2015 | BJ2: DERA_2015 | BK2: GURU_2015 | BL2: DIF | BM2: gurud | BN2: value | BO2: DIF_IP3 | BP2: playerID | BQ2: MLBAM_ID | BR2: Description | BS2: Match1 | BT2: Match2 | BU2: Match3 | BV2: Advice
A3: Kershaw | B3: Clayton | C3: L | D3: 2016 | E3: 28 | F3: LAN | G3: NL | H3: SP | I3: 0.82 | J3: Y | K3: 220 | L3: 15 | M3: 30 | N3: 29 | O3: 4 | P3: 2 | Q3: 0 | R3: 0 | S3: 803 | T3: 13 | U3: 41 | V3: 1 | W3: 239 | X3: 621 | Y3: 144 | Z3: 24 | AA3: 7 | AB3: 4 | AC3: 2 | AD3: 54 | AE3: 2.68 | AF3: 133 | AG3: 5.8 | AH3: 5.8 | AI3: 10.5 | AJ3: 1.8 | AK3: 0.59 | AL3: 0.281 | AM3: 0.96 | AN3: 0.86 | AO3: 0.04 | AP3: 225 | AQ3: 69 | AR3: 197 | AS3: 70 | AT3: 54.93 | AU3: 2 | AV3: 1 | AW3: -0.03 | AX3: SP | AY3: 185.5 | AZ3: 2.51 | BA3: 52 | BB3: 238 | BC3: SP | BD3: 158 | BE3: 2.65 | BF3: 58 | BG3: 186 | BH3: 232.7 | BI3: 2.13 | BJ3: 2.09 | BK3: 465 | BL3: 0.56 | BM3: -268 | BN3: R | BO3: -75 | BP3: kershcl01 | BQ3: 477132 | BR3: Lefty Commanding Top Starter | BS3: Madison Bumgarner | BT3: Carlos Carrasco | BU3: David Price | BV3: Should perform close to forecast. Expect to see at top of Rotation all season. CY Young candidate.
A4: Scherzer | B4: Max | C4: R | D4: 2016 | E4: 31 | F4: WAS | G4: NL | H4: SP | I4: 0.82 | J4: Y | K4: 199.1 | L4: 14 | M4: 30 | N4: 30 | O4: 2 | P4: 1 | Q4: 0 | R4: 0 | S4: 791 | T4: 20 | U4: 45 | V4: 1 | W4: 216 | X4: 590 | Y4: 154 | Z4: 26 | AA4: 7 | AB4: 5 | AC4: 1 | AD4: 67 | AE4: 2.87 | AF4: 132 | AG4: 6 | AH4: 4.8 | AI4: 9.8 | AJ4: 2 | AK4: 0.91 | AL4: 0.28 | AM4: 1.05 | AN4: 1.24 | AO4: 0.06 | AP4: 166 | AQ4: 74 | AR4: 159 | AS4: 65 | AT4: 48.61 | AU4: 4 | AV4: 2 | AW4: 0.24 | AX4: SP | AY4: 172.3 | AZ4: 3.04 | BA4: 63 | BB4: 128 | BC4: SP | BD4: 148.5 | BE4: 3.11 | BF4: 68 | BG4: 111 | BH4: 228.7 | BI4: 2.79 | BJ4: 2.74 | BK4: 204 | BL4: 0.08 | BM4: -45 | BN4: R | BO4: -80 | BP4: scherma01 | BQ4: 453286 | BR4: Righty Commanding Top Starter | BS4: Corey Kluber | BT4: Jake Arrieta | BU4: Carlos Carrasco | BV4: In prime. Expect to see at top of Rotation all season. CY Young candidate.
A5: Arrieta | B5: Jake | C5: R | D5: 2016 | E5: 30 | F5: CHN | G5: NL | H5: SP | I5: 0.78 | J5: Y | K5: 202.7 | L5: 14 | M5: 32 | N5: 31 | O5: 2 | P5: 2 | Q5: 0 | R5: 0 | S5: 782 | T5: 12 | U5: 51 | V5: 2 | W5: 195 | X5: 596 | Y5: 136 | Z5: 27 | AA5: 6 | AB5: 5 | AC5: 0 | AD5: 56 | AE5: 3.03 | AF5: 131 | AG5: 6 | AH5: 3.8 | AI5: 8.9 | AJ5: 2.4 | AK5: 0.53 | AL5: 0.264 | AM5: 1.02 | AN5: 0.86 | AO5: 0.03 | AP5: 129 | AQ5: 78 | AR5: 134 | AS5: 59 | AT5: 46.9 | AU5: 5 | AV5: 3 | AW5: -0.09 | AX5: SP | AY5: 170.1 | AZ5: 2.83 | BA5: 59 | BB5: 158 | BC5: SP | BD5: 144.4 | BE5: 2.94 | BF5: 65 | BG5: 130 | BH5: 229 | BI5: 1.77 | BJ5: 2.41 | BK5: 298 | BL5: 1.26 | BM5: -164 | BN5: R | BO5: -85 | BP5: arrieja01 | BQ5: 453562 | BR5: Righty Commanding Top Starter | BS5: Carlos Carrasco | BT5: Johnny Cueto | BU5: Clay Buchholz | BV5: In prime. Expect to see at top of Rotation all season. CY Young candidate.
A6: Bumgarner | B6: Madison | C6: L | D6: 2016 | E6: 26 | F6: SFN | G6: NL | H6: SP | I6: 0.81 | J6: Y | K6: 202.8 | L6: 14 | M6: 30 | N6: 30 | O6: 3 | P6: 1 | Q6: 0 | R6: 0 | S6: 808 | T6: 19 | U6: 45 | V6: 3 | W6: 206 | X6: 602 | Y6: 165 | Z6: 28 | AA6: 3 | AB6: 6 | AC6: 0 | AD6: 70 | AE6: 3.07 | AF6: 141 | AG6: 6.4 | AH6: 4.6 | AI6: 9.3 | AJ6: 2 | AK6: 0.88 | AL6: 0.285 | AM6: 1.09 | AN6: 1.2 | AO6: 0.05 | AP6: 139 | AQ6: 79 | AR6: 132 | AS6: 62 | AT6: 46.93 | AU6: 6 | AV6: 4 | AW6: 0.15 | AX6: SP | AY6: 178 | AZ6: 3.17 | BA6: 66 | BB6: 115 | BC6: SP | BD6: 155.8 | BE6: 3.22 | BF6: 71 | BG6: 102 | BH6: 218.3 | BI6: 2.93 | BJ6: 2.91 | BK6: 166 | BL6: 0.15 | BM6: -34 | BN6: R | BO6: -63 | BP6: bumgama01 | BQ6: 518516 | BR6: Lefty Commanding Top Starter | BS6: Clayton Kershaw | BT6: David Price | BU6: Dallas Keuchel | BV6: Should perform close to forecast. Expect to see at top of Rotation all season. CY Young candidate.
A7: deGrom | B7: Jacob | C7: R | D7: 2016 | E7: 28 | F7: NYN | G7: NL | H7: SP | I7: 0.77 | J7: Y | K7: 181.9 | L7: 12 | M7: 27 | N7: 27 | O7: 0 | P7: 0 | Q7: 0 | R7: 0 | S7: 681 | T7: 14 | U7: 42 | V7: 2 | W7: 173 | X7: 510 | Y7: 137 | Z7: 30 | AA7: 4 | AB7: 2 | AC7: 0 | AD7: 56 | AE7: 3.33 | AF7: 125 | AG7: 6.7 | AH7: 4.2 | AI7: 9.2 | AJ7: 2.2 | AK7: 0.73 | AL7: 0.28 | AM7: 1.09 | AN7: 1.06 | AO7: 0.04 | AP7: 131 | AQ7: 86 | AR7: 95 | AS7: 48 | AT7: 39.27 | AU7: 12 | AV7: 5 | AW7: -0.23 | AX7: SP | AY7: 153.9 | AZ7: 3.03 | BA7: 63 | BB7: 123 | BC7: SP | BD7: 131.3 | BE7: 3.1 | BF7: 68 | BG7: 105 | BH7: 191 | BI7: 2.54 | BJ7: 2.73 | BK7: 188 | BL7: 0.79 | BM7: -93 | BN7: R | BO7: -60 | BP7: degroja01 | BQ7: 594798 | BR7: Righty Commanding Starter | BS7: Matt Harvey | BT7: Stephen Strasburg | BU7: Gerrit Cole | BV7: Should perform close to forecast. Expect to see at top of Rotation all season. CY Young candidate.
A8: Greinke | B8: Zack | C8: R | D8: 2016 | E8: 32 | F8: ARI | G8: NL | H8: SP | I8: 0.81 | J8: Y | K8: 187.8 | L8: 14 | M8: 30 | N8: 29 | O8: 1 | P8: 0 | Q8: 0 | R8: 0 | S8: 753 | T8: 15 | U8: 42 | V8: 2 | W8: 170 | X8: 570 | Y8: 147 | Z8: 31 | AA8: 7 | AB8: 4 | AC8: 0 | AD8: 53 | AE8: 3.42 | AF8: 137 | AG8: 6.6 | AH8: 4 | AI8: 8.1 | AJ8: 2 | AK8: 0.73 | AL8: 0.264 | AM8: 1.04 | AN8: 1.03 | AO8: 0.04 | AP8: 89 | AQ8: 88 | AR8: 93 | AS8: 51 | AT8: 43.41 | AU8: 14 | AV8: 6 | AW8: -0.21 | AX8: SP | AY8: 158.8 | AZ8: 3.14 | BA8: 65 | BB8: 112 | BC8: SP | BD8: 135 | BE8: 3.2 | BF8: 70 | BG8: 96 | BH8: 222.7 | BI8: 1.66 | BJ8: 2.82 | BK8: 185 | BL8: 1.76 | BM8: -92 | BN8: R | BO8: -88 | BP8: greinza01 | BQ8: 425844 | BR8: Righty Commanding Top Starter | BS8: Collin McHugh | BT8: Felix Hernandez | BU8: Matt Harvey | BV8: Should perform close to forecast. Expect to see at top of Rotation all season. CY Young candidate.
A9: Syndergaard | B9: Noah | C9: R | D9: 2016 | E9: 23 | F9: NYN | G9: NL | H9: SP | I9: 0.75 | J9: Y | K9: 158.1 | L9: 9 | M9: 22 | N9: 22 | O9: 0 | P9: 0 | Q9: 0 | R9: 0 | S9: 586 | T9: 18 | U9: 33 | V9: 2 | W9: 158 | X9: 434 | Y9: 121 | Z9: 30 | AA9: 5 | AB9: 3 | AC9: 0 | AD9: 58 | AE9: 3.38 | AF9: 101 | AG9: 6.4 | AH9: 4.7 | AI9: 10 | AJ9: 2.1 | AK9: 1.15 | AL9: 0.288 | AM9: 1.12 | AN9: 1.52 | AO9: 0.07 | AP9: 150 | AQ9: 87 | AR9: 83 | AS9: 40 | AT9: 31.82 | AU9: 16 | AV9: 7 | AW9: 0.01 | AX9: SP | AY9: 137 | AZ9: 3.36 | BA9: 70 | BB9: 84 | BC9: SP | BD9: 120.1 | BE9: 3.39 | BF9: 74 | BG9: 76 | BH9: 150 | BI9: 3.24 | BJ9: 3.18 | BK9: 104 | BL9: 0.14 | BM9: -21 | BN9: R | BO9: -30 | BP9: syndeno01 | BQ9: 592789 | BR9: Young Commanding Starter | BS9: Stephen Strasburg | BT9: Raisel Iglesias | BU9: Matt Harvey | BV9: Should perform close to forecast. Expected to play regularly. Sky's the limit, must have.
A10: Harvey | B10: Matt | C10: R | D10: 2016 | E10: 27 | F10: NYN | G10: NL | H10: SP | I10: 0.79 | J10: Y | K10: 179 | L10: 11 | M10: 26 | N10: 26 | O10: 0 | P10: 0 | Q10: 0 | R10: 0 | S10: 685 | T10: 15 | U10: 36 | V10: 2 | W10: 170 | X10: 514 | Y10: 129 | Z10: 31 | AA10: 3 | AB10: 4 | AC10: 0 | AD10: 52 | AE10: 3.46 | AF10: 111 | AG10: 5.9 | AH10: 4.7 | AI10: 9 | AJ10: 1.9 | AK10: 0.8 | AL10: 0.284 | AM10: 1.06 | AN10: 1.11 | AO10: 0.05 | AP10: 124 | AQ10: 89 | AR10: 82 | AS10: 43 | AT10: 37.03 | AU10: 17 | AV10: 8 | AW10: -0.24 | AX10: SP | AY10: 153.3 | AZ10: 3.18 | BA10: 66 | BB10: 106 | BC10: SP | BD10: 132.1 | BE10: 3.22 | BF10: 71 | BG10: 94 | BH10: 189.3 | BI10: 2.71 | BJ10: 3.05 | BK10: 134 | BL10: 0.76 | BM10: -52 | BN10: R | BO10: -57 | BP10: harvema01 | BQ10: 518774 | BR10: Righty Commanding Top Starter | BS10: Jacob deGrom | BT10: Stephen Strasburg | BU10: Michael Pineda | BV10: Should perform close to forecast. Expected to play regularly. Franchise player.
A11: Cole | B11: Gerrit | C11: R | D11: 2016 | E11: 25 | F11: PIT | G11: NL | H11: SP | I11: 0.77 | J11: Y | K11: 197.1 | L11: 13 | M11: 31 | N11: 29 | O11: 0 | P11: 0 | Q11: 0 | R11: 0 | S11: 790 | T11: 14 | U11: 49 | V11: 1 | W11: 188 | X11: 583 | Y11: 166 | Z11: 32 | AA11: 7 | AB11: 9 | AC11: 0 | AD11: 70 | AE11: 3.61 | AF11: 147 | AG11: 6.9 | AH11: 3.8 | AI11: 8.8 | AJ11: 2.3 | AK11: 0.66 | AL11: 0.302 | AM11: 1.18 | AN11: 0.99 | AO11: 0.04 | AP11: 110 | AQ11: 93 | AR11: 80 | AS11: 46 | AT11: 39.71 | AU11: 18 | AV11: 9 | AW11: -0.44 | AX11: SP | AY11: 173.5 | AZ11: 3.13 | BA11: 65 | BB11: 119 | BC11: SP | BD11: 152.5 | BE11: 3.17 | BF11: 69 | BG11: 107 | BH11: 208 | BI11: 2.6 | BJ11: 2.75 | BK11: 192 | BL11: 1.01 | BM11: -112 | BN11: R | BO11: -55 | BP11: colege01 | BQ11: 543037 | BR11: Young Commanding Starter | BS11: Jacob deGrom | BT11: Matt Harvey | BU11: Collin McHugh | BV11: Should perform close to forecast. Expect to see at top of Rotation all season. Sky's the limit, must have.
A12: Lester | B12: Jon | C12: L | D12: 2016 | E12: 32 | F12: CHN | G12: NL | H12: SP | I12: 0.81 | J12: Y | K12: 180.7 | L12: 12 | M12: 27 | N12: 27 | O12: 1 | P12: 0 | Q12: 0 | R12: 0 | S12: 715 | T12: 15 | U12: 44 | V12: 0 | W12: 163 | X12: 525 | Y12: 157 | Z12: 32 | AA12: 5 | AB12: 5 | AC12: 0 | AD12: 69 | AE12: 3.59 | AF12: 139 | AG12: 7.1 | AH12: 3.7 | AI12: 8.4 | AJ12: 2.3 | AK12: 0.75 | AL12: 0.287 | AM12: 1.16 | AN12: 1.08 | AO12: 0.04 | AP12: 90 | AQ12: 93 | AR12: 79 | AS12: 46 | AT12: 37.34 | AU12: 19 | AV12: 10 | AW12: -0.27 | AX12: SP | AY12: 153.5 | AZ12: 3.25 | BA12: 67 | BB12: 99 | BC12: SP | BD12: 130.7 | BE12: 3.32 | BF12: 73 | BG12: 85 | BH12: 205 | BI12: 3.34 | BJ12: 3.02 | BK12: 144 | BL12: 0.26 | BM12: -65 | BN12: R | BO12: -74 | BP12: lestejo01 | BQ12: 452657 | BR12: Lefty Commanding Top Starter | BS12: Cole Hamels | BT12: Jose Quintana | BU12: Scott Kazmir | BV12: Should perform close to forecast. Expect to see at top of Rotation all season. Has all-star level talent.
A13: Cueto | B13: Johnny | C13: R | D13: 2016 | E13: 30 | F13: SFN | G13: NL | H13: SP | I13: 0.8 | J13: Y | K13: 182.4 | L13: 13 | M13: 29 | N13: 28 | O13: 2 | P13: 1 | Q13: 0 | R13: 0 | S13: 758 | T13: 18 | U13: 47 | V13: 2 | W13: 165 | X13: 561 | Y13: 153 | Z13: 34 | AA13: 2 | AB13: 8 | AC13: 2 | AD13: 67 | AE13: 3.8 | AF13: 136 | AG13: 6.6 | AH13: 3.5 | AI13: 8 | AJ13: 2.3 | AK13: 0.89 | AL13: 0.265 | AM13: 1.11 | AN13: 1.24 | AO13: 0.05 | AP13: 71 | AQ13: 98 | AR13: 70 | AS13: 43 | AT13: 40.44 | AU13: 26 | AV13: 12 | AW13: -0.24 | AX13: SP | AY13: 159.7 | AZ13: 3.53 | BA13: 73 | BB13: 79 | BC13: SP | BD13: 140.7 | BE13: 3.56 | BF13: 78 | BG13: 72 | BH13: 212 | BI13: 3.44 | BJ13: 3.55 | BK13: 94 | BL13: 0.36 | BM13: -24 | BN13: R | BO13: -71 | BP13: cuetojo01 | BQ13: 456501 | BR13: Righty Commanding Top Starter | BS13: Anibal Sanchez | BT13: Jeff Samardzija | BU13: Carlos Carrasco | BV13: In prime. Expected to play regularly. All-star hopeful.
A14: Ross | B14: Tyson | C14: R | D14: 2016 | E14: 29 | F14: SDN | G14: NL | H14: SP | I14: 0.79 | J14: Y | K14: 180.2 | L14: 12 | M14: 31 | N14: 27 | O14: 1 | P14: 0 | Q14: 0 | R14: 1 | S14: 714 | T14: 11 | U14: 64 | V14: 3 | W14: 171 | X14: 515 | Y14: 148 | Z14: 34 | AA14: 10 | AB14: 7 | AC14: 0 | AD14: 69 | AE14: 3.79 | AF14: 151 | AG14: 8 | AH14: 2.7 | AI14: 9 | AJ14: 3.4 | AK14: 0.59 | AL14: 0.291 | AM14: 1.26 | AN14: 1.04 | AO14: 0.03 | AP14: 95 | AQ14: 98 | AR14: 67 | AS14: 39 | AT14: 34.38 | AU14: 27 | AV14: 11 | AW14: -0.34 | AX14: LP | AY14: 129.1 | AZ14: 3.34 | BA14: 69 | BB14: 83 | BC14: SP | BD14: 109.5 | BE14: 3.45 | BF14: 76 | BG14: 69 | BH14: 196 | BI14: 3.26 | BJ14: 3.05 | BK14: 137 | BL14: 0.53 | BM14: -70 | BN14: R | BO14: -87 | BP14: rossty01 | BQ14: 475115 | BR14: Righty Power Top Starter | BS14: Christopher Archer | BT14: Lance Lynn | BU14: Garrett Richards | BV14: Approaching his prime years. Expected to play regularly. All-star hopeful.
A15: Hammel | B15: Jason | C15: R | D15: 2016 | E15: 33 | F15: CHN | G15: NL | H15: SP | I15: 0.77 | J15: Y | K15: 145.3 | L15: 10 | M15: 27 | N15: 25 | O15: 0 | P15: 0 | Q15: 0 | R15: 1 | S15: 601 | T15: 19 | U15: 39 | V15: 3 | W15: 127 | X15: 433 | Y15: 139 | Z15: 33 | AA15: 6 | AB15: 6 | AC15: 0 | AD15: 67 | AE15: 3.7 | AF15: 117 | AG15: 7.3 | AH15: 3.3 | AI15: 7.9 | AJ15: 2.4 | AK15: 1.16 | AL15: 0.274 | AM15: 1.2 | AN15: 1.55 | AO15: 0.06 | AP15: 59 | AQ15: 96 | AR15: 66 | AS15: 36 | AT15: 29.48 | AU15: 28 | AV15: 12 | AW15: 0.11 | AX15: SP | AY15: 124.7 | AZ15: 3.76 | BA15: 78 | BB15: 57 | BC15: SP | BD15: 107.1 | BE15: 3.81 | BF15: 84 | BG15: 50 | BH15: 170.7 | BI15: 3.74 | BJ15: 3.57 | BK15: 80 | BL15: -0.04 | BM15: -14 | BN15: R | BO15: -64 | BP15: hammeja01 | BQ15: 434628 | BR15: Righty Commanding Starter | BS15: Matt Shoemaker | BT15: Ian Kennedy | BU15: Danny Haren | BV15: Should perform close to forecast. Expected to play regularly. All-star candidate.
A16: Liriano | B16: Francisco | C16: L | D16: 2016 | E16: 32 | F16: PIT | G16: NL | H16: SP | I16: 0.78 | J16: Y | K16: 165.7 | L16: 11 | M16: 27 | N16: 27 | O16: 0 | P16: 0 | Q16: 0 | R16: 0 | S16: 665 | T16: 13 | U16: 63 | V16: 2 | W16: 160 | X16: 478 | Y16: 134 | Z16: 34 | AA16: 8 | AB16: 4 | AC16: 1 | AD16: 64 | AE16: 3.76 | AF16: 136 | AG16: 7.7 | AH16: 2.6 | AI16: 9 | AJ16: 3.5 | AK16: 0.74 | AL16: 0.279 | AM16: 1.24 | AN16: 1.22 | AO16: 0.04 | AP16: 89 | AQ16: 97 | AR16: 65 | AS16: 39 | AT16: 32.12 | AU16: 29 | AV16: 13 | AW16: -0.25 | AX16: SP | AY16: 140.2 | AZ16: 3.51 | BA16: 73 | BB16: 75 | BC16: SP | BD16: 119.1 | BE16: 3.52 | BF16: 77 | BG16: 68 | BH16: 186.7 | BI16: 3.38 | BJ16: 3.27 | BK16: 109 | BL16: 0.39 | BM16: -44 | BN16: R | BO16: -68 | BP16: liriafr01 | BQ16: 434538 | BR16: Lefty Power Starter | BS16: Gio Gonzalez | BT16: Scott Kazmir | BU16: Cole Hamels | BV16: Should perform close to forecast. Expected to play regularly. All-star hopeful.
A17: Lackey | B17: John | C17: R | D17: 2016 | E17: 37 | F17: CHN | G17: NL | H17: SP | I17: 0.81 | J17: Y | K17: 168.1 | L17: 12 | M17: 29 | N17: 29 | O17: 1 | P17: 0 | Q17: 0 | R17: 0 | S17: 740 | T17: 19 | U17: 46 | V17: 3 | W17: 137 | X17: 535 | Y17: 167 | Z17: 35 | AA17: 4 | AB17: 3 | AC17: 2 | AD17: 68 | AE17: 3.84 | AF17: 147 | AG17: 7.3 | AH17: 3 | AI17: 6.9 | AJ17: 2.3 | AK17: 0.98 | AL17: 0.281 | AM17: 1.23 | AN17: 1.34 | AO17: 0.05 | AP17: 37 | AQ17: 99 | AR17: 65 | AS17: 41 | AT17: 33.2 | AU17: 30 | AV17: 14 | AW17: -0.15 | AX17: SP | AY17: 145.8 | AZ17: 3.7 | BA17: 77 | BB17: 65 | BC17: SP | BD17: 125.3 | BE17: 3.69 | BF17: 81 | BG17: 60 | BH17: 218 | BI17: 2.77 | BJ17: 3.54 | BK17: 96 | BL17: 1.08 | BM17: -30 | BN17: R | BO17: -93 | BP17: lackejo01 | BQ17: 407793 | BR17: Aging Super Control Top Starter | BS17: Jake Peavy | BT17: Justin Verlander | BU17: Bartolo Colon | BV17: Should perform close to forecast. Expected to play regularly. All-star candidate.
A18: Martinez | B18: Carlos | C18: R | D18: 2016 | E18: 24 | F18: SLN | G18: NL | H18: SP | I18: 0.71 | J18: Y | K18: 176 | L18: 11 | M18: 26 | N18: 26 | O18: 0 | P18: 0 | Q18: 0 | R18: 0 | S18: 700 | T18: 13 | U18: 58 | V18: 6 | W18: 164 | X18: 497 | Y18: 156 | Z18: 35 | AA18: 8 | AB18: 7 | AC18: 1 | AD18: 67 | AE18: 3.84 | AF18: 150 | AG18: 8.2 | AH18: 2.8 | AI18: 9 | AJ18: 3.2 | AK18: 0.72 | AL18: 0.308 | AM18: 1.32 | AN18: 1.15 | AO18: 0.04 | AP18: 94 | AQ18: 99 | AR18: 63 | AS18: 39 | AT18: 30.81 | AU18: 32 | AV18: 16 | AW18: -0.38 | AX18: SP | AY18: 155.8 | AZ18: 3.35 | BA18: 70 | BB18: 91 | BC18: SP | BD18: 137.3 | BE18: 3.45 | BF18: 76 | BG18: 78 | BH18: 179.7 | BI18: 3.01 | BJ18: 3.2 | BK18: 113 | BL18: 0.83 | BM18: -50 | BN18: R | BO18: -42 | BP18: martica04 | BQ18: 593372 | BR18: Young Power Swing Starter | BS18: Yordano Ventura | BT18: Michael Wacha | BU18: Gerrit Cole | BV18: Should perform close to forecast. Expected to play regularly.
A19: Miller | B19: Shelby | C19: R | D19: 2016 | E19: 25 | F19: ARI | G19: NL | H19: SP | I19: 0.79 | J19: Y | K19: 183.3 | L19: 13 | M19: 31 | N19: 30 | O19: 1 | P19: 1 | Q19: 0 | R19: 0 | S19: 801 | T19: 18 | U19: 68 | V19: 5 | W19: 162 | X19: 575 | Y19: 166 | Z19: 36 | AA19: 4 | AB19: 5 | AC19: 1 | AD19: 76 | AE19: 3.98 | AF19: 163 | AG19: 7.8 | AH19: 2.4 | AI19: 7.7 | AJ19: 3.2 | AK19: 0.86 | AL19: 0.279 | AM19: 1.27 | AN19: 1.32 | AO19: 0.05 | AP19: 47 | AQ19: 103 | AR19: 62 | AS19: 41 | AT19: 34.89 | AU19: 33 | AV19: 17 | AW19: -0.29 | AX19: SP | AY19: 164.3 | AZ19: 3.75 | BA19: 78 | BB19: 68 | BC19: SP | BD19: 146.7 | BE19: 3.69 | BF19: 81 | BG19: 66 | BH19: 205.3 | BI19: 3.02 | BJ19: 3.43 | BK19: 101 | BL19: 0.95 | BM19: -39 | BN19: R | BO19: -59 | BP19: millesh01 | BQ19: 571946 | BR19: Young Power Top Starter | BS19: Sonny Gray | BT19: Chris Heston | BU19: Julio Teheran | BV19: Should perform close to forecast. Expected to play regularly.
A20: Hendricks | B20: Kyle | C20: R | D20: 2016 | E20: 26 | F20: CHN | G20: NL | H20: SP | I20: 0.74 | J20: Y | K20: 168.9 | L20: 11 | M20: 27 | N20: 27 | O20: 1 | P20: 1 | Q20: 0 | R20: 0 | S20: 660 | T20: 15 | U20: 40 | V20: 2 | W20: 140 | X20: 482 | Y20: 146 | Z20: 35 | AA20: 3 | AB20: 7 | AC20: 1 | AD20: 68 | AE20: 3.84 | AF20: 120 | AG20: 6.8 | AH20: 3.5 | AI20: 7.9 | AJ20: 2.3 | AK20: 0.83 | AL20: 0.287 | AM20: 1.19 | AN20: 1.18 | AO20: 0.05 | AP20: 70 | AQ20: 99 | AR20: 61 | AS20: 37 | AT20: 31.61 | AU20: 34 | AV20: 18 | AW20: -0.34 | AX20: SP | AY20: 145.6 | AZ20: 3.49 | BA20: 73 | BB20: 78 | BC20: SP | BD20: 126.2 | BE20: 3.5 | BF20: 77 | BG20: 71 | BH20: 180 | BI20: 3.95 | BJ20: 3.37 | BK20: 97 | BL20: -0.11 | BM20: -36 | BN20: R | BO20: -54 | BP20: hendrky01 | BQ20: 543294 | BR20: Righty Commanding Top Starter | BS20: Rick Porcello | BT20: Jordan Zimmermann | BU20: Johnny Cueto | BV20: Should perform close to forecast. Expected to play regularly.
A21: Shields | B21: James | C21: R | D21: 2016 | E21: 34 | F21: SDN | G21: NL | H21: SP | I21: 0.81 | J21: Y | K21: 160.3 | L21: 12 | M21: 27 | N21: 27 | O21: 1 | P21: 0 | Q21: 0 | R21: 0 | S21: 711 | T21: 21 | U21: 53 | V21: 2 | W21: 150 | X21: 509 | Y21: 160 | Z21: 36 | AA21: 7 | AB21: 7 | AC21: 1 | AD21: 72 | AE21: 3.96 | AF21: 146 | AG21: 7.7 | AH21: 2.8 | AI21: 7.9 | AJ21: 2.8 | AK21: 1.11 | AL21: 0.281 | AM21: 1.26 | AN21: 1.54 | AO21: 0.06 | AP21: 53 | AQ21: 102 | AR21: 59 | AS21: 38 | AT21: 32.35 | AU21: 36 | AV21: 19 | AW21: -0.02 | AX21: SP | AY21: 139.8 | AZ21: 3.95 | BA21: 82 | BB21: 53 | BC21: SP | BD21: 121.1 | BE21: 3.94 | BF21: 86 | BG21: 48 | BH21: 202.3 | BI21: 3.91 | BJ21: 4.29 | BK21: 55 | BL21: 0.05 | BM21: 5 | BN21: R | BO21: -81 | BP21: shielja02 | BQ21: 448306 | BR21: Aging Super Control Top Starter | BS21: John Lackey | BT21: Justin Verlander | BU21: Jason Hammel | BV21: Should perform close to forecast. Expected to play regularly.
A22: Lynn | B22: Lance | C22: R | D22: 2016 | E22: 29 | F22: SLN | G22: NL | H22: SP | I22: 0.79 | J22: Y | K22: 165.5 | L22: 11 | M22: 26 | N22: 26 | O22: 1 | P22: 0 | Q22: 0 | R22: 0 | S22: 651 | T22: 12 | U22: 54 | V22: 2 | W22: 141 | X22: 460 | Y22: 150 | Z22: 35 | AA22: 4 | AB22: 6 | AC22: 0 | AD22: 62 | AE22: 3.91 | AF22: 150 | AG22: 8.7 | AH22: 2.6 | AI22: 8.2 | AJ22: 3.2 | AK22: 0.69 | AL22: 0.291 | AM22: 1.3 | AN22: 1.12 | AO22: 0.04 | AP22: 67 | AQ22: 101 | AR22: 59 | AS22: 37 | AT22: 29.86 | AU22: 37 | AV22: 20 | AW22: -0.38 | AX22: SP | AY22: 141.8 | AZ22: 3.51 | BA22: 73 | BB22: 75 | BC22: SP | BD22: 121.6 | BE22: 3.53 | BF22: 77 | BG22: 68 | BH22: 175.3 | BI22: 3.03 | BJ22: 3.43 | BK22: 91 | BL22: 0.88 | BM22: -32 | BN22: R | BO22: -54 | BP22: lynnla01 | BQ22: 458681 | BR22: Righty Power Top Starter | BS22: Tyson Ross | BT22: Christopher Archer | BU22: Garrett Richards | BV22: Approaching his prime years. Expected to play regularly.
A23: Chen | B23: Wei-Yin | C23: L | D23: 2016 | E23: 30 | F23: MIA | G23: NL | H23: SP | I23: 0.78 | J23: Y | K23: 159.7 | L23: 11 | M23: 28 | N23: 28 | O23: 0 | P23: 0 | Q23: 0 | R23: 0 | S23: 702 | T23: 22 | U23: 39 | V23: 1 | W23: 132 | X23: 507 | Y23: 166 | Z23: 36 | AA23: 3 | AB23: 4 | AC23: 0 | AD23: 69 | AE23: 3.96 | AF23: 138 | AG23: 7.4 | AH23: 3.4 | AI23: 7.1 | AJ23: 2.1 | AK23: 1.16 | AL23: 0.285 | AM23: 1.24 | AN23: 1.52 | AO23: 0.06 | AP23: 39 | AQ23: 102 | AR23: 58 | AS23: 37 | AT23: 31.05 | AU23: 32 | AV23: 17 | AW23: -0.01 | AX23: SP | AY23: 143.1 | AZ23: 3.98 | BA23: 83 | BB23: 52 | BC23: SP | BD23: 127.5 | BE23: 3.95 | BF23: 87 | BG23: 50 | BH23: 191.3 | BI23: 3.34 | BJ23: 4.16 | BK23: 57 | BL23: 0.62 | BM23: 2 | BN23: R | BO23: -64 | BP23: chenwe01 | BQ23: 612672 | BR23: Lefty Commanding Starter | BS23: Scott Kazmir | BT23: J.A. Happ | BU23: Tom Milone | BV23: In prime. Expected to play regularly.
A24: Colon | B24: Bartolo | C24: R | D24: 2016 | E24: 43 | F24: NYN | G24: NL | H24: SP | I24: 0.8 | J24: Y | K24: 150.4 | L24: 10 | M24: 26 | N24: 26 | O24: 1 | P24: 1 | Q24: 0 | R24: 0 | S24: 629 | T24: 17 | U24: 27 | V24: 3 | W24: 98 | X24: 454 | Y24: 159 | Z24: 35 | AA24: 1 | AB24: 3 | AC24: 0 | AD24: 68 | AE24: 3.93 | AF24: 121 | AG24: 7 | AH24: 3.6 | AI24: 5.7 | AJ24: 1.6 | AK24: 0.98 | AL24: 0.281 | AM24: 1.21 | AN24: 1.26 | AO24: 0.05 | AP24: 20 | AQ24: 101 | AR24: 57 | AS24: 35 | AT24: 27.8 | AU24: 43 | AV24: 22 | AW24: -0.12 | AX24: SP | AY24: 127.4 | AZ24: 3.74 | BA24: 78 | BB24: 58 | BC24: SP | BD24: 106.7 | BE24: 3.81 | BF24: 84 | BG24: 50 | BH24: 194.7 | BI24: 4.16 | BJ24: 3.75 | BK24: 76 | BL24: -0.23 | BM24: -19 | BN24: R | BO24: -88 | BP24: colonba01 | BQ24: 112526 | BR24: Aging Commanding Top Starter | BS24: John Lackey | BT24: Kyle Lohse | BU24: Jake Peavy | BV24: Should perform close to forecast. Expected to play regularly.
A25: Wacha | B25: Michael | C25: R | D25: 2016 | E25: 24 | F25: SLN | G25: NL | H25: SP | I25: 0.73 | J25: Y | K25: 169 | L25: 11 | M25: 26 | N25: 26 | O25: 0 | P25: 0 | Q25: 0 | R25: 0 | S25: 700 | T25: 16 | U25: 53 | V25: 3 | W25: 150 | X25: 501 | Y25: 150 | Z25: 36 | AA25: 4 | AB25: 6 | AC25: 1 | AD25: 68 | AE25: 4.03 | AF25: 139 | AG25: 7.6 | AH25: 2.8 | AI25: 8.2 | AJ25: 2.9 | AK25: 0.88 | AL25: 0.282 | AM25: 1.24 | AN25: 1.31 | AO25: 0.05 | AP25: 64 | AQ25: 104 | AR25: 55 | AS25: 36 | AT25: 31.75 | AU25: 45 | AV25: 23 | AW25: -0.34 | AX25: SP | AY25: 150.5 | AZ25: 3.68 | BA25: 76 | BB25: 68 | BC25: SP | BD25: 133.5 | BE25: 3.68 | BF25: 81 | BG25: 63 | BH25: 181.3 | BI25: 3.38 | BJ25: 3.83 | BK25: 69 | BL25: 0.65 | BM25: -13 | BN25: R | BO25: -48 | BP25: wachami01 | BQ25: 608379 | BR25: Young Power Swing Starter | BS25: Anthony DeSclafani | BT25: Yordano Ventura | BU25: Jake Odorizzi | BV25: Should perform close to forecast. Expected to play regularly.
A26: Gonzalez | B26: Gio | C26: L | D26: 2016 | E26: 30 | F26: WAS | G26: NL | H26: SP | I26: 0.78 | J26: Y | K26: 166.8 | L26: 11 | M26: 26 | N26: 26 | O26: 0 | P26: 0 | Q26: 0 | R26: 0 | S26: 643 | T26: 10 | U26: 55 | V26: 2 | W26: 144 | X26: 457 | Y26: 145 | Z26: 36 | AA26: 3 | AB26: 3 | AC26: 0 | AD26: 66 | AE26: 3.97 | AF26: 138 | AG26: 8.1 | AH26: 2.6 | AI26: 8.5 | AJ26: 3.2 | AK26: 0.62 | AL26: 0.297 | AM26: 1.3 | AN26: 1.04 | AO26: 0.03 | AP26: 76 | AQ26: 103 | AR26: 55 | AS26: 35 | AT26: 28.76 | AU26: 46 | AV26: 24 | AW26: -0.55 | AX26: SP | AY26: 141.5 | AZ26: 3.38 | BA26: 70 | BB26: 84 | BC26: SP | BD26: 120.4 | BE26: 3.42 | BF26: 75 | BG26: 74 | BH26: 175.7 | BI26: 3.79 | BJ26: 3.17 | BK26: 115 | BL26: 0.18 | BM26: -59 | BN26: R | BO26: -55 | BP26: gonzagi01 | BQ26: 461829 | BR26: Lefty Power Starter | BS26: Francisco Liriano | BT26: Scott Kazmir | BU26: Wade Miley | BV26: In prime. Expected to play regularly.
A27: Samardzija | B27: Jeff | C27: R | D27: 2016 | E27: 31 | F27: SFN | G27: NL | H27: SP | I27: 0.81 | J27: Y | K27: 177.3 | L27: 12 | M27: 29 | N27: 29 | O27: 2 | P27: 1 | Q27: 0 | R27: 0 | S27: 781 | T27: 22 | U27: 47 | V27: 2 | W27: 158 | X27: 562 | Y27: 175 | Z27: 37 | AA27: 6 | AB27: 8 | AC27: 0 | AD27: 87 | AE27: 4.15 | AF27: 137 | AG27: 6.6 | AH27: 3.4 | AI27: 7.6 | AJ27: 2.3 | AK27: 1.03 | AL27: 0.288 | AM27: 1.23 | AN27: 1.4 | AO27: 0.06 | AP27: 50 | AQ27: 107 | AR27: 54 | AS27: 37 | AT27: 34.75 | AU27: 41 | AV27: 22 | AW27: -0.32 | AX27: SP | AY27: 159.2 | AZ27: 3.81 | BA27: 79 | BB27: 64 | BC27: SP | BD27: 142.1 | BE27: 3.83 | BF27: 84 | BG27: 58 | BH27: 214 | BI27: 4.96 | BJ27: 4.19 | BK27: 61 | BL27: -0.81 | BM27: -6 | BN27: R | BO27: -72 | BP27: samarje01 | BQ27: 502188 | BR27: Righty Commanding Top Starter | BS27: Johnny Cueto | BT27: Rick Porcello | BU27: Clay Buchholz | BV27: In prime. Expected to play regularly.
A28: Teheran | B28: Julio | C28: R | D28: 2016 | E28: 25 | F28: ATL | G28: NL | H28: SP | I28: 0.8 | J28: Y | K28: 176.4 | L28: 12 | M28: 29 | N28: 29 | O28: 1 | P28: 1 | Q28: 0 | R28: 0 | S28: 774 | T28: 22 | U28: 56 | V28: 3 | W28: 165 | X28: 562 | Y28: 170 | Z28: 38 | AA28: 2 | AB28: 7 | AC28: 0 | AD28: 80 | AE28: 4.18 | AF28: 152 | AG28: 7.5 | AH28: 3 | AI28: 8.1 | AJ28: 2.7 | AK28: 1.09 | AL28: 0.28 | AM28: 1.24 | AN28: 1.52 | AO28: 0.06 | AP28: 57 | AQ28: 108 | AR28: 54 | AS28: 37 | AT28: 35.78 | AU28: 49 | AV28: 26 | AW28: -0.28 | AX28: SP | AY28: 157.9 | AZ28: 3.91 | BA28: 81 | BB28: 59 | BC28: SP | BD28: 140.9 | BE28: 3.9 | BF28: 86 | BG28: 55 | BH28: 200.7 | BI28: 4.04 | BJ28: 4.35 | BK28: 52 | BL28: 0.14 | BM28: 2 | BN28: R | BO28: -60 | BP28: teherju01 | BQ28: 527054 | BR28: Young Super Control Top Starter | BS28: Drew Hutchison | BT28: Kyle Hendricks | BU28: Taijuan Walker | BV28: Should perform close to forecast. Expected to play regularly.
A29: Leake | B29: Mike | C29: R | D29: 2016 | E29: 28 | F29: SLN | G29: NL | H29: SP | I29: 0.8 | J29: Y | K29: 162.4 | L29: 11 | M29: 27 | N29: 27 | O29: 1 | P29: 0 | Q29: 0 | R29: 0 | S29: 706 | T29: 19 | U29: 44 | V29: 3 | W29: 122 | X29: 512 | Y29: 164 | Z29: 37 | AA29: 4 | AB29: 6 | AC29: 1 | AD29: 73 | AE29: 4.12 | AF29: 138 | AG29: 7.4 | AH29: 2.8 | AI29: 6.5 | AJ29: 2.3 | AK29: 1 | AL29: 0.274 | AM29: 1.23 | AN29: 1.37 | AO29: 0.05 | AP29: 26 | AQ29: 106 | AR29: 53 | AS29: 35 | AT29: 31.23 | AU29: 50 | AV29: 27 | AW29: -0.2 | AX29: SP | AY29: 142 | AZ29: 3.95 | BA29: 82 | BB29: 53 | BC29: SP | BD29: 124.1 | BE29: 3.92 | BF29: 86 | BG29: 50 | BH29: 192 | BI29: 3.7 | BJ29: 4.18 | BK29: 56 | BL29: 0.41 | BM29: -3 | BN29: R | BO29: -68 | BP29: leakemi01 | BQ29: 502190 | BR29: Righty Super Control Top Starter | BS29: Rick Porcello | BT29: Jered Weaver | BU29: Jeff Samardzija | BV29: Should perform close to forecast. Expected to play regularly.
A30: Wood | B30: Alex | C30: L | D30: 2016 | E30: 25 | F30: LAN | G30: NL | H30: SP | I30: 0.77 | J30: Y | K30: 175.4 | L30: 11 | M30: 27 | N30: 27 | O30: 0 | P30: 0 | Q30: 0 | R30: 0 | S30: 717 | T30: 15 | U30: 52 | V30: 3 | W30: 150 | X30: 516 | Y30: 170 | Z30: 37 | AA30: 6 | AB30: 5 | AC30: 1 | AD30: 73 | AE30: 4.15 | AF30: 155 | AG30: 8.2 | AH30: 2.9 | AI30: 7.9 | AJ30: 2.8 | AK30: 0.81 | AL30: 0.298 | AM30: 1.3 | AN30: 1.2 | AO30: 0.04 | AP30: 59 | AQ30: 107 | AR30: 53 | AS30: 35 | AT30: 31.51 | AU30: 51 | AV30: 28 | AW30: -0.43 | AX30: SP | AY30: 154.4 | AZ30: 3.64 | BA30: 76 | BB30: 71 | BC30: SP | BD30: 135.8 | BE30: 3.71 | BF30: 81 | BG30: 62 | BH30: 189.7 | BI30: 3.84 | BJ30: 3.76 | BK30: 74 | BL30: 0.3 | BM30: -21 | BN30: R | BO30: -54 | BP30: woodal01 | BQ30: 622072 | BR30: Young Lefty Super Control Swing Starter | BS30: Wade Miley | BT30: Jose Quintana | BU30: Eduardo Rodriguez | BV30: Should perform close to forecast. Expected to play regularly.
A31: Burnett | B31: A.J. | C31: R | D31: 2016 | E31: 39 | F31: PIT | G31: NL | H31: SP | I31: 0.79 | J31: Y | K31: 141.3 | L31: 9 | M31: 22 | N31: 22 | O31: 0 | P31: 0 | Q31: 0 | R31: 0 | S31: 563 | T31: 11 | U31: 48 | V31: 2 | W31: 109 | X31: 396 | Y31: 138 | Z31: 36 | AA31: 6 | AB31: 8 | AC31: 0 | AD31: 64 | AE31: 3.97 | AF31: 131 | AG31: 8.8 | AH31: 2.3 | AI31: 7.3 | AJ31: 3.3 | AK31: 0.72 | AL31: 0.285 | AM31: 1.33 | AN31: 1.16 | AO31: 0.04 | AP31: 41 | AQ31: 103 | AR31: 52 | AS31: 32 | AT31: 23.97 | AU31: 52 | AV31: 29 | AW31: -0.21 | AX31: SP | AY31: 117.2 | AZ31: 3.74 | BA31: 78 | BB31: 56 | BC31: SP | BD31: 97.3 | BE31: 3.76 | BF31: 82 | BG31: 49 | BH31: 164 | BI31: 3.18 | BJ31: 3.41 | BK31: 90 | BL31: 0.79 | BM31: -37 | BN31: R | BO31: -67 | BP31: burneaj01 | BQ31: 150359 | BR31: Aging Top Starter | BS31: Edinson Volquez | BT31: Edwin Jackson | BU31: Aaron Harang | BV31: Should perform close to forecast. Expected to play regularly.
A32: Kazmir | B32: Scott | C32: L | D32: 2016 | E32: 32 | F32: LAN | G32: NL | H32: SP | I32: 0.78 | J32: Y | K32: 158.7 | L32: 11 | M32: 27 | N32: 27 | O32: 1 | P32: 0 | Q32: 0 | R32: 0 | S32: 660 | T32: 16 | U32: 48 | V32: 1 | W32: 135 | X32: 477 | Y32: 145 | Z32: 37 | AA32: 5 | AB32: 6 | AC32: 1 | AD32: 68 | AE32: 4.1 | AF32: 132 | AG32: 7.5 | AH32: 2.8 | AI32: 7.7 | AJ32: 2.7 | AK32: 0.92 | AL32: 0.277 | AM32: 1.22 | AN32: 1.33 | AO32: 0.05 | AP32: 50 | AQ32: 106 | AR32: 51 | AS32: 33 | AT32: 30.39 | AU32: 46 | AV32: 26 | AW32: -0.29 | AX32: SP | AY32: 137.5 | AZ32: 3.81 | BA32: 79 | BB32: 58 | BC32: SP | BD32: 119.5 | BE32: 3.82 | BF32: 84 | BG32: 53 | BH32: 183 | BI32: 3.1 | BJ32: 4.04 | BK32: 59 | BL32: 1 | BM32: -8 | BN32: R | BO32: -63 | BP32: kazmisc01 | BQ32: 431148 | BR32: Lefty Super Control Top Starter | BS32: Wade Miley | BT32: Cole Hamels | BU32: J.A. Happ | BV32: Should perform close to forecast. Expected to play regularly.
A33: Haren | B33: Danny | C33: R | D33: 2016 | E33: 35 | F33: CHN | G33: NL | H33: SP | I33: 0.79 | J33: Y | K33: 143.8 | L33: 10 | M33: 28 | N33: 27 | O33: 0 | P33: 0 | Q33: 0 | R33: 0 | S33: 647 | T33: 23 | U33: 35 | V33: 3 | W33: 115 | X33: 468 | Y33: 150 | Z33: 37 | AA33: 5 | AB33: 5 | AC33: 0 | AD33: 74 | AE33: 4.11 | AF33: 118 | AG33: 6.8 | AH33: 3.3 | AI33: 6.6 | AJ33: 2 | AK33: 1.32 | AL33: 0.265 | AM33: 1.18 | AN33: 1.69 | AO33: 0.07 | AP33: 27 | AQ33: 106 | AR33: 51 | AS33: 33 | AT33: 29.65 | AU33: 55 | AV33: 30 | AW33: 0.06 | AX33: SP | AY33: 125.1 | AZ33: 4.15 | BA33: 86 | BB33: 42 | BC33: SP | BD33: 108.1 | BE33: 4.17 | BF33: 92 | BG33: 38 | BH33: 187.3 | BI33: 3.6 | BJ33: 4.54 | BK33: 44 | BL33: 0.5 | BM33: 6 | BN33: R | BO33: -79 | BP33: harenda01 | BQ33: 429717 | BR33: Aging Commanding Starter | BS33: Jason Hammel | BT33: Jake Peavy | BU33: Doug Fister | BV33: Should perform close to forecast. Expected to play regularly.
A34: DeSclafani | B34: Anthony | C34: R | D34: 2016 | E34: 26 | F34: CIN | G34: NL | H34: SP | I34: 0.71 | J34: Y | K34: 165.6 | L34: 10 | M34: 26 | N34: 26 | O34: 0 | P34: 0 | Q34: 0 | R34: 0 | S34: 700 | T34: 17 | U34: 48 | V34: 4 | W34: 139 | X34: 494 | Y34: 162 | Z34: 38 | AA34: 5 | AB34: 5 | AC34: 0 | AD34: 79 | AE34: 4.19 | AF34: 133 | AG34: 7.3 | AH34: 2.9 | AI34: 7.6 | AJ34: 2.6 | AK34: 0.92 | AL34: 0.307 | AM34: 1.33 | AN34: 1.31 | AO34: 0.05 | AP34: 49 | AQ34: 108 | AR34: 48 | AS34: 31 | AT34: 26.48 | AU34: 57 | AV34: 31 | AW34: -0.52 | AX34: SP | AY34: 148.4 | AZ34: 3.69 | BA34: 77 | BB34: 67 | BC34: SP | BD34: 131.3 | BE34: 3.67 | BF34: 80 | BG34: 63 | BH34: 184.7 | BI34: 4.05 | BJ34: 3.64 | BK34: 80 | BL34: 0.14 | BM34: -32 | BN34: R | BO34: -53 | BP34: desclan01 | BQ34: 543101 | BR34: Righty Super Control Swing Starter | BS34: Michael Wacha | BT34: Nathan Eovaldi | BU34: Robert Anderson | BV34: Should perform close to forecast. Expected to play regularly.
A35: Anderson | B35: Brett | C35: L | D35: 2016 | E35: 28 | F35: LAN | G35: NL | H35: SP | I35: 0.69 | J35: Y | K35: 156 | L35: 10 | M35: 26 | N35: 26 | O35: 1 | P35: 0 | Q35: 0 | R35: 0 | S35: 652 | T35: 15 | U35: 44 | V35: 3 | W35: 115 | X35: 467 | Y35: 155 | Z35: 38 | AA35: 3 | AB35: 3 | AC35: 1 | AD35: 69 | AE35: 4.19 | AF35: 134 | AG35: 7.8 | AH35: 2.6 | AI35: 6.7 | AJ35: 2.6 | AK35: 0.88 | AL35: 0.297 | AM35: 1.33 | AN35: 1.26 | AO35: 0.05 | AP35: 28 | AQ35: 108 | AR35: 46 | AS35: 30 | AT35: 24.15 | AU35: 60 | AV35: 32 | AW35: -0.35 | AX35: SP | AY35: 135.2 | AZ35: 3.85 | BA35: 80 | BB35: 56 | BC35: SP | BD35: 117.3 | BE35: 3.84 | BF35: 84 | BG35: 52 | BH35: 180.3 | BI35: 3.69 | BJ35: 4.02 | BK35: 60 | BL35: 0.49 | BM35: -13 | BN35: R | BO35: -63 | BP35: anderbr04 | BQ35: 474463 | BR35: Lefty Super Control Top Starter | BS35: Wade Miley | BT35: Scott Kazmir | BU35: Brett Oberholtzer | BV35: Expected to play regularly.
A36: Cashner | B36: Andrew | C36: R | D36: 2016 | E36: 29 | F36: SDN | G36: NL | H36: SP | I36: 0.76 | J36: Y | K36: 162 | L36: 10 | M36: 26 | N36: 26 | O36: 0 | P36: 0 | Q36: 0 | R36: 0 | S36: 664 | T36: 14 | U36: 49 | V36: 3 | W36: 131 | X36: 471 | Y36: 154 | Z36: 38 | AA36: 4 | AB36: 4 | AC36: 0 | AD36: 76 | AE36: 4.25 | AF36: 138 | AG36: 7.9 | AH36: 2.7 | AI36: 7.5 | AJ36: 2.8 | AK36: 0.81 | AL36: 0.292 | AM36: 1.29 | AN36: 1.21 | AO36: 0.04 | AP36: 45 | AQ36: 110 | AR36: 46 | AS36: 30 | AT36: 27.41 | AU36: 63 | AV36: 33 | AW36: -0.57 | AX36: SP | AY36: 141.2 | AZ36: 3.67 | BA36: 76 | BB36: 66 | BC36: SP | BD36: 122.5 | BE36: 3.68 | BF36: 81 | BG36: 60 | BH36: 184.7 | BI36: 4.34 | BJ36: 3.83 | BK36: 69 | BL36: -0.08 | BM36: -23 | BN36: R | BO36: -62 | BP36: cashnan01 | BQ36: 488768 | BR36: Righty Super Control Swing Starter | BS36: Anthony DeSclafani | BT36: Nathan Eovaldi | BU36: Robert Anderson | BV36: Approaching his prime years. Expected to play regularly.
A37: De La Rosa | B37: Rubby | C37: R | D37: 2016 | E37: 27 | F37: ARI | G37: NL | H37: SP | I37: 0.72 | J37: Y | K37: 150.7 | L37: 10 | M37: 27 | N37: 27 | O37: 0 | P37: 0 | Q37: 0 | R37: 0 | S37: 709 | T37: 24 | U37: 54 | V37: 2 | W37: 134 | X37: 497 | Y37: 166 | Z37: 39 | AA37: 4 | AB37: 4 | AC37: 1 | AD37: 83 | AE37: 4.28 | AF37: 140 | AG37: 7.6 | AH37: 2.5 | AI37: 7.3 | AJ37: 3 | AK37: 1.3 | AL37: 0.291 | AM37: 1.37 | AN37: 1.78 | AO37: 0.07 | AP37: 29 | AQ37: 111 | AR37: 46 | AS37: 31 | AT37: 25.91 | AU37: 64 | AV37: 34 | AW37: -0.07 | AX37: SP | AY37: 137.4 | AZ37: 4.3 | BA37: 89 | BB37: 41 | BC37: SP | BD37: 123.1 | BE37: 4.22 | BF37: 92 | BG37: 40 | BH37: 188.7 | BI37: 4.67 | BJ37: 4.68 | BK37: 41 | BL37: -0.39 | BM37: 5 | BN37: R | BO37: -66 | BP37: delarru01 | BQ37: 523989 | BR37: Righty Control Swing Starter | BS37: Robert Anderson | BT37: Jeremy Hellickson | BU37: Anthony DeSclafani | BV37: Should perform close to forecast. Expected to play regularly.
A38: Heston | B38: Chris | C38: R | D38: 2016 | E38: 28 | F38: SFN | G38: NL | H38: SP | I38: 0.69 | J38: Y | K38: 152.9 | L38: 10 | M38: 26 | N38: 26 | O38: 2 | P38: 1 | Q38: 0 | R38: 0 | S38: 644 | T38: 15 | U38: 52 | V38: 2 | W38: 126 | X38: 461 | Y38: 138 | Z38: 38 | AA38: 5 | AB38: 9 | AC38: 1 | AD38: 67 | AE38: 4.19 | AF38: 124 | AG38: 7.3 | AH38: 2.4 | AI38: 7.5 | AJ38: 3.1 | AK38: 0.87 | AL38: 0.29 | AM38: 1.31 | AN38: 1.31 | AO38: 0.05 | AP38: 40 | AQ38: 108 | AR38: 45 | AS38: 29 | AT38: 24.55 | AU38: 66 | AV38: 35 | AW38: -0.33 | AX38: SP | AY38: 131.9 | AZ38: 3.9 | BA38: 81 | BB38: 53 | BC38: SP | BD38: 114.1 | BE38: 3.86 | BF38: 85 | BG38: 50 | BH38: 177.7 | BI38: 3.95 | BJ38: 4.03 | BK38: 59 | BL38: 0.24 | BM38: -14 | BN38: R | BO38: -64 | BP38: hestoch01 | BQ38: 518790 | BR38: Righty Control Top Starter | BS38: Sonny Gray | BT38: Shelby Miller | BU38: Johnny Cueto | BV38: Expected to play regularly.
A39: Nelson | B39: Jimmy | C39: R | D39: 2016 | E39: 27 | F39: MIL | G39: NL | H39: SP | I39: 0.69 | J39: Y | K39: 154.2 | L39: 10 | M39: 26 | N39: 26 | O39: 0 | P39: 0 | Q39: 0 | R39: 0 | S39: 663 | T39: 16 | U39: 52 | V39: 3 | W39: 133 | X39: 467 | Y39: 146 | Z39: 38 | AA39: 8 | AB39: 10 | AC39: 1 | AD39: 76 | AE39: 4.27 | AF39: 128 | AG39: 7.4 | AH39: 2.5 | AI39: 7.7 | AJ39: 3 | AK39: 0.92 | AL39: 0.289 | AM39: 1.31 | AN39: 1.36 | AO39: 0.05 | AP39: 45 | AQ39: 110 | AR39: 45 | AS39: 29 | AT39: 26.09 | AU39: 67 | AV39: 36 | AW39: -0.4 | AX39: SP | AY39: 135.9 | AZ39: 3.9 | BA39: 81 | BB39: 54 | BC39: SP | BD39: 118.9 | BE39: 3.87 | BF39: 85 | BG39: 51 | BH39: 177.3 | BI39: 4.11 | BJ39: 4.07 | BK39: 57 | BL39: 0.16 | BM39: -12 | BN39: R | BO39: -58 | BP39: nelsoji02 | BQ39: 519076 | BR39: Righty Power Swing Starter | BS39: Joe Kelly | BT39: Yordano Ventura | BU39: Nate Karns | BV39: Expected to play regularly.
A40: Hellickson | B40: Jeremy | C40: R | D40: 2016 | E40: 29 | F40: PHI | G40: NL | H40: SP | I40: 0.71 | J40: Y | K40: 129.5 | L40: 8 | M40: 23 | N40: 23 | O40: 0 | P40: 0 | Q40: 0 | R40: 0 | S40: 533 | T40: 16 | U40: 37 | V40: 2 | W40: 103 | X40: 372 | Y40: 133 | Z40: 37 | AA40: 6 | AB40: 5 | AC40: 0 | AD40: 68 | AE40: 4.16 | AF40: 108 | AG40: 7.8 | AH40: 2.8 | AI40: 7.4 | AJ40: 2.7 | AK40: 1.19 | AL40: 0.288 | AM40: 1.31 | AN40: 1.61 | AO40: 0.06 | AP40: 38 | AQ40: 107 | AR40: 43 | AS40: 27 | AT40: 21.16 | AU40: 69 | AV40: 37 | AW40: -0.03 | AX40: LP | AY40: 101.4 | AZ40: 4.12 | BA40: 86 | BB40: 38 | BC40: SP | BD40: 86.8 | BE40: 4.13 | BF40: 91 | BG40: 34 | BH40: 146 | BI40: 4.62 | BJ40: 4.3 | BK40: 43 | BL40: -0.47 | BM40: 1 | BN40: R | BO40: -59 | BP40: hellije01 | BQ40: 476451 | BR40: Righty Super Control Swing Starter | BS40: Robert Anderson | BT40: Matt Shoemaker | BU40: Rubby De La Rosa | BV40: Approaching his prime years. Expected to play regularly.
A41: de la Rosa | B41: Jorge | C41: L | D41: 2016 | E41: 35 | F41: COL | G41: NL | H41: SP | I41: 0.77 | J41: Y | K41: 127.6 | L41: 9 | M41: 22 | N41: 22 | O41: 0 | P41: 0 | Q41: 0 | R41: 0 | S41: 522 | T41: 13 | U41: 47 | V41: 2 | W41: 96 | X41: 372 | Y41: 125 | Z41: 38 | AA41: 5 | AB41: 4 | AC41: 1 | AD41: 63 | AE41: 4.2 | AF41: 118 | AG41: 8.6 | AH41: 2 | AI41: 7 | AJ41: 3.5 | AK41: 0.95 | AL41: 0.267 | AM41: 1.31 | AN41: 1.44 | AO41: 0.05 | AP41: 25 | AQ41: 108 | AR41: 43 | AS41: 27 | AT41: 21.94 | AU41: 71 | AV41: 38 | AW41: -0.03 | AX41: LP | AY41: 96.5 | AZ41: 4.17 | BA41: 87 | BB41: 35 | BC41: SP | BD41: 80.1 | BE41: 4.17 | BF41: 92 | BG41: 32 | BH41: 149 | BI41: 4.17 | BJ41: 4.18 | BK41: 47 | BL41: 0.03 | BM41: -4 | BN41: R | BO41: -69 | BP41: delarjo01 | BQ41: 407822 | BR41: Aging Lefty Top Starter | BS41: C.J. Wilson | BT41: C.C. Sabathia | BU41: Jeff Locke | BV41: Should perform close to forecast. Expected to play regularly.
A42: Anderson | B42: Robert | C42: R | D42: 2016 | E42: 28 | F42: MIL | G42: NL | H42: SP | I42: 0.73 | J42: Y | K42: 136.8 | L42: 9 | M42: 23 | N42: 23 | O42: 0 | P42: 0 | Q42: 0 | R42: 0 | S42: 555 | T42: 16 | U42: 39 | V42: 2 | W42: 108 | X42: 396 | Y42: 141 | Z42: 38 | AA42: 4 | AB42: 5 | AC42: 0 | AD42: 67 | AE42: 4.24 | AF42: 120 | AG42: 8.2 | AH42: 2.8 | AI42: 7.4 | AJ42: 2.7 | AK42: 1.09 | AL42: 0.288 | AM42: 1.31 | AN42: 1.51 | AO42: 0.06 | AP42: 38 | AQ42: 110 | AR42: 43 | AS42: 27 | AT42: 22.9 | AU42: 72 | AV42: 39 | AW42: -0.25 | AX42: SP | AY42: 117.6 | AZ42: 3.98 | BA42: 83 | BB42: 46 | BC42: SP | BD42: 101.3 | BE42: 3.99 | BF42: 87 | BG42: 42 | BH42: 152.7 | BI42: 4.3 | BJ42: 4.11 | BK42: 50 | BL42: -0.06 | BM42: -7 | BN42: R | BO42: -51 | BP42: anderro01 | BQ42: 502624 | BR42: Righty Super Control Swing Starter | BS42: Jeremy Hellickson | BT42: Anthony DeSclafani | BU42: Rubby De La Rosa | BV42: Should perform close to forecast. Expected to play regularly.
A43: Koehler | B43: Tom | C43: R | D43: 2016 | E43: 30 | F43: MIA | G43: NL | H43: SP | I43: 0.78 | J43: Y | K43: 153.4 | L43: 10 | M43: 30 | N43: 27 | O43: 0 | P43: 0 | Q43: 0 | R43: 1 | S43: 687 | T43: 17 | U43: 61 | V43: 2 | W43: 124 | X43: 488 | Y43: 155 | Z43: 40 | AA43: 4 | AB43: 6 | AC43: 0 | AD43: 78 | AE43: 4.41 | AF43: 144 | AG43: 8 | AH43: 2 | AI43: 6.9 | AJ43: 3.4 | AK43: 0.94 | AL43: 0.277 | AM43: 1.34 | AN43: 1.42 | AO43: 0.05 | AP43: 22 | AQ43: 114 | AR43: 43 | AS43: 27 | AT43: 26.32 | AU43: 73 | AV43: 40 | AW43: -0.2 | AX43: LP | AY43: 117.8 | AZ43: 4.18 | BA43: 87 | BB43: 40 | BC43: SP | BD43: 101.7 | BE43: 4.2 | BF43: 92 | BG43: 36 | BH43: 187.3 | BI43: 4.08 | BJ43: 4.51 | BK43: 45 | BL43: 0.32 | BM43: -2 | BN43: R | BO43: -86 | BP43: koehlto01 | BQ43: 543408 | BR43: Righty Starter | BS43: Yovani Gallardo | BT43: Kyle Gibson | BU43: Chris Tillman | BV43: In prime. Expected to play regularly.
A44: Locke | B44: Jeff | C44: L | D44: 2016 | E44: 28 | F44: PIT | G44: NL | H44: SP | I44: 0.76 | J44: Y | K44: 149.7 | L44: 9 | M44: 25 | N44: 25 | O44: 0 | P44: 0 | Q44: 0 | R44: 0 | S44: 639 | T44: 15 | U44: 52 | V44: 3 | W44: 116 | X44: 449 | Y44: 149 | Z44: 39 | AA44: 4 | AB44: 6 | AC44: 0 | AD44: 75 | AE44: 4.33 | AF44: 134 | AG44: 8.1 | AH44: 2.2 | AI44: 7 | AJ44: 3.2 | AK44: 0.88 | AL44: 0.287 | AM44: 1.35 | AN44: 1.33 | AO44: 0.05 | AP44: 27 | AQ44: 112 | AR44: 43 | AS44: 28 | AT44: 23.89 | AU44: 75 | AV44: 41 | AW44: -0.41 | AX44: SP | AY44: 131 | AZ44: 3.98 | BA44: 83 | BB44: 49 | BC44: SP | BD44: 114.4 | BE44: 3.92 | BF44: 86 | BG44: 47 | BH44: 168.3 | BI44: 4.49 | BJ44: 3.97 | BK44: 59 | BL44: -0.16 | BM44: -16 | BN44: R | BO44: -54 | BP44: lockeje01 | BQ44: 502046 | BR44: Lefty Control Starter | BS44: Wade Miley | BT44: Jonathon Niese | BU44: Brett Anderson | BV44: Should perform close to forecast. Expected to play regularly.
A45: Harang | B45: Aaron | C45: R | D45: 2016 | E45: 38 | F45: PHI | G45: NL | H45: SP | I45: 0.78 | J45: Y | K45: 135.3 | L45: 9 | M45: 24 | N45: 24 | O45: 0 | P45: 0 | Q45: 0 | R45: 0 | S45: 600 | T45: 17 | U45: 45 | V45: 3 | W45: 96 | X45: 419 | Y45: 152 | Z45: 41 | AA45: 5 | AB45: 4 | AC45: 0 | AD45: 74 | AE45: 4.53 | AF45: 131 | AG45: 8.3 | AH45: 2.1 | AI45: 6.1 | AJ45: 2.9 | AK45: 1.07 | AL45: 0.281 | AM45: 1.35 | AN45: 1.51 | AO45: 0.05 | AP45: 11 | AQ45: 117 | AR45: 37 | AS45: 24 | AT45: 21.95 | AU45: 92 | AV45: 42 | AW45: -0.31 | AX45: SP | AY45: 116.4 | AZ45: 4.17 | BA45: 87 | BB45: 40 | BC45: SP | BD45: 99.3 | BE45: 4.23 | BF45: 93 | BG45: 35 | BH45: 172.3 | BI45: 4.86 | BJ45: 4.74 | BK45: 37 | BL45: -0.32 | BM45: 0 | BN45: R | BO45: -73 | BP45: haranaa01 | BQ45: 421685 | BR45: Aging Control Top Starter | BS45: R.A. Dickey | BT45: Jake Peavy | BU45: Tim Hudson | BV45: Should perform close to forecast. Expected to play regularly.
A46: Garza | B46: Matt | C46: R | D46: 2016 | E46: 32 | F46: MIL | G46: NL | H46: SP | I46: 0.76 | J46: Y | K46: 131.6 | L46: 8 | M46: 22 | N46: 21 | O46: 0 | P46: 0 | Q46: 0 | R46: 0 | S46: 544 | T46: 15 | U46: 42 | V46: 2 | W46: 96 | X46: 381 | Y46: 139 | Z46: 42 | AA46: 5 | AB46: 3 | AC46: 0 | AD46: 74 | AE46: 4.66 | AF46: 119 | AG46: 8.4 | AH46: 2.3 | AI46: 6.8 | AJ46: 2.9 | AK46: 1.05 | AL46: 0.282 | AM46: 1.34 | AN46: 1.49 | AO46: 0.05 | AP46: 20 | AQ46: 120 | AR46: 32 | AS46: 20 | AT46: 20.53 | AU46: 113 | AV46: 43 | AW46: -0.49 | AX46: SP | AY46: 113.1 | AZ46: 4.12 | BA46: 86 | BB46: 40 | BC46: SP | BD46: 97 | BE46: 4.17 | BF46: 91 | BG46: 36 | BH46: 148.7 | BI46: 5.63 | BJ46: 4.79 | BK46: 32 | BL46: -0.97 | BM46: 0 | BN46: R | BO46: -52 | BP46: garzama01 | BQ46: 490063 | BR46: Righty Control Top Starter | BS46: Jered Weaver | BT46: Chris Tillman | BU46: Miguel Gonzalez | BV46: Should perform close to forecast. Expected to play regularly.
A47: Rusin | B47: Chris | C47: L | D47: 2016 | E47: 29 | F47: COL | G47: NL | H47: SP | I47: 0.62 | J47: Y | K47: 109.9 | L47: 7 | M47: 20 | N47: 20 | O47: 2 | P47: 1 | Q47: 0 | R47: 0 | S47: 490 | T47: 14 | U47: 35 | V47: 4 | W47: 81 | X47: 336 | Y47: 134 | Z47: 40 | AA47: 3 | AB47: 3 | AC47: 1 | AD47: 67 | AE47: 4.5 | AF47: 110 | AG47: 8.8 | AH47: 2.3 | AI47: 6.4 | AJ47: 2.8 | AK47: 1.13 | AL47: 0.303 | AM47: 1.44 | AN47: 1.57 | AO47: 0.06 | AP47: 16 | AQ47: 116 | AR47: 32 | AS47: 20 | AT47: 14.72 | AU47: 114 | AV47: 44 | AW47: -0.22 | AX47: LP | AY47: 92.9 | AZ47: 4.29 | BA47: 89 | BB47: 32 | BC47: SP | BD47: 81.1 | BE47: 4.28 | BF47: 94 | BG47: 29 | BH47: 131.7 | BI47: 5.33 | BJ47: 4.56 | BK47: 33 | BL47: -0.83 | BM47: -1 | BN47: R | BO47: -51 | BP47: rusinch01 | BQ47: 543734 | BR47: Lefty Super Control Top Starter | BS47: Derek Holland | BT47: Chris Heston | BU47: Henderson Alvarez | BV47: Approaching his prime years. Expected to play regularly.
A48: Kendrick | B48: Kyle | C48: R | D48: 2016 | E48: 31 | F48: ATL | G48: NL | H48: SP | I48: 0.77 | J48: Y | K48: 116.1 | L48: 8 | M48: 21 | N48: 21 | O48: 0 | P48: 0 | Q48: 0 | R48: 0 | S48: 531 | T48: 19 | U48: 36 | V48: 2 | W48: 78 | X48: 367 | Y48: 151 | Z48: 44 | AA48: 4 | AB48: 6 | AC48: 0 | AD48: 79 | AE48: 4.84 | AF48: 119 | AG48: 8.7 | AH48: 2.2 | AI48: 5.7 | AJ48: 2.6 | AK48: 1.36 | AL48: 0.283 | AM48: 1.39 | AN48: 1.8 | AO48: 0.07 | AP48: 5 | AQ48: 125 | AR48: 29 | AS48: 18 | AT48: 17.73 | AU48: 135 | AV48: 45 | AW48: -0.11 | AX48: LP | AY48: 95.7 | AZ48: 4.78 | BA48: 99 | BB48: 23 | BC48: SP | BD48: 82.7 | BE48: 4.73 | BF48: 104 | BG48: 22 | BH48: 142.3 | BI48: 6.32 | BJ48: 5.92 | BK48: 17 | BL48: -1.48 | BM48: 12 | BN48: S | BO48: -60 | BP48: kendrky01 | BQ48: 452718 | BR48: Righty Super Control Top Starter | BS48: Miguel Gonzalez | BT48: Jered Weaver | BU48: Wily Peralta | BV48: In prime. Sleeper pick. Buy at discount.
A49: Strasburg | B49: Stephen | C49: R | D49: 2016 | E49: 27 | F49: WAS | G49: NL | H49: LP | I49: 0.77 | J49: Y | K49: 146.9 | L49: 9 | M49: 22 | N49: 18 | O49: 0 | P49: 0 | Q49: 0 | R49: 1 | S49: 461 | T49: 12 | U49: 27 | V49: 1 | W49: 123 | X49: 338 | Y49: 123 | Z49: 32 | AA49: 5 | AB49: 4 | AC49: 0 | AD49: 58 | AE49: 3.52 | AF49: 108 | AG49: 8.6 | AH49: 4.5 | AI49: 9.8 | AJ49: 2.2 | AK49: 0.95 | AL49: 0.28 | AM49: 1.14 | AN49: 1.3 | AO49: 0.06 | AP49: 147 | AQ49: 91 | AR49: 73 | AS49: 35 | AT49: 29.13 | AU49: 22 | AV49: 1 | AW49: -0.09 | AX49: LP | AY49: 101.4 | AZ49: 3.24 | BA49: 67 | BB49: 81 | BC49: LP | BD49: 82.9 | BE49: 3.43 | BF49: 75 | BG49: 61 | BH49: 127.3 | BI49: 3.46 | BJ49: 2.84 | BK49: 137 | BL49: 0.06 | BM49: -64 | BN49: R | BO49: -44 | BP49: strasst01 | BQ49: 544931 | BR49: Righty Commanding Starter | BS49: Noah Syndergaard | BT49: Matt Harvey | BU49: Jacob deGrom | BV49: Should perform close to forecast. If only he were on the field more. Major star, must have.
A50: Romo | B50: Sergio | C50: R | D50: 2016 | E50: 33 | F50: SFN | G50: NL | H50: LP | I50: 0.54 | J50: Y | K50: 48 | L50: 3 | M50: 56 | N50: 1 | O50: 0 | P50: 0 | Q50: 12 | R50: 23 | S50: 231 | T50: 5 | U50: 14 | V50: 2 | W50: 56 | X50: 170 | Y50: 44 | Z50: 28 | AA50: 2 | AB50: 2 | AC50: 0 | AD50: 20 | AE50: 3.1 | AF50: 38 | AG50: 5.9 | AH50: 3.9 | AI50: 8.7 | AJ50: 2.3 | AK50: 0.83 | AL50: 0.284 | AM50: 1.11 | AN50: 1.17 | AO50: 0.05 | AP50: 110 | AQ50: 80 | AR50: 70 | AS50: 11 | AT50: 12.34 | AU50: 24 | AV50: 2 | AW50: 0.03 | AX50: EP | AY50: 57.5 | AZ50: 3.13 | BA50: 65 | BB50: 71 | BC50: LP | BD50: 59 | BE50: 3.14 | BF50: 69 | BG50: 71 | BH50: 57.3 | BI50: 2.98 | BJ50: 1.97 | BK50: 369 | BL50: 0.12 | BM50: -299 | BN50: R | BO50: 2 | BP50: romose01 | BQ50: 489265 | BR50: Righty Commanding RP | BS50: Luke Gregerson | BT50: Will Harris | BU50: Darren O'Day | BV50: Priced in-line with expectations. Major star, must have.
A51: Fernandez | B51: Jose | C51: R | D51: 2016 | E51: 23 | F51: MIA | G51: NL | H51: LP | I51: 0.61 | J51: Y | K51: 115.1 | L51: 6 | M51: 16 | N51: 9 | O51: 0 | P51: 0 | Q51: 0 | R51: 2 | S51: 277 | T51: 6 | U51: 20 | V51: 1 | W51: 75 | X51: 203 | Y51: 79 | Z51: 30 | AA51: 3 | AB51: 3 | AC51: 0 | AD51: 35 | AE51: 3.35 | AF51: 76 | AG51: 10.2 | AH51: 3.7 | AI51: 10.1 | AJ51: 2.7 | AK51: 0.76 | AL51: 0.269 | AM51: 1.16 | AN51: 1.14 | AO51: 0.05 | AP51: 159 | AQ51: 86 | AR51: 69 | AS51: 23 | AT51: 17.7 | AU51: 26 | AV51: 3 | AW51: 0.13 | AX51: LP | AY51: 73.6 | AZ51: 3.26 | BA51: 68 | BB51: 68 | BC51: LP | BD51: 64.4 | BE51: 3.48 | BF51: 76 | BG51: 52 | BH51: 64.7 | BI51: 2.92 | BJ51: 2.37 | BK51: 197 | BL51: 0.42 | BM51: -128 | BN51: R | BO51: 0 | BP51: fernajo02 | BQ51: 605228 | BR51: Young Commanding Swing Starter | BS51: Raisel Iglesias | BT51: Stephen Strasburg | BU51: Noah Syndergaard | BV51: Priced in-line with expectations. Future superstar in the making.
A52: Smith | B52: Will | C52: L | D52: 2016 | E52: 26 | F52: MIL | G52: NL | H52: LP | I52: 0.54 | J52: Y | K52: 64.5 | L52: 4 | M52: 54 | N52: 3 | O52: 0 | P52: 0 | Q52: 0 | R52: 8 | S52: 277 | T52: 7 | U52: 25 | V52: 2 | W52: 75 | X52: 196 | Y52: 54 | Z52: 30 | AA52: 4 | AB52: 2 | AC52: 0 | AD52: 27 | AE52: 3.32 | AF52: 53 | AG52: 7.2 | AH52: 3 | AI52: 10.4 | AJ52: 3.4 | AK52: 0.93 | AL52: 0.317 | AM52: 1.29 | AN52: 1.41 | AO52: 0.06 | AP52: 148 | AQ52: 86 | AR52: 59 | AS52: 11 | AT52: 9.1 | AU52: 41 | AV52: 4 | AW52: 0.34 | AX52: LP | AY52: 63.3 | AZ52: 3.47 | BA52: 72 | BB52: 52 | BC52: LP | BD52: 62.1 | BE52: 3.66 | BF52: 80 | BG52: 43 | BH52: 63.3 | BI52: 2.7 | BJ52: 2.55 | BK52: 150 | BL52: 0.62 | BM52: -92 | BN52: R | BO52: -1 | BP52: smithwi04 | BQ52: 519293 | BR52: Lefty Serious Heat Long Relief | BS52: Brett Cecil | BT52: Jake Diekman | BU52: Kevin Siegrist | BV52: Priced in-line with expectations. Possible All-star.
A53: Kelley | B53: Shawn | C53: R | D53: 2016 | E53: 32 | F53: WAS | G53: NL | H53: LP | I53: 0.51 | J53: Y | K53: 46.1 | L53: 3 | M53: 44 | N53: 3 | O53: 0 | P53: 0 | Q53: 1 | R53: 10 | S53: 224 | T53: 5 | U53: 19 | V53: 3 | W53: 55 | X53: 160 | Y53: 43 | Z53: 30 | AA53: 2 | AB53: 1 | AC53: 0 | AD53: 22 | AE53: 3.29 | AF53: 40 | AG53: 6.6 | AH53: 2.9 | AI53: 9.2 | AJ53: 3.1 | AK53: 0.91 | AL53: 0.296 | AM53: 1.24 | AN53: 1.35 | AO53: 0.05 | AP53: 105 | AQ53: 85 | AR53: 56 | AS53: 10 | AT53: 6.74 | AU53: 44 | AV53: 5 | AW53: 0.4 | AX53: LP | AY53: 52.8 | AZ53: 3.48 | BA53: 72 | BB53: 48 | BC53: LP | BD53: 54.9 | BE53: 3.68 | BF53: 81 | BG53: 40 | BH53: 51.3 | BI53: 2.45 | BJ53: 2.41 | BK53: 175 | BL53: 0.83 | BM53: -119 | BN53: R | BO53: 4 | BP53: kellesh01 | BQ53: 518875 | BR53: Righty Power RP | BS53: Josh Fields | BT53: Daniel Hudson | BU53: Darren O'Day | BV53: Priced in-line with expectations. Possible All-star.
A54: Wood | B54: Travis | C54: L | D54: 2016 | E54: 29 | F54: CHN | G54: NL | H54: LP | I54: 0.74 | J54: Y | K54: 101.7 | L54: 6 | M54: 27 | N54: 13 | O54: 0 | P54: 0 | Q54: 1 | R54: 4 | S54: 391 | T54: 10 | U54: 34 | V54: 2 | W54: 83 | X54: 275 | Y54: 104 | Z54: 34 | AA54: 3 | AB54: 3 | AC54: 0 | AD54: 55 | AE54: 3.79 | AF54: 97 | AG54: 9.5 | AH54: 2.4 | AI54: 8.2 | AJ54: 3.3 | AK54: 0.96 | AL54: 0.277 | AM54: 1.32 | AN54: 1.43 | AO54: 0.05 | AP54: 58 | AQ54: 98 | AR54: 51 | AS54: 21 | AT54: 18.03 | AU54: 53 | AV54: 6 | AW54: 0.14 | AX54: LP | AY54: 81.5 | AZ54: 3.9 | BA54: 81 | BB54: 40 | BC54: LP | BD54: 71.8 | BE54: 3.93 | BF54: 86 | BG54: 36 | BH54: 100.7 | BI54: 3.84 | BJ54: 3.3 | BK54: 76 | BL54: -0.05 | BM54: -25 | BN54: R | BO54: -29 | BP54: woodtr01 | BQ54: 475243 | BR54: Lefty Power Swing Starter | BS54: Adam Conley | BT54: Drew Pomeranz | BU54: Gio Gonzalez | BV54: Approaching his prime years. If only he were on the field more. Possible All-star.
A55: Blanton | B55: Joe | C55: R | D55: 2016 | E55: 35 | F55: LAN | G55: NL | H55: LP | I55: 0.64 | J55: Y | K55: 56.7 | L55: 4 | M55: 26 | N55: 6 | O55: 0 | P55: 0 | Q55: 1 | R55: 7 | S55: 251 | T55: 8 | U55: 16 | V55: 3 | W55: 51 | X55: 177 | Y55: 63 | Z55: 31 | AA55: 3 | AB55: 2 | AC55: 0 | AD55: 29 | AE55: 3.47 | AF55: 53 | AG55: 7.9 | AH55: 3.1 | AI55: 7.6 | AJ55: 2.4 | AK55: 1.14 | AL55: 0.291 | AM55: 1.29 | AN55: 1.53 | AO55: 0.06 | AP55: 56 | AQ55: 90 | AR55: 51 | AS55: 12 | AT55: 8.31 | AU55: 54 | AV55: 7 | AW55: 0.32 | AX55: LP | AY55: 58.9 | AZ55: 3.65 | BA55: 76 | BB55: 42 | BC55: LP | BD55: 57.7 | BE55: 3.79 | BF55: 83 | BG55: 37 | BH55: 76 | BI55: 2.84 | BJ55: 2.78 | BK55: 119 | BL55: 0.63 | BM55: -68 | BN55: R | BO55: -18 | BP55: blantjo01 | BQ55: 430599 | BR55: Aging Super Control RP | BS55: Pat Neshek | BT55: Ryan Madson | BU55: Chad Qualls | BV55: Priced in-line with expectations. Possible All-star.
A56: Baez | B56: Pedro | C56: R | D56: 2016 | E56: 28 | F56: LAN | G56: NL | H56: LP | I56: 0.45 | J56: Y | K56: 48.5 | L56: 3 | M56: 42 | N56: 2 | O56: 0 | P56: 0 | Q56: 0 | R56: 9 | S56: 219 | T56: 5 | U56: 15 | V56: 1 | W56: 50 | X56: 158 | Y56: 44 | Z56: 31 | AA56: 1 | AB56: 1 | AC56: 0 | AD56: 21 | AE56: 3.42 | AF56: 37 | AG56: 6.4 | AH56: 3.3 | AI56: 8.6 | AJ56: 2.6 | AK56: 0.92 | AL56: 0.295 | AM56: 1.22 | AN56: 1.31 | AO56: 0.05 | AP56: 89 | AQ56: 88 | AR56: 48 | AS56: 9 | AT56: 5.98 | AU56: 56 | AV56: 8 | AW56: 0.32 | AX56: LP | AY56: 53.3 | AZ56: 3.61 | BA56: 75 | BB56: 42 | BC56: LP | BD56: 55.4 | BE56: 3.74 | BF56: 82 | BG56: 38 | BH56: 51 | BI56: 3.35 | BJ56: 2.54 | BK56: 144 | BL56: 0.07 | BM56: -96 | BN56: R | BO56: 4 | BP56: baezpe01 | BQ56: 520980 | BR56: Righty Commanding RP | BS56: Hunter Strickland | BT56: Daniel Hudson | BU56: Liam Hendriks | BV56: Priced in-line with expectations. Keeper.
A57: Quackenbush | B57: Kevin | C57: R | D57: 2016 | E57: 27 | F57: SDN | G57: NL | H57: LP | I57: 0.53 | J57: Y | K57: 57.5 | L57: 3 | M57: 51 | N57: 2 | O57: 0 | P57: 0 | Q57: 4 | R57: 17 | S57: 252 | T57: 5 | U57: 20 | V57: 3 | W57: 59 | X57: 182 | Y57: 48 | Z57: 32 | AA57: 1 | AB57: 2 | AC57: 1 | AD57: 23 | AE57: 3.52 | AF57: 44 | AG57: 6.6 | AH57: 2.9 | AI57: 8.7 | AJ57: 3 | AK57: 0.8 | AL57: 0.291 | AM57: 1.21 | AN57: 1.22 | AO57: 0.05 | AP57: 89 | AQ57: 91 | AR57: 46 | AS57: 9 | AT57: 8.97 | AU57: 61 | AV57: 9 | AW57: 0.24 | AX57: LP | AY57: 58.6 | AZ57: 3.54 | BA57: 73 | BB57: 47 | BC57: LP | BD57: 58.8 | BE57: 3.75 | BF57: 82 | BG57: 38 | BH57: 58.3 | BI57: 4.01 | BJ57: 3.43 | BK57: 52 | BL57: -0.5 | BM57: -6 | BN57: R | BO57: 0 | BP57: quackke01 | BQ57: 534812 | BR57: Righty Power RP | BS57: Kenneth Giles | BT57: Kenley Jansen | BU57: Wade Davis | BV57: Priced in-line with expectations.
A58: Strop | B58: Pedro | C58: R | D58: 2016 | E58: 31 | F58: CHN | G58: NL | H58: LP | I58: 0.56 | J58: Y | K58: 55.1 | L58: 4 | M58: 54 | N58: 3 | O58: 0 | P58: 0 | Q58: 1 | R58: 11 | S58: 261 | T58: 5 | U58: 25 | V58: 3 | W58: 63 | X58: 189 | Y58: 45 | Z58: 32 | AA58: 4 | AB58: 3 | AC58: 0 | AD58: 24 | AE58: 3.59 | AF58: 46 | AG58: 6.5 | AH58: 2.6 | AI58: 9.1 | AJ58: 3.5 | AK58: 0.75 | AL58: 0.27 | AM58: 1.18 | AN58: 1.22 | AO58: 0.04 | AP58: 96 | AQ58: 93 | AR58: 44 | AS58: 9 | AT58: 9.08 | AU58: 68 | AV58: 10 | AW58: 0.13 | AX58: LP | AY58: 57.9 | AZ58: 3.52 | BA58: 73 | BB58: 47 | BC58: LP | BD58: 58 | BE58: 3.71 | BF58: 81 | BG58: 39 | BH58: 68 | BI58: 2.91 | BJ58: 2.94 | BK58: 94 | BL58: 0.67 | BM58: -50 | BN58: R | BO58: -10 | BP58: stroppe01 | BQ58: 467008 | BR58: Righty Power RP | BS58: Aaron Barrett | BT58: Justin Grimm | BU58: Jeremy Jeffress | BV58: In prime. Priced in-line with expectations.
A59: Iglesias | B59: Raisel | C59: R | D59: 2016 | E59: 26 | F59: CIN | G59: NL | H59: LP | I59: 0.66 | J59: Y | K59: 96.8 | L59: 6 | M59: 22 | N59: 11 | O59: 0 | P59: 0 | Q59: 0 | R59: 3 | S59: 315 | T59: 9 | U59: 23 | V59: 1 | W59: 77 | X59: 226 | Y59: 89 | Z59: 35 | AA59: 3 | AB59: 6 | AC59: 1 | AD59: 47 | AE59: 3.93 | AF59: 78 | AG59: 9.4 | AH59: 3.3 | AI59: 9.3 | AJ59: 2.8 | AK59: 1.06 | AL59: 0.269 | AM59: 1.22 | AN59: 1.49 | AO59: 0.06 | AP59: 101 | AQ59: 101 | AR59: 43 | AS59: 17 | AT59: 16.99 | AU59: 70 | AV59: 11 | AW59: -0.04 | AX59: LP | AY59: 73.5 | AZ59: 3.81 | BA59: 79 | BB59: 41 | BC59: LP | BD59: 65.9 | BE59: 3.88 | BF59: 85 | BG59: 36 | BH59: 95.3 | BI59: 4.15 | BJ59: 3.54 | BK59: 59 | BL59: -0.23 | BM59: -16 | BN59: R | BO59: -29 | BP59: iglesra01 | BQ59: 628452 | BR59: Righty Commanding Swing Starter | BS59: Noah Syndergaard | BT59: Jose Fernandez | BU59: Stephen Strasburg | BV59: Priced in-line with expectations.
A60: Garcia | B60: Jaime | C60: L | D60: 2016 | E60: 29 | F60: SLN | G60: NL | H60: LP | I60: 0.64 | J60: Y | K60: 120.6 | L60: 7 | M60: 27 | N60: 13 | O60: 0 | P60: 0 | Q60: 0 | R60: 3 | S60: 380 | T60: 8 | U60: 25 | V60: 1 | W60: 74 | X60: 280 | Y60: 104 | Z60: 37 | AA60: 4 | AB60: 4 | AC60: 0 | AD60: 45 | AE60: 4.1 | AF60: 95 | AG60: 9.3 | AH60: 3 | AI60: 7.3 | AJ60: 2.4 | AK60: 0.76 | AL60: 0.264 | AM60: 1.18 | AN60: 1.11 | AO60: 0.04 | AP60: 47 | AQ60: 106 | AR60: 41 | AS60: 17 | AT60: 20.31 | AU60: 76 | AV60: 12 | AW60: -0.34 | AX60: LP | AY60: 84.9 | AZ60: 3.67 | BA60: 76 | BB60: 49 | BC60: LP | BD60: 71.4 | BE60: 3.76 | BF60: 82 | BG60: 42 | BH60: 129.7 | BI60: 2.43 | BJ60: 3.18 | BK60: 97 | BL60: 1.67 | BM60: -56 | BN60: R | BO60: -58 | BP60: garcija02 | BQ60: 448802 | BR60: Lefty Super Control Swing Starter | BS60: Wei-Yin Chen | BT60: Jose Quintana | BU60: Jonathon Niese | BV60: Approaching his prime years. Priced in-line with expectations.
A61: Corbin | B61: Patrick | C61: L | D61: 2016 | E61: 26 | F61: ARI | G61: NL | H61: LP | I61: 0.7 | J61: Y | K61: 100.5 | L61: 6 | M61: 16 | N61: 11 | O61: 0 | P61: 0 | Q61: 0 | R61: 1 | S61: 292 | T61: 7 | U61: 18 | V61: 0 | W61: 62 | X61: 209 | Y61: 93 | Z61: 35 | AA61: 5 | AB61: 3 | AC61: 0 | AD61: 39 | AE61: 3.94 | AF61: 82 | AG61: 10.6 | AH61: 3.5 | AI61: 8.1 | AJ61: 2.3 | AK61: 0.94 | AL61: 0.282 | AM61: 1.25 | AN61: 1.3 | AO61: 0.05 | AP61: 70 | AQ61: 102 | AR61: 41 | AS61: 18 | AT61: 14.6 | AU61: 77 | AV61: 13 | AW61: -0.07 | AX61: LP | AY61: 71.7 | AZ61: 3.77 | BA61: 78 | BB61: 42 | BC61: LP | BD61: 64 | BE61: 3.86 | BF61: 85 | BG61: 36 | BH61: 85 | BI61: 3.6 | BJ61: 3.41 | BK61: 63 | BL61: 0.34 | BM61: -21 | BN61: R | BO61: -21 | BP61: corbipa01 | BQ61: 571578 | BR61: Lefty Commanding Starter | BS61: Jose Quintana | BT61: Chris Sale | BU61: Jon Lester | BV61: Priced in-line with expectations.
A62: Diaz | B62: Jumbo | C62: R | D62: 2016 | E62: 32 | F62: CIN | G62: NL | H62: LP | I62: 0.5 | J62: Y | K62: 48.7 | L62: 3 | M62: 49 | N62: 2 | O62: 0 | P62: 0 | Q62: 1 | R62: 12 | S62: 238 | T62: 7 | U62: 19 | V62: 3 | W62: 54 | X62: 169 | Y62: 48 | Z62: 33 | AA62: 3 | AB62: 2 | AC62: 0 | AD62: 24 | AE62: 3.62 | AF62: 42 | AG62: 6.7 | AH62: 2.8 | AI62: 8.6 | AJ62: 3.1 | AK62: 1.08 | AL62: 0.294 | AM62: 1.28 | AN62: 1.54 | AO62: 0.06 | AP62: 74 | AQ62: 93 | AR62: 41 | AS62: 8 | AT62: 6.1 | AU62: 79 | AV62: 14 | AW62: 0.31 | AX62: LP | AY62: 55 | AZ62: 3.83 | BA62: 79 | BB62: 35 | BC62: LP | BD62: 56.3 | BE62: 3.93 | BF62: 86 | BG62: 32 | BH62: 60.3 | BI62: 4.18 | BJ62: 3.57 | BK62: 46 | BL62: -0.56 | BM62: -5 | BN62: R | BO62: -4 | BP62: diazju03 | BQ62: 471822 | BR62: Righty Power RP | BS62: Mark Lowe | BT62: Shawn Kelley | BU62: Darren O'Day | BV62: Priced in-line with expectations.
A63: Eickhoff | B63: Jerad | C63: R | D63: 2016 | E63: 25 | F63: PHI | G63: NL | H63: LP | I63: 0.5 | J63: Y | K63: 92.2 | L63: 4 | M63: 17 | N63: 7 | O63: 0 | P63: 0 | Q63: 0 | R63: 2 | S63: 217 | T63: 6 | U63: 16 | V63: 1 | W63: 48 | X63: 158 | Y63: 68 | Z63: 35 | AA63: 2 | AB63: 1 | AC63: 0 | AD63: 31 | AE63: 3.86 | AF63: 64 | AG63: 11.1 | AH63: 3.1 | AI63: 8.5 | AJ63: 2.7 | AK63: 0.99 | AL63: 0.259 | AM63: 1.2 | AN63: 1.41 | AO63: 0.06 | AP63: 77 | AQ63: 100 | AR63: 39 | AS63: 13 | AT63: 11.63 | AU63: 80 | AV63: 15 | AW63: 0.03 | AX63: LP | AY63: 59.2 | AZ63: 3.8 | BA63: 79 | BB63: 37 | BC63: LP | BD63: 55.1 | BE63: 3.89 | BF63: 85 | BG63: 33 | BH63: 51 | BI63: 2.65 | BJ63: 3.29 | BK63: 57 | BL63: 1.21 | BM63: -18 | BN63: R | BO63: 4 | BP63: eickhje01 | BQ63: 595191 | BR63: Young Super Control Swing Starter | BS63: Joe Ross | BT63: Aaron Nola | BU63: Noah Syndergaard | BV63: Priced in-line with expectations.
A64: Roark | B64: Tanner | C64: R | D64: 2016 | E64: 29 | F64: WAS | G64: NL | H64: LP | I64: 0.72 | J64: Y | K64: 109.5 | L64: 7 | M64: 27 | N64: 13 | O64: 0 | P64: 0 | Q64: 0 | R64: 4 | S64: 409 | T64: 11 | U64: 24 | V64: 2 | W64: 71 | X64: 298 | Y64: 115 | Z64: 38 | AA64: 1 | AB64: 4 | AC64: 0 | AD64: 49 | AE64: 4.21 | AF64: 100 | AG64: 9.1 | AH64: 3 | AI64: 6.5 | AJ64: 2.2 | AK64: 0.97 | AL64: 0.268 | AM64: 1.21 | AN64: 1.31 | AO64: 0.05 | AP64: 28 | AQ64: 109 | AR64: 39 | AS64: 17 | AT64: 19.81 | AU64: 81 | AV64: 16 | AW64: -0.11 | AX64: LP | AY64: 84.5 | AZ64: 4.01 | BA64: 83 | BB64: 37 | BC64: LP | BD64: 73.4 | BE64: 4.11 | BF64: 90 | BG64: 32 | BH64: 111 | BI64: 4.38 | BJ64: 4.59 | BK64: 29 | BL64: -0.17 | BM64: 10 | BN64: R | BO64: -38 | BP64: roarkta01 | BQ64: 543699 | BR64: Righty Super Control Starter | BS64: Vance Worley | BT64: Philip Hughes | BU64: Doug Fister | BV64: Approaching his prime years. Priced in-line with expectations.
A65: Warren | B65: Adam | C65: R | D65: 2016 | E65: 28 | F65: CHN | G65: NL | H65: LP | I65: 0.68 | J65: Y | K65: 93.2 | L65: 6 | M65: 53 | N65: 8 | O65: 0 | P65: 0 | Q65: 4 | R65: 12 | S65: 419 | T65: 9 | U65: 32 | V65: 2 | W65: 87 | X65: 304 | Y65: 88 | Z65: 36 | AA65: 5 | AB65: 4 | AC65: 0 | AD65: 39 | AE65: 4.05 | AF65: 82 | AG65: 7.4 | AH65: 2.7 | AI65: 7.8 | AJ65: 2.9 | AK65: 0.78 | AL65: 0.279 | AM65: 1.22 | AN65: 1.18 | AO65: 0.04 | AP65: 54 | AQ65: 105 | AR65: 39 | AS65: 12 | AT65: 17.42 | AU65: 90 | AV65: 20 | AW65: -0.24 | AX65: LP | AY65: 85.3 | AZ65: 3.67 | BA65: 76 | BB65: 49 | BC65: LP | BD65: 77.5 | BE65: 3.81 | BF65: 84 | BG65: 42 | BH65: 131.3 | BI65: 3.29 | BJ65: 3.65 | BK65: 64 | BL65: 0.76 | BM65: -25 | BN65: R | BO65: -54 | BP65: warread01 | BQ65: 476589 | BR65: Righty Power Long Relief | BS65: Bryan Shaw | BT65: Sam Dyson | BU65: Alex Colome | BV65: Priced in-line with expectations.
A66: Jeffress | B66: Jeremy | C66: R | D66: 2016 | E66: 28 | F66: MIL | G66: NL | H66: LP | I66: 0.48 | J66: Y | K66: 58.2 | L66: 3 | M66: 52 | N66: 2 | O66: 0 | P66: 0 | Q66: 0 | R66: 10 | S66: 264 | T66: 6 | U66: 21 | V66: 3 | W66: 56 | X66: 187 | Y66: 55 | Z66: 33 | AA66: 3 | AB66: 2 | AC66: 1 | AD66: 23 | AE66: 3.72 | AF66: 53 | AG66: 7.6 | AH66: 2.6 | AI66: 8.2 | AJ66: 3.1 | AK66: 0.81 | AL66: 0.304 | AM66: 1.32 | AN66: 1.24 | AO66: 0.04 | AP66: 67 | AQ66: 96 | AR66: 39 | AS66: 8 | AT66: 6.66 | AU66: 82 | AV66: 17 | AW66: 0.06 | AX66: LP | AY66: 60.2 | AZ66: 3.64 | BA66: 76 | BB66: 43 | BC66: LP | BD66: 59.9 | BE66: 3.78 | BF66: 83 | BG66: 38 | BH66: 68 | BI66: 2.65 | BJ66: 3.08 | BK66: 81 | BL66: 1.07 | BM66: -42 | BN66: R | BO66: -8 | BP66: jeffrje01 | BQ66: 502026 | BR66: Righty Power RP | BS66: Aaron Barrett | BT66: Mike Morin | BU66: Adam Ottavino | BV66: Priced in-line with expectations.
A67: Rivero | B67: Felipe | C67: L | D67: 2016 | E67: 24 | F67: WAS | G67: NL | H67: LP | I67: 0.49 | J67: Y | K67: 51.8 | L67: 3 | M67: 38 | N67: 3 | O67: 0 | P67: 0 | Q67: 1 | R67: 11 | S67: 213 | T67: 4 | U67: 15 | V67: 2 | W67: 46 | X67: 157 | Y67: 39 | Z67: 33 | AA67: 2 | AB67: 1 | AC67: 1 | AD67: 18 | AE67: 3.62 | AF67: 34 | AG67: 6 | AH67: 3.1 | AI67: 8.2 | AJ67: 2.6 | AK67: 0.74 | AL67: 0.284 | AM67: 1.17 | AN67: 1.11 | AO67: 0.04 | AP67: 79 | AQ67: 94 | AR67: 38 | AS67: 7 | AT67: 5.73 | AU67: 83 | AV67: 18 | AW67: 0.14 | AX67: LP | AY67: 53.8 | AZ67: 3.6 | BA67: 75 | BB67: 42 | BC67: LP | BD67: 55.9 | BE67: 3.77 | BF67: 83 | BG67: 37 | BH67: 48.3 | BI67: 2.79 | BJ67: 2.67 | BK67: 118 | BL67: 0.83 | BM67: -80 | BN67: R | BO67: 8 | BP67: riverfe01 | BQ67: 553878 | BR67: Young Lefty Super Control RP | BS67: Sean Gilmartin | BT67: Sean Doolittle | BU67: Jake McGee | BV67: Priced in-line with expectations.
A68: Gilmartin | B68: Sean | C68: L | D68: 2016 | E68: 26 | F68: NYN | G68: NL | H68: LP | I68: 0.53 | J68: Y | K68: 53.7 | L68: 3 | M68: 38 | N68: 3 | O68: 0 | P68: 0 | Q68: 0 | R68: 9 | S68: 231 | T68: 4 | U68: 18 | V68: 3 | W68: 50 | X68: 166 | Y68: 46 | Z68: 33 | AA68: 1 | AB68: 2 | AC68: 0 | AD68: 19 | AE68: 3.67 | AF68: 43 | AG68: 7.1 | AH68: 2.8 | AI68: 8.3 | AJ68: 2.9 | AK68: 0.66 | AL68: 0.3 | AM68: 1.26 | AN68: 1.06 | AO68: 0.04 | AP68: 77 | AQ68: 95 | AR68: 38 | AS68: 8 | AT68: 5.69 | AU68: 84 | AV68: 19 | AW68: 0.05 | AX68: LP | AY68: 56.3 | AZ68: 3.54 | BA68: 74 | BB68: 46 | BC68: LP | BD68: 57.3 | BE68: 3.71 | BF68: 81 | BG68: 39 | BH68: 57.3 | BI68: 2.67 | BJ68: 2.67 | BK68: 124 | BL68: 1 | BM68: -86 | BN68: R | BO68: 0 | BP68: gilmase01 | BQ68: 543219 | BR68: Lefty Power RP | BS68: Felipe Rivero | BT68: Justin Wilson | BU68: Brian Matusz | BV68: Priced in-line with expectations.
A69: Garcia | B69: Yimi | C69: R | D69: 2016 | E69: 25 | F69: LAN | G69: NL | H69: LP | I69: 0.43 | J69: Y | K69: 56.8 | L69: 3 | M69: 42 | N69: 3 | O69: 0 | P69: 0 | Q69: 1 | R69: 11 | S69: 235 | T69: 8 | U69: 16 | V69: 1 | W69: 57 | X69: 171 | Y69: 46 | Z69: 33 | AA69: 2 | AB69: 2 | AC69: 0 | AD69: 23 | AE69: 3.69 | AF69: 38 | AG69: 6 | AH69: 3.7 | AI69: 9.2 | AJ69: 2.5 | AK69: 1.21 | AL69: 0.288 | AM69: 1.19 | AN69: 1.62 | AO69: 0.07 | AP69: 102 | AQ69: 95 | AR69: 38 | AS69: 8 | AT69: 7.03 | AU69: 86 | AV69: 20 | AW69: 0.17 | AX69: LP | AY69: 57.3 | AZ69: 3.79 | BA69: 79 | BB69: 37 | BC69: LP | BD69: 58.1 | BE69: 3.86 | BF69: 85 | BG69: 34 | BH69: 56.7 | BI69: 3.34 | BJ69: 3.1 | BK69: 73 | BL69: 0.35 | BM69: -35 | BN69: R | BO69: 1 | BP69: garciyi01 | BQ69: 554340 | BR69: Young Commanding RP | BS69: Hunter Strickland | BT69: Pedro Baez | BU69: Hansel Robles | BV69: Priced in-line with expectations.
A70: Grimm | B70: Justin | C70: R | D70: 2016 | E70: 27 | F70: CHN | G70: NL | H70: LP | I70: 0.56 | J70: Y | K70: 55.2 | L70: 3 | M70: 43 | N70: 4 | O70: 0 | P70: 0 | Q70: 1 | R70: 9 | S70: 245 | T70: 6 | U70: 23 | V70: 1 | W70: 57 | X70: 173 | Y70: 48 | Z70: 33 | AA70: 4 | AB70: 2 | AC70: 0 | AD70: 25 | AE70: 3.71 | AF70: 46 | AG70: 7.2 | AH70: 2.5 | AI70: 8.9 | AJ70: 3.6 | AK70: 0.89 | AL70: 0.297 | AM70: 1.31 | AN70: 1.39 | AO70: 0.05 | AP70: 82 | AQ70: 96 | AR70: 38 | AS70: 8 | AT70: 6.16 | AU70: 87 | AV70: 21 | AW70: 0.15 | AX70: LP | AY70: 56.2 | AZ70: 3.7 | BA70: 77 | BB70: 39 | BC70: LP | BD70: 57.1 | BE70: 3.85 | BF70: 84 | BG70: 34 | BH70: 49.7 | BI70: 1.99 | BJ70: 3.11 | BK70: 69 | BL70: 1.71 | BM70: -31 | BN70: R | BO70: 7 | BP70: grimmju01 | BQ70: 518748 | BR70: Righty Power RP | BS70: Aaron Barrett | BT70: Carter Capps | BU70: Enrique Burgos | BV70: Priced in-line with expectations.
A71: Nola | B71: Aaron | C71: R | D71: 2016 | E71: 23 | F71: PHI | G71: NL | H71: LP | I71: 0.61 | J71: Y | K71: 95.5 | L71: 5 | M71: 20 | N71: 9 | O71: 0 | P71: 0 | Q71: 0 | R71: 2 | S71: 287 | T71: 9 | U71: 20 | V71: 1 | W71: 62 | X71: 208 | Y71: 91 | Z71: 36 | AA71: 2 | AB71: 3 | AC71: 0 | AD71: 41 | AE71: 4.05 | AF71: 81 | AG71: 10.8 | AH71: 3.1 | AI71: 8.3 | AJ71: 2.6 | AK71: 1.24 | AL71: 0.276 | AM71: 1.28 | AN71: 1.67 | AO71: 0.07 | AP71: 62 | AQ71: 105 | AR71: 38 | AS71: 14 | AT71: 13.85 | AU71: 89 | AV71: 22 | AW71: 0.01 | AX71: LP | AY71: 70 | AZ71: 4.03 | BA71: 84 | BB71: 33 | BC71: LP | BD71: 64.1 | BE71: 4.06 | BF71: 89 | BG71: 31 | BH71: 77.7 | BI71: 3.59 | BJ71: 3.96 | BK71: 37 | BL71: 0.46 | BM71: 1 | BN71: R | BO71: -14 | BP71: nolaaa01 | BQ71: 605400 | BR71: Young Super Control Swing Starter | BS71: Joe Ross | BT71: Jerad Eickhoff | BU71: Noah Syndergaard | BV71: Priced in-line with expectations.
A72: Ross | B72: Joe | C72: R | D72: 2016 | E72: 23 | F72: WAS | G72: NL | H72: LP | I72: 0.61 | J72: Y | K72: 96.8 | L72: 5 | M72: 21 | N72: 9 | O72: 0 | P72: 0 | Q72: 0 | R72: 3 | S72: 285 | T72: 7 | U72: 21 | V72: 1 | W72: 62 | X72: 206 | Y72: 84 | Z72: 36 | AA72: 2 | AB72: 3 | AC72: 0 | AD72: 42 | AE72: 4.05 | AF72: 75 | AG72: 10.1 | AH72: 3 | AI72: 8.4 | AJ72: 2.8 | AK72: 0.95 | AL72: 0.265 | AM72: 1.22 | AN72: 1.37 | AO72: 0.05 | AP72: 71 | AQ72: 105 | AR72: 38 | AS72: 14 | AT72: 14.68 | AU72: 90 | AV72: 23 | AW72: -0.17 | AX72: LP | AY72: 69.9 | AZ72: 3.8 | BA72: 79 | BB72: 40 | BC72: LP | BD72: 63.9 | BE72: 3.88 | BF72: 85 | BG72: 36 | BH72: 76.7 | BI72: 3.64 | BJ72: 3.47 | BK72: 57 | BL72: 0.41 | BM72: -19 | BN72: R | BO72: -13 | BP72: rossjo01 | BQ72: 605452 | BR72: Young Super Control Swing Starter | BS72: Jerad Eickhoff | BT72: Aaron Nola | BU72: Tyler Duffey | BV72: Priced in-line with expectations.
A73: Peavy | B73: Jake | C73: R | D73: 2016 | E73: 35 | F73: SFN | G73: NL | H73: LP | I73: 0.75 | J73: Y | K73: 112.2 | L73: 7 | M73: 19 | N73: 15 | O73: 0 | P73: 0 | Q73: 0 | R73: 1 | S73: 393 | T73: 11 | U73: 27 | V73: 1 | W73: 70 | X73: 284 | Y73: 109 | Z73: 39 | AA73: 3 | AB73: 4 | AC73: 1 | AD73: 51 | AE73: 4.3 | AF73: 97 | AG73: 9.2 | AH73: 2.6 | AI73: 6.7 | AJ73: 2.6 | AK73: 1.02 | AL73: 0.261 | AM73: 1.23 | AN73: 1.41 | AO73: 0.05 | AP73: 25 | AQ73: 111 | AR73: 36 | AS73: 19 | AT73: 19.02 | AU73: 93 | AV73: 24 | AW73: -0.25 | AX73: LP | AY73: 82.2 | AZ73: 4.01 | BA73: 83 | BB73: 36 | BC73: LP | BD73: 69.8 | BE73: 4.05 | BF73: 89 | BG73: 32 | BH73: 110.7 | BI73: 3.58 | BJ73: 3.88 | BK73: 48 | BL73: 0.72 | BM73: -12 | BN73: R | BO73: -41 | BP73: peavyja01 | BQ73: 408241 | BR73: Aging Super Control Starter | BS73: John Lackey | BT73: Ervin Santana | BU73: Aaron Harang | BV73: Should perform close to forecast. Priced in-line with expectations.
A74: Reed | B74: Addison | C74: R | D74: 2016 | E74: 27 | F74: NYN | G74: NL | H74: LP | I74: 0.54 | J74: Y | K74: 57.3 | L74: 3 | M74: 52 | N74: 1 | O74: 0 | P74: 0 | Q74: 14 | R74: 27 | S74: 252 | T74: 6 | U74: 19 | V74: 3 | W74: 59 | X74: 180 | Y74: 50 | Z74: 34 | AA74: 2 | AB74: 1 | AC74: 0 | AD74: 23 | AE74: 3.77 | AF74: 45 | AG74: 6.7 | AH74: 3.1 | AI74: 8.7 | AJ74: 2.8 | AK74: 0.9 | AL74: 0.299 | AM74: 1.24 | AN74: 1.31 | AO74: 0.05 | AP74: 85 | AQ74: 97 | AR74: 36 | AS74: 8 | AT74: 11.48 | AU74: 94 | AV74: 25 | AW74: -0.47 | AX74: EP | AY74: 62.8 | AZ74: 3.34 | BA74: 69 | BB74: 59 | BC74: LP | BD74: 63 | BE74: 3.3 | BF74: 72 | BG74: 61 | BH74: 56 | BI74: 3.38 | BJ74: 2.85 | BK74: 98 | BL74: 0.4 | BM74: -62 | BN74: R | BO74: 7 | BP74: reedad01 | BQ74: 592665 | BR74: Righty Super Control RP | BS74: Shawn Tolleson | BT74: Hector Rondon | BU74: Jenrry Mejia | BV74: Priced in-line with expectations.
A75: Niese | B75: Jonathon | C75: L | D75: 2016 | E75: 29 | F75: PIT | G75: NL | H75: LP | I75: 0.78 | J75: Y | K75: 142.1 | L75: 9 | M75: 28 | N75: 20 | O75: 0 | P75: 0 | Q75: 0 | R75: 2 | S75: 561 | T75: 13 | U75: 38 | V75: 1 | W75: 94 | X75: 393 | Y75: 161 | Z75: 42 | AA75: 3 | AB75: 6 | AC75: 0 | AD75: 74 | AE75: 4.65 | AF75: 144 | AG75: 9.8 | AH75: 2.5 | AI75: 6.5 | AJ75: 2.6 | AK75: 0.91 | AL75: 0.287 | AM75: 1.34 | AN75: 1.3 | AO75: 0.05 | AP75: 20 | AQ75: 120 | AR75: 36 | AS75: 19 | AT75: 23.59 | AU75: 96 | AV75: 26 | AW75: -0.46 | AX75: LP | AY75: 108.3 | AZ75: 4.13 | BA75: 86 | BB75: 39 | BC75: LP | BD75: 89 | BE75: 4.18 | BF75: 92 | BG75: 33 | BH75: 176.7 | BI75: 4.13 | BJ75: 4.44 | BK75: 45 | BL75: 0.52 | BM75: -9 | BN75: R | BO75: -88 | BP75: niesejo01 | BQ75: 477003 | BR75: Lefty Super Control Starter | BS75: Jeff Locke | BT75: Brett Anderson | BU75: Wade Miley | BV75: Approaching his prime years. Priced in-line with expectations.
A76: Maness | B76: Seth | C76: R | D76: 2016 | E76: 27 | F76: SLN | G76: NL | H76: LP | I76: 0.58 | J76: Y | K76: 62.8 | L76: 3 | M76: 59 | N76: 2 | O76: 0 | P76: 0 | Q76: 5 | R76: 14 | S76: 272 | T76: 6 | U76: 16 | V76: 3 | W76: 52 | X76: 197 | Y76: 61 | Z76: 35 | AA76: 2 | AB76: 2 | AC76: 0 | AD76: 26 | AE76: 3.84 | AF76: 51 | AG76: 7 | AH76: 3.3 | AI76: 7 | AJ76: 2.2 | AK76: 0.87 | AL76: 0.301 | AM76: 1.26 | AN76: 1.21 | AO76: 0.05 | AP76: 44 | AQ76: 99 | AR76: 36 | AS76: 8 | AT76: 8.44 | AU76: 97 | AV76: 27 | AW76: -0.01 | AX76: LP | AY76: 61.9 | AZ76: 3.65 | BA76: 76 | BB76: 43 | BC76: LP | BD76: 61.1 | BE76: 3.83 | BF76: 84 | BG76: 36 | BH76: 63.3 | BI76: 4.26 | BJ76: 3.61 | BK76: 45 | BL76: -0.43 | BM76: -9 | BN76: R | BO76: -2 | BP76: manesse01 | BQ76: 595307 | BR76: Righty Commanding Long Relief | BS76: Tommy Hunter | BT76: Yusmeiro Petit | BU76: Alex Wilson | BV76: Priced in-line with expectations.
A77: Ray | B77: Robbie | C77: L | D77: 2016 | E77: 24 | F77: ARI | G77: NL | H77: LP | I77: 0.64 | J77: Y | K77: 125.3 | L77: 7 | M77: 28 | N77: 15 | O77: 0 | P77: 0 | Q77: 0 | R77: 3 | S77: 424 | T77: 10 | U77: 37 | V77: 2 | W77: 88 | X77: 295 | Y77: 125 | Z77: 40 | AA77: 4 | AB77: 6 | AC77: 1 | AD77: 62 | AE77: 4.39 | AF77: 116 | AG77: 10.7 | AH77: 2.4 | AI77: 8.2 | AJ77: 3.4 | AK77: 0.9 | AL77: 0.293 | AM77: 1.4 | AN77: 1.37 | AO77: 0.05 | AP77: 53 | AQ77: 113 | AR77: 35 | AS77: 15 | AT77: 17.61 | AU77: 99 | AV77: 28 | AW77: -0.43 | AX77: LP | AY77: 91.9 | AZ77: 3.94 | BA77: 82 | BB77: 41 | BC77: LP | BD77: 78.3 | BE77: 3.96 | BF77: 87 | BG77: 37 | BH77: 127.7 | BI77: 3.52 | BJ77: 3.57 | BK77: 67 | BL77: 0.87 | BM77: -32 | BN77: R | BO77: -49 | BP77: rayro02 | BQ77: 592662 | BR77: Young Lefty Power Swing Starter | BS77: Eduardo Rodriguez | BT77: James Paxton | BU77: Alex Wood | BV77: Priced in-line with expectations.
A78: Nicasio | B78: Juan | C78: R | D78: 2016 | E78: 29 | F78: PIT | G78: NL | H78: LP | I78: 0.63 | J78: Y | K78: 65.5 | L78: 4 | M78: 29 | N78: 7 | O78: 0 | P78: 0 | Q78: 0 | R78: 5 | S78: 272 | T78: 7 | U78: 24 | V78: 3 | W78: 53 | X78: 188 | Y78: 67 | Z78: 35 | AA78: 2 | AB78: 2 | AC78: 0 | AD78: 34 | AE78: 3.92 | AF78: 61 | AG78: 8.6 | AH78: 2.2 | AI78: 7.5 | AJ78: 3.5 | AK78: 0.97 | AL78: 0.295 | AM78: 1.41 | AN78: 1.47 | AO78: 0.05 | AP78: 38 | AQ78: 101 | AR78: 35 | AS78: 10 | AT78: 6.79 | AU78: 100 | AV78: 29 | AW78: 0.01 | AX78: LP | AY78: 61.4 | AZ78: 3.96 | BA78: 82 | BB78: 32 | BC78: LP | BD78: 60 | BE78: 3.93 | BF78: 86 | BG78: 33 | BH78: 58.3 | BI78: 3.86 | BJ78: 2.72 | BK78: 116 | BL78: 0.06 | BM78: -82 | BN78: R | BO78: 2 | BP78: nicasju01 | BQ78: 504379 | BR78: Righty Swing Starter | BS78: Ubaldo Jimenez | BT78: Mike Bolsinger | BU78: Lance Lynn | BV78: Approaching his prime years. Priced in-line with expectations.
A79: Strickland | B79: Hunter | C79: R | D79: 2016 | E79: 27 | F79: SFN | G79: NL | H79: LP | I79: 0.4 | J79: Y | K79: 48.3 | L79: 3 | M79: 39 | N79: 3 | O79: 0 | P79: 0 | Q79: 0 | R79: 9 | S79: 211 | T79: 5 | U79: 14 | V79: 1 | W79: 47 | X79: 156 | Y79: 40 | Z79: 34 | AA79: 2 | AB79: 2 | AC79: 0 | AD79: 19 | AE79: 3.73 | AF79: 35 | AG79: 6.1 | AH79: 3.3 | AI79: 8.4 | AJ79: 2.5 | AK79: 0.92 | AL79: 0.281 | AM79: 1.17 | AN79: 1.3 | AO79: 0.05 | AP79: 80 | AQ79: 96 | AR79: 35 | AS79: 7 | AT79: 5.61 | AU79: 101 | AV79: 30 | AW79: 0.08 | AX79: LP | AY79: 51.9 | AZ79: 3.68 | BA79: 76 | BB79: 39 | BC79: LP | BD79: 54 | BE79: 3.81 | BF79: 84 | BG79: 35 | BH79: 51.3 | BI79: 2.45 | BJ79: 2.87 | BK79: 93 | BL79: 1.28 | BM79: -58 | BN79: R | BO79: 3 | BP79: strichu01 | BQ79: 519326 | BR79: Righty Commanding RP | BS79: Pedro Baez | BT79: Yimi Garcia | BU79: Liam Hendriks | BV79: Priced in-line with expectations.
A80: Jungmann | B80: Taylor | C80: R | D80: 2016 | E80: 26 | F80: MIL | G80: NL | H80: LP | I80: 0.7 | J80: Y | K80: 106.8 | L80: 6 | M80: 24 | N80: 13 | O80: 1 | P80: 0 | Q80: 0 | R80: 2 | S80: 370 | T80: 9 | U80: 33 | V80: 1 | W80: 78 | X80: 264 | Y80: 102 | Z80: 39 | AA80: 7 | AB80: 7 | AC80: 0 | AD80: 52 | AE80: 4.3 | AF80: 98 | AG80: 10.2 | AH80: 2.4 | AI80: 8.2 | AJ80: 3.5 | AK80: 0.92 | AL80: 0.272 | AM80: 1.32 | AN80: 1.41 | AO80: 0.05 | AP80: 53 | AQ80: 111 | AR80: 35 | AS80: 15 | AT80: 17.02 | AU80: 102 | AV80: 31 | AW80: -0.26 | AX80: LP | AY80: 81.1 | AZ80: 4.01 | BA80: 83 | BB80: 36 | BC80: LP | BD80: 70.8 | BE80: 4.04 | BF80: 89 | BG80: 33 | BH80: 119.3 | BI80: 3.77 | BJ80: 3.94 | BK80: 48 | BL80: 0.53 | BM80: -13 | BN80: R | BO80: -49 | BP80: jungmta01 | BQ80: 543380 | BR80: Righty Power Top Starter | BS80: Tyson Ross | BT80: Garrett Richards | BU80: Yordano Ventura | BV80: Should perform close to forecast. Priced in-line with expectations.
A81: Petit | B81: Yusmeiro | C81: R | D81: 2016 | E81: 31 | F81: WAS | G81: NL | H81: LP | I81: 0.63 | J81: Y | K81: 66.8 | L81: 4 | M81: 34 | N81: 6 | O81: 0 | P81: 0 | Q81: 0 | R81: 9 | S81: 299 | T81: 8 | U81: 18 | V81: 2 | W81: 65 | X81: 217 | Y81: 67 | Z81: 36 | AA81: 2 | AB81: 1 | AC81: 0 | AD81: 32 | AE81: 4.01 | AF81: 55 | AG81: 6.7 | AH81: 3.6 | AI81: 8.1 | AJ81: 2.3 | AK81: 1.03 | AL81: 0.28 | AM81: 1.18 | AN81: 1.39 | AO81: 0.06 | AP81: 67 | AQ81: 104 | AR81: 34 | AS81: 9 | AT81: 11.07 | AU81: 103 | AV81: 32 | AW81: -0.14 | AX81: LP | AY81: 65 | AZ81: 3.68 | BA81: 76 | BB81: 43 | BC81: LP | BD81: 62.6 | BE81: 3.87 | BF81: 85 | BG81: 35 | BH81: 76 | BI81: 3.67 | BJ81: 3.98 | BK81: 36 | BL81: 0.34 | BM81: -2 | BN81: R | BO81: -13 | BP81: petityu01 | BQ81: 433589 | BR81: Righty Commanding Starter | BS81: Casey Fien | BT81: Hunter Strickland | BU81: Pedro Baez | BV81: In prime. Priced in-line with expectations. Trade bait?
A82: Bastardo | B82: Antonio | C82: L | D82: 2016 | E82: 30 | F82: NYN | G82: NL | H82: LP | I82: 0.53 | J82: Y | K82: 51.7 | L82: 3 | M82: 49 | N82: 3 | O82: 0 | P82: 0 | Q82: 1 | R82: 12 | S82: 247 | T82: 5 | U82: 25 | V82: 2 | W82: 59 | X82: 176 | Y82: 43 | Z82: 35 | AA82: 4 | AB82: 2 | AC82: 0 | AD82: 23 | AE82: 3.84 | AF82: 44 | AG82: 6.8 | AH82: 2.4 | AI82: 9.1 | AJ82: 3.8 | AK82: 0.76 | AL82: 0.28 | AM82: 1.24 | AN82: 1.26 | AO82: 0.04 | AP82: 85 | AQ82: 99 | AR82: 34 | AS82: 7 | AT82: 6.74 | AU82: 105 | AV82: 33 | AW82: 0.03 | AX82: LP | AY82: 55.7 | AZ82: 3.7 | BA82: 77 | BB82: 39 | BC82: LP | BD82: 56.7 | BE82: 3.86 | BF82: 85 | BG82: 34 | BH82: 57.3 | BI82: 2.98 | BJ82: 3.33 | BK82: 57 | BL82: 0.85 | BM82: -24 | BN82: R | BO82: -1 | BP82: bastaan01 | BQ82: 455374 | BR82: Lefty Power RP | BS82: Marc Rzepczynski | BT82: Jake Diekman | BU82: Boone Logan | BV82: In prime. Priced in-line with expectations. Trade bait?
A83: Conley | B83: Adam | C83: L | D83: 2016 | E83: 26 | F83: MIA | G83: NL | H83: LP | I83: 0.57 | J83: Y | K83: 88.5 | L83: 5 | M83: 21 | N83: 8 | O83: 0 | P83: 0 | Q83: 0 | R83: 3 | S83: 255 | T83: 7 | U83: 19 | V83: 1 | W83: 53 | X83: 181 | Y83: 82 | Z83: 37 | AA83: 1 | AB83: 4 | AC83: 0 | AD83: 38 | AE83: 4.14 | AF83: 76 | AG83: 11.4 | AH83: 2.7 | AI83: 8 | AJ83: 2.9 | AK83: 1.01 | AL83: 0.277 | AM83: 1.32 | AN83: 1.44 | AO83: 0.06 | AP83: 54 | AQ83: 107 | AR83: 33 | AS83: 12 | AT83: 11.25 | AU83: 107 | AV83: 34 | AW83: -0.09 | AX83: LP | AY83: 63.6 | AZ83: 4.01 | BA83: 83 | BB83: 32 | BC83: LP | BD83: 58.7 | BE83: 4.06 | BF83: 89 | BG83: 29 | BH83: 67 | BI83: 3.76 | BJ83: 3.82 | BK83: 38 | BL83: 0.38 | BM83: -5 | BN83: R | BO83: -8 | BP83: conlead01 | BQ83: 543045 | BR83: Lefty Power Swing Starter | BS83: Robbie Erlin | BT83: Drew Smyly | BU83: Eduardo Rodriguez | BV83: Priced in-line with expectations.
A84: Lyons | B84: Tyler | C84: L | D84: 2016 | E84: 28 | F84: SLN | G84: NL | H84: LP | I84: 0.51 | J84: Y | K84: 67.1 | L84: 4 | M84: 22 | N84: 7 | O84: 0 | P84: 0 | Q84: 0 | R84: 3 | S84: 250 | T84: 8 | U84: 18 | V84: 1 | W84: 52 | X84: 176 | Y84: 68 | Z84: 36 | AA84: 3 | AB84: 3 | AC84: 0 | AD84: 36 | AE84: 4.02 | AF84: 59 | AG84: 9 | AH84: 2.9 | AI84: 8.1 | AJ84: 2.8 | AK84: 1.26 | AL84: 0.278 | AM84: 1.29 | AN84: 1.71 | AO84: 0.07 | AP84: 55 | AQ84: 104 | AR84: 33 | AS84: 10 | AT84: 8.63 | AU84: 108 | AV84: 35 | AW84: 0.19 | AX84: LP | AY84: 59.7 | AZ84: 4.2 | BA84: 87 | BB84: 26 | BC84: LP | BD84: 58 | BE84: 4.21 | BF84: 92 | BG84: 26 | BH84: 60 | BI84: 3.75 | BJ84: 4.4 | BK84: 22 | BL84: 0.27 | BM84: 11 | BN84: R | BO84: -2 | BP84: lyonsty01 | BQ84: 544928 | BR84: Lefty Super Control Swing Starter | BS84: Vidal Nuno | BT84: Adam Conley | BU84: Drew Smyly | BV84: Priced in-line with expectations.
A85: Robles | B85: Hansel | C85: R | D85: 2016 | E85: 25 | F85: NYN | G85: NL | H85: LP | I85: 0.52 | J85: Y | K85: 52.8 | L85: 3 | M85: 42 | N85: 3 | O85: 0 | P85: 0 | Q85: 0 | R85: 6 | S85: 225 | T85: 7 | U85: 18 | V85: 1 | W85: 55 | X85: 163 | Y85: 40 | Z85: 34 | AA85: 2 | AB85: 2 | AC85: 1 | AD85: 24 | AE85: 3.81 | AF85: 35 | AG85: 5.9 | AH85: 3 | AI85: 9.3 | AJ85: 3.1 | AK85: 1.24 | AL85: 0.274 | AM85: 1.19 | AN85: 1.72 | AO85: 0.07 | AP85: 93 | AQ85: 98 | AR85: 33 | AS85: 7 | AT85: 5.72 | AU85: 109 | AV85: 36 | AW85: 0.2 | AX85: LP | AY85: 54.9 | AZ85: 3.96 | BA85: 82 | BB85: 31 | BC85: LP | BD85: 56.5 | BE85: 4.01 | BF85: 88 | BG85: 30 | BH85: 54 | BI85: 3.67 | BJ85: 3.8 | BK85: 35 | BL85: 0.14 | BM85: -2 | BN85: R | BO85: 2 | BP85: robleha01 | BQ85: 570663 | BR85: Young Serious Heat RP | BS85: Corey Knebel | BT85: Yimi Garcia | BU85: Keone Kela | BV85: Priced in-line with expectations.
A86: Bolsinger | B86: Mike | C86: R | D86: 2016 | E86: 28 | F86: LAN | G86: NL | H86: LP | I86: 0.63 | J86: Y | K86: 102.8 | L86: 6 | M86: 26 | N86: 13 | O86: 0 | P86: 0 | Q86: 0 | R86: 3 | S86: 367 | T86: 9 | U86: 32 | V86: 2 | W86: 75 | X86: 256 | Y86: 109 | Z86: 39 | AA86: 4 | AB86: 2 | AC86: 1 | AD86: 54 | AE86: 4.39 | AF86: 102 | AG86: 10.8 | AH86: 2.4 | AI86: 7.9 | AJ86: 3.3 | AK86: 0.98 | AL86: 0.285 | AM86: 1.37 | AN86: 1.46 | AO86: 0.05 | AP86: 44 | AQ86: 113 | AR86: 33 | AS86: 13 | AT86: 15.41 | AU86: 110 | AV86: 37 | AW86: -0.39 | AX86: LP | AY86: 80.4 | AZ86: 3.95 | BA86: 82 | BB86: 38 | BC86: LP | BD86: 70.4 | BE86: 4 | BF86: 88 | BG86: 34 | BH86: 109.3 | BI86: 3.62 | BJ86: 3.86 | BK86: 48 | BL86: 0.77 | BM86: -16 | BN86: R | BO86: -39 | BP86: bolsimi01 | BQ86: 502211 | BR86: Righty Power Swing Starter | BS86: Jake Odorizzi | BT86: Michael Wacha | BU86: Andrew Cashner | BV86: Priced in-line with expectations.
A87: Qualls | B87: Chad | C87: R | D87: 2016 | E87: 37 | F87: COL | G87: NL | H87: LP | I87: 0.51 | J87: Y | K87: 40.2 | L87: 3 | M87: 50 | N87: 2 | O87: 0 | P87: 0 | Q87: 7 | R87: 19 | S87: 216 | T87: 5 | U87: 14 | V87: 2 | W87: 43 | X87: 157 | Y87: 43 | Z87: 34 | AA87: 2 | AB87: 2 | AC87: 0 | AD87: 19 | AE87: 3.8 | AF87: 35 | AG87: 6 | AH87: 3.2 | AI87: 7.2 | AJ87: 2.3 | AK87: 0.9 | AL87: 0.285 | AM87: 1.19 | AN87: 1.25 | AO87: 0.05 | AP87: 48 | AQ87: 98 | AR87: 33 | AS87: 6 | AT87: 7.1 | AU87: 116 | AV87: 40 | AW87: -0.37 | AX87: EP | AY87: 42.4 | AZ87: 3.45 | BA87: 72 | BB87: 45 | BC87: LP | BD87: 52.6 | BE87: 3.43 | BF87: 75 | BG87: 50 | BH87: 49.3 | BI87: 4.38 | BJ87: 3.45 | BK87: 48 | BL87: -0.58 | BM87: -15 | BN87: R | BO87: 3 | BP87: quallch01 | BQ87: 430589 | BR87: Aging Super Control RP | BS87: Jason Motte | BT87: George Kontos | BU87: Pat Neshek | BV87: Priced in-line with expectations. Trade bait?
A88: Collmenter | B88: Josh | C88: R | D88: 2016 | E88: 30 | F88: ARI | G88: NL | H88: LP | I88: 0.73 | J88: Y | K88: 103.3 | L88: 7 | M88: 38 | N88: 11 | O88: 0 | P88: 0 | Q88: 1 | R88: 11 | S88: 419 | T88: 12 | U88: 26 | V88: 2 | W88: 69 | X88: 305 | Y88: 108 | Z88: 40 | AA88: 2 | AB88: 2 | AC88: 0 | AD88: 48 | AE88: 4.41 | AF88: 93 | AG88: 8.3 | AH88: 2.6 | AI88: 6.2 | AJ88: 2.3 | AK88: 1.05 | AL88: 0.269 | AM88: 1.24 | AN88: 1.43 | AO88: 0.05 | AP88: 17 | AQ88: 114 | AR88: 33 | AS88: 11 | AT88: 17.35 | AU88: 111 | AV88: 38 | AW88: -0.21 | AX88: LP | AY88: 83.8 | AZ88: 4.16 | BA88: 86 | BB88: 33 | BC88: LP | BD88: 73.6 | BE88: 4.2 | BF88: 92 | BG88: 29 | BH88: 121 | BI88: 3.79 | BJ88: 4.61 | BK88: 30 | BL88: 0.62 | BM88: 2 | BN88: R | BO88: -47 | BP88: collmjo01 | BQ88: 518567 | BR88: Righty Super Control Top Starter | BS88: Tanner Roark | BT88: Christian Bergman | BU88: Vance Worley | BV88: In prime. Priced in-line with expectations. Trade bait?
A89: Perez | B89: Oliver | C89: L | D89: 2016 | E89: 34 | F89: WAS | G89: NL | H89: LP | I89: 0.49 | J89: Y | K89: 40.3 | L89: 3 | M89: 49 | N89: 3 | O89: 0 | P89: 0 | Q89: 0 | R89: 10 | S89: 217 | T89: 5 | U89: 19 | V89: 2 | W89: 51 | X89: 151 | Y89: 40 | Z89: 34 | AA89: 2 | AB89: 3 | AC89: 1 | AD89: 21 | AE89: 3.8 | AF89: 38 | AG89: 6.8 | AH89: 2.6 | AI89: 9 | AJ89: 3.4 | AK89: 0.89 | AL89: 0.307 | AM89: 1.3 | AN89: 1.37 | AO89: 0.05 | AP89: 86 | AQ89: 98 | AR89: 32 | AS89: 6 | AT89: 4.21 | AU89: 118 | AV89: 41 | AW89: 0.11 | AX89: LP | AY89: 51.8 | AZ89: 3.75 | BA89: 78 | BB89: 36 | BC89: LP | BD89: 56.2 | BE89: 3.91 | BF89: 86 | BG89: 33 | BH89: 41 | BI89: 4.17 | BJ89: 3.22 | BK89: 57 | BL89: -0.37 | BM89: -25 | BN89: R | BO89: 15 | BP89: perezol01 | BQ89: 424144 | BR89: Aging Lefty Power RP | BS89: Charlie Furbush | BT89: Tony Sipp | BU89: Antonio Bastardo | BV89: Priced in-line with expectations. Trade bait?
A90: Delgado | B90: Randall | C90: R | D90: 2016 | E90: 26 | F90: ARI | G90: NL | H90: LP | I90: 0.62 | J90: Y | K90: 72.9 | L90: 4 | M90: 41 | N90: 5 | O90: 0 | P90: 0 | Q90: 0 | R90: 7 | S90: 303 | T90: 8 | U90: 27 | V90: 2 | W90: 66 | X90: 213 | Y90: 63 | Z90: 36 | AA90: 4 | AB90: 2 | AC90: 0 | AD90: 32 | AE90: 4.04 | AF90: 59 | AG90: 7.4 | AH90: 2.5 | AI90: 8.5 | AJ90: 3.4 | AK90: 1.04 | AL90: 0.291 | AM90: 1.33 | AN90: 1.54 | AO90: 0.06 | AP90: 61 | AQ90: 104 | AR90: 32 | AS90: 8 | AT90: 8.33 | AU90: 115 | AV90: 39 | AW90: -0.07 | AX90: LP | AY90: 67 | AZ90: 3.86 | BA90: 80 | BB90: 37 | BC90: LP | BD90: 64 | BE90: 3.97 | BF90: 87 | BG90: 33 | BH90: 72 | BI90: 3.25 | BJ90: 3.73 | BK90: 43 | BL90: 0.79 | BM90: -11 | BN90: R | BO90: -8 | BP90: delgara01 | BQ90: 517414 | BR90: Righty Power Long Relief | BS90: Vincent Velasquez | BT90: Keone Kela | BU90: Hansel Robles | BV90: Priced in-line with expectations.
A91: Morton | B91: Charlie | C91: R | D91: 2016 | E91: 32 | F91: PHI | G91: NL | H91: LP | I91: 0.73 | J91: Y | K91: 121.3 | L91: 7 | M91: 24 | N91: 16 | O91: 0 | P91: 0 | Q91: 0 | R91: 2 | S91: 435 | T91: 9 | U91: 34 | V91: 3 | W91: 77 | X91: 305 | Y91: 122 | Z91: 41 | AA91: 4 | AB91: 11 | AC91: 0 | AD91: 63 | AE91: 4.57 | AF91: 110 | AG91: 9.7 | AH91: 2.3 | AI91: 6.9 | AJ91: 3 | AK91: 0.76 | AL91: 0.278 | AM91: 1.32 | AN91: 1.18 | AO91: 0.04 | AP91: 27 | AQ91: 118 | AR91: 32 | AS91: 16 | AT91: 18.48 | AU91: 116 | AV91: 40 | AW91: -0.52 | AX91: LP | AY91: 89.6 | AZ91: 3.99 | BA91: 83 | BB91: 39 | BC91: LP | BD91: 75.4 | BE91: 4.05 | BF91: 89 | BG91: 34 | BH91: 129 | BI91: 4.81 | BJ91: 4.07 | BK91: 46 | BL91: -0.25 | BM91: -14 | BN91: R | BO91: -54 | BP91: mortoch02 | BQ91: 450203 | BR91: Righty Soft Tosser Swing Starter | BS91: Mike Pelfrey | BT91: Chris Bassitt | BU91: Edinson Volquez | BV91: Should perform close to forecast. Priced in-line with expectations. Trade bait?
A92: Pomeranz | B92: Drew | C92: L | D92: 2016 | E92: 27 | F92: SDN | G92: NL | H92: LP | I92: 0.58 | J92: Y | K92: 79.7 | L92: 5 | M92: 39 | N92: 9 | O92: 0 | P92: 0 | Q92: 1 | R92: 7 | S92: 329 | T92: 8 | U92: 29 | V92: 1 | W92: 71 | X92: 235 | Y92: 70 | Z92: 37 | AA92: 2 | AB92: 3 | AC92: 0 | AD92: 37 | AE92: 4.15 | AF92: 68 | AG92: 7.9 | AH92: 2.4 | AI92: 8.3 | AJ92: 3.4 | AK92: 0.97 | AL92: 0.275 | AM92: 1.28 | AN92: 1.46 | AO92: 0.05 | AP92: 57 | AQ92: 107 | AR92: 32 | AS92: 9 | AT92: 11.47 | AU92: 123 | AV92: 45 | AW92: -0.16 | AX92: LP | AY92: 72 | AZ92: 3.93 | BA92: 82 | BB92: 36 | BC92: LP | BD92: 68.3 | BE92: 4 | BF92: 88 | BG92: 33 | BH92: 86 | BI92: 3.66 | BJ92: 3.67 | BK92: 50 | BL92: 0.49 | BM92: -18 | BN92: R | BO92: -18 | BP92: pomerdr01 | BQ92: 519141 | BR92: Lefty Power Long Relief | BS92: Adam Conley | BT92: Travis Wood | BU92: Brandon Finnegan | BV92: Priced in-line with expectations.
A93: Lohse | B93: Kyle | C93: R | D93: 2016 | E93: 37 | F93: MIL | G93: NL | H93: LP | I93: 0.78 | J93: Y | K93: 117 | L93: 8 | M93: 26 | N93: 17 | O93: 1 | P93: 0 | Q93: 1 | R93: 2 | S93: 473 | T93: 16 | U93: 30 | V93: 1 | W93: 76 | X93: 337 | Y93: 137 | Z93: 42 | AA93: 3 | AB93: 4 | AC93: 0 | AD93: 68 | AE93: 4.68 | AF93: 113 | AG93: 9 | AH93: 2.5 | AI93: 6.1 | AJ93: 2.4 | AK93: 1.25 | AL93: 0.271 | AM93: 1.29 | AN93: 1.65 | AO93: 0.06 | AP93: 11 | AQ93: 121 | AR93: 31 | AS93: 15 | AT93: 20.36 | AU93: 117 | AV93: 41 | AW93: -0.27 | AX93: LP | AY93: 92.4 | AZ93: 4.38 | BA93: 91 | BB93: 30 | BC93: LP | BD93: 77.7 | BE93: 4.41 | BF93: 97 | BG93: 26 | BH93: 152.3 | BI93: 5.85 | BJ93: 4.92 | BK93: 30 | BL93: -1.17 | BM93: 1 | BN93: R | BO93: -75 | BP93: lohseky01 | BQ93: 346798 | BR93: Aging Super Control Top Starter | BS93: Bronson Arroyo | BT93: Bartolo Colon | BU93: Jered Weaver | BV93: Should perform close to forecast. Priced in-line with expectations. Trade bait?
A94: Villanueva | B94: Carlos | C94: R | D94: 2016 | E94: 32 | F94: SDN | G94: NL | H94: LP | I94: 0.61 | J94: Y | K94: 55.5 | L94: 3 | M94: 32 | N94: 4 | O94: 0 | P94: 0 | Q94: 1 | R94: 10 | S94: 256 | T94: 6 | U94: 20 | V94: 2 | W94: 51 | X94: 182 | Y94: 56 | Z94: 36 | AA94: 2 | AB94: 2 | AC94: 0 | AD94: 26 | AE94: 3.99 | AF94: 49 | AG94: 7.2 | AH94: 2.6 | AI94: 7.5 | AJ94: 2.9 | AK94: 0.89 | AL94: 0.287 | AM94: 1.28 | AN94: 1.31 | AO94: 0.05 | AP94: 46 | AQ94: 103 | AR94: 31 | AS94: 7 | AT94: 6.83 | AU94: 121 | AV94: 43 | AW94: -0.07 | AX94: LP | AY94: 57.7 | AZ94: 3.77 | BA94: 78 | BB94: 37 | BC94: LP | BD94: 57.5 | BE94: 3.92 | BF94: 86 | BG94: 33 | BH94: 61 | BI94: 2.95 | BJ94: 3.68 | BK94: 42 | BL94: 1.04 | BM94: -11 | BN94: R | BO94: -4 | BP94: villaca01 | BQ94: 453646 | BR94: Righty Control RP | BS94: Pat Neshek | BT94: Koji Uehara | BU94: Ryan Madson | BV94: Priced in-line with expectations. Trade bait?
A95: Phelps | B95: David | C95: R | D95: 2016 | E95: 29 | F95: MIA | G95: NL | H95: LP | I95: 0.68 | J95: Y | K95: 102.4 | L95: 6 | M95: 30 | N95: 13 | O95: 0 | P95: 0 | Q95: 0 | R95: 4 | S95: 394 | T95: 10 | U95: 32 | V95: 1 | W95: 71 | X95: 274 | Y95: 116 | Z95: 41 | AA95: 3 | AB95: 5 | AC95: 0 | AD95: 59 | AE95: 4.53 | AF95: 104 | AG95: 10.2 | AH95: 2.3 | AI95: 7.1 | AJ95: 3.1 | AK95: 0.94 | AL95: 0.282 | AM95: 1.36 | AN95: 1.39 | AO95: 0.05 | AP95: 27 | AQ95: 117 | AR95: 31 | AS95: 11 | AT95: 15.74 | AU95: 122 | AV95: 44 | AW95: -0.42 | AX95: LP | AY95: 82.1 | AZ95: 4.11 | BA95: 85 | BB95: 34 | BC95: LP | BD95: 72.1 | BE95: 4.11 | BF95: 90 | BG95: 31 | BH95: 112 | BI95: 4.5 | BJ95: 4.07 | BK95: 42 | BL95: 0.03 | BM95: -11 | BN95: R | BO95: -40 | BP95: phelpda01 | BQ95: 475479 | BR95: Righty Control Starter | BS95: Yovani Gallardo | BT95: Kyle Gibson | BU95: Tom Koehler | BV95: Approaching his prime years. Priced in-line with expectations. Trade bait?
A96: Avilan | B96: Luis | C96: L | D96: 2016 | E96: 26 | F96: LAN | G96: NL | H96: LP | I96: 0.51 | J96: Y | K96: 55.3 | L96: 3 | M96: 53 | N96: 3 | O96: 0 | P96: 0 | Q96: 0 | R96: 8 | S96: 243 | T96: 5 | U96: 20 | V96: 3 | W96: 47 | X96: 173 | Y96: 48 | Z96: 35 | AA96: 3 | AB96: 2 | AC96: 0 | AD96: 23 | AE96: 3.92 | AF96: 43 | AG96: 6.9 | AH96: 2.3 | AI96: 7.4 | AJ96: 3.2 | AK96: 0.84 | AL96: 0.288 | AM96: 1.3 | AN96: 1.29 | AO96: 0.04 | AP96: 41 | AQ96: 101 | AR96: 31 | AS96: 6 | AT96: 4.83 | AU96: 123 | AV96: 45 | AW96: 0.08 | AX96: LP | AY96: 56.8 | AZ96: 3.92 | BA96: 81 | BB96: 32 | BC96: LP | BD96: 57.6 | BE96: 4 | BF96: 88 | BG96: 31 | BH96: 53.3 | BI96: 4.05 | BJ96: 3.6 | BK96: 42 | BL96: -0.13 | BM96: -12 | BN96: R | BO96: 4 | BP96: avilalu01 | BQ96: 501593 | BR96: Lefty RP | BS96: Jose Alvarez | BT96: Christian Friedrich | BU96: Dan Jennings | BV96: Priced in-line with expectations.
A97: Hudson | B97: Daniel | C97: R | D97: 2016 | E97: 29 | F97: ARI | G97: NL | H97: LP | I97: 0.45 | J97: Y | K97: 53.3 | L97: 3 | M97: 42 | N97: 4 | O97: 0 | P97: 0 | Q97: 2 | R97: 8 | S97: 249 | T97: 6 | U97: 20 | V97: 2 | W97: 53 | X97: 174 | Y97: 52 | Z97: 36 | AA97: 3 | AB97: 1 | AC97: 0 | AD97: 27 | AE97: 3.95 | AF97: 45 | AG97: 6.9 | AH97: 2.7 | AI97: 8.3 | AJ97: 3.1 | AK97: 0.97 | AL97: 0.298 | AM97: 1.31 | AN97: 1.42 | AO97: 0.05 | AP97: 63 | AQ97: 102 | AR97: 31 | AS97: 7 | AT97: 6.03 | AU97: 124 | AV97: 46 | AW97: -0.05 | AX97: LP | AY97: 57.9 | AZ97: 3.82 | BA97: 79 | BB97: 36 | BC97: LP | BD97: 58.3 | BE97: 3.9 | BF97: 86 | BG97: 33 | BH97: 67.7 | BI97: 3.86 | BJ97: 3.42 | BK97: 56 | BL97: 0.09 | BM97: -25 | BN97: R | BO97: -9 | BP97: hudsoda01 | BQ97: 543339 | BR97: Righty Power RP | BS97: Pedro Baez | BT97: Josh Fields | BU97: Shawn Kelley | BV97: Approaching his prime years. Priced in-line with expectations. Trade bait?
A98: Hale | B98: David | C98: R | D98: 2016 | E98: 28 | F98: COL | G98: NL | H98: LP | I98: 0.58 | J98: Y | K98: 86.8 | L98: 5 | M98: 30 | N98: 8 | O98: 0 | P98: 0 | Q98: 0 | R98: 6 | S98: 317 | T98: 9 | U98: 25 | V98: 3 | W98: 54 | X98: 219 | Y98: 102 | Z98: 39 | AA98: 7 | AB98: 3 | AC98: 0 | AD98: 52 | AE98: 4.38 | AF98: 91 | AG98: 11.1 | AH98: 2.2 | AI98: 6.7 | AJ98: 3 | AK98: 1.06 | AL98: 0.285 | AM98: 1.39 | AN98: 1.51 | AO98: 0.05 | AP98: 21 | AQ98: 113 | AR98: 30 | AS98: 10 | AT98: 11.45 | AU98: 126 | AV98: 48 | AW98: -0.18 | AX98: LP | AY98: 70.9 | AZ98: 4.2 | BA98: 87 | BB98: 29 | BC98: LP | BD98: 65 | BE98: 4.21 | BF98: 92 | BG98: 27 | BH98: 78.3 | BI98: 6.09 | BJ98: 4.52 | BK98: 24 | BL98: -1.71 | BM98: 6 | BN98: R | BO98: -13 | BP98: haleda02 | BQ98: 571735 | BR98: Righty Soft Tosser Swing Starter | BS98: Odrisamer Despaigne | BT98: Nick Martinez | BU98: Chad Bettis | BV98: Priced in-line with expectations.
A99: Velasquez | B99: Vincent | C99: R | D99: 2016 | E99: 24 | F99: PHI | G99: NL | H99: LP | I99: 0.53 | J99: Y | K99: 72.8 | L99: 3 | M99: 24 | N99: 6 | O99: 0 | P99: 0 | Q99: 0 | R99: 5 | S99: 245 | T99: 6 | U99: 21 | V99: 1 | W99: 57 | X99: 175 | Y99: 60 | Z99: 37 | AA99: 3 | AB99: 2 | AC99: 0 | AD99: 32 | AE99: 4.06 | AF99: 54 | AG99: 8.5 | AH99: 2.7 | AI99: 9 | AJ99: 3.3 | AK99: 0.96 | AL99: 0.29 | AM99: 1.32 | AN99: 1.43 | AO99: 0.06 | AP99: 81 | AQ99: 105 | AR99: 30 | AS99: 9 | AT99: 7.51 | AU99: 128 | AV99: 50 | AW99: -0.13 | AX99: LP | AY99: 62 | AZ99: 3.85 | BA99: 80 | BB99: 36 | BC99: LP | BD99: 61.4 | BE99: 3.93 | BF99: 86 | BG99: 33 | BH99: 55.7 | BI99: 4.37 | BJ99: 3.5 | BK99: 48 | BL99: -0.31 | BM99: -17 | BN99: R | BO99: 6 | BP99: velasvi01 | BQ99: 592826 | BR99: Young Power Swing Starter | BS99: Randall Delgado | BT99: Keone Kela | BU99: Jose Fernandez | BV99: Priced in-line with expectations.
A100: Vogelsong | B100: Ryan | C100: R | D100: 2016 | E100: 38 | F100: PIT | G100: NL | H100: LP | I100: 0.75 | J100: Y | K100: 113.1 | L100: 7 | M100: 27 | N100: 17 | O100: 0 | P100: 0 | Q100: 0 | R100: 3 | S100: 440 | T100: 12 | U100: 38 | V100: 2 | W100: 75 | X100: 306 | Y100: 124 | Z100: 42 | AA100: 2 | AB100: 5 | AC100: 0 | AD100: 64 | AE100: 4.65 | AF100: 113 | AG100: 9.9 | AH100: 2 | AI100: 6.6 | AJ100: 3.3 | AK100: 1.01 | AL100: 0.274 | AM100: 1.37 | AN100: 1.49 | AO100: 0.05 | AP100: 15 | AQ100: 120 | AR100: 30 | AS100: 14 | AT100: 17.38 | AU100: 127 | AV100: 49 | AW100: -0.4 | AX100: LP | AY100: 87.5 | AZ100: 4.19 | BA100: 87 | BB100: 33 | BC100: LP | BD100: 73.8 | BE100: 4.25 | BF100: 93 | BG100: 28 | BH100: 135 | BI100: 4.67 | BJ100: 4.45 | BK100: 36 | BL100: -0.02 | BM100: -6 | BN100: R | BO100: -61 | BP100: vogelry01 | BQ100: 285064 | BR100: Aging Soft Tosser Starter | BS100: Chris Young | BT100: Aaron Harang | BU100: Tim Hudson | BV100: Should perform close to forecast. Priced in-line with expectations. Trade bait?
A101: Lamb | B101: John | C101: L | D101: 2016 | E101: 25 | F101: CIN | G101: NL | H101: LP | I101: 0.5 | J101: Y | K101: 66.9 | L101: 4 | M101: 18 | N101: 8 | O101: 0 | P101: 0 | Q101: 0 | R101: 2 | S101: 226 | T101: 7 | U101: 19 | V101: 1 | W101: 53 | X101: 156 | Y101: 82 | Z101: 38 | AA101: 2 | AB101: 3 | AC101: 0 | AD101: 43 | AE101: 4.19 | AF101: 72 | AG101: 12.5 | AH101: 2.8 | AI101: 9.3 | AJ101: 3.2 | AK101: 1.27 | AL101: 0.299 | AM101: 1.44 | AN101: 1.77 | AO101: 0.08 | AP101: 82 | AQ101: 108 | AR101: 30 | AS101: 10 | AT101: 8.4 | AU101: 129 | AV101: 51 | AW101: -0.05 | AX101: LP | AY101: 57.2 | AZ101: 4.12 | BA101: 86 | BB101: 27 | BC101: LP | BD101: 56.5 | BE101: 4.14 | BF101: 91 | BG101: 27 | BH101: 49.7 | BI101: 5.8 | BJ101: 4.07 | BK101: 27 | BL101: -1.61 | BM101: 4 | BN101: R | BO101: 7 | BP101: lambjo02 | BQ101: 543424 | BR101: Young Lefty Serious Heat Swing Starter | BS101: Brandon Finnegan | BT101: Adam Conley | BU101: Steven Matz | BV101: Priced in-line with expectations.
A102: Bettis | B102: Chad | C102: R | D102: 2016 | E102: 27 | F102: COL | G102: NL | H102: LP | I102: 0.59 | J102: Y | K102: 97.3 | L102: 6 | M102: 34 | N102: 11 | O102: 0 | P102: 0 | Q102: 0 | R102: 6 | S102: 381 | T102: 10 | U102: 32 | V102: 2 | W102: 71 | X102: 260 | Y102: 118 | Z102: 41 | AA102: 6 | AB102: 4 | AC102: 0 | AD102: 59 | AE102: 4.54 | AF102: 106 | AG102: 10.9 | AH102: 2.2 | AI102: 7.4 | AJ102: 3.3 | AK102: 0.98 | AL102: 0.293 | AM102: 1.43 | AN102: 1.46 | AO102: 0.05 | AP102: 31 | AQ102: 117 | AR102: 30 | AS102: 10 | AT102: 13.95 | AU102: 131 | AV102: 52 | AW102: -0.5 | AX102: LP | AY102: 81.6 | AZ102: 4.04 | BA102: 84 | BB102: 36 | BC102: LP | BD102: 72.4 | BE102: 4.04 | BF102: 89 | BG102: 33 | BH102: 115 | BI102: 4.23 | BJ102: 3.82 | BK102: 51 | BL102: 0.31 | BM102: -21 | BN102: R | BO102: -43 | BP102: bettich01 | BQ102: 518452 | BR102: Righty Swing Starter | BS102: Alex Colome | BT102: Chris Bassitt | BU102: Jimmy Nelson | BV102: Priced in-line with expectations.
A103: Treinen | B103: Blake | C103: R | D103: 2016 | E103: 28 | F103: WAS | G103: NL | H103: LP | I103: 0.55 | J103: Y | K103: 61.1 | L103: 4 | M103: 39 | N103: 5 | O103: 0 | P103: 0 | Q103: 0 | R103: 10 | S103: 269 | T103: 5 | U103: 24 | V103: 3 | W103: 54 | X103: 192 | Y103: 59 | Z103: 37 | AA103: 3 | AB103: 2 | AC103: 0 | AD103: 27 | AE103: 4.06 | AF103: 56 | AG103: 8 | AH103: 2.3 | AI103: 7.7 | AJ103: 3.4 | AK103: 0.68 | AL103: 0.302 | AM103: 1.36 | AN103: 1.13 | AO103: 0.04 | AP103: 47 | AQ103: 105 | AR103: 29 | AS103: 7 | AT103: 5.9 | AU103: 134 | AV103: 54 | AW103: -0.23 | AX103: LP | AY103: 60.4 | AZ103: 3.71 | BA103: 77 | BB103: 40 | BC103: LP | BD103: 59.6 | BE103: 3.83 | BF103: 84 | BG103: 36 | BH103: 67.7 | BI103: 3.86 | BJ103: 3.32 | BK103: 62 | BL103: 0.21 | BM103: -33 | BN103: R | BO103: -8 | BP103: treinbl01 | BQ103: 595014 | BR103: Righty Long Relief | BS103: Miguel Socolovich | BT103: Sam Dyson | BU103: Kevin Jepsen | BV103: Priced in-line with expectations.
A104: Peralta | B104: Wily | C104: R | D104: 2016 | E104: 27 | F104: MIL | G104: NL | H104: LP | I104: 0.75 | J104: Y | K104: 115.8 | L104: 7 | M104: 20 | N104: 16 | O104: 0 | P104: 0 | Q104: 0 | R104: 1 | S104: 435 | T104: 12 | U104: 34 | V104: 1 | W104: 74 | X104: 304 | Y104: 131 | Z104: 42 | AA104: 5 | AB104: 5 | AC104: 0 | AD104: 62 | AE104: 4.72 | AF104: 119 | AG104: 10.6 | AH104: 2.2 | AI104: 6.6 | AJ104: 3 | AK104: 1.05 | AL104: 0.285 | AM104: 1.39 | AN104: 1.5 | AO104: 0.05 | AP104: 17 | AQ104: 122 | AR104: 29 | AS104: 15 | AT104: 16.58 | AU104: 136 | AV104: 55 | AW104: -0.43 | AX104: LP | AY104: 88 | AZ104: 4.27 | BA104: 89 | BB104: 31 | BC104: LP | BD104: 76 | BE104: 4.29 | BF104: 94 | BG104: 28 | BH104: 108.7 | BI104: 4.72 | BJ104: 4.78 | BK104: 25 | BL104: 0 | BM104: 4 | BN104: R | BO104: -33 | BP104: peralwi01 | BQ104: 503449 | BR104: Righty Control Starter | BS104: Chris Tillman | BT104: Kyle Gibson | BU104: Matt Garza | BV104: Should perform close to forecast. Priced in-line with expectations.
A105: Gray | B105: Jon | C105: R | D105: 2016 | E105: 24 | F105: COL | G105: NL | H105: LP | I105: 0.45 | J105: Y | K105: 68.6 | L105: 4 | M105: 18 | N105: 7 | O105: 0 | P105: 0 | Q105: 0 | R105: 2 | S105: 211 | T105: 5 | U105: 16 | V105: 2 | W105: 44 | X105: 144 | Y105: 81 | Z105: 38 | AA105: 4 | AB105: 3 | AC105: 0 | AD105: 40 | AE105: 4.22 | AF105: 72 | AG105: 13.4 | AH105: 2.7 | AI105: 8.4 | AJ105: 3 | AK105: 0.99 | AL105: 0.303 | AM105: 1.45 | AN105: 1.43 | AO105: 0.06 | AP105: 63 | AQ105: 109 | AR105: 29 | AS105: 10 | AT105: 7.17 | AU105: 137 | AV105: 56 | AW105: -0.25 | AX105: LP | AY105: 55.8 | AZ105: 3.9 | BA105: 81 | BB105: 33 | BC105: LP | BD105: 55.5 | BE105: 3.97 | BF105: 87 | BG105: 31 | BH105: 40.7 | BI105: 5.53 | BJ105: 3.49 | BK105: 42 | BL105: -1.31 | BM105: -13 | BN105: R | BO105: 15 | BP105: grayjo02 | BQ105: 592351 | BR105: Young Power Swing Starter | BS105: Raisel Iglesias | BT105: Lance McCullers | BU105: Tony Zych | BV105: Priced in-line with expectations.
A106: Broxton | B106: Jonathan | C106: R | D106: 2016 | E106: 32 | F106: SLN | G106: NL | H106: LP | I106: 0.52 | J106: Y | K106: 50.3 | L106: 3 | M106: 55 | N106: 2 | O106: 0 | P106: 0 | Q106: 4 | R106: 16 | S106: 244 | T106: 6 | U106: 20 | V106: 1 | W106: 53 | X106: 176 | Y106: 48 | Z106: 36 | AA106: 1 | AB106: 1 | AC106: 0 | AD106: 23 | AE106: 4.02 | AF106: 44 | AG106: 6.8 | AH106: 2.6 | AI106: 8 | AJ106: 3.1 | AK106: 0.89 | AL106: 0.284 | AM106: 1.25 | AN106: 1.34 | AO106: 0.05 | AP106: 56 | AQ106: 104 | AR106: 29 | AS106: 6 | AT106: 7.23 | AU106: 138 | AV106: 57 | AW106: -0.13 | AX106: LP | AY106: 55.2 | AZ106: 3.74 | BA106: 78 | BB106: 38 | BC106: LP | BD106: 56.5 | BE106: 3.9 | BF106: 85 | BG106: 33 | BH106: 60.3 | BI106: 4.62 | BJ106: 3.59 | BK106: 45 | BL106: -0.6 | BM106: -16 | BN106: R | BO106: -4 | BP106: broxtjo01 | BQ106: 455009 | BR106: Righty Power RP | BS106: Carlos Villanueva | BT106: Luke Hochevar | BU106: Joaquin Benoit | BV106: Role player, not a keeper. Trade bait?
A107: Torres | B107: Carlos | C107: R | D107: 2016 | E107: 33 | F107: NYN | G107: NL | H107: LP | I107: 0.6 | J107: Y | K107: 52.2 | L107: 3 | M107: 42 | N107: 3 | O107: 0 | P107: 0 | Q107: 0 | R107: 11 | S107: 254 | T107: 7 | U107: 20 | V107: 3 | W107: 51 | X107: 181 | Y107: 54 | Z107: 37 | AA107: 3 | AB107: 1 | AC107: 0 | AD107: 25 | AE107: 4.06 | AF107: 48 | AG107: 7.1 | AH107: 2.5 | AI107: 7.6 | AJ107: 3 | AK107: 1 | AL107: 0.29 | AM107: 1.3 | AN107: 1.44 | AO107: 0.05 | AP107: 43 | AQ107: 105 | AR107: 28 | AS107: 6 | AT107: 5.83 | AU107: 139 | AV107: 58 | AW107: -0.14 | AX107: LP | AY107: 56.3 | AZ107: 3.81 | BA107: 79 | BB107: 36 | BC107: LP | BD107: 57.1 | BE107: 3.91 | BF107: 86 | BG107: 33 | BH107: 57.7 | BI107: 4.68 | BJ107: 3.29 | BK107: 60 | BL107: -0.62 | BM107: -32 | BN107: R | BO107: -1 | BP107: torreca01 | BQ107: 448614 | BR107: Righty RP | BS107: Mark Lowe | BT107: Chad Qualls | BU107: Joaquin Benoit | BV107: Role player, not a keeper. Trade bait?
A108: Foltynewicz | B108: Michael | C108: R | D108: 2016 | E108: 24 | F108: ATL | G108: NL | H108: LP | I108: 0.54 | J108: Y | K108: 73.1 | L108: 5 | M108: 30 | N108: 9 | O108: 0 | P108: 0 | Q108: 0 | R108: 7 | S108: 334 | T108: 12 | U108: 26 | V108: 1 | W108: 66 | X108: 225 | Y108: 115 | Z108: 41 | AA108: 5 | AB108: 4 | AC108: 1 | AD108: 61 | AE108: 4.52 | AF108: 99 | AG108: 11.9 | AH108: 2.5 | AI108: 8 | AJ108: 3.1 | AK108: 1.45 | AL108: 0.306 | AM108: 1.5 | AN108: 1.95 | AO108: 0.08 | AP108: 37 | AQ108: 117 | AR108: 28 | AS108: 9 | AT108: 10.58 | AU108: 140 | AV108: 59 | AW108: -0.15 | AX108: LP | AY108: 71.8 | AZ108: 4.43 | BA108: 92 | BB108: 24 | BC108: LP | BD108: 68.9 | BE108: 4.38 | BF108: 96 | BG108: 25 | BH108: 86.7 | BI108: 5.71 | BJ108: 4.8 | BK108: 21 | BL108: -1.19 | BM108: 7 | BN108: R | BO108: -18 | BP108: foltymi01 | BQ108: 592314 | BR108: Young Power Swing Starter | BS108: Severino Gonzalez | BT108: Matt Barnes | BU108: J.R. Graham | BV108: Priced in-line with expectations.
A109: Howell | B109: J.P. | C109: L | D109: 2016 | E109: 33 | F109: LAN | G109: NL | H109: LP | I109: 0.49 | J109: Y | K109: 40.7 | L109: 3 | M109: 47 | N109: 3 | O109: 0 | P109: 0 | Q109: 0 | R109: 9 | S109: 207 | T109: 4 | U109: 18 | V109: 1 | W109: 41 | X109: 148 | Y109: 39 | Z109: 35 | AA109: 2 | AB109: 1 | AC109: 0 | AD109: 16 | AE109: 3.94 | AF109: 42 | AG109: 7.6 | AH109: 2.2 | AI109: 7.6 | AJ109: 3.4 | AK109: 0.72 | AL109: 0.286 | AM109: 1.28 | AN109: 1.17 | AO109: 0.04 | AP109: 46 | AQ109: 102 | AR109: 28 | AS109: 5 | AT109: 3.73 | AU109: 142 | AV109: 61 | AW109: 0.01 | AX109: LP | AY109: 48.8 | AZ109: 3.83 | BA109: 80 | BB109: 33 | BC109: LP | BD109: 52.2 | BE109: 3.96 | BF109: 87 | BG109: 30 | BH109: 44 | BI109: 1.43 | BJ109: 3.4 | BK109: 48 | BL109: 2.51 | BM109: -20 | BN109: O | BO109: 8 | BP109: howeljp01 | BQ109: 434442 | BR109: Lefty RP | BS109: Manny Parra | BT109: Joe Thatcher | BU109: Jerry Blevins | BV109: Role player, not a keeper. Could fetch value in trade.
A110: Verrett | B110: Logan | C110: R | D110: 2016 | E110: 26 | F110: NYN | G110: NL | H110: LP | I110: 0.49 | J110: Y | K110: 55.4 | L110: 3 | M110: 22 | N110: 5 | O110: 0 | P110: 0 | Q110: 1 | R110: 4 | S110: 207 | T110: 6 | U110: 16 | V110: 3 | W110: 42 | X110: 151 | Y110: 44 | Z110: 36 | AA110: 2 | AB110: 2 | AC110: 0 | AD110: 24 | AE110: 4.04 | AF110: 39 | AG110: 7.2 | AH110: 2.6 | AI110: 7.8 | AJ110: 3 | AK110: 1.12 | AL110: 0.257 | AM110: 1.2 | AN110: 1.58 | AO110: 0.06 | AP110: 46 | AQ110: 104 | AR110: 28 | AS110: 7 | AT110: 5.66 | AU110: 143 | AV110: 62 | AW110: 0.04 | AX110: LP | AY110: 52.6 | AZ110: 4.04 | BA110: 84 | BB110: 28 | BC110: LP | BD110: 53.8 | BE110: 4.08 | BF110: 89 | BG110: 28 | BH110: 47.7 | BI110: 3.59 | BJ110: 3.97 | BK110: 28 | BL110: 0.45 | BM110: -1 | BN110: R | BO110: 6 | BP110: verrelo01 | BQ110: 548337 | BR110: Righty Power RP | BS110: Yimi Garcia | BT110: Aaron Nola | BU110: Noah Syndergaard | BV110: Priced in-line with expectations.
A111: Wisler | B111: Matt | C111: R | D111: 2016 | E111: 23 | F111: ATL | G111: NL | H111: LP | I111: 0.69 | J111: Y | K111: 94.6 | L111: 6 | M111: 24 | N111: 12 | O111: 0 | P111: 0 | Q111: 0 | R111: 2 | S111: 375 | T111: 12 | U111: 31 | V111: 3 | W111: 64 | X111: 259 | Y111: 118 | Z111: 42 | AA111: 3 | AB111: 4 | AC111: 2 | AD111: 58 | AE111: 4.65 | AF111: 106 | AG111: 11.2 | AH111: 2 | AI111: 6.8 | AJ111: 3.3 | AK111: 1.29 | AL111: 0.285 | AM111: 1.44 | AN111: 1.8 | AO111: 0.07 | AP111: 15 | AQ111: 120 | AR111: 28 | AS111: 11 | AT111: 12.88 | AU111: 144 | AV111: 63 | AW111: -0.23 | AX111: LP | AY111: 80.4 | AZ111: 4.48 | BA111: 93 | BB111: 25 | BC111: LP | BD111: 73 | BE111: 4.42 | BF111: 97 | BG111: 25 | BH111: 109 | BI111: 4.71 | BJ111: 4.78 | BK111: 25 | BL111: -0.06 | BM111: 2 | BN111: R | BO111: -36 | BP111: wislema01 | BQ111: 605538 | BR111: Young Soft Tosser Swing Starter | BS111: Ryan Weber | BT111: Jon Moscot | BU111: Kendall Graveman | BV111: Priced in-line with expectations.
A112: Hand | B112: Brad | C112: L | D112: 2016 | E112: 26 | F112: MIA | G112: NL | H112: LP | I112: 0.64 | J112: Y | K112: 96.7 | L112: 5 | M112: 35 | N112: 10 | O112: 0 | P112: 0 | Q112: 0 | R112: 6 | S112: 369 | T112: 9 | U112: 30 | V112: 2 | W112: 64 | X112: 258 | Y112: 99 | Z112: 41 | AA112: 3 | AB112: 3 | AC112: 0 | AD112: 50 | AE112: 4.52 | AF112: 86 | AG112: 9.1 | AH112: 2.1 | AI112: 6.8 | AJ112: 3.2 | AK112: 0.92 | AL112: 0.291 | AM112: 1.4 | AN112: 1.37 | AO112: 0.05 | AP112: 21 | AQ112: 117 | AR112: 27 | AS112: 8 | AT112: 11.14 | AU112: 145 | AV112: 64 | AW112: -0.38 | AX112: LP | AY112: 78.3 | AZ112: 4.13 | BA112: 86 | BB112: 32 | BC112: LP | BD112: 70.4 | BE112: 4.15 | BF112: 91 | BG112: 30 | BH112: 93.3 | BI112: 5.3 | BJ112: 4.13 | BK112: 36 | BL112: -0.78 | BM112: -9 | BN112: R | BO112: -23 | BP112: handbr01 | BQ112: 543272 | BR112: Lefty Soft Tosser Swing Starter | BS112: Kyle Lobstein | BT112: Felix Doubront | BU112: James Paxton | BV112: Priced in-line with expectations.
A113: Blazek | B113: Michael | C113: R | D113: 2016 | E113: 27 | F113: MIL | G113: NL | H113: LP | I113: 0.48 | J113: Y | K113: 50 | L113: 3 | M113: 36 | N113: 3 | O113: 0 | P113: 0 | Q113: 0 | R113: 11 | S113: 223 | T113: 5 | U113: 19 | V113: 1 | W113: 45 | X113: 161 | Y113: 42 | Z113: 36 | AA113: 2 | AB113: 1 | AC113: 0 | AD113: 20 | AE113: 4.04 | AF113: 40 | AG113: 6.8 | AH113: 2.4 | AI113: 7.8 | AJ113: 3.2 | AK113: 0.84 | AL113: 0.275 | AM113: 1.24 | AN113: 1.3 | AO113: 0.05 | AP113: 48 | AQ113: 104 | AR113: 27 | AS113: 5 | AT113: 4.47 | AU113: 149 | AV113: 65 | AW113: -0.12 | AX113: LP | AY113: 53.7 | AZ113: 3.81 | BA113: 79 | BB113: 35 | BC113: LP | BD113: 55.2 | BE113: 3.91 | BF113: 86 | BG113: 32 | BH113: 55.7 | BI113: 2.43 | BJ113: 3.23 | BK113: 63 | BL113: 1.61 | BM113: -36 | BN113: R | BO113: 0 | BP113: blazemi01 | BQ113: 518468 | BR113: Righty Power RP | BS113: Kevin Quackenbush | BT113: Kenneth Giles | BU113: Addison Reed | BV113: Priced in-line with expectations.
A114: Hudson | B114: Tim | C114: R | D114: 2016 | E114: 40 | F114: SFN | G114: NL | H114: LP | I114: 0.75 | J114: Y | K114: 112 | L114: 7 | M114: 21 | N114: 16 | O114: 0 | P114: 0 | Q114: 0 | R114: 1 | S114: 400 | T114: 9 | U114: 26 | V114: 2 | W114: 57 | X114: 286 | Y114: 119 | Z114: 43 | AA114: 3 | AB114: 5 | AC114: 0 | AD114: 54 | AE114: 4.78 | AF114: 103 | AG114: 9.7 | AH114: 2.2 | AI114: 5.4 | AJ114: 2.4 | AK114: 0.83 | AL114: 0.272 | AM114: 1.29 | AN114: 1.2 | AO114: 0.04 | AP114: 6 | AQ114: 123 | AR114: 27 | AS114: 13 | AT114: 16.22 | AU114: 150 | AV114: 66 | AW114: -0.59 | AX114: LP | AY114: 82.7 | AZ114: 4.1 | BA114: 85 | BB114: 34 | BC114: LP | BD114: 69.3 | BE114: 4.19 | BF114: 92 | BG114: 29 | BH114: 123.7 | BI114: 4.44 | BJ114: 4.59 | BK114: 31 | BL114: 0.34 | BM114: -5 | BN114: R | BO114: -54 | BP114: hudsoti01 | BQ114: 218596 | BR114: Aging Super Control Starter | BS114: Aaron Harang | BT114: Ryan Vogelsong | BU114: Jeremy Guthrie | BV114: Should perform close to forecast. Role player, not a keeper. Trade bait?
A115: Dunn | B115: Michael | C115: L | D115: 2016 | E115: 31 | F115: MIA | G115: NL | H115: LP | I115: 0.53 | J115: Y | K115: 48.5 | L115: 3 | M115: 52 | N115: 3 | O115: 0 | P115: 0 | Q115: 1 | R115: 9 | S115: 239 | T115: 5 | U115: 23 | V115: 2 | W115: 55 | X115: 167 | Y115: 45 | Z115: 37 | AA115: 2 | AB115: 2 | AC115: 0 | AD115: 23 | AE115: 4.07 | AF115: 44 | AG115: 7 | AH115: 2.4 | AI115: 8.9 | AJ115: 3.7 | AK115: 0.88 | AL115: 0.293 | AM115: 1.3 | AN115: 1.39 | AO115: 0.05 | AP115: 74 | AQ115: 105 | AR115: 27 | AS115: 5 | AT115: 5.2 | AU115: 151 | AV115: 67 | AW115: -0.08 | AX115: LP | AY115: 54.1 | AZ115: 3.86 | BA115: 80 | BB115: 33 | BC115: LP | BD115: 55.7 | BE115: 3.99 | BF115: 87 | BG115: 30 | BH115: 54 | BI115: 4.5 | BJ115: 3.86 | BK115: 33 | BL115: -0.43 | BM115: -7 | BN115: R | BO115: 2 | BP115: dunnmi01 | BQ115: 445197 | BR115: Lefty Power RP | BS115: Zach Duke | BT115: Jake Diekman | BU115: Adam Liberatore | BV115: In prime. Role player, not a keeper. Trade bait?
A116: Maurer | B116: Brandon | C116: R | D116: 2016 | E116: 25 | F116: SDN | G116: NL | H116: LP | I116: 0.56 | J116: Y | K116: 63.4 | L116: 3 | M116: 35 | N116: 5 | O116: 0 | P116: 0 | Q116: 0 | R116: 6 | S116: 256 | T116: 6 | U116: 19 | V116: 1 | W116: 50 | X116: 181 | Y116: 56 | Z116: 37 | AA116: 3 | AB116: 2 | AC116: 0 | AD116: 29 | AE116: 4.15 | AF116: 47 | AG116: 7.1 | AH116: 2.6 | AI116: 7.5 | AJ116: 2.9 | AK116: 0.94 | AL116: 0.294 | AM116: 1.31 | AN116: 1.36 | AO116: 0.05 | AP116: 43 | AQ116: 107 | AR116: 26 | AS116: 6 | AT116: 5.49 | AU116: 152 | AV116: 68 | AW116: -0.23 | AX116: LP | AY116: 59.6 | AZ116: 3.81 | BA116: 79 | BB116: 37 | BC116: LP | BD116: 59.2 | BE116: 3.93 | BF116: 86 | BG116: 33 | BH116: 51 | BI116: 3 | BJ116: 3.37 | BK116: 53 | BL116: 1.15 | BM116: -26 | BN116: R | BO116: 8 | BP116: maurebr01 | BQ116: 543506 | BR116: Young Control Long Relief | BS116: Joe Ross | BT116: Trevor May | BU116: Aaron Nola | BV116: Priced in-line with expectations.
A117: Cosart | B117: Jarred | C117: R | D117: 2016 | E117: 26 | F117: MIA | G117: NL | H117: LP | I117: 0.68 | J117: Y | K117: 101.5 | L117: 6 | M117: 17 | N117: 13 | O117: 0 | P117: 0 | Q117: 0 | R117: 1 | S117: 341 | T117: 7 | U117: 33 | V117: 1 | W117: 58 | X117: 242 | Y117: 98 | Z117: 42 | AA117: 5 | AB117: 2 | AC117: 0 | AD117: 47 | AE117: 4.65 | AF117: 96 | AG117: 11 | AH117: 1.8 | AI117: 6.7 | AJ117: 3.7 | AK117: 0.82 | AL117: 0.267 | AM117: 1.37 | AN117: 1.33 | AO117: 0.04 | AP117: 15 | AQ117: 120 | AR117: 26 | AS117: 12 | AT117: 13.2 | AU117: 153 | AV117: 69 | AW117: -0.39 | AX117: LP | AY117: 74.1 | AZ117: 4.2 | BA117: 87 | BB117: 29 | BC117: LP | BD117: 66 | BE117: 4.26 | BF117: 93 | BG117: 26 | BH117: 69.7 | BI117: 4.52 | BJ117: 5.13 | BK117: 15 | BL117: 0.13 | BM117: 12 | BN117: R | BO117: -4 | BP117: cosarja01 | BQ117: 543054 | BR117: Righty Soft Tosser Starter | BS117: Tyler Chatwood | BT117: Tom Koehler | BU117: Joe Kelly | BV117: Priced in-line with expectations.
A118: Knebel | B118: Corey | C118: R | D118: 2016 | E118: 24 | F118: MIL | G118: NL | H118: LP | I118: 0.4 | J118: Y | K118: 55.4 | L118: 3 | M118: 37 | N118: 3 | O118: 0 | P118: 0 | Q118: 0 | R118: 10 | S118: 230 | T118: 7 | U118: 19 | V118: 1 | W118: 54 | X118: 163 | Y118: 47 | Z118: 37 | AA118: 2 | AB118: 2 | AC118: 0 | AD118: 23 | AE118: 4.07 | AF118: 42 | AG118: 7 | AH118: 2.9 | AI118: 9.1 | AJ118: 3.2 | AK118: 1.19 | AL118: 0.307 | AM118: 1.33 | AN118: 1.68 | AO118: 0.07 | AP118: 82 | AQ118: 105 | AR118: 26 | AS118: 5 | AT118: 4.37 | AU118: 154 | AV118: 70 | AW118: -0.04 | AX118: LP | AY118: 56.1 | AZ118: 3.97 | BA118: 82 | BB118: 31 | BC118: LP | BD118: 57.5 | BE118: 4.03 | BF118: 88 | BG118: 30 | BH118: 50.3 | BI118: 3.22 | BJ118: 3.88 | BK118: 32 | BL118: 0.85 | BM118: -5 | BN118: R | BO118: 7 | BP118: knebeco01 | BQ118: 608349 | BR118: Young Power RP | BS118: Hansel Robles | BT118: Yimi Garcia | BU118: Vincent Velasquez | BV118: Priced in-line with expectations.
A119: Lincecum | B119: Tim | C119: R | D119: 2016 | E119: 32 | F119: SFN | G119: NL | H119: LP | I119: 0.71 | J119: Y | K119: 92.7 | L119: 6 | M119: 20 | N119: 12 | O119: 0 | P119: 0 | Q119: 0 | R119: 2 | S119: 325 | T119: 8 | U119: 31 | V119: 2 | W119: 63 | X119: 227 | Y119: 95 | Z119: 42 | AA119: 6 | AB119: 3 | AC119: 0 | AD119: 50 | AE119: 4.62 | AF119: 90 | AG119: 10.6 | AH119: 2.1 | AI119: 7.5 | AJ119: 3.6 | AK119: 0.96 | AL119: 0.273 | AM119: 1.37 | AN119: 1.47 | AO119: 0.05 | AP119: 30 | AQ119: 119 | AR119: 26 | AS119: 11 | AT119: 12.93 | AU119: 155 | AV119: 71 | AW119: -0.46 | AX119: LP | AY119: 71.2 | AZ119: 4.15 | BA119: 86 | BB119: 30 | BC119: LP | BD119: 63.7 | BE119: 4.15 | BF119: 91 | BG119: 28 | BH119: 76.3 | BI119: 4.13 | BJ119: 4.27 | BK119: 29 | BL119: 0.49 | BM119: -2 | BN119: R | BO119: -13 | BP119: linceti01 | BQ119: 453311 | BR119: Righty Starter | BS119: Edinson Volquez | BT119: A.J. Burnett | BU119: R.A. Dickey | BV119: Should perform close to forecast. Role player, not a keeper. Trade bait?
A120: Williams | B120: Jerome | C120: R | D120: 2016 | E120: 34 | F120: PHI | G120: NL | H120: LP | I120: 0.72 | J120: Y | K120: 92.9 | L120: 6 | M120: 33 | N120: 13 | O120: 0 | P120: 0 | Q120: 0 | R120: 7 | S120: 404 | T120: 13 | U120: 29 | V120: 2 | W120: 62 | X120: 276 | Y120: 129 | Z120: 43 | AA120: 4 | AB120: 5 | AC120: 0 | AD120: 66 | AE120: 4.82 | AF120: 109 | AG120: 10.5 | AH120: 2.1 | AI120: 6 | AJ120: 2.8 | AK120: 1.21 | AL120: 0.291 | AM120: 1.44 | AN120: 1.66 | AO120: 0.06 | AP120: 7 | AQ120: 124 | AR120: 26 | AS120: 7 | AT120: 13.06 | AU120: 157 | AV120: 72 | AW120: -0.37 | AX120: LP | AY120: 81.2 | AZ120: 4.47 | BA120: 93 | BB120: 26 | BC120: LP | BD120: 72.1 | BE120: 4.45 | BF120: 98 | BG120: 24 | BH120: 121 | BI120: 5.8 | BJ120: 4.99 | BK120: 24 | BL120: -0.98 | BM120: 2 | BN120: R | BO120: -49 | BP120: willije02 | BQ120: 425532 | BR120: Aging Control Swing Starter | BS120: Jeremy Guthrie | BT120: Kevin Correia | BU120: Fausto Carmona | BV120: Should perform close to forecast. Role player, not a keeper. Trade bait?
A121: Jackson | B121: Edwin | C121: R | D121: 2016 | E121: 32 | F121: MIA | G121: NL | H121: LP | I121: 0.68 | J121: Y | K121: 68.2 | L121: 4 | M121: 22 | N121: 9 | O121: 0 | P121: 0 | Q121: 0 | R121: 4 | S121: 277 | T121: 7 | U121: 24 | V121: 2 | W121: 51 | X121: 193 | Y121: 76 | Z121: 40 | AA121: 5 | AB121: 2 | AC121: 0 | AD121: 42 | AE121: 4.39 | AF121: 67 | AG121: 9.3 | AH121: 2.1 | AI121: 7.1 | AJ121: 3.3 | AK121: 0.91 | AL121: 0.287 | AM121: 1.39 | AN121: 1.38 | AO121: 0.05 | AP121: 27 | AQ121: 113 | AR121: 26 | AS121: 9 | AT121: 7.73 | AU121: 159 | AV121: 73 | AW121: -0.32 | AX121: LP | AY121: 60.9 | AZ121: 4.04 | BA121: 84 | BB121: 30 | BC121: LP | BD121: 58.5 | BE121: 4.07 | BF121: 89 | BG121: 29 | BH121: 55.7 | BI121: 3.07 | BJ121: 3.88 | BK121: 33 | BL121: 1.32 | BM121: -8 | BN121: R | BO121: 3 | BP121: jacksed01 | BQ121: 429719 | BR121: Righty Swing Starter | BS121: A.J. Burnett | BT121: Tim Hudson | BU121: Ryan Vogelsong | BV121: Role player, not a keeper. Trade bait?
A122: Perez | B122: Williams | C122: R | D122: 2016 | E122: 25 | F122: ATL | G122: NL | H122: LP | I122: 0.7 | J122: Y | K122: 93.3 | L122: 6 | M122: 25 | N122: 13 | O122: 1 | P122: 0 | Q122: 1 | R122: 3 | S122: 383 | T122: 10 | U122: 36 | V122: 2 | W122: 62 | X122: 264 | Y122: 121 | Z122: 43 | AA122: 4 | AB122: 7 | AC122: 1 | AD122: 61 | AE122: 4.78 | AF122: 112 | AG122: 11.7 | AH122: 1.7 | AI122: 6.5 | AJ122: 3.8 | AK122: 1.05 | AL122: 0.292 | AM122: 1.51 | AN122: 1.59 | AO122: 0.05 | AP122: 10 | AQ122: 123 | AR122: 25 | AS122: 9 | AT122: 11.56 | AU122: 160 | AV122: 74 | AW122: -0.31 | AX122: LP | AY122: 79.5 | AZ122: 4.54 | BA122: 94 | BB122: 24 | BC122: LP | BD122: 71.6 | BE122: 4.47 | BF122: 98 | BG122: 24 | BH122: 116.7 | BI122: 4.78 | BJ122: 4.87 | BK122: 25 | BL122: 0 | BM122: 0 | BN122: R | BO122: -45 | BP122: perezwi01 | BQ122: 554234 | BR122: Young Soft Tosser Starter | BS122: Nick Martinez | BT122: Eddie Butler | BU122: Donn Roach | BV122: Priced in-line with expectations.
A123: Lorenzen | B123: Michael | C123: R | D123: 2016 | E123: 24 | F123: CIN | G123: NL | H123: LP | I123: 0.69 | J123: Y | K123: 87.2 | L123: 6 | M123: 27 | N123: 13 | O123: 0 | P123: 0 | Q123: 0 | R123: 3 | S123: 389 | T123: 13 | U123: 40 | V123: 4 | W123: 69 | X123: 262 | Y123: 124 | Z123: 43 | AA123: 4 | AB123: 5 | AC123: 0 | AD123: 65 | AE123: 4.8 | AF123: 115 | AG123: 12 | AH123: 1.7 | AI123: 7.2 | AJ123: 4.2 | AK123: 1.35 | AL123: 0.295 | AM123: 1.58 | AN123: 1.97 | AO123: 0.07 | AP123: 13 | AQ123: 124 | AR123: 25 | AS123: 9 | AT123: 10.9 | AU123: 161 | AV123: 75 | AW123: -0.21 | AX123: LP | AY123: 79.9 | AZ123: 4.7 | BA123: 98 | BB123: 21 | BC123: LP | BD123: 73.4 | BE123: 4.6 | BF123: 101 | BG123: 22 | BH123: 113.3 | BI123: 5.4 | BJ123: 5.16 | BK123: 21 | BL123: -0.6 | BM123: 4 | BN123: R | BO123: -40 | BP123: lorenmi01 | BQ123: 547179 | BR123: Young Swing Starter | BS123: Daniel Corcino | BT123: Erik Johnson | BU123: Allen Webster | BV123: Priced in-line with expectations.
A124: Frias | B124: Carlos | C124: R | D124: 2016 | E124: 26 | F124: LAN | G124: NL | H124: LP | I124: 0.54 | J124: Y | K124: 87.3 | L124: 5 | M124: 24 | N124: 9 | O124: 0 | P124: 0 | Q124: 0 | R124: 5 | S124: 297 | T124: 8 | U124: 23 | V124: 1 | W124: 50 | X124: 208 | Y124: 99 | Z124: 41 | AA124: 4 | AB124: 3 | AC124: 0 | AD124: 49 | AE124: 4.61 | AF124: 88 | AG124: 11.5 | AH124: 2.2 | AI124: 6.7 | AJ124: 3 | AK124: 0.99 | AL124: 0.288 | AM124: 1.41 | AN124: 1.43 | AO124: 0.05 | AP124: 20 | AQ124: 119 | AR124: 25 | AS124: 8 | AT124: 10.05 | AU124: 162 | AV124: 76 | AW124: -0.42 | AX124: LP | AY124: 68.9 | AZ124: 4.18 | BA124: 87 | BB124: 29 | BC124: LP | BD124: 63.2 | BE124: 4.18 | BF124: 92 | BG124: 27 | BH124: 77.7 | BI124: 4.06 | BJ124: 4.37 | BK124: 27 | BL124: 0.55 | BM124: -1 | BN124: R | BO124: -14 | BP124: friasca01 | BQ124: 516910 | BR124: Righty Control Swing Starter | BS124: David Buchanan | BT124: Kendall Graveman | BU124: Odrisamer Despaigne | BV124: Priced in-line with expectations.
A125: Morgan | B125: Adam | C125: L | D125: 2016 | E125: 26 | F125: PHI | G125: NL | H125: LP | I125: 0.63 | J125: Y | K125: 83.6 | L125: 5 | M125: 21 | N125: 10 | O125: 0 | P125: 0 | Q125: 0 | R125: 2 | S125: 292 | T125: 10 | U125: 17 | V125: 1 | W125: 47 | X125: 208 | Y125: 95 | Z125: 41 | AA125: 3 | AB125: 4 | AC125: 1 | AD125: 48 | AE125: 4.6 | AF125: 79 | AG125: 10.5 | AH125: 2.7 | AI125: 6.4 | AJ125: 2.3 | AK125: 1.37 | AL125: 0.273 | AM125: 1.3 | AN125: 1.78 | AO125: 0.07 | AP125: 15 | AQ125: 119 | AR125: 25 | AS125: 9 | AT125: 11.19 | AU125: 163 | AV125: 77 | AW125: -0.16 | AX125: LP | AY125: 67.4 | AZ125: 4.51 | BA125: 94 | BB125: 22 | BC125: LP | BD125: 62.3 | BE125: 4.44 | BF125: 97 | BG125: 22 | BH125: 84.3 | BI125: 4.48 | BJ125: 4.9 | BK125: 20 | BL125: 0.12 | BM125: 6 | BN125: R | BO125: -22 | BP125: morgaad01 | BQ125: 605388 | BR125: Lefty Super Control Swing Starter | BS125: Vidal Nuno | BT125: Tom Milone | BU125: Andrew Heaney | BV125: Priced in-line with expectations.
A126: Neris | B126: Hector | C126: R | D126: 2016 | E126: 27 | F126: PHI | G126: NL | H126: LP | I126: 0.33 | J126: Y | K126: 43.6 | L126: 2 | M126: 28 | N126: 3 | O126: 0 | P126: 0 | Q126: 0 | R126: 6 | S126: 194 | T126: 7 | U126: 14 | V126: 1 | W126: 41 | X126: 137 | Y126: 40 | Z126: 36 | AA126: 2 | AB126: 2 | AC126: 0 | AD126: 20 | AE126: 4.03 | AF126: 34 | AG126: 6.7 | AH126: 2.9 | AI126: 8.2 | AJ126: 2.8 | AK126: 1.3 | AL126: 0.29 | AM126: 1.28 | AN126: 1.75 | AO126: 0.07 | AP126: 57 | AQ126: 104 | AR126: 25 | AS126: 5 | AT126: 2.93 | AU126: 164 | AV126: 78 | AW126: 0.15 | AX126: LP | AY126: 48.8 | AZ126: 4.19 | BA126: 87 | BB126: 24 | BC126: LP | BD126: 52.2 | BE126: 4.18 | BF126: 92 | BG126: 25 | BH126: 40.3 | BI126: 3.79 | BJ126: 4.56 | BK126: 16 | BL126: 0.24 | BM126: 9 | BN126: R | BO126: 12 | BP126: nerishe01 | BQ126: 593576 | BR126: Righty Super Control RP | BS126: Evan Scribner | BT126: Yimi Garcia | BU126: Logan Verrett | BV126: Priced in-line with expectations.
A127: Cahill | B127: Trevor | C127: R | D127: 2016 | E127: 28 | F127: CHN | G127: NL | H127: LP | I127: 0.62 | J127: Y | K127: 70.9 | L127: 4 | M127: 21 | N127: 7 | O127: 0 | P127: 0 | Q127: 0 | R127: 4 | S127: 250 | T127: 5 | U127: 23 | V127: 1 | W127: 49 | X127: 173 | Y127: 70 | Z127: 39 | AA127: 4 | AB127: 3 | AC127: 0 | AD127: 38 | AE127: 4.38 | AF127: 63 | AG127: 9.9 | AH127: 2.1 | AI127: 7.6 | AJ127: 3.6 | AK127: 0.84 | AL127: 0.29 | AM127: 1.42 | AN127: 1.33 | AO127: 0.05 | AP127: 36 | AQ127: 113 | AR127: 25 | AS127: 7 | AT127: 6.56 | AU127: 166 | AV127: 79 | AW127: -0.34 | AX127: LP | AY127: 59.4 | AZ127: 3.97 | BA127: 82 | BB127: 32 | BC127: LP | BD127: 57.2 | BE127: 4.04 | BF127: 89 | BG127: 29 | BH127: 43.3 | BI127: 5.4 | BJ127: 3.89 | BK127: 29 | BL127: -1.02 | BM127: -5 | BN127: R | BO127: 14 | BP127: cahiltr01 | BQ127: 502239 | BR127: Righty Swing Starter | BS127: Ariel Pena | BT127: Chris Bassitt | BU127: Jarred Cosart | BV127: Priced in-line with expectations.
A128: Norris | B128: Bud | C128: R | D128: 2016 | E128: 31 | F128: ATL | G128: NL | H128: LP | I128: 0.72 | J128: Y | K128: 94.8 | L128: 6 | M128: 22 | N128: 12 | O128: 0 | P128: 0 | Q128: 0 | R128: 3 | S128: 347 | T128: 10 | U128: 27 | V128: 1 | W128: 67 | X128: 242 | Y128: 109 | Z128: 43 | AA128: 3 | AB128: 6 | AC128: 0 | AD128: 57 | AE128: 4.83 | AF128: 96 | AG128: 10.7 | AH128: 2.4 | AI128: 7.4 | AJ128: 3 | AK128: 1.13 | AL128: 0.281 | AM128: 1.36 | AN128: 1.59 | AO128: 0.06 | AP128: 29 | AQ128: 125 | AR128: 24 | AS128: 9 | AT128: 13.96 | AU128: 167 | AV128: 80 | AW128: -0.54 | AX128: LP | AY128: 74.1 | AZ128: 4.28 | BA128: 89 | BB128: 28 | BC128: LP | BD128: 66.4 | BE128: 4.29 | BF128: 94 | BG128: 26 | BH128: 83 | BI128: 6.72 | BJ128: 4.85 | BK128: 20 | BL128: -1.89 | BM128: 4 | BN128: R | BO128: -17 | BP128: norribu01 | BQ128: 502032 | BR128: Righty Hittable Control Swing Starter | BS128: Matt Cain | BT128: Ervin Santana | BU128: Jake Peavy | BV128: In prime. Role player, not a keeper. Trade bait?
A129: Flande | B129: Yohan | C129: L | D129: 2016 | E129: 30 | F129: COL | G129: NL | H129: LP | I129: 0.56 | J129: Y | K129: 78.6 | L129: 5 | M129: 25 | N129: 8 | O129: 0 | P129: 0 | Q129: 0 | R129: 4 | S129: 270 | T129: 9 | U129: 21 | V129: 2 | W129: 44 | X129: 191 | Y129: 86 | Z129: 42 | AA129: 2 | AB129: 2 | AC129: 1 | AD129: 44 | AE129: 4.62 | AF129: 75 | AG129: 10.8 | AH129: 2.1 | AI129: 6.4 | AJ129: 3 | AK129: 1.25 | AL129: 0.268 | AM129: 1.35 | AN129: 1.73 | AO129: 0.06 | AP129: 12 | AQ129: 119 | AR129: 24 | AS129: 7 | AT129: 9.65 | AU129: 171 | AV129: 81 | AW129: -0.14 | AX129: LP | AY129: 62.9 | AZ129: 4.52 | BA129: 94 | BB129: 21 | BC129: LP | BD129: 58.6 | BE129: 4.49 | BF129: 98 | BG129: 21 | BH129: 68.3 | BI129: 4.74 | BJ129: 5.51 | BK129: 12 | BL129: -0.12 | BM129: 12 | BN129: R | BO129: -10 | BP129: flandyo01 | BQ129: 456071 | BR129: Lefty Control Swing Starter | BS129: Pedro Hernandez | BT129: Tom Milone | BU129: Kyle Lobstein | BV129: In prime. Priced in-line with expectations. Trade bait?
A130: Garcia | B130: Luis | C130: R | D130: 2016 | E130: 29 | F130: PHI | G130: NL | H130: LP | I130: 0.46 | J130: Y | K130: 53.7 | L130: 3 | M130: 48 | N130: 3 | O130: 0 | P130: 0 | Q130: 1 | R130: 11 | S130: 260 | T130: 6 | U130: 28 | V130: 3 | W130: 51 | X130: 176 | Y130: 54 | Z130: 39 | AA130: 4 | AB130: 1 | AC130: 0 | AD130: 26 | AE130: 4.31 | AF130: 56 | AG130: 8.4 | AH130: 1.8 | AI130: 7.8 | AJ130: 4.2 | AK130: 0.85 | AL130: 0.306 | AM130: 1.48 | AN130: 1.41 | AO130: 0.05 | AP130: 33 | AQ130: 111 | AR130: 23 | AS130: 4 | AT130: 3.48 | AU130: 176 | AV130: 82 | AW130: -0.33 | AX130: LP | AY130: 58.8 | AZ130: 3.96 | BA130: 82 | BB130: 32 | BC130: LP | BD130: 59.2 | BE130: 3.98 | BF130: 87 | BG130: 31 | BH130: 66.7 | BI130: 3.51 | BJ130: 3.43 | BK130: 55 | BL130: 0.8 | BM130: -32 | BN130: R | BO130: -7 | BP130: garcilu03 | BQ130: 472610 | BR130: Righty Power Wild RP | BS130: Vic Black | BT130: Henry Rodriguez | BU130: Maikel Cleto | BV130: Approaching his prime years. Priced in-line with expectations. Trade bait?
A131: Bergman | B131: Christian | C131: R | D131: 2016 | E131: 28 | F131: COL | G131: NL | H131: LP | I131: 0.56 | J131: Y | K131: 67.5 | L131: 4 | M131: 27 | N131: 7 | O131: 0 | P131: 0 | Q131: 0 | R131: 5 | S131: 277 | T131: 8 | U131: 17 | V131: 2 | W131: 44 | X131: 194 | Y131: 78 | Z131: 40 | AA131: 3 | AB131: 1 | AC131: 0 | AD131: 37 | AE131: 4.5 | AF131: 62 | AG131: 8.6 | AH131: 2.6 | AI131: 6.1 | AJ131: 2.4 | AK131: 1.11 | AL131: 0.301 | AM131: 1.4 | AN131: 1.49 | AO131: 0.06 | AP131: 15 | AQ131: 116 | AR131: 23 | AS131: 6 | AT131: 5.81 | AU131: 177 | AV131: 83 | AW131: -0.34 | AX131: LP | AY131: 62.8 | AZ131: 4.16 | BA131: 86 | BB131: 28 | BC131: LP | BD131: 60.6 | BE131: 4.16 | BF131: 91 | BG131: 27 | BH131: 68.3 | BI131: 4.74 | BJ131: 4.23 | BK131: 27 | BL131: -0.24 | BM131: -5 | BN131: R | BO131: -8 | BP131: bergmch01 | BQ131: 548357 | BR131: Righty Super Control Long Relief | BS131: Josh Collmenter | BT131: Tanner Roark | BU131: Doug Fister | BV131: Priced in-line with expectations.
A132: Morris | B132: Bryan | C132: R | D132: 2016 | E132: 29 | F132: MIA | G132: NL | H132: LP | I132: 0.56 | J132: Y | K132: 55.8 | L132: 3 | M132: 48 | N132: 3 | O132: 0 | P132: 0 | Q132: 0 | R132: 11 | S132: 265 | T132: 6 | U132: 23 | V132: 2 | W132: 48 | X132: 186 | Y132: 55 | Z132: 39 | AA132: 3 | AB132: 2 | AC132: 0 | AD132: 23 | AE132: 4.35 | AF132: 55 | AG132: 8 | AH132: 2.1 | AI132: 7 | AJ132: 3.4 | AK132: 0.81 | AL132: 0.291 | AM132: 1.35 | AN132: 1.28 | AO132: 0.04 | AP132: 26 | AQ132: 112 | AR132: 22 | AS132: 4 | AT132: 4.6 | AU132: 181 | AV132: 85 | AW132: -0.34 | AX132: LP | AY132: 58.5 | AZ132: 3.95 | BA132: 82 | BB132: 32 | BC132: LP | BD132: 58.8 | BE132: 4.01 | BF132: 88 | BG132: 30 | BH132: 63 | BI132: 3.14 | BJ132: 3.77 | BK132: 39 | BL132: 1.21 | BM132: -17 | BN132: R | BO132: -4 | BP132: morribr01 | BQ132: 457768 | BR132: Righty RP | BS132: Jared Hughes | BT132: Ryan Mattheus | BU132: Samuel Deduno | BV132: Approaching his prime years. Priced in-line with expectations. Trade bait?
A133: Hughes | B133: Jared | C133: R | D133: 2016 | E133: 30 | F133: PIT | G133: NL | H133: LP | I133: 0.55 | J133: Y | K133: 56.1 | L133: 4 | M133: 54 | N133: 3 | O133: 0 | P133: 0 | Q133: 0 | R133: 10 | S133: 267 | T133: 5 | U133: 21 | V133: 2 | W133: 43 | X133: 190 | Y133: 56 | Z133: 39 | AA133: 2 | AB133: 4 | AC133: 0 | AD133: 23 | AE133: 4.37 | AF133: 54 | AG133: 7.8 | AH133: 2.1 | AI133: 6.2 | AJ133: 3 | AK133: 0.7 | AL133: 0.284 | AM133: 1.31 | AN133: 1.11 | AO133: 0.03 | AP133: 17 | AQ133: 113 | AR133: 22 | AS133: 4 | AT133: 4.97 | AU133: 182 | AV133: 86 | AW133: -0.35 | AX133: LP | AY133: 58.2 | AZ133: 3.96 | BA133: 82 | BB133: 32 | BC133: LP | BD133: 58.3 | BE133: 4.02 | BF133: 88 | BG133: 30 | BH133: 67 | BI133: 2.28 | BJ133: 3.87 | BK133: 37 | BL133: 2.09 | BM133: -14 | BN133: R | BO133: -9 | BP133: hugheja02 | BQ133: 453172 | BR133: Righty Soft Tosser RP | BS133: Scott Carroll | BT133: Ryan Mattheus | BU133: Bryan Morris | BV133: In prime. Priced in-line with expectations. Trade bait?
A134: Hoover | B134: J.J. | C134: R | D134: 2016 | E134: 28 | F134: CIN | G134: NL | H134: LP | I134: 0.56 | J134: Y | K134: 58.3 | L134: 3 | M134: 49 | N134: 3 | O134: 0 | P134: 0 | Q134: 1 | R134: 12 | S134: 268 | T134: 8 | U134: 26 | V134: 2 | W134: 58 | X134: 190 | Y134: 49 | Z134: 40 | AA134: 2 | AB134: 2 | AC134: 0 | AD134: 26 | AE134: 4.39 | AF134: 49 | AG134: 7 | AH134: 2.2 | AI134: 8.4 | AJ134: 3.8 | AK134: 1.14 | AL134: 0.268 | AM134: 1.28 | AN134: 1.69 | AO134: 0.07 | AP134: 46 | AQ134: 113 | AR134: 22 | AS134: 4 | AT134: 6.06 | AU134: 186 | AV134: 87 | AW134: -0.19 | AX134: LP | AY134: 58.7 | AZ134: 4.22 | BA134: 88 | BB134: 26 | BC134: LP | BD134: 58.4 | BE134: 4.2 | BF134: 92 | BG134: 26 | BH134: 64.3 | BI134: 2.94 | BJ134: 4.52 | BK134: 21 | BL134: 1.45 | BM134: 1 | BN134: R | BO134: -6 | BP134: hoovejj01 | BQ134: 543331 | BR134: Righty Power RP | BS134: Branden Pinder | BT134: Brandon Cunniff | BU134: Andrew Bellatti | BV134: Priced in-line with expectations.
A135: Stults | B135: Eric | C135: L | D135: 2016 | E135: 36 | F135: ATL | G135: NL | H135: LP | I135: 0.7 | J135: Y | K135: 79.7 | L135: 5 | M135: 12 | N135: 11 | O135: 0 | P135: 0 | Q135: 0 | R135: 1 | S135: 261 | T135: 8 | U135: 16 | V135: 1 | W135: 41 | X135: 185 | Y135: 87 | Z135: 43 | AA135: 2 | AB135: 2 | AC135: 0 | AD135: 42 | AE135: 4.72 | AF135: 74 | AG135: 10.7 | AH135: 2.5 | AI135: 5.9 | AJ135: 2.4 | AK135: 1.17 | AL135: 0.273 | AM135: 1.3 | AN135: 1.56 | AO135: 0.06 | AP135: 10 | AQ135: 122 | AR135: 22 | AS135: 10 | AT135: 9.41 | AU135: 187 | AV135: 88 | AW135: -0.36 | AX135: LP | AY135: 60.9 | AZ135: 4.39 | BA135: 91 | BB135: 23 | BC135: LP | BD135: 56 | BE135: 4.36 | BF135: 96 | BG135: 22 | BH135: 47.7 | BI135: 5.85 | BJ135: 5.31 | BK135: 10 | BL135: -1.13 | BM135: 12 | BN135: S | BO135: 8 | BP135: stulter01 | BQ135: 445590 | BR135: Aging Lefty Super Control Starter | BS135: C.C. Sabathia | BT135: Jason Vargas | BU135: Mark Buehrle | BV135: Sleeper pick. Buy at discount.
A136: Buchanan | B136: David | C136: R | D136: 2016 | E136: 27 | F136: PHI | G136: NL | H136: LP | I136: 0.65 | J136: Y | K136: 82.4 | L136: 5 | M136: 23 | N136: 12 | O136: 0 | P136: 0 | Q136: 0 | R136: 3 | S136: 332 | T136: 9 | U136: 25 | V136: 1 | W136: 52 | X136: 227 | Y136: 113 | Z136: 44 | AA136: 2 | AB136: 5 | AC136: 0 | AD136: 57 | AE136: 4.91 | AF136: 97 | AG136: 11.6 | AH136: 2.1 | AI136: 6.2 | AJ136: 3 | AK136: 1.1 | AL136: 0.297 | AM136: 1.47 | AN136: 1.56 | AO136: 0.06 | AP136: 10 | AQ136: 127 | AR136: 22 | AS136: 7 | AT136: 9.49 | AU136: 188 | AV136: 89 | AW136: -0.52 | AX136: LP | AY136: 70.9 | AZ136: 4.41 | BA136: 92 | BB136: 24 | BC136: LP | BD136: 66 | BE136: 4.39 | BF136: 96 | BG136: 24 | BH136: 74.7 | BI136: 6.99 | BJ136: 5.13 | BK136: 16 | BL136: -2.08 | BM136: 6 | BN136: R | BO136: -9 | BP136: buchada01 | BQ136: 571527 | BR136: Righty Hittable Control Swing Starter | BS136: Nick Tepesch | BT136: Kyle Kendrick | BU136: Carlos Frias | BV136: Priced in-line with expectations.
A137: Richard | B137: Clayton | C137: L | D137: 2016 | E137: 32 | F137: CHN | G137: NL | H137: LP | I137: 0.47 | J137: Y | K137: 44.7 | L137: 3 | M137: 22 | N137: 5 | O137: 0 | P137: 0 | Q137: 0 | R137: 2 | S137: 189 | T137: 5 | U137: 13 | V137: 1 | W137: 29 | X137: 132 | Y137: 49 | Z137: 38 | AA137: 2 | AB137: 1 | AC137: 0 | AD137: 24 | AE137: 4.27 | AF137: 41 | AG137: 8.3 | AH137: 2.2 | AI137: 5.9 | AJ137: 2.6 | AK137: 1.05 | AL137: 0.284 | AM137: 1.35 | AN137: 1.46 | AO137: 0.05 | AP137: 12 | AQ137: 110 | AR137: 22 | AS137: 5 | AT137: 2.45 | AU137: 190 | AV137: 90 | AW137: -0.13 | AX137: LP | AY137: 48.3 | AZ137: 4.1 | BA137: 85 | BB137: 25 | BC137: LP | BD137: 50.9 | BE137: 4.14 | BF137: 91 | BG137: 25 | BH137: 42.3 | BI137: 3.83 | BJ137: 3.68 | BK137: 35 | BL137: 0.45 | BM137: -14 | BN137: R | BO137: 9 | BP137: richacl01 | BQ137: 453385 | BR137: Lefty Super Control RP | BS137: Wade LeBlanc | BT137: Paul Maholm | BU137: John Lannan | BV137: Role player, not a keeper. Trade bait?
A138: Lyles | B138: Jordan | C138: R | D138: 2016 | E138: 25 | F138: COL | G138: NL | H138: LP | I138: 0.64 | J138: Y | K138: 80.4 | L138: 4 | M138: 17 | N138: 10 | O138: 0 | P138: 0 | Q138: 0 | R138: 2 | S138: 282 | T138: 6 | U138: 23 | V138: 1 | W138: 49 | X138: 196 | Y138: 92 | Z138: 43 | AA138: 4 | AB138: 5 | AC138: 0 | AD138: 49 | AE138: 4.8 | AF138: 83 | AG138: 11.5 | AH138: 2.1 | AI138: 6.9 | AJ138: 3.2 | AK138: 0.86 | AL138: 0.285 | AM138: 1.41 | AN138: 1.32 | AO138: 0.04 | AP138: 20 | AQ138: 124 | AR138: 22 | AS138: 8 | AT138: 9.28 | AU138: 192 | AV138: 91 | AW138: -0.69 | AX138: LP | AY138: 64.5 | AZ138: 4.08 | BA138: 85 | BB138: 30 | BC138: LP | BD138: 61 | BE138: 4.11 | BF138: 90 | BG138: 29 | BH138: 49 | BI138: 5.14 | BJ138: 3.88 | BK138: 31 | BL138: -0.34 | BM138: -10 | BN138: R | BO138: 12 | BP138: lylesjo01 | BQ138: 543475 | BR138: Young Soft Tosser Swing Starter | BS138: Jacob Turner | BT138: Tyler Chatwood | BU138: Shane Greene | BV138: Priced in-line with expectations.
A139: Badenhop | B139: Burke | C139: R | D139: 2016 | E139: 33 | F139: CIN | G139: NL | H139: LP | I139: 0.57 | J139: Y | K139: 53.2 | L139: 3 | M139: 55 | N139: 2 | O139: 0 | P139: 0 | Q139: 3 | R139: 15 | S139: 260 | T139: 4 | U139: 19 | V139: 3 | W139: 42 | X139: 186 | Y139: 55 | Z139: 40 | AA139: 1 | AB139: 1 | AC139: 0 | AD139: 23 | AE139: 4.41 | AF139: 50 | AG139: 7.3 | AH139: 2.3 | AI139: 6.1 | AJ139: 2.7 | AK139: 0.63 | AL139: 0.286 | AM139: 1.28 | AN139: 1 | AO139: 0.03 | AP139: 18 | AQ139: 114 | AR139: 22 | AS139: 4 | AT139: 5.99 | AU139: 193 | AV139: 92 | AW139: -0.55 | AX139: LP | AY139: 57.6 | AZ139: 3.67 | BA139: 76 | BB139: 41 | BC139: LP | BD139: 58 | BE139: 3.86 | BF139: 85 | BG139: 34 | BH139: 66.3 | BI139: 3.93 | BJ139: 3.7 | BK139: 43 | BL139: 0.47 | BM139: -21 | BN139: R | BO139: -8 | BP139: badenbu01 | BQ139: 488674 | BR139: Righty Super Control RP | BS139: Blaine Boyer | BT139: Ryan Webb | BU139: Anthony Swarzak | BV139: Role player, not a keeper. Trade bait?
A140: Cain | B140: Matt | C140: R | D140: 2016 | E140: 31 | F140: SFN | G140: NL | H140: LP | I140: 0.65 | J140: Y | K140: 79.3 | L140: 5 | M140: 16 | N140: 10 | O140: 0 | P140: 0 | Q140: 0 | R140: 2 | S140: 264 | T140: 9 | U140: 20 | V140: 1 | W140: 49 | X140: 187 | Y140: 82 | Z140: 43 | AA140: 2 | AB140: 3 | AC140: 0 | AD140: 44 | AE140: 4.78 | AF140: 72 | AG140: 10.5 | AH140: 2.4 | AI140: 7.1 | AJ140: 3 | AK140: 1.24 | AL140: 0.265 | AM140: 1.31 | AN140: 1.71 | AO140: 0.07 | AP140: 21 | AQ140: 123 | AR140: 21 | AS140: 8 | AT140: 10.11 | AU140: 196 | AV140: 93 | AW140: -0.38 | AX140: LP | AY140: 62.4 | AZ140: 4.45 | BA140: 92 | BB140: 22 | BC140: LP | BD140: 58.1 | BE140: 4.4 | BF140: 96 | BG140: 22 | BH140: 60.7 | BI140: 5.79 | BJ140: 5.38 | BK140: 11 | BL140: -1.01 | BM140: 10 | BN140: R | BO140: -3 | BP140: cainma01 | BQ140: 430912 | BR140: Righty Control Swing Starter | BS140: Bud Norris | BT140: Dillon Gee | BU140: Brandon Morrow | BV140: In prime. Role player, not a keeper. Trade bait?
A141: Lobstein | B141: Kyle | C141: L | D141: 2016 | E141: 26 | F141: PIT | G141: NL | H141: LP | I141: 0.52 | J141: Y | K141: 77.1 | L141: 4 | M141: 20 | N141: 9 | O141: 0 | P141: 0 | Q141: 0 | R141: 4 | S141: 280 | T141: 7 | U141: 23 | V141: 2 | W141: 44 | X141: 195 | Y141: 94 | Z141: 43 | AA141: 3 | AB141: 2 | AC141: 1 | AD141: 50 | AE141: 4.8 | AF141: 81 | AG141: 11.3 | AH141: 1.9 | AI141: 6.4 | AJ141: 3.2 | AK141: 1.01 | AL141: 0.288 | AM141: 1.45 | AN141: 1.49 | AO141: 0.05 | AP141: 12 | AQ141: 124 | AR141: 21 | AS141: 6 | AT141: 7.75 | AU141: 192 | AV141: 99 | AW141: -0.5 | AX141: LP | AY141: 66 | AZ141: 4.33 | BA141: 90 | BB141: 25 | BC141: LP | BD141: 63.7 | BE141: 4.31 | BF141: 95 | BG141: 25 | BH141: 63.7 | BI141: 5.94 | BJ141: 4.7 | BK141: 19 | BL141: -1.13 | BM141: 2 | BN141: R | BO141: 0 | BP141: lobstky01 | BQ141: 543456 | BR141: Lefty Soft Tosser Swing Starter | BS141: Pedro Hernandez | BT141: Felix Doubront | BU141: Brad Hand | BV141: Priced in-line with expectations.
A142: Finnegan | B142: Brandon | C142: L | D142: 2016 | E142: 23 | F142: CIN | G142: NL | H142: LP | I142: 0.39 | J142: Y | K142: 61.8 | L142: 3 | M142: 27 | N142: 4 | O142: 0 | P142: 0 | Q142: 0 | R142: 5 | S142: 226 | T142: 7 | U142: 20 | V142: 1 | W142: 49 | X142: 161 | Y142: 49 | Z142: 39 | AA142: 1 | AB142: 2 | AC142: 0 | AD142: 24 | AE142: 4.38 | AF142: 46 | AG142: 7.9 | AH142: 2.4 | AI142: 8.6 | AJ142: 3.5 | AK142: 1.25 | AL142: 0.281 | AM142: 1.33 | AN142: 1.77 | AO142: 0.07 | AP142: 55 | AQ142: 113 | AR142: 21 | AS142: 5 | AT142: 4.54 | AU142: 198 | AV142: 94 | AW142: -0.12 | AX142: LP | AY142: 55.9 | AZ142: 4.26 | BA142: 88 | BB142: 24 | BC142: LP | BD142: 56.4 | BE142: 4.26 | BF142: 93 | BG142: 24 | BH142: 48 | BI142: 3.56 | BJ142: 4.83 | BK142: 14 | BL142: 0.82 | BM142: 7 | BN142: R | BO142: 8 | BP142: finnebr01 | BQ142: 605232 | BR142: Young Lefty Power Long Relief | BS142: John Lamb | BT142: Chasen Shreve | BU142: Drew Pomeranz | BV142: Priced in-line with expectations.
A143: Ogando | B143: Alexi | C143: R | D143: 2016 | E143: 32 | F143: ATL | G143: NL | H143: LP | I143: 0.54 | J143: Y | K143: 51.2 | L143: 3 | M143: 42 | N143: 4 | O143: 0 | P143: 0 | Q143: 0 | R143: 10 | S143: 255 | T143: 8 | U143: 24 | V143: 2 | W143: 47 | X143: 179 | Y143: 52 | Z143: 40 | AA143: 2 | AB143: 2 | AC143: 1 | AD143: 25 | AE143: 4.41 | AF143: 49 | AG143: 7.4 | AH143: 1.9 | AI143: 7.1 | AJ143: 3.7 | AK143: 1.14 | AL143: 0.279 | AM143: 1.37 | AN143: 1.68 | AO143: 0.06 | AP143: 20 | AQ143: 114 | AR143: 21 | AS143: 4 | AT143: 3.95 | AU143: 194 | AV143: 100 | AW143: -0.04 | AX143: LP | AY143: 57.8 | AZ143: 4.4 | BA143: 91 | BB143: 22 | BC143: LP | BD143: 59.4 | BE143: 4.37 | BF143: 96 | BG143: 23 | BH143: 65.3 | BI143: 3.99 | BJ143: 5.19 | BK143: 14 | BL143: 0.41 | BM143: 7 | BN143: R | BO143: -6 | BP143: ogandal01 | BQ143: 468396 | BR143: Righty RP | BS143: Ichiro Suzuki | BT143: Peter Moylan | BU143: Shawn Camp | BV143: Role player, not a keeper. Trade bait?
A144: Nicolino | B144: Justin | C144: L | D144: 2016 | E144: 24 | F144: MIA | G144: NL | H144: LP | I144: 0.6 | J144: Y | K144: 85.9 | L144: 5 | M144: 19 | N144: 9 | O144: 0 | P144: 0 | Q144: 0 | R144: 2 | S144: 274 | T144: 8 | U144: 20 | V144: 2 | W144: 35 | X144: 198 | Y144: 89 | Z144: 43 | AA144: 3 | AB144: 4 | AC144: 0 | AD144: 42 | AE144: 4.83 | AF144: 79 | AG144: 11.2 | AH144: 1.8 | AI144: 5.1 | AJ144: 2.8 | AK144: 1.06 | AL144: 0.264 | AM144: 1.33 | AN144: 1.49 | AO144: 0.05 | AP144: 2 | AQ144: 125 | AR144: 21 | AS144: 6 | AT144: 9.18 | AU144: 199 | AV144: 95 | AW144: -0.38 | AX144: LP | AY144: 64.6 | AZ144: 4.53 | BA144: 94 | BB144: 21 | BC144: LP | BD144: 60.2 | BE144: 4.46 | BF144: 98 | BG144: 22 | BH144: 74 | BI144: 4.01 | BJ144: 5.03 | BK144: 16 | BL144: 0.82 | BM144: 4 | BN144: R | BO144: -14 | BP144: nicolju01 | BQ144: 592593 | BR144: Young Lefty Super Control Swing Starter | BS144: Kyle Lobstein | BT144: Pedro Hernandez | BU144: Felix Doubront | BV144: Priced in-line with expectations.
A145: Gott | B145: Trevor | C145: R | D145: 2016 | E145: 23 | F145: WAS | G145: NL | H145: LP | I145: 0.49 | J145: Y | K145: 54.2 | L145: 3 | M145: 39 | N145: 3 | O145: 0 | P145: 0 | Q145: 0 | R145: 6 | S145: 233 | T145: 4 | U145: 19 | V145: 2 | W145: 40 | X145: 165 | Y145: 44 | Z145: 39 | AA145: 1 | AB145: 2 | AC145: 0 | AD145: 20 | AE145: 4.32 | AF145: 41 | AG145: 6.9 | AH145: 2.1 | AI145: 6.7 | AJ145: 3.1 | AK145: 0.75 | AL145: 0.289 | AM145: 1.31 | AN145: 1.18 | AO145: 0.04 | AP145: 25 | AQ145: 112 | AR145: 21 | AS145: 4 | AT145: 2.74 | AU145: 196 | AV145: 102 | AW145: -0.33 | AX145: LP | AY145: 57.7 | AZ145: 3.94 | BA145: 82 | BB145: 32 | BC145: LP | BD145: 60.8 | BE145: 4 | BF145: 88 | BG145: 31 | BH145: 47.7 | BI145: 3.02 | BJ145: 3.72 | BK145: 36 | BL145: 1.3 | BM145: -15 | BN145: R | BO145: 13 | BP145: gotttr01 | BQ145: 641627 | BR145: Young Control RP | BS145: Aaron Sanchez | BT145: Jordan Lyles | BU145: Jose Urena | BV145: Priced in-line with expectations.
A146: Thornton | B146: Matt | C146: L | D146: 2016 | E146: 39 | F146: WAS | G146: NL | H146: LP | I146: 0.44 | J146: Y | K146: 33.5 | L146: 3 | M146: 50 | N146: 2 | O146: 0 | P146: 0 | Q146: 0 | R146: 9 | S146: 188 | T146: 4 | U146: 15 | V146: 2 | W146: 30 | X146: 133 | Y146: 36 | Z146: 38 | AA146: 1 | AB146: 2 | AC146: 0 | AD146: 16 | AE146: 4.24 | AF146: 35 | AG146: 7 | AH146: 2 | AI146: 6.1 | AJ146: 3 | AK146: 0.7 | AL146: 0.273 | AM146: 1.26 | AN146: 1.11 | AO146: 0.03 | AP146: 17 | AQ146: 110 | AR146: 20 | AS146: 3 | AT146: 2.02 | AU146: 201 | AV146: 96 | AW146: -0.23 | AX146: JP | AY146: 69.8 | AZ146: 3.9 | BA146: 81 | BB146: 37 | BC146: LP | BD146: 63.2 | BE146: 4.01 | BF146: 88 | BG146: 32 | BH146: 41.3 | BI146: 2.18 | BJ146: 3.51 | BK146: 42 | BL146: 2.06 | BM146: -21 | BN146: O | BO146: 22 | BP146: thornma01 | BQ146: 407819 | BR146: Aging Lefty RP | BS146: Francisley Bueno | BT146: Jeremy Affeldt | BU146: Randy Choate | BV146: Overpriced. Look to trade him. Could fetch value in trade.
A147: Breslow | B147: Craig | C147: L | D147: 2016 | E147: 35 | F147: MIA | G147: NL | H147: LP | I147: 0.55 | J147: Y | K147: 49.4 | L147: 3 | M147: 45 | N147: 3 | O147: 0 | P147: 0 | Q147: 1 | R147: 12 | S147: 263 | T147: 8 | U147: 23 | V147: 3 | W147: 43 | X147: 182 | Y147: 57 | Z147: 40 | AA147: 2 | AB147: 2 | AC147: 0 | AD147: 28 | AE147: 4.45 | AF147: 51 | AG147: 7.6 | AH147: 1.9 | AI147: 6.4 | AJ147: 3.4 | AK147: 1.18 | AL147: 0.288 | AM147: 1.42 | AN147: 1.69 | AO147: 0.06 | AP147: 10 | AQ147: 115 | AR147: 20 | AS147: 4 | AT147: 3.27 | AU147: 198 | AV147: 103 | AW147: -0.02 | AX147: LP | AY147: 57.9 | AZ147: 4.5 | BA147: 94 | BB147: 20 | BC147: LP | BD147: 59.6 | BE147: 4.42 | BF147: 97 | BG147: 22 | BH147: 65 | BI147: 4.15 | BJ147: 5.01 | BK147: 15 | BL147: 0.29 | BM147: 5 | BN147: R | BO147: -5 | BP147: breslcr01 | BQ147: 444520 | BR147: Aging Lefty Soft Tosser RP | BS147: Joe Beimel | BT147: Jeff Francis | BU147: John Lannan | BV147: Role player, not a keeper. Trade bait?
A148: Villarreal | B148: Pedro | C148: R | D148: 2016 | E148: 28 | F148: CIN | G148: NL | H148: LP | I148: 0.38 | J148: Y | K148: 48.6 | L148: 2 | M148: 31 | N148: 3 | O148: 0 | P148: 0 | Q148: 0 | R148: 7 | S148: 221 | T148: 6 | U148: 17 | V148: 2 | W148: 39 | X148: 154 | Y148: 50 | Z148: 39 | AA148: 2 | AB148: 2 | AC148: 0 | AD148: 24 | AE148: 4.38 | AF148: 43 | AG148: 7.6 | AH148: 2.3 | AI148: 6.9 | AJ148: 3 | AK148: 1.11 | AL148: 0.296 | AM148: 1.38 | AN148: 1.56 | AO148: 0.06 | AP148: 23 | AQ148: 113 | AR148: 20 | AS148: 4 | AT148: 2.38 | AU148: 206 | AV148: 97 | AW148: -0.2 | AX148: LP | AY148: 52.6 | AZ148: 4.18 | BA148: 87 | BB148: 25 | BC148: LP | BD148: 54.6 | BE148: 4.18 | BF148: 92 | BG148: 25 | BH148: 50 | BI148: 3.42 | BJ148: 4.33 | BK148: 21 | BL148: 0.96 | BM148: -1 | BN148: R | BO148: 5 | BP148: villape01 | BQ148: 543881 | BR148: Righty Control RP | BS148: Bo Schultz | BT148: Anthony Bass | BU148: Christian Bergman | BV148: Priced in-line with expectations.
A149: O'Sullivan | B149: Sean | C149: R | D149: 2016 | E149: 28 | F149: PHI | G149: NL | H149: LP | I149: 0.47 | J149: Y | K149: 71 | L149: 4 | M149: 21 | N149: 9 | O149: 0 | P149: 0 | Q149: 0 | R149: 3 | S149: 273 | T149: 10 | U149: 20 | V149: 3 | W149: 41 | X149: 185 | Y149: 97 | Z149: 44 | AA149: 3 | AB149: 5 | AC149: 0 | AD149: 50 | AE149: 4.93 | AF149: 82 | AG149: 11.9 | AH149: 2.1 | AI149: 6.1 | AJ149: 2.9 | AK149: 1.44 | AL149: 0.289 | AM149: 1.46 | AN149: 1.92 | AO149: 0.07 | AP149: 6 | AQ149: 127 | AR149: 19 | AS149: 4 | AT149: 7 | AU149: 212 | AV149: 98 | AW149: -0.32 | AX149: LP | AY149: 62.9 | AZ149: 4.75 | BA149: 99 | BB149: 18 | BC149: LP | BD149: 60.2 | BE149: 4.61 | BF149: 101 | BG149: 19 | BH149: 71 | BI149: 6.08 | BJ149: 5.72 | BK149: 11 | BL149: -1.15 | BM149: 9 | BN149: R | BO149: -11 | BP149: osullse01 | BQ149: 457711 | BR149: Righty Soft Tosser Swing Starter | BS149: Mike Wright | BT149: Alec Asher | BU149: David Buchanan | BV149: Priced in-line with expectations.
A150: Butler | B150: Eddie | C150: R | D150: 2016 | E150: 25 | F150: COL | G150: NL | H150: LP | I150: 0.52 | J150: Y | K150: 72.7 | L150: 4 | M150: 23 | N150: 10 | O150: 0 | P150: 0 | Q150: 0 | R150: 3 | S150: 312 | T150: 10 | U150: 30 | V150: 3 | W150: 47 | X150: 209 | Y150: 109 | Z150: 45 | AA150: 2 | AB150: 4 | AC150: 0 | AD150: 58 | AE150: 5.05 | AF150: 99 | AG150: 12.9 | AH150: 1.5 | AI150: 6.2 | AJ150: 3.9 | AK150: 1.28 | AL150: 0.298 | AM150: 1.61 | AN150: 1.86 | AO150: 0.07 | AP150: 3 | AQ150: 130 | AR150: 19 | AS150: 4 | AT150: 6.39 | AU150: 215 | AV150: 99 | AW150: -0.4 | AX150: LP | AY150: 67.4 | AZ150: 4.78 | BA150: 99 | BB150: 18 | BC150: LP | BD150: 64.5 | BE150: 4.65 | BF150: 102 | BG150: 19 | BH150: 79.3 | BI150: 5.9 | BJ150: 5.66 | BK150: 12 | BL150: -0.85 | BM150: 7 | BN150: R | BO150: -15 | BP150: butleed01 | BQ150: 572750 | BR150: Young Soft Tosser Starter | BS150: Tyler Wagner | BT150: Anthony Ranaudo | BU150: Donn Roach | BV150: Priced in-line with expectations.
A151: Mattheus | B151: Ryan | C151: R | D151: 2016 | E151: 32 | F151: CIN | G151: NL | H151: LP | I151: 0.42 | J151: Y | K151: 44.9 | L151: 3 | M151: 42 | N151: 2 | O151: 0 | P151: 0 | Q151: 0 | R151: 11 | S151: 226 | T151: 4 | U151: 19 | V151: 2 | W151: 38 | X151: 155 | Y151: 50 | Z151: 40 | AA151: 3 | AB151: 2 | AC151: 0 | AD151: 24 | AE151: 4.44 | AF151: 45 | AG151: 7.7 | AH151: 2 | AI151: 6.5 | AJ151: 3.2 | AK151: 0.76 | AL151: 0.308 | AM151: 1.42 | AN151: 1.19 | AO151: 0.04 | AP151: 20 | AQ151: 115 | AR151: 19 | AS151: 3 | AT151: 1.82 | AU151: 217 | AV151: 100 | AW151: -0.44 | AX151: LP | AY151: 52.8 | AZ151: 3.96 | BA151: 82 | BB151: 30 | BC151: LP | BD151: 55 | BE151: 4 | BF151: 88 | BG151: 30 | BH151: 56 | BI151: 4.02 | BJ151: 3.6 | BK151: 43 | BL151: 0.42 | BM151: -24 | BN151: R | BO151: -1 | BP151: matthry01 | BQ151: 458919 | BR151: Righty Soft Tosser RP | BS151: Brandon League | BT151: Matt Guerrier | BU151: Jared Hughes | BV151: Role player, not a keeper. Trade bait?
A152: Marquis | B152: Jason | C152: R | D152: 2016 | E152: 37 | F152: CIN | G152: NL | H152: LP | I152: 0.56 | J152: Y | K152: 59.6 | L152: 3 | M152: 15 | N152: 7 | O152: 0 | P152: 0 | Q152: 0 | R152: 2 | S152: 196 | T152: 7 | U152: 18 | V152: 2 | W152: 31 | X152: 134 | Y152: 71 | Z152: 43 | AA152: 3 | AB152: 2 | AC152: 0 | AD152: 38 | AE152: 4.72 | AF152: 66 | AG152: 13.1 | AH152: 1.7 | AI152: 6.3 | AJ152: 3.6 | AK152: 1.36 | AL152: 0.278 | AM152: 1.47 | AN152: 1.91 | AO152: 0.07 | AP152: 6 | AQ152: 122 | AR152: 19 | AS152: 5 | AT152: 4.49 | AU152: 220 | AV152: 101 | AW152: -0.31 | AX152: LP | AY152: 50.8 | AZ152: 4.51 | BA152: 94 | BB152: 19 | BC152: LP | BD152: 50.3 | BE152: 4.42 | BF152: 97 | BG152: 20 | BH152: 47.3 | BI152: 6.46 | BJ152: 4.89 | BK152: 14 | BL152: -1.74 | BM152: 5 | BN152: R | BO152: 3 | BP152: marquja01 | BQ152: 150302 | BR152: Aging Soft Tosser Swing Starter | BS152: Shaun Marcum | BT152: Brad Penny | BU152: Chris Young | BV152: Role player, not a keeper. Trade bait?
A153: Friedrich | B153: Christian | C153: L | D153: 2016 | E153: 28 | F153: - | G153: NL | H153: LP | I153: 0.47 | J153: Y | K153: 53.3 | L153: 3 | M153: 42 | N153: 4 | O153: 0 | P153: 0 | Q153: 0 | R153: 8 | S153: 251 | T153: 6 | U153: 22 | V153: 2 | W153: 47 | X153: 170 | Y153: 57 | Z153: 41 | AA153: 3 | AB153: 2 | AC153: 0 | AD153: 30 | AE153: 4.52 | AF153: 48 | AG153: 7.6 | AH153: 2.2 | AI153: 7.5 | AJ153: 3.4 | AK153: 0.96 | AL153: 0.319 | AM153: 1.48 | AN153: 1.44 | AO153: 0.05 | AP153: 32 | AQ153: 117 | AR153: 19 | AS153: 3 | AT153: 2.31 | AU153: 221 | AV153: 102 | AW153: -0.4 | AX153: LP | AY153: 57.3 | AZ153: 4.11 | BA153: 85 | BB153: 28 | BC153: LP | BD153: 58.2 | BE153: 4.13 | BF153: 91 | BG153: 27 | BH153: 58.3 | BI153: 5.25 | BJ153: 4.01 | BK153: 30 | BL153: -0.72 | BM153: -11 | BN153: R | BO153: 0 | BP153: friedch01 | BQ153: 543184 | BR153: Lefty RP | BS153: Mario Hollands | BT153: Luis Avilan | BU153: Andrew McKirahan | BV153: Priced in-line with expectations.
A154: Machi | B154: Jean | C154: R | D154: 2016 | E154: 34 | F154: CHN | G154: NL | H154: LP | I154: 0.55 | J154: Y | K154: 47.8 | L154: 3 | M154: 49 | N154: 3 | O154: 0 | P154: 0 | Q154: 2 | R154: 11 | S154: 247 | T154: 6 | U154: 20 | V154: 2 | W154: 45 | X154: 177 | Y154: 48 | Z154: 41 | AA154: 3 | AB154: 1 | AC154: 0 | AD154: 24 | AE154: 4.55 | AF154: 42 | AG154: 6.4 | AH154: 2.3 | AI154: 7 | AJ154: 3 | AK154: 0.93 | AL154: 0.274 | AM154: 1.26 | AN154: 1.37 | AO154: 0.05 | AP154: 25 | AQ154: 117 | AR154: 18 | AS154: 3 | AT154: 4.78 | AU154: 211 | AV154: 109 | AW154: -0.42 | AX154: LP | AY154: 55.9 | AZ154: 4.07 | BA154: 84 | BB154: 28 | BC154: LP | BD154: 58.6 | BE154: 4.13 | BF154: 91 | BG154: 27 | BH154: 58 | BI154: 5.12 | BJ154: 4.62 | BK154: 19 | BL154: -0.57 | BM154: 0 | BN154: R | BO154: 1 | BP154: machije01 | BQ154: 466948 | BR154: Aging Control RP | BS154: Scott Atchison | BT154: Matt Belisle | BU154: Dale Thayer | BV154: Role player, not a keeper. Trade bait?
A155: Urena | B155: Jose | C155: R | D155: 2016 | E155: 24 | F155: MIA | G155: NL | H155: LP | I155: 0.55 | J155: Y | K155: 76.5 | L155: 3 | M155: 23 | N155: 7 | O155: 0 | P155: 0 | Q155: 0 | R155: 4 | S155: 259 | T155: 6 | U155: 22 | V155: 2 | W155: 38 | X155: 178 | Y155: 78 | Z155: 44 | AA155: 3 | AB155: 3 | AC155: 1 | AD155: 39 | AE155: 4.85 | AF155: 70 | AG155: 10.7 | AH155: 1.7 | AI155: 5.9 | AJ155: 3.4 | AK155: 0.9 | AL155: 0.295 | AM155: 1.5 | AN155: 1.38 | AO155: 0.04 | AP155: 6 | AQ155: 125 | AR155: 18 | AS155: 4 | AT155: 4.32 | AU155: 230 | AV155: 103 | AW155: -0.57 | AX155: LP | AY155: 62.1 | AZ155: 4.32 | BA155: 90 | BB155: 24 | BC155: LP | BD155: 59.6 | BE155: 4.28 | BF155: 94 | BG155: 24 | BH155: 61.7 | BI155: 5.25 | BJ155: 4.65 | BK155: 19 | BL155: -0.4 | BM155: -1 | BN155: R | BO155: -2 | BP155: urenajo01 | BQ155: 570632 | BR155: Young Soft Tosser Swing Starter | BS155: Donn Roach | BT155: Tyler Wilson | BU155: Nick Tepesch | BV155: Priced in-line with expectations.
A156: Sampson | B156: Keyvius | C156: R | D156: 2016 | E156: 25 | F156: CIN | G156: NL | H156: LP | I156: 0.51 | J156: Y | K156: 53.6 | L156: 4 | M156: 20 | N156: 9 | O156: 0 | P156: 0 | Q156: 0 | R156: 2 | S156: 242 | T156: 7 | U156: 22 | V156: 1 | W156: 45 | X156: 161 | Y156: 88 | Z156: 45 | AA156: 5 | AB156: 1 | AC156: 0 | AD156: 51 | AE156: 4.99 | AF156: 79 | AG156: 13.1 | AH156: 2 | AI156: 7.5 | AJ156: 3.7 | AK156: 1.13 | AL156: 0.299 | AM156: 1.54 | AN156: 1.67 | AO156: 0.06 | AP156: 23 | AQ156: 129 | AR156: 18 | AS156: 4 | AT156: 5.57 | AU156: 235 | AV156: 104 | AW156: -0.72 | AX156: LP | AY156: 57.1 | AZ156: 4.3 | BA156: 89 | BB156: 24 | BC156: LP | BD156: 58.5 | BE156: 4.27 | BF156: 94 | BG156: 25 | BH156: 52.3 | BI156: 6.54 | BJ156: 4.62 | BK156: 17 | BL156: -1.55 | BM156: 0 | BN156: R | BO156: 6 | BP156: sampske01 | BQ156: 572102 | BR156: Young Swing Starter | BS156: Daniel Corcino | BT156: Michael Lorenzen | BU156: Josh Smith | BV156: Priced in-line with expectations.
A157: Cravy | B157: Tyler | C157: R | D157: 2016 | E157: 26 | F157: MIL | G157: NL | H157: LP | I157: 0.46 | J157: Y | K157: 64.6 | L157: 3 | M157: 20 | N157: 6 | O157: 0 | P157: 0 | Q157: 0 | R157: 3 | S157: 208 | T157: 6 | U157: 20 | V157: 1 | W157: 40 | X157: 143 | Y157: 62 | Z157: 43 | AA157: 1 | AB157: 2 | AC157: 0 | AD157: 35 | AE157: 4.76 | AF157: 56 | AG157: 10.7 | AH157: 2 | AI157: 7.7 | AJ157: 3.8 | AK157: 1.06 | AL157: 0.29 | AM157: 1.47 | AN157: 1.6 | AO157: 0.06 | AP157: 28 | AQ157: 123 | AR157: 17 | AS157: 4 | AT157: 3.56 | AU157: 239 | AV157: 105 | AW157: -0.52 | AX157: LP | AY157: 53.6 | AZ157: 4.27 | BA157: 89 | BB157: 23 | BC157: LP | BD157: 53.5 | BE157: 4.24 | BF157: 93 | BG157: 24 | BH157: 42.7 | BI157: 5.7 | BJ157: 4.61 | BK157: 16 | BL157: -0.94 | BM157: 1 | BN157: R | BO157: 11 | BP157: cravyty01 | BQ157: 572788 | BR157: Righty Power Swing Starter | BS157: Bradley Peacock | BT157: Zach Davies | BU157: Chris Beck | BV157: Priced in-line with expectations.
A158: Oberg | B158: Scott | C158: R | D158: 2016 | E158: 26 | F158: COL | G158: NL | H158: LP | I158: 0.54 | J158: Y | K158: 53 | L158: 2 | M158: 45 | N158: 3 | O158: 0 | P158: 0 | Q158: 1 | R158: 8 | S158: 243 | T158: 8 | U158: 25 | V158: 2 | W158: 45 | X158: 167 | Y158: 49 | Z158: 43 | AA158: 4 | AB158: 4 | AC158: 1 | AD158: 27 | AE158: 4.73 | AF158: 45 | AG158: 7.4 | AH158: 1.8 | AI158: 7.4 | AJ158: 4 | AK158: 1.35 | AL158: 0.288 | AM158: 1.46 | AN158: 1.95 | AO158: 0.07 | AP158: 17 | AQ158: 122 | AR158: 15 | AS158: 2 | AT158: 1.65 | AU158: 256 | AV158: 106 | AW158: -0.19 | AX158: LP | AY158: 55.5 | AZ158: 4.67 | BA158: 97 | BB158: 17 | BC158: LP | BD158: 56.7 | BE158: 4.54 | BF158: 100 | BG158: 20 | BH158: 58.3 | BI158: 5.09 | BJ158: 5.63 | BK158: 10 | BL158: -0.36 | BM158: 6 | BN158: R | BO158: -2 | BP158: obergsc01 | BQ158: 623184 | BR158: Righty RP | BS158: Jose Ramirez | BT158: Angel Nesbitt | BU158: Brett Bochy | BV158: Priced in-line with expectations.
A159: Capuano | B159: Chris | C159: L | D159: 2016 | E159: 37 | F159: MIL | G159: NL | H159: LP | I159: 0.58 | J159: Y | K159: 51.5 | L159: 3 | M159: 25 | N159: 7 | O159: 0 | P159: 0 | Q159: 0 | R159: 4 | S159: 231 | T159: 6 | U159: 20 | V159: 2 | W159: 41 | X159: 157 | Y159: 61 | Z159: 45 | AA159: 3 | AB159: 2 | AC159: 0 | AD159: 33 | AE159: 4.96 | AF159: 53 | AG159: 8.9 | AH159: 2.1 | AI159: 7 | AJ159: 3.3 | AK159: 0.98 | AL159: 0.293 | AM159: 1.42 | AN159: 1.46 | AO159: 0.05 | AP159: 19 | AQ159: 128 | AR159: 15 | AS159: 2 | AT159: 3.45 | AU159: 252 | AV159: 116 | AW159: -0.73 | AX159: LP | AY159: 54.5 | AZ159: 4.17 | BA159: 87 | BB159: 26 | BC159: LP | BD159: 56.3 | BE159: 4.23 | BF159: 93 | BG159: 25 | BH159: 40.7 | BI159: 7.97 | BJ159: 4.82 | BK159: 13 | BL159: -3.01 | BM159: 2 | BN159: R | BO159: 16 | BP159: capuach01 | BQ159: 425626 | BR159: Aging Lefty Swing Starter | BS159: Matt Thornton | BT159: Joe Beimel | BU159: Jeremy Affeldt | BV159: Role player, not a keeper. Trade bait?
A160: Detwiler | B160: Ross | C160: L | D160: 2016 | E160: 30 | F160: ATL | G160: NL | H160: LP | I160: 0.55 | J160: Y | K160: 57.1 | L160: 3 | M160: 34 | N160: 6 | O160: 0 | P160: 0 | Q160: 0 | R160: 7 | S160: 264 | T160: 7 | U160: 23 | V160: 2 | W160: 42 | X160: 177 | Y160: 65 | Z160: 47 | AA160: 2 | AB160: 4 | AC160: 0 | AD160: 34 | AE160: 5.2 | AF160: 57 | AG160: 8.6 | AH160: 1.8 | AI160: 6.5 | AJ160: 3.5 | AK160: 1.02 | AL160: 0.309 | AM160: 1.52 | AN160: 1.53 | AO160: 0.05 | AP160: 8 | AQ160: 134 | AR160: 12 | AS160: 0 | AT160: 1.62 | AU160: 299 | AV160: 107 | AW160: -0.69 | AX160: LP | AY160: 58 | AZ160: 4.55 | BA160: 94 | BB160: 20 | BC160: LP | BD160: 58 | BE160: 4.5 | BF160: 99 | BG160: 20 | BH160: 58.3 | BI160: 7.25 | BJ160: 5.88 | BK160: 8 | BL160: -2.06 | BM160: 4 | BN160: R | BO160: 0 | BP160: detwiro01 | BQ160: 446321 | BR160: Lefty Soft Tosser RP | BS160: John Lannan | BT160: Brian Duensing | BU160: Eric O'Flaherty | BV160: In prime. Risky pick. Avoid. Trade bait?
A161: McCarthy | B161: Brandon | C161: R | D161: 2016 | E161: 32 | F161: LAN | G161: NL | H161: JP | I161: 0.67 | J161: Y | K161: 89 | L161: 5 | M161: 13 | N161: 12 | O161: 0 | P161: 0 | Q161: 0 | R161: 0 | S161: 309 | T161: 10 | U161: 16 | V161: 1 | W161: 61 | X161: 221 | Y161: 85 | Z161: 36 | AA161: 2 | AB161: 2 | AC161: 0 | AD161: 40 | AE161: 3.95 | AF161: 66 | AG161: 8 | AH161: 3.9 | AI161: 7.4 | AJ161: 1.9 | AK161: 1.19 | AL161: 0.294 | AM161: 1.27 | AN161: 1.53 | AO161: 0.06 | AP161: 48 | AQ161: 102 | AR161: 38 | AS161: 18 | AT161: 11.38 | AU161: 88 | AV161: 1 | AW161: 0.13 | AX161: LP | AY161: 65.3 | AZ161: 3.91 | BA161: 81 | BB161: 35 | BC161: JP | BD161: 79.1 | BE161: 4.08 | BF161: 90 | BG161: 34 | BH161: 23 | BI161: 5.87 | BJ161: 5.77 | BK161: 5 | BL161: -1.92 | BM161: 33 | BN161: S | BO161: 56 | BP161: mccarbr01 | BQ161: 435221 | BR161: Righty Commanding Starter | BS161: Hisashi Iwakuma | BT161: Jordan Zimmermann | BU161: Masahiro Tanaka | BV161: Sleeper pick. Buy at discount.
A162: Wainwright | B162: Adam | C162: R | D162: 2016 | E162: 34 | F162: SLN | G162: NL | H162: JP | I162: 0.72 | J162: Y | K162: 119.2 | L162: 6 | M162: 13 | N162: 12 | O162: 1 | P162: 1 | Q162: 0 | R162: 1 | S162: 312 | T162: 5 | U162: 17 | V162: 1 | W162: 61 | X162: 232 | Y162: 74 | Z162: 37 | AA162: 2 | AB162: 2 | AC162: 0 | AD162: 28 | AE162: 4.12 | AF162: 67 | AG162: 7.8 | AH162: 3.5 | AI162: 7.1 | AJ162: 2 | AK162: 0.55 | AL162: 0.268 | AM162: 1.11 | AN162: 0.83 | AO162: 0.03 | AP162: 53 | AQ162: 106 | AR162: 34 | AS162: 17 | AT162: 14.27 | AU162: 106 | AV162: 2 | AW162: -0.5 | AX162: LP | AY162: 70.9 | AZ162: 3.35 | BA162: 70 | BB162: 61 | BC162: JP | BD162: 77.7 | BE162: 3.62 | BF162: 79 | BG162: 49 | BH162: 28 | BI162: 1.61 | BJ162: 2.37 | BK162: 161 | BL162: 2.51 | BM162: -127 | BN162: O | BO162: 50 | BP162: wainwad01 | BQ162: 425794 | BR162: Aging Commanding Top Starter | BS162: Johnny Cueto | BT162: Anibal Sanchez | BU162: Clay Buchholz | BV162: Should perform close to forecast. Priced in-line with expectations.
A163: Matz | B163: Steven | C163: L | D163: 2016 | E163: 25 | F163: NYN | G163: NL | H163: JP | I163: 0.42 | J163: Y | K163: 98.2 | L163: 4 | M163: 17 | N163: 10 | O163: 0 | P163: 0 | Q163: 0 | R163: 2 | S163: 286 | T163: 9 | U163: 24 | V163: 1 | W163: 58 | X163: 198 | Y163: 75 | Z163: 38 | AA163: 2 | AB163: 3 | AC163: 0 | AD163: 34 | AE163: 4.18 | AF163: 70 | AG163: 9.6 | AH163: 2.4 | AI163: 8.2 | AJ163: 3.3 | AK163: 1.2 | AL163: 0.299 | AM163: 1.42 | AN163: 1.7 | AO163: 0.07 | AP163: 49 | AQ163: 108 | AR163: 29 | AS163: 11 | AT163: 7.67 | AU163: 132 | AV163: 3 | AW163: 0.03 | AX163: LP | AY163: 63.4 | AZ163: 4.2 | BA163: 87 | BB163: 27 | BC163: JP | BD163: 77.2 | BE163: 4.2 | BF163: 92 | BG163: 30 | BH163: 35.7 | BI163: 2.27 | BJ163: 3.66 | BK163: 34 | BL163: 1.91 | BM163: -5 | BN163: R | BO163: 42 | BP163: matzst01 | BQ163: 571927 | BR163: Young Lefty Power Swing Starter | BS163: Tim Cooney | BT163: Adam Conley | BU163: Eduardo Rodriguez | BV163: Priced in-line with expectations.
A164: Montero | B164: Rafael | C164: R | D164: 2016 | E164: 25 | F164: NYN | G164: NL | H164: JP | I164: 0.32 | J164: Y | K164: 54.6 | L164: 3 | M164: 23 | N164: 7 | O164: 0 | P164: 0 | Q164: 0 | R164: 4 | S164: 248 | T164: 7 | U164: 24 | V164: 3 | W164: 53 | X164: 171 | Y164: 48 | Z164: 36 | AA164: 1 | AB164: 1 | AC164: 0 | AD164: 25 | AE164: 4.04 | AF164: 45 | AG164: 7.2 | AH164: 2.2 | AI164: 8.4 | AJ164: 3.8 | AK164: 1.08 | AL164: 0.308 | AM164: 1.42 | AN164: 1.62 | AO164: 0.06 | AP164: 53 | AQ164: 104 | AR164: 27 | AS164: 7 | AT164: 3.58 | AU164: 146 | AV164: 4 | AW164: 0.02 | AX164: LP | AY164: 52.4 | AZ164: 4.06 | BA164: 84 | BB164: 28 | BC164: JP | BD164: 76.1 | BE164: 4.06 | BF164: 89 | BG164: 34 | BH164: 10 | BI164: 4.5 | BJ164: 1.57 | BK164: 714 | BL164: -0.46 | BM164: -687 | BN164: R | BO164: 66 | BP164: montera01 | BQ164: 606160 | BR164: Young Power Swing Starter | BS164: Frankie Montas | BT164: Vincent Velasquez | BU164: Luis Severino | BV164: Priced in-line with expectations.
A165: Wada | B165: Tsuyoshi | C165: L | D165: 2016 | E165: 35 | F165: CHN | G165: NL | H165: JP | I165: 0.49 | J165: Y | K165: 89.1 | L165: 4 | M165: 22 | N165: 11 | O165: 0 | P165: 0 | Q165: 0 | R165: 3 | S165: 272 | T165: 8 | U165: 22 | V165: 2 | W165: 51 | X165: 191 | Y165: 69 | Z165: 39 | AA165: 2 | AB165: 3 | AC165: 0 | AD165: 33 | AE165: 4.38 | AF165: 63 | AG165: 8.8 | AH165: 2.3 | AI165: 7.3 | AJ165: 3.1 | AK165: 1.07 | AL165: 0.279 | AM165: 1.33 | AN165: 1.53 | AO165: 0.06 | AP165: 30 | AQ165: 113 | AR165: 25 | AS165: 9 | AT165: 7.9 | AU165: 165 | AV165: 5 | AW165: -0.16 | AX165: LP | AY165: 60.4 | AZ165: 4.17 | BA165: 87 | BB165: 27 | BC165: JP | BD165: 73.3 | BE165: 4.22 | BF165: 92 | BG165: 29 | BH165: 32.3 | BI165: 3.62 | BJ165: 4.22 | BK165: 19 | BL165: 0.76 | BM165: 6 | BN165: R | BO165: 41 | BP165: wadats01 | BQ165: 493159 | BR165: Aging Lefty Control Swing Starter | BS165: Wandy Rodriguez | BT165: Erik Bedard | BU165: Bruce Chen | BV165: He's done. Drop like a hot potato.
A166: Morrow | B166: Brandon | C166: R | D166: 2016 | E166: 31 | F166: SDN | G166: NL | H166: JP | I166: 0.42 | J166: Y | K166: 82.6 | L166: 4 | M166: 20 | N166: 10 | O166: 0 | P166: 0 | Q166: 0 | R166: 3 | S166: 270 | T166: 8 | U166: 23 | V166: 1 | W166: 48 | X166: 188 | Y166: 72 | Z166: 40 | AA166: 2 | AB166: 2 | AC166: 0 | AD166: 38 | AE166: 4.42 | AF166: 63 | AG166: 9 | AH166: 2 | AI166: 7.1 | AJ166: 3.4 | AK166: 1.11 | AL166: 0.291 | AM166: 1.43 | AN166: 1.61 | AO166: 0.06 | AP166: 22 | AQ166: 114 | AR166: 24 | AS166: 8 | AT166: 5.93 | AU166: 170 | AV166: 6 | AW166: -0.2 | AX166: LP | AY166: 59 | AZ166: 4.23 | BA166: 88 | BB166: 25 | BC166: JP | BD166: 74 | BE166: 4.22 | BF166: 93 | BG166: 29 | BH166: 33 | BI166: 2.73 | BJ166: 3.64 | BK166: 33 | BL166: 1.69 | BM166: -10 | BN166: R | BO166: 41 | BP166: morrobr01 | BQ166: 453344 | BR166: Righty Swing Starter | BS166: Steven Wright | BT166: Red Patterson | BU166: Matt Cain | BV166: In prime. Priced in-line with expectations.
A167: Godley | B167: Zack | C167: R | D167: 2016 | E167: 26 | F167: ARI | G167: NL | H167: JP | I167: 0.42 | J167: Y | K167: 90.3 | L167: 4 | M167: 19 | N167: 10 | O167: 0 | P167: 0 | Q167: 0 | R167: 3 | S167: 281 | T167: 9 | U167: 29 | V167: 2 | W167: 56 | X167: 196 | Y167: 70 | Z167: 40 | AA167: 3 | AB167: 4 | AC167: 0 | AD167: 37 | AE167: 4.49 | AF167: 67 | AG167: 9.3 | AH167: 1.9 | AI167: 8.1 | AJ167: 4 | AK167: 1.19 | AL167: 0.285 | AM167: 1.45 | AN167: 1.77 | AO167: 0.07 | AP167: 35 | AQ167: 116 | AR167: 23 | AS167: 8 | AT167: 6.59 | AU167: 173 | AV167: 7 | AW167: -0.16 | AX167: LP | AY167: 60.9 | AZ167: 4.38 | BA167: 91 | BB167: 23 | BC167: JP | BD167: 75.7 | BE167: 4.33 | BF167: 95 | BG167: 27 | BH167: 36.7 | BI167: 3.19 | BJ167: 4.31 | BK167: 19 | BL167: 1.3 | BM167: 4 | BN167: R | BO167: 39 | BP167: godleza01 | BQ167: 643327 | BR167: Righty Power Swing Starter | BS167: Ariel Pena | BT167: Jorge Lopez | BU167: Lisalverto Bonilla | BV167: Priced in-line with expectations.
A168: Cooney | B168: Tim | C168: L | D168: 2016 | E168: 25 | F168: SLN | G168: NL | H168: JP | I168: 0.39 | J168: Y | K168: 90.7 | L168: 4 | M168: 17 | N168: 11 | O168: 0 | P168: 0 | Q168: 0 | R168: 2 | S168: 276 | T168: 8 | U168: 25 | V168: 3 | W168: 55 | X168: 191 | Y168: 72 | Z168: 40 | AA168: 3 | AB168: 3 | AC168: 0 | AD168: 37 | AE168: 4.48 | AF168: 65 | AG168: 9.2 | AH168: 2.2 | AI168: 8.1 | AJ168: 3.5 | AK168: 1.15 | AL168: 0.294 | AM168: 1.43 | AN168: 1.66 | AO168: 0.06 | AP168: 41 | AQ168: 116 | AR168: 23 | AS168: 9 | AT168: 6.54 | AU168: 174 | AV168: 8 | AW168: -0.3 | AX168: LP | AY168: 61.1 | AZ168: 4.17 | BA168: 87 | BB168: 27 | BC168: JP | BD168: 76.4 | BE168: 4.18 | BF168: 92 | BG168: 31 | BH168: 31.3 | BI168: 3.16 | BJ168: 3.47 | BK168: 40 | BL168: 1.33 | BM168: -17 | BN168: R | BO168: 45 | BP168: cooneti01 | BQ168: 608641 | BR168: Young Lefty Power Swing Starter | BS168: Steven Matz | BT168: Daniel Norris | BU168: Eduardo Rodriguez | BV168: Priced in-line with expectations.
A169: Erlin | B169: Robbie | C169: L | D169: 2016 | E169: 25 | F169: SDN | G169: NL | H169: JP | I169: 0.43 | J169: Y | K169: 81.9 | L169: 4 | M169: 22 | N169: 8 | O169: 0 | P169: 0 | Q169: 0 | R169: 4 | S169: 265 | T169: 7 | U169: 19 | V169: 1 | W169: 50 | X169: 188 | Y169: 71 | Z169: 40 | AA169: 3 | AB169: 2 | AC169: 0 | AD169: 36 | AE169: 4.49 | AF169: 59 | AG169: 8.6 | AH169: 2.6 | AI169: 7.3 | AJ169: 2.8 | AK169: 0.95 | AL169: 0.294 | AM169: 1.35 | AN169: 1.37 | AO169: 0.05 | AP169: 36 | AQ169: 116 | AR169: 23 | AS169: 7 | AT169: 6.76 | AU169: 178 | AV169: 9 | AW169: -0.41 | AX169: LP | AY169: 59.3 | AZ169: 4.01 | BA169: 83 | BB169: 31 | BC169: JP | BD169: 75.9 | BE169: 4.08 | BF169: 89 | BG169: 33 | BH169: 17 | BI169: 4.76 | BJ169: 3.42 | BK169: 35 | BL169: -0.27 | BM169: -12 | BN169: R | BO169: 59 | BP169: erlinro01 | BQ169: 572362 | BR169: Young Lefty Control Swing Starter | BS169: Tyler Skaggs | BT169: Eduardo Rodriguez | BU169: Adam Conley | BV169: Priced in-line with expectations.
A170: Oberholtzer | B170: Brett | C170: L | D170: 2016 | E170: 26 | F170: PHI | G170: NL | H170: JP | I170: 0.61 | J170: Y | K170: 97.7 | L170: 5 | M170: 17 | N170: 13 | O170: 0 | P170: 0 | Q170: 0 | R170: 1 | S170: 350 | T170: 8 | U170: 23 | V170: 1 | W170: 60 | X170: 244 | Y170: 95 | Z170: 43 | AA170: 2 | AB170: 2 | AC170: 1 | AD170: 43 | AE170: 4.81 | AF170: 81 | AG170: 8.9 | AH170: 2.6 | AI170: 6.7 | AJ170: 2.6 | AK170: 0.89 | AL170: 0.3 | AM170: 1.37 | AN170: 1.27 | AO170: 0.05 | AP170: 24 | AQ170: 124 | AR170: 21 | AS170: 9 | AT170: 9.79 | AU170: 189 | AV170: 8 | AW170: -0.69 | AX170: LP | AY170: 74.1 | AZ170: 4.02 | BA170: 83 | BB170: 34 | BC170: JP | BD170: 86.1 | BE170: 4.12 | BF170: 90 | BG170: 34 | BH170: 38.3 | BI170: 4.46 | BJ170: 4.56 | BK170: 16 | BL170: 0.35 | BM170: 6 | BN170: R | BO170: 48 | BP170: oberhbr01 | BQ170: 519085 | BR170: Lefty Super Control Starter | BS170: Brett Anderson | BT170: Jonathon Niese | BU170: Martin Perez | BV170: Priced in-line with expectations.
A171: Chacin | B171: Jhoulys | C171: R | D171: 2016 | E171: 28 | F171: ATL | G171: NL | H171: JP | I171: 0.57 | J171: Y | K171: 84.7 | L171: 4 | M171: 15 | N171: 10 | O171: 0 | P171: 0 | Q171: 0 | R171: 1 | S171: 273 | T171: 7 | U171: 23 | V171: 1 | W171: 48 | X171: 194 | Y171: 69 | Z171: 42 | AA171: 2 | AB171: 2 | AC171: 0 | AD171: 34 | AE171: 4.64 | AF171: 62 | AG171: 8.7 | AH171: 2.1 | AI171: 6.8 | AJ171: 3.2 | AK171: 0.93 | AL171: 0.277 | AM171: 1.34 | AN171: 1.39 | AO171: 0.05 | AP171: 20 | AQ171: 120 | AR171: 21 | AS171: 8 | AT171: 7.06 | AU171: 200 | AV171: 10 | AW171: -0.43 | AX171: LP | AY171: 60 | AZ171: 4.26 | BA171: 88 | BB171: 25 | BC171: JP | BD171: 75.3 | BE171: 4.21 | BF171: 92 | BG171: 30 | BH171: 26.7 | BI171: 3.38 | BJ171: 4.63 | BK171: 12 | BL171: 1.27 | BM171: 8 | BN171: R | BO171: 49 | BP171: chacijh01 | BQ171: 468504 | BR171: Righty Soft Tosser Starter | BS171: Dillon Gee | BT171: Chris Tillman | BU171: Matt Garza | BV171: Priced in-line with expectations.
A172: Davies | B172: Zach | C172: R | D172: 2016 | E172: 23 | F172: MIL | G172: NL | H172: JP | I172: 0.4 | J172: Y | K172: 90.2 | L172: 4 | M172: 17 | N172: 11 | O172: 0 | P172: 0 | Q172: 0 | R172: 2 | S172: 289 | T172: 8 | U172: 29 | V172: 1 | W172: 52 | X172: 202 | Y172: 72 | Z172: 43 | AA172: 2 | AB172: 2 | AC172: 0 | AD172: 40 | AE172: 4.76 | AF172: 66 | AG172: 9 | AH172: 1.8 | AI172: 7.5 | AJ172: 4 | AK172: 1.03 | AL172: 0.283 | AM172: 1.45 | AN172: 1.59 | AO172: 0.05 | AP172: 22 | AQ172: 123 | AR172: 19 | AS172: 7 | AT172: 6.01 | AU172: 214 | AV172: 12 | AW172: -0.51 | AX172: LP | AY172: 62.4 | AZ172: 4.27 | BA172: 89 | BB172: 25 | BC172: JP | BD172: 78.4 | BE172: 4.25 | BF172: 93 | BG172: 29 | BH172: 34 | BI172: 3.71 | BJ172: 3.97 | BK172: 25 | BL172: 1.05 | BM172: -5 | BN172: R | BO172: 44 | BP172: davieza02 | BQ172: 605200 | BR172: Young Swing Starter | BS172: Colin Rea | BT172: Lisalverto Bonilla | BU172: Tyler Cravy | BV172: Priced in-line with expectations.
A173: Rea | B173: Colin | C173: R | D173: 2016 | E173: 25 | F173: SDN | G173: NL | H173: JP | I173: 0.39 | J173: Y | K173: 85 | L173: 4 | M173: 17 | N173: 11 | O173: 0 | P173: 0 | Q173: 0 | R173: 2 | S173: 278 | T173: 7 | U173: 25 | V173: 1 | W173: 52 | X173: 192 | Y173: 73 | Z173: 43 | AA173: 2 | AB173: 3 | AC173: 0 | AD173: 41 | AE173: 4.76 | AF173: 63 | AG173: 8.9 | AH173: 2.1 | AI173: 7.7 | AJ173: 3.6 | AK173: 1.03 | AL173: 0.296 | AM173: 1.45 | AN173: 1.55 | AO173: 0.06 | AP173: 31 | AQ173: 123 | AR173: 19 | AS173: 7 | AT173: 5.59 | AU173: 218 | AV173: 13 | AW173: -0.59 | AX173: LP | AY173: 60.6 | AZ173: 4.16 | BA173: 86 | BB173: 27 | BC173: JP | BD173: 77 | BE173: 4.16 | BF173: 91 | BG173: 31 | BH173: 31.7 | BI173: 4.26 | BJ173: 3.55 | BK173: 36 | BL173: 0.49 | BM173: -17 | BN173: R | BO173: 45 | BP173: reaco01 | BQ173: 607067 | BR173: Young Power Swing Starter | BS173: Nick Tropeano | BT173: Zach Davies | BU173: Dan Straily | BV173: Priced in-line with expectations.
A174: Pena | B174: Ariel | C174: R | D174: 2016 | E174: 27 | F174: MIL | G174: NL | H174: JP | I174: 0.35 | J174: Y | K174: 81.9 | L174: 3 | M174: 17 | N174: 10 | O174: 0 | P174: 0 | Q174: 0 | R174: 2 | S174: 264 | T174: 7 | U174: 27 | V174: 3 | W174: 51 | X174: 179 | Y174: 68 | Z174: 42 | AA174: 3 | AB174: 3 | AC174: 0 | AD174: 39 | AE174: 4.71 | AF174: 62 | AG174: 9.3 | AH174: 1.9 | AI174: 8 | AJ174: 4.1 | AK174: 1.07 | AL174: 0.294 | AM174: 1.48 | AN174: 1.64 | AO174: 0.06 | AP174: 33 | AQ174: 122 | AR174: 19 | AS174: 6 | AT174: 4.81 | AU174: 219 | AV174: 14 | AW174: -0.5 | AX174: LP | AY174: 57.7 | AZ174: 4.22 | BA174: 88 | BB174: 25 | BC174: JP | BD174: 74.2 | BE174: 4.21 | BF174: 92 | BG174: 29 | BH174: 27.3 | BI174: 4.28 | BJ174: 3.71 | BK174: 29 | BL174: 0.43 | BM174: -11 | BN174: R | BO174: 47 | BP174: penaar01 | BQ174: 516414 | BR174: Righty Power Swing Starter | BS174: Zack Godley | BT174: Jorge Lopez | BU174: Lisalverto Bonilla | BV174: Priced in-line with expectations.
A175: Cingrani | B175: Tony | C175: L | D175: 2016 | E175: 26 | F175: CIN | G175: NL | H175: JP | I175: 0.52 | J175: Y | K175: 61.5 | L175: 4 | M175: 32 | N175: 8 | O175: 0 | P175: 0 | Q175: 0 | R175: 6 | S175: 305 | T175: 9 | U175: 34 | V175: 3 | W175: 69 | X175: 211 | Y175: 54 | Z175: 42 | AA175: 2 | AB175: 2 | AC175: 1 | AD175: 29 | AE175: 4.63 | AF175: 53 | AG175: 6.9 | AH175: 2 | AI175: 9 | AJ175: 4.4 | AK175: 1.19 | AL175: 0.307 | AM175: 1.43 | AN175: 1.8 | AO175: 0.07 | AP175: 50 | AQ175: 120 | AR175: 18 | AS175: 4 | AT175: 4.26 | AU175: 224 | AV175: 15 | AW175: -0.33 | AX175: LP | AY175: 59.8 | AZ175: 4.36 | BA175: 91 | BB175: 23 | BC175: JP | BD175: 81.4 | BE175: 4.3 | BF175: 94 | BG175: 29 | BH175: 33.3 | BI175: 5.67 | BJ175: 4.25 | BK175: 19 | BL175: -1.04 | BM175: -1 | BN175: R | BO175: 48 | BP175: cingrto01 | BQ175: 571561 | BR175: Lefty Power Swing Starter | BS175: Chasen Shreve | BT175: Zach Rosscup | BU175: Ian Krol | BV175: Priced in-line with expectations.
A176: Gonzalez | B176: Severino | C176: R | D176: 2016 | E176: 23 | F176: PHI | G176: NL | H176: JP | I176: 0.38 | J176: Y | K176: 65.3 | L176: 3 | M176: 18 | N176: 11 | O176: 0 | P176: 0 | Q176: 0 | R176: 2 | S176: 296 | T176: 10 | U176: 23 | V176: 1 | W176: 56 | X176: 196 | Y176: 89 | Z176: 44 | AA176: 2 | AB176: 5 | AC176: 1 | AD176: 52 | AE176: 4.85 | AF176: 66 | AG176: 9 | AH176: 2.4 | AI176: 8 | AJ176: 3.2 | AK176: 1.38 | AL176: 0.33 | AM176: 1.58 | AN176: 1.89 | AO176: 0.08 | AP176: 35 | AQ176: 125 | AR176: 18 | AS176: 6 | AT176: 4.08 | AU176: 225 | AV176: 16 | AW176: -0.52 | AX176: LP | AY176: 61 | AZ176: 4.39 | BA176: 91 | BB176: 23 | BC176: JP | BD176: 82.7 | BE176: 4.33 | BF176: 95 | BG176: 29 | BH176: 30.7 | BI176: 7.92 | BJ176: 4.31 | BK176: 17 | BL176: -3.07 | BM176: 1 | BN176: R | BO176: 52 | BP176: gonzase01 | BQ176: 605894 | BR176: Young Power Swing Starter | BS176: A.J. Cole | BT176: Michael Foltynewicz | BU176: Keyvius Sampson | BV176: Priced in-line with expectations.
A177: Weber | B177: Ryan | C177: R | D177: 2016 | E177: 25 | F177: ATL | G177: NL | H177: JP | I177: 0.36 | J177: Y | K177: 79.2 | L177: 3 | M177: 16 | N177: 10 | O177: 0 | P177: 0 | Q177: 0 | R177: 2 | S177: 263 | T177: 8 | U177: 22 | V177: 1 | W177: 47 | X177: 186 | Y177: 70 | Z177: 43 | AA177: 2 | AB177: 4 | AC177: 0 | AD177: 41 | AE177: 4.79 | AF177: 56 | AG177: 8.4 | AH177: 2.2 | AI177: 7.3 | AJ177: 3.2 | AK177: 1.21 | AL177: 0.29 | AM177: 1.41 | AN177: 1.7 | AO177: 0.06 | AP177: 23 | AQ177: 124 | AR177: 18 | AS177: 6 | AT177: 5.08 | AU177: 229 | AV177: 17 | AW177: -0.5 | AX177: LP | AY177: 57.5 | AZ177: 4.33 | BA177: 90 | BB177: 23 | BC177: JP | BD177: 75 | BE177: 4.29 | BF177: 94 | BG177: 28 | BH177: 28.3 | BI177: 4.76 | BJ177: 4.11 | BK177: 20 | BL177: 0.03 | BM177: -2 | BN177: R | BO177: 47 | BP177: weberry01 | BQ177: 543901 | BR177: Young Swing Starter | BS177: Jonathan Pettibone | BT177: Dan Straily | BU177: Matt Wisler | BV177: Priced in-line with expectations.
A178: Lopez | B178: Jorge | C178: R | D178: 2016 | E178: 23 | F178: MIL | G178: NL | H178: JP | I178: 0.17 | J178: Y | K178: 75.5 | L178: 3 | M178: 16 | N178: 8 | O178: 0 | P178: 0 | Q178: 0 | R178: 2 | S178: 242 | T178: 7 | U178: 24 | V178: 1 | W178: 46 | X178: 162 | Y178: 70 | Z178: 43 | AA178: 3 | AB178: 3 | AC178: 0 | AD178: 38 | AE178: 4.73 | AF178: 62 | AG178: 10.3 | AH178: 1.9 | AI178: 8.1 | AJ178: 4 | AK178: 1.1 | AL178: 0.322 | AM178: 1.61 | AN178: 1.67 | AO178: 0.06 | AP178: 33 | AQ178: 122 | AR178: 18 | AS178: 5 | AT178: 2.23 | AU178: 236 | AV178: 18 | AW178: -0.52 | AX178: LP | AY178: 53.8 | AZ178: 4.22 | BA178: 88 | BB178: 24 | BC178: JP | BD178: 73.3 | BE178: 4.21 | BF178: 92 | BG178: 29 | BH178: 10 | BI178: 5.4 | BJ178: 3.14 | BK178: 44 | BL178: -0.67 | BM178: -26 | BN178: R | BO178: 63 | BP178: lopezjo02 | BQ178: 605347 | BR178: Young Power Swing Starter | BS178: Zack Godley | BT178: Ariel Pena | BU178: Zach Davies | BV178: Needs to prove value. Priced in-line with expectations.
A179: Baker | B179: Scott | C179: R | D179: 2016 | E179: 34 | F179: LAN | G179: NL | H179: JP | I179: 0.41 | J179: Y | K179: 70.5 | L179: 3 | M179: 23 | N179: 7 | O179: 0 | P179: 0 | Q179: 0 | R179: 6 | S179: 233 | T179: 8 | U179: 17 | V179: 2 | W179: 40 | X179: 166 | Y179: 60 | Z179: 43 | AA179: 2 | AB179: 2 | AC179: 0 | AD179: 33 | AE179: 4.76 | AF179: 48 | AG179: 7.9 | AH179: 2.4 | AI179: 6.7 | AJ179: 2.7 | AK179: 1.37 | AL179: 0.268 | AM179: 1.3 | AN179: 1.83 | AO179: 0.07 | AP179: 15 | AQ179: 123 | AR179: 17 | AS179: 4 | AT179: 5.18 | AU179: 238 | AV179: 19 | AW179: -0.4 | AX179: LP | AY179: 52.3 | AZ179: 4.41 | BA179: 92 | BB179: 21 | BC179: JP | BD179: 69.7 | BE179: 4.36 | BF179: 96 | BG179: 25 | BH179: 11 | BI179: 5.73 | BJ179: 7.1 | BK179: 1 | BL179: -0.97 | BM179: 16 | BN179: R | BO179: 59 | BP179: bakersc02 | BQ179: 435044 | BR179: Aging Super Control Swing Starter | BS179: Steven Wright | BT179: Yohan Pino | BU179: Shaun Marcum | BV179: Priced in-line with expectations.
A180: Montas | B180: Frankie | C180: R | D180: 2016 | E180: 23 | F180: LAN | G180: NL | H180: JP | I180: 0.23 | J180: Y | K180: 48.9 | L180: 2 | M180: 19 | N180: 8 | O180: 0 | P180: 0 | Q180: 0 | R180: 4 | S180: 252 | T180: 7 | U180: 27 | V180: 2 | W180: 54 | X180: 170 | Y180: 45 | Z180: 40 | AA180: 1 | AB180: 1 | AC180: 0 | AD180: 25 | AE180: 4.49 | AF180: 38 | AG180: 6.1 | AH180: 2 | AI180: 8.8 | AJ180: 4.2 | AK180: 1.16 | AL180: 0.347 | AM180: 1.55 | AN180: 1.76 | AO180: 0.07 | AP180: 50 | AQ180: 116 | AR180: 17 | AS180: 4 | AT180: 0.32 | AU180: 221 | AV180: 14 | AW180: -0.34 | AX180: LP | AY180: 54.6 | AZ180: 4.15 | BA180: 86 | BB180: 26 | BC180: JP | BD180: 79.2 | BE180: 4.15 | BF180: 91 | BG180: 32 | BH180: 15 | BI180: 4.8 | BJ180: 3.03 | BK180: 54 | BL180: -0.31 | BM180: -37 | BN180: R | BO180: 64 | BP180: montafr02 | BQ180: 593423 | BR180: Young Power Swing Starter | BS180: Rafael Montero | BT180: Jorge Lopez | BU180: Andrew Bellatti | BV180: Priced in-line with expectations.
A181: Sadler | B181: Casey | C181: R | D181: 2016 | E181: 25 | F181: PIT | G181: NL | H181: JP | I181: 0.12 | J181: Y | K181: 75.6 | L181: 2 | M181: 34 | N181: 3 | O181: 0 | P181: 0 | Q181: 0 | R181: 10 | S181: 230 | T181: 7 | U181: 23 | V181: 2 | W181: 43 | X181: 152 | Y181: 63 | Z181: 43 | AA181: 3 | AB181: 3 | AC181: 0 | AD181: 39 | AE181: 4.73 | AF181: 53 | AG181: 9.4 | AH181: 1.9 | AI181: 7.8 | AJ181: 4.1 | AK181: 1.23 | AL181: 0.308 | AM181: 1.57 | AN181: 1.83 | AO181: 0.07 | AP181: 25 | AQ181: 122 | AR181: 17 | AS181: 2 | AT181: 1.81 | AU181: 241 | AV181: 20 | AW181: -0.43 | AX181: LP | AY181: 52.1 | AZ181: 4.33 | BA181: 90 | BB181: 22 | BC181: JP | BD181: 70.6 | BE181: 4.3 | BF181: 94 | BG181: 27 | BH181: 5 | BI181: 3.6 | BJ181: 4.25 | BK181: 10 | BL181: 1.13 | BM181: 7 | BN181: R | BO181: 66 | BP181: sadleca02 | BQ181: 594987 | BR181: Young Power Long Relief | BS181: Andrew Bellatti | BT181: Phillippe Aumont | BU181: Carl Edwards | BV181: Needs to prove value. Priced in-line with expectations.
A182: Narveson | B182: Chris | C182: L | D182: 2016 | E182: 34 | F182: MIA | G182: NL | H182: JP | I182: 0.32 | J182: Y | K182: 37.2 | L182: 2 | M182: 23 | N182: 7 | O182: 0 | P182: 0 | Q182: 0 | R182: 4 | S182: 245 | T182: 10 | U182: 22 | V182: 1 | W182: 47 | X182: 170 | Y182: 41 | Z182: 40 | AA182: 1 | AB182: 1 | AC182: 0 | AD182: 24 | AE182: 4.49 | AF182: 31 | AG182: 4.9 | AH182: 2.1 | AI182: 7.6 | AJ182: 3.5 | AK182: 1.52 | AL182: 0.296 | AM182: 1.4 | AN182: 2.08 | AO182: 0.08 | AP182: 24 | AQ182: 116 | AR182: 17 | AS182: 4 | AT182: 0.95 | AU182: 243 | AV182: 21 | AW182: -0.02 | AX182: JP | AY182: 77.6 | AZ182: 4.56 | BA182: 95 | BB182: 23 | BC182: JP | BD182: 91.2 | BE182: 4.47 | BF182: 98 | BG182: 27 | BH182: 30.3 | BI182: 4.45 | BJ182: 4.82 | BK182: 11 | BL182: 0.04 | BM182: 6 | BN182: R | BO182: 61 | BP182: narvech01 | BQ182: 429780 | BR182: Aging Lefty Long Relief | BS182: Raul Valdes | BT182: Wandy Rodriguez | BU182: Erik Bedard | BV182: Priced in-line with expectations.
A183: Gonzales | B183: Marco | C183: L | D183: 2016 | E183: 24 | F183: SLN | G183: NL | H183: JP | I183: 0.24 | J183: Y | K183: 76 | L183: 3 | M183: 15 | N183: 8 | O183: 0 | P183: 0 | Q183: 0 | R183: 2 | S183: 238 | T183: 7 | U183: 23 | V183: 1 | W183: 41 | X183: 159 | Y183: 66 | Z183: 43 | AA183: 2 | AB183: 3 | AC183: 0 | AD183: 36 | AE183: 4.78 | AF183: 58 | AG183: 9.9 | AH183: 1.8 | AI183: 7.5 | AJ183: 4 | AK183: 1.27 | AL183: 0.303 | AM183: 1.57 | AN183: 1.85 | AO183: 0.07 | AP183: 20 | AQ183: 123 | AR183: 17 | AS183: 5 | AT183: 2.12 | AU183: 244 | AV183: 22 | AW183: -0.36 | AX183: LP | AY183: 53.5 | AZ183: 4.52 | BA183: 94 | BB183: 19 | BC183: JP | BD183: 72.1 | BE183: 4.43 | BF183: 97 | BG183: 24 | BH183: 2.7 | BI183: 13.5 | BJ183: 6.94 | BK183: 1 | BL183: -8.72 | BM183: 16 | BN183: S | BO183: 69 | BP183: gonzama02 | BQ183: 594835 | BR183: Young Lefty Swing Starter | BS183: Brian Johnson | BT183: Manny Banuelos | BU183: Sean Nolin | BV183: Expect rebound.
A184: Lee | B184: Zach | C184: R | D184: 2016 | E184: 24 | F184: LAN | G184: NL | H184: JP | I184: 0.09 | J184: Y | K184: 63.3 | L184: 2 | M184: 15 | N184: 8 | O184: 0 | P184: 0 | Q184: 0 | R184: 2 | S184: 227 | T184: 8 | U184: 20 | V184: 1 | W184: 40 | X184: 151 | Y184: 69 | Z184: 43 | AA184: 2 | AB184: 2 | AC184: 0 | AD184: 40 | AE184: 4.75 | AF184: 56 | AG184: 9.9 | AH184: 1.9 | AI184: 7.5 | AJ184: 3.7 | AK184: 1.36 | AL184: 0.321 | AM184: 1.63 | AN184: 1.92 | AO184: 0.07 | AP184: 22 | AQ184: 123 | AR184: 17 | AS184: 5 | AT184: 1.09 | AU184: 245 | AV184: 23 | AW184: -0.41 | AX184: LP | AY184: 50.1 | AZ184: 4.4 | BA184: 91 | BB184: 20 | BC184: JP | BD184: 72 | BE184: 4.34 | BF184: 95 | BG184: 26 | BH184: 4.7 | BI184: 13.5 | BJ184: 4.83 | BK184: 6 | BL184: -8.75 | BM184: 11 | BN184: S | BO184: 67 | BP184: leeza01 | BQ184: 545346 | BR184: Young Swing Starter | BS184: Jon Moscot | BT184: Joe Wieland | BU184: Asher Wojciechowski | BV184: Needs to prove value. Expect rebound.
A185: Cole | B185: A.J. | C185: R | D185: 2016 | E185: 24 | F185: WAS | G185: NL | H185: JP | I185: 0.16 | J185: Y | K185: 44 | L185: 2 | M185: 16 | N185: 8 | O185: 0 | P185: 0 | Q185: 1 | R185: 3 | S185: 237 | T185: 7 | U185: 20 | V185: 2 | W185: 44 | X185: 158 | Y185: 44 | Z185: 41 | AA185: 2 | AB185: 1 | AC185: 0 | AD185: 27 | AE185: 4.5 | AF185: 33 | AG185: 5.5 | AH185: 2.2 | AI185: 7.7 | AJ185: 3.3 | AK185: 1.25 | AL185: 0.345 | AM185: 1.54 | AN185: 1.76 | AO185: 0.07 | AP185: 33 | AQ185: 116 | AR185: 16 | AS185: 4 | AT185: 0 | AU185: 252 | AV185: 25 | AW185: -0.34 | AX185: LP | AY185: 49.9 | AZ185: 4.16 | BA185: 86 | BB185: 25 | BC185: JP | BD185: 76.6 | BE185: 4.17 | BF185: 91 | BG185: 31 | BH185: 9.3 | BI185: 5.79 | BJ185: 2.75 | BK185: 74 | BL185: -1.29 | BM185: -58 | BN185: R | BO185: 67 | BP185: coleaj01 | BQ185: 595918 | BR185: Young Power Long Relief | BS185: Severino Gonzalez | BT185: Zach Lee | BU185: Kendry Flores | BV185: Needs to prove value. Priced in-line with expectations.
A186: Matzek | B186: Tyler | C186: L | D186: 2016 | E186: 25 | F186: COL | G186: NL | H186: JP | I186: 0.55 | J186: Y | K186: 91 | L186: 5 | M186: 22 | N186: 10 | O186: 0 | P186: 0 | Q186: 0 | R186: 3 | S186: 308 | T186: 7 | U186: 31 | V186: 1 | W186: 58 | X186: 214 | Y186: 78 | Z186: 46 | AA186: 3 | AB186: 3 | AC186: 0 | AD186: 37 | AE186: 5.09 | AF186: 76 | AG186: 9.7 | AH186: 1.9 | AI186: 7.5 | AJ186: 4 | AK186: 0.86 | AL186: 0.293 | AM186: 1.46 | AN186: 1.39 | AO186: 0.05 | AP186: 23 | AQ186: 132 | AR186: 16 | AS186: 3 | AT186: 6.59 | AU186: 254 | AV186: 26 | AW186: -0.79 | AX186: LP | AY186: 64.6 | AZ186: 4.26 | BA186: 88 | BB186: 26 | BC186: JP | BD186: 79.3 | BE186: 4.3 | BF186: 94 | BG186: 28 | BH186: 22 | BI186: 4.09 | BJ186: 6.22 | BK186: 3 | BL186: 1 | BM186: 13 | BN186: R | BO186: 57 | BP186: matzety01 | BQ186: 554431 | BR186: Young Lefty Starter | BS186: Martin Perez | BT186: Brian Johnson | BU186: James Paxton | BV186: Priced in-line with expectations.
A187: Bailey | B187: Homer | C187: R | D187: 2016 | E187: 30 | F187: CIN | G187: NL | H187: JP | I187: 0.64 | J187: Y | K187: 88.9 | L187: 4 | M187: 10 | N187: 10 | O187: 0 | P187: 0 | Q187: 0 | R187: 0 | S187: 265 | T187: 7 | U187: 19 | V187: 1 | W187: 53 | X187: 191 | Y187: 65 | Z187: 45 | AA187: 2 | AB187: 3 | AC187: 0 | AD187: 30 | AE187: 5.06 | AF187: 58 | AG187: 8.2 | AH187: 2.9 | AI187: 7.6 | AJ187: 2.7 | AK187: 0.99 | AL187: 0.275 | AM187: 1.24 | AN187: 1.39 | AO187: 0.05 | AP187: 37 | AQ187: 131 | AR187: 15 | AS187: 7 | AT187: 7.95 | AU187: 257 | AV187: 27 | AW187: -0.95 | AX187: LP | AY187: 59.7 | AZ187: 4.02 | BA187: 84 | BB187: 30 | BC187: JP | BD187: 73.8 | BE187: 4.1 | BF187: 90 | BG187: 32 | BH187: 11.3 | BI187: 5.56 | BJ187: 6.46 | BK187: 2 | BL187: -0.5 | BM187: 14 | BN187: R | BO187: 62 | BP187: baileho02 | BQ187: 456701 | BR187: Righty Super Control Starter | BS187: Anibal Sanchez | BT187: Henderson Alvarez | BU187: Adam Wainwright | BV187: In prime. Priced in-line with expectations.
A188: Roach | B188: Donn | C188: R | D188: 2016 | E188: 26 | F188: CHN | G188: NL | H188: JP | I188: 0.22 | J188: Y | K188: 73.5 | L188: 3 | M188: 17 | N188: 7 | O188: 0 | P188: 0 | Q188: 0 | R188: 4 | S188: 231 | T188: 6 | U188: 21 | V188: 1 | W188: 35 | X188: 153 | Y188: 67 | Z188: 44 | AA188: 4 | AB188: 4 | AC188: 0 | AD188: 36 | AE188: 4.9 | AF188: 57 | AG188: 10 | AH188: 1.7 | AI188: 6.7 | AJ188: 3.7 | AK188: 1.08 | AL188: 0.309 | AM188: 1.58 | AN188: 1.6 | AO188: 0.05 | AP188: 12 | AQ188: 126 | AR188: 15 | AS188: 3 | AT188: 1.16 | AU188: 260 | AV188: 28 | AW188: -0.58 | AX188: LP | AY188: 52.1 | AZ188: 4.39 | BA188: 91 | BB188: 21 | BC188: JP | BD188: 70.6 | BE188: 4.31 | BF188: 95 | BG188: 26 | BH188: 3.3 | BI188: 10.8 | BJ188: 3.67 | BK188: 19 | BL188: -5.9 | BM188: -3 | BN188: R | BO188: 67 | BP188: roachdo01 | BQ188: 543698 | BR188: Righty Soft Tosser Swing Starter | BS188: Jose Urena | BT188: Allen Webster | BU188: Tyler Wagner | BV188: Priced in-line with expectations.
A189: Germen | B189: Gonzalez | C189: R | D189: 2016 | E189: 28 | F189: COL | G189: NL | H189: JP | I189: 0.41 | J189: Y | K189: 47 | L189: 3 | M189: 50 | N189: 4 | O189: 0 | P189: 0 | Q189: 1 | R189: 11 | S189: 299 | T189: 8 | U189: 33 | V189: 3 | W189: 58 | X189: 202 | Y189: 47 | Z189: 43 | AA189: 2 | AB189: 1 | AC189: 0 | AD189: 24 | AE189: 4.73 | AF189: 45 | AG189: 6 | AH189: 1.8 | AI189: 7.8 | AJ189: 4.4 | AK189: 1.12 | AL189: 0.329 | AM189: 1.51 | AN189: 1.73 | AO189: 0.06 | AP189: 25 | AQ189: 122 | AR189: 15 | AS189: 2 | AT189: 0.76 | AU189: 263 | AV189: 29 | AW189: -0.4 | AX189: LP | AY189: 56.1 | AZ189: 4.42 | BA189: 92 | BB189: 21 | BC189: JP | BD189: 80.9 | BE189: 4.33 | BF189: 95 | BG189: 28 | BH189: 38.7 | BI189: 4.42 | BJ189: 4.58 | BK189: 15 | BL189: 0.31 | BM189: 0 | BN189: R | BO189: 42 | BP189: germego01 | BQ189: 542674 | BR189: Righty Power RP | BS189: J.C. Ramirez | BT189: Carlos Contreras | BU189: Phillippe Aumont | BV189: Priced in-line with expectations.
A190: Bradley | B190: Archie | C190: R | D190: 2016 | E190: 23 | F190: ARI | G190: NL | H190: JP | I190: 0.42 | J190: Y | K190: 76.5 | L190: 4 | M190: 18 | N190: 12 | O190: 0 | P190: 0 | Q190: 0 | R190: 2 | S190: 305 | T190: 8 | U190: 35 | V190: 2 | W190: 51 | X190: 204 | Y190: 80 | Z190: 47 | AA190: 2 | AB190: 4 | AC190: 0 | AD190: 47 | AE190: 5.19 | AF190: 73 | AG190: 9.8 | AH190: 1.5 | AI190: 7.2 | AJ190: 4.7 | AK190: 1.11 | AL190: 0.298 | AM190: 1.61 | AN190: 1.75 | AO190: 0.06 | AP190: 9 | AQ190: 134 | AR190: 15 | AS190: 4 | AT190: 3.36 | AU190: 267 | AV190: 30 | AW190: -0.7 | AX190: LP | AY190: 62.2 | AZ190: 4.59 | BA190: 95 | BB190: 20 | BC190: JP | BD190: 81 | BE190: 4.48 | BF190: 98 | BG190: 25 | BH190: 35.7 | BI190: 5.8 | BJ190: 4.97 | BK190: 11 | BL190: -0.62 | BM190: 4 | BN190: R | BO190: 45 | BP190: bradlar01 | BQ190: 605151 | BR190: Young Swing Starter | BS190: Lisalverto Bonilla | BT190: Dallas Beeler | BU190: Tyler Wagner | BV190: Priced in-line with expectations.
A191: Banuelos | B191: Manny | C191: L | D191: 2016 | E191: 25 | F191: ATL | G191: NL | H191: JP | I191: 0.34 | J191: Y | K191: 74.4 | L191: 3 | M191: 18 | N191: 11 | O191: 0 | P191: 0 | Q191: 0 | R191: 2 | S191: 275 | T191: 9 | U191: 27 | V191: 1 | W191: 48 | X191: 183 | Y191: 75 | Z191: 46 | AA191: 3 | AB191: 4 | AC191: 0 | AD191: 43 | AE191: 5.12 | AF191: 66 | AG191: 9.8 | AH191: 1.8 | AI191: 7.3 | AJ191: 4 | AK191: 1.34 | AL191: 0.303 | AM191: 1.57 | AN191: 1.93 | AO191: 0.07 | AP191: 14 | AQ191: 132 | AR191: 14 | AS191: 4 | AT191: 2.96 | AU191: 271 | AV191: 31 | AW191: -0.56 | AX191: LP | AY191: 57.7 | AZ191: 4.67 | BA191: 97 | BB191: 18 | BC191: JP | BD191: 76.4 | BE191: 4.55 | BF191: 100 | BG191: 23 | BH191: 26.3 | BI191: 5.13 | BJ191: 5.32 | BK191: 7 | BL191: -0.01 | BM191: 7 | BN191: R | BO191: 50 | BP191: banuema01 | BQ191: 544365 | BR191: Young Lefty Swing Starter | BS191: Sean Nolin | BT191: Marco Gonzales | BU191: Brian Flynn | BV191: Priced in-line with expectations.
A192: Beeler | B192: Dallas | C192: R | D192: 2016 | E192: 27 | F192: CHN | G192: NL | H192: JP | I192: 0.16 | J192: Y | K192: 71.1 | L192: 3 | M192: 15 | N192: 9 | O192: 0 | P192: 0 | Q192: 0 | R192: 2 | S192: 230 | T192: 6 | U192: 23 | V192: 2 | W192: 38 | X192: 153 | Y192: 65 | Z192: 45 | AA192: 3 | AB192: 2 | AC192: 0 | AD192: 38 | AE192: 4.97 | AF192: 57 | AG192: 10 | AH192: 1.6 | AI192: 7.2 | AJ192: 4.1 | AK192: 1.05 | AL192: 0.308 | AM192: 1.59 | AN192: 1.62 | AO192: 0.05 | AP192: 15 | AQ192: 128 | AR192: 14 | AS192: 4 | AT192: 1.2 | AU192: 272 | AV192: 32 | AW192: -0.72 | AX192: LP | AY192: 51.8 | AZ192: 4.27 | BA192: 89 | BB192: 23 | BC192: JP | BD192: 70.7 | BE192: 4.25 | BF192: 93 | BG192: 28 | BH192: 8.3 | BI192: 9.72 | BJ192: 3.47 | BK192: 28 | BL192: -4.75 | BM192: -13 | BN192: R | BO192: 62 | BP192: beeleda01 | BQ192: 542923 | BR192: Righty Swing Starter | BS192: Lisalverto Bonilla | BT192: Tyler Wagner | BU192: Archie Bradley | BV192: Needs to prove value. Priced in-line with expectations.
A193: Jordan | B193: Taylor | C193: R | D193: 2016 | E193: 27 | F193: WAS | G193: NL | H193: JP | I193: 0.34 | J193: Y | K193: 54.2 | L193: 3 | M193: 18 | N193: 8 | O193: 0 | P193: 0 | Q193: 0 | R193: 3 | S193: 253 | T193: 6 | U193: 20 | V193: 1 | W193: 41 | X193: 171 | Y193: 57 | Z193: 44 | AA193: 2 | AB193: 2 | AC193: 0 | AD193: 30 | AE193: 4.88 | AF193: 46 | AG193: 7.2 | AH193: 2 | AI193: 6.7 | AJ193: 3.2 | AK193: 0.94 | AL193: 0.313 | AM193: 1.47 | AN193: 1.4 | AO193: 0.05 | AP193: 17 | AQ193: 126 | AR193: 14 | AS193: 3 | AT193: 1.45 | AU193: 274 | AV193: 33 | AW193: -0.73 | AX193: LP | AY193: 52.9 | AZ193: 4.17 | BA193: 87 | BB193: 25 | BC193: JP | BD193: 75.7 | BE193: 4.15 | BF193: 91 | BG193: 31 | BH193: 17 | BI193: 5.29 | BJ193: 3.16 | BK193: 47 | BL193: -0.41 | BM193: -33 | BN193: R | BO193: 59 | BP193: jordata01 | BQ193: 518863 | BR193: Righty Soft Tosser Swing Starter | BS193: Nick Tepesch | BT193: Miles Mikolas | BU193: David Buchanan | BV193: Priced in-line with expectations.
A194: Smith | B194: Josh | C194: R | D194: 2016 | E194: 28 | F194: CIN | G194: NL | H194: JP | I194: 0.4 | J194: Y | K194: 64.7 | L194: 3 | M194: 19 | N194: 11 | O194: 0 | P194: 0 | Q194: 0 | R194: 2 | S194: 285 | T194: 9 | U194: 31 | V194: 3 | W194: 51 | X194: 184 | Y194: 79 | Z194: 47 | AA194: 2 | AB194: 6 | AC194: 0 | AD194: 48 | AE194: 5.18 | AF194: 70 | AG194: 10.1 | AH194: 1.6 | AI194: 7.7 | AJ194: 4.5 | AK194: 1.3 | AL194: 0.315 | AM194: 1.66 | AN194: 1.95 | AO194: 0.07 | AP194: 15 | AQ194: 134 | AR194: 14 | AS194: 3 | AT194: 2.18 | AU194: 277 | AV194: 34 | AW194: -0.65 | AX194: LP | AY194: 57.7 | AZ194: 4.65 | BA194: 97 | BB194: 18 | BC194: JP | BD194: 77.7 | BE194: 4.53 | BF194: 99 | BG194: 24 | BH194: 32.7 | BI194: 6.89 | BJ194: 5.19 | BK194: 9 | BL194: -1.71 | BM194: 5 | BN194: R | BO194: 45 | BP194: smithjo07 | BQ194: 595001 | BR194: Righty Power Wild Swing Starter | BS194: Michael Lorenzen | BT194: Daniel Corcino | BU194: Allen Webster | BV194: Priced in-line with expectations.
A195: Flores | B195: Kendry | C195: R | D195: 2016 | E195: 24 | F195: MIA | G195: NL | H195: JP | I195: 0.2 | J195: Y | K195: 42.6 | L195: 2 | M195: 19 | N195: 7 | O195: 0 | P195: 0 | Q195: 0 | R195: 5 | S195: 243 | T195: 6 | U195: 22 | V195: 2 | W195: 43 | X195: 164 | Y195: 42 | Z195: 42 | AA195: 1 | AB195: 2 | AC195: 0 | AD195: 23 | AE195: 4.67 | AF195: 32 | AG195: 5.3 | AH195: 2 | AI195: 7.4 | AJ195: 3.6 | AK195: 1.04 | AL195: 0.347 | AM195: 1.55 | AN195: 1.56 | AO195: 0.06 | AP195: 25 | AQ195: 120 | AR195: 14 | AS195: 3 | AT195: 0 | AU195: 278 | AV195: 35 | AW195: -0.51 | AX195: LP | AY195: 50.3 | AZ195: 4.15 | BA195: 86 | BB195: 25 | BC195: JP | BD195: 77.2 | BE195: 4.16 | BF195: 91 | BG195: 31 | BH195: 12.7 | BI195: 4.97 | BJ195: 2.91 | BK195: 62 | BL195: -0.31 | BM195: -48 | BN195: R | BO195: 65 | BP195: floreke01 | BQ195: 572309 | BR195: Young Long Relief | BS195: Jorge Lopez | BT195: Keyvius Sampson | BU195: A.J. Cole | BV195: Priced in-line with expectations.
A196: Billingsley | B196: Chad | C196: R | D196: 2016 | E196: 31 | F196: PHI | G196: NL | H196: JP | I196: 0.38 | J196: Y | K196: 73 | L196: 3 | M196: 17 | N196: 11 | O196: 0 | P196: 0 | Q196: 0 | R196: 2 | S196: 273 | T196: 9 | U196: 22 | V196: 1 | W196: 39 | X196: 184 | Y196: 82 | Z196: 47 | AA196: 3 | AB196: 2 | AC196: 0 | AD196: 43 | AE196: 5.21 | AF196: 66 | AG196: 9.6 | AH196: 1.8 | AI196: 5.8 | AJ196: 3.1 | AK196: 1.24 | AL196: 0.308 | AM196: 1.56 | AN196: 1.72 | AO196: 0.06 | AP196: 3 | AQ196: 135 | AR196: 14 | AS196: 3 | AT196: 2.36 | AU196: 280 | AV196: 36 | AW196: -0.76 | AX196: LP | AY196: 58 | AZ196: 4.54 | BA196: 94 | BB196: 20 | BC196: JP | BD196: 75.4 | BE196: 4.45 | BF196: 98 | BG196: 25 | BH196: 37 | BI196: 5.84 | BJ196: 4.78 | BK196: 13 | BL196: -0.63 | BM196: 1 | BN196: R | BO196: 38 | BP196: billich01 | BQ196: 451532 | BR196: Righty Hittable Control Swing Starter | BS196: Nick Tepesch | BT196: Kevin Correia | BU196: Fausto Carmona | BV196: In prime. Priced in-line with expectations. Trade bait?
A197: Moscot | B197: Jon | C197: R | D197: 2016 | E197: 24 | F197: CIN | G197: NL | H197: JP | I197: 0.19 | J197: Y | K197: 75.5 | L197: 3 | M197: 16 | N197: 9 | O197: 0 | P197: 0 | Q197: 0 | R197: 2 | S197: 239 | T197: 8 | U197: 23 | V197: 1 | W197: 41 | X197: 162 | Y197: 65 | Z197: 46 | AA197: 3 | AB197: 2 | AC197: 0 | AD197: 37 | AE197: 5.09 | AF197: 57 | AG197: 9.6 | AH197: 1.8 | AI197: 7.2 | AJ197: 3.9 | AK197: 1.38 | AL197: 0.293 | AM197: 1.53 | AN197: 1.96 | AO197: 0.07 | AP197: 13 | AQ197: 132 | AR197: 14 | AS197: 3 | AT197: 2.14 | AU197: 284 | AV197: 37 | AW197: -0.66 | AX197: LP | AY197: 53 | AZ197: 4.54 | BA197: 94 | BB197: 19 | BC197: JP | BD197: 72 | BE197: 4.44 | BF197: 97 | BG197: 24 | BH197: 11.7 | BI197: 4.63 | BJ197: 5.67 | BK197: 4 | BL197: 0.47 | BM197: 10 | BN197: R | BO197: 60 | BP197: moscojo01 | BQ197: 621209 | BR197: Young Swing Starter | BS197: Joe Wieland | BT197: Zach Lee | BU197: Chris Beck | BV197: Needs to prove value. Priced in-line with expectations.
A198: Kelly | B198: Casey | C198: R | D198: 2016 | E198: 26 | F198: ATL | G198: NL | H198: JP | I198: 0.18 | J198: Y | K198: 64.3 | L198: 3 | M198: 16 | N198: 8 | O198: 0 | P198: 0 | Q198: 0 | R198: 3 | S198: 237 | T198: 7 | U198: 21 | V198: 1 | W198: 40 | X198: 156 | Y198: 71 | Z198: 46 | AA198: 2 | AB198: 3 | AC198: 0 | AD198: 42 | AE198: 5.1 | AF198: 58 | AG198: 9.8 | AH198: 1.9 | AI198: 7.2 | AJ198: 3.5 | AK198: 1.19 | AL198: 0.319 | AM198: 1.59 | AN198: 1.71 | AO198: 0.06 | AP198: 16 | AQ198: 132 | AR198: 13 | AS198: 3 | AT198: 1.05 | AU198: 285 | AV198: 38 | AW198: -0.81 | AX198: LP | AY198: 51.8 | AZ198: 4.33 | BA198: 90 | BB198: 22 | BC198: JP | BD198: 72.7 | BE198: 4.29 | BF198: 94 | BG198: 27 | BH198: 11.3 | BI198: 7.94 | BJ198: 4.07 | BK198: 15 | BL198: -2.84 | BM198: -2 | BN198: R | BO198: 61 | BP198: kellyca01 | BQ198: 543391 | BR198: Righty Swing Starter | BS198: Jon Moscot | BT198: Tyler Wagner | BU198: Joe Wieland | BV198: Needs to prove value. Priced in-line with expectations.
A199: Correia | B199: Kevin | C199: R | D199: 2016 | E199: 35 | F199: PHI | G199: NL | H199: JP | I199: 0.65 | J199: Y | K199: 73.6 | L199: 4 | M199: 18 | N199: 11 | O199: 0 | P199: 0 | Q199: 0 | R199: 2 | S199: 296 | T199: 8 | U199: 20 | V199: 1 | W199: 41 | X199: 203 | Y199: 85 | Z199: 48 | AA199: 2 | AB199: 2 | AC199: 0 | AD199: 43 | AE199: 5.38 | AF199: 70 | AG199: 9.1 | AH199: 2 | AI199: 5.4 | AJ199: 2.6 | AK199: 1.1 | AL199: 0.296 | AM199: 1.44 | AN199: 1.52 | AO199: 0.05 | AP199: 2 | AQ199: 139 | AR199: 13 | AS199: 2 | AT199: 4.64 | AU199: 287 | AV199: 39 | AW199: -1.05 | AX199: LP | AY199: 60.2 | AZ199: 4.38 | BA199: 91 | BB199: 23 | BC199: JP | BD199: 77.1 | BE199: 4.33 | BF199: 95 | BG199: 27 | BH199: 23.3 | BI199: 6.56 | BJ199: 4.94 | BK199: 9 | BL199: -1.17 | BM199: 4 | BN199: R | BO199: 54 | BP199: correke01 | BQ199: 429781 | BR199: Aging Super Control Swing Starter | BS199: Chad Billingsley | BT199: Fausto Carmona | BU199: Jeremy Guthrie | BV199: He's done. Drop like a hot potato. Trade bait?
A200: Beachy | B200: Brandon | C200: R | D200: 2016 | E200: 29 | F200: LAN | G200: NL | H200: JP | I200: 0.21 | J200: Y | K200: 68.4 | L200: 3 | M200: 15 | N200: 8 | O200: 0 | P200: 0 | Q200: 0 | R200: 2 | S200: 214 | T200: 7 | U200: 20 | V200: 2 | W200: 36 | X200: 144 | Y200: 59 | Z200: 45 | AA200: 2 | AB200: 2 | AC200: 0 | AD200: 36 | AE200: 5.04 | AF200: 50 | AG200: 9.2 | AH200: 1.8 | AI200: 7.1 | AJ200: 3.8 | AK200: 1.36 | AL200: 0.292 | AM200: 1.52 | AN200: 1.94 | AO200: 0.07 | AP200: 11 | AQ200: 130 | AR200: 13 | AS200: 3 | AT200: 1.33 | AU200: 288 | AV200: 40 | AW200: -0.67 | AX200: LP | AY200: 48.7 | AZ200: 4.45 | BA200: 92 | BB200: 19 | BC200: JP | BD200: 68 | BE200: 4.37 | BF200: 96 | BG200: 25 | BH200: 8 | BI200: 7.88 | BJ200: 4.96 | BK200: 6 | BL200: -2.83 | BM200: 8 | BN200: R | BO200: 60 | BP200: beachbr01 | BQ200: 545404 | BR200: Righty Swing Starter | BS200: Josh Lindblom | BT200: Phil Irwin | BU200: Toru Murata | BV200: Approaching his prime years. Priced in-line with expectations. Trade bait?
... 844 more rows

Sheet BAT2016forecast
A1: http://baseballguru.com | C1: FORECAST AS OF 2/29/2016 | H1: Make Selections by Clicking on Header ARROWS (like pos or league) | K1: Percentage of forecast based on players own stats | L1: eXpected wOBA for someone at his position and playing time | M1: eXpected mGURU for someone at his position and playing time | N1: Played last year | O1: Games | P1: Times at Plate | Q1: At Bats | R1: Runs | S1: Hits | T1: Doubles | U1: Triples | V1: Home runs | W1: Runs batted in | X1: Stolen bases | Y1: Times caught stealing | Z1: Walks | AA1: Strike outs | AB1: Intentional walks | AC1: Hit by pitch | AD1: Sacrifice hits | AE1: Sacrifice flies | AF1: Ground into double play | AG1: Batting average | AH1: On base percentage | AI1: Slugging percentage | AJ1: Rate of performace, like OPS but more accurate. Based on Tom Tango's "The Book" | AK1: Production, like linear weights. It is mWOBA * mTAP | AL1: Batting value, based on weighting between m WOBA and mPRO | AM1: Batting value where mGURU is weighted by positional scarcity | AN1: Dollar value, based on 5x5 Rotisserie: Avg, HR, SB, RBI, R | AO1: Dollar value, based on 5x5: Avg, HR, SB, RBI, R. Weighted by positional scarcity | AP1: Value (runs contributed) Over Replacement Player at same position | AQ1: Position rank | AR1: Rank overall among batters | AS1: Position league rank | AT1: Playing time: Y=Starter, N=Not starter or Inj risk or performance risk, B=Bench | AU1: Difference between forecasted performace rate and last years. Positive numbers are sleepers, mwOBA-wOBA | AV1: Difference between forecast and last years value. Sleepers have high values. | AW1: Draft Value: S=Sleeper, R=Regular, O=Overpriced | AX1: Times at plate last year | AY1: Batting average last year | AZ1: On base percentage last year | BA1: Slugging percentage last year | BB1: Rate of performace, like OPS but more accurate. Based on Tom Tango's "The Book" | BC1: Last years Production, like linear weights. It is wOBA * mTAP | BD1: Batting value last year | BE1: Lahman PlayerID | BF1: MLB ID | BG1: Description of player for predicted season | BH1: Most Similar Player | BI1: Second Most Similar Player | BJ1: Third Most Similar Player | BK1: Words to the wise
A2: nameLast | B2: nameFirst | C2: bats | D2: yearp | E2: age | F2: teamID | G2: lg | H2: pos | I2: pos2 | J2: pos3 | K2: reliability | L2: xWOBA | M2: xGURU | N2: play | O2: mG | P2: mTAP | Q2: mAB | R2: mR | S2: mH | T2: mDB | U2: mTR | V2: mHR | W2: mRBI | X2: mSB | Y2: mCS | Z2: mBB | AA2: mSO | AB2: mIBB | AC2: mHPB | AD2: mSH | AE2: mSF | AF2: mGIDP | AG2: mAVG | AH2: mOBP | AI2: mSLG | AJ2: mWOBA | AK2: mPRO | AL2: mGURU | AM2: mGURUwt | AN2: mROTO | AO2: mROTOwt | AP2: mVORP | AQ2: prank | AR2: rank | AS2: plrank | AT2: mstarter | AU2: wobad | AV2: gurud | AW2: value | AX2: tap_2015 | AY2: avg_2015 | AZ2: obp_2015 | BA2: slg_2015 | BB2: wOBA_2015 | BC2: PRO_2015 | BD2: GURU_2015 | BE2: PlayerID | BF2: MLBAM_ID | BG2: Description | BH2: Match1 | BI2: Match2 | BJ2: Match3 | BK2: Advice
A3: Peralta | B3: Jhonny | C3: R | D3: 2016 | E3: 33 | F3: SLN | G3: NL | H3: SS | K3: 0.85 | L3: 0.312 | M3: 44 | N3: Y | O3: 127 | P3: 487 | Q3: 436 | R3: 49 | S3: 111 | T3: 21 | U3: 0 | V3: 14 | W3: 54 | X3: 3 | Y3: 3 | Z3: 43 | AA3: 85 | AB3: 3 | AC3: 4 | AD3: 1 | AE3: 4 | AF3: 16 | AG3: 0.257 | AH3: 0.323 | AI3: 0.401 | AJ3: 0.319 | AK3: 156 | AL3: 43 | AM3: 55 | AN3: 14 | AO3: 17 | AP3: 10 | AQ3: 4 | AR3: 37 | AS3: 1 | AT3: Y | AU3: -0.01 | AV3: -14 | AW3: R | AX3: 640 | AY3: 0.275 | AZ3: 0.334 | BA3: 0.411 | BB3: 0.328 | BC3: 210 | BD3: 57 | BE3: peraljh01 | BF3: 425509 | BG3: Lead Footed Dominant Hitter | BH3: Robinson Cano | BI3: Troy Tulowitzki | BJ3: J.J. Hardy | BK3: His best days are past him, but he should perform near projected levels. Expected to play regularly. All-star.
A4: Crawford | B4: Brandon | C4: L | D4: 2016 | E4: 29 | F4: SFN | G4: NL | H4: SS | K4: 0.85 | L4: 0.312 | M4: 44 | N4: Y | O4: 143 | P4: 484 | Q4: 439 | R4: 50 | S4: 108 | T4: 25 | U4: 5 | V4: 13 | W4: 57 | X4: 5 | Y4: 3 | Z4: 33 | AA4: 96 | AB4: 8 | AC4: 5 | AD4: 1 | AE4: 5 | AF4: 11 | AG4: 0.245 | AH4: 0.302 | AI4: 0.415 | AJ4: 0.311 | AK4: 151 | AL4: 39 | AM4: 49 | AN4: 13 | AO4: 17 | AP4: 6 | AQ4: 6 | AR4: 63 | AS4: 2 | AT4: Y | AU4: -0.03 | AV4: -19 | AW4: O | AX4: 561 | AY4: 0.256 | AZ4: 0.321 | BA4: 0.462 | BB4: 0.337 | BC4: 189 | BD4: 58 | BE4: crawfbr01 | BF4: 543063 | BG4: Slugger | BH4: Asdrubal Cabrera | BI4: Marcus Semien | BJ4: Eduardo Escobar | BK4: Limited improvement expected from here. Overpriced in most drafts, be realistic.
A5: Ho Kang | B5: Jung | C5: R | D5: 2016 | E5: 29 | F5: PIT | G5: NL | H5: SS | I5: 3B | K5: 0.82 | L5: 0.341 | M5: 62 | N5: Y | O5: 86 | P5: 375 | Q5: 345 | R5: 47 | S5: 93 | T5: 16 | U5: 1 | V5: 11 | W5: 45 | X5: 4 | Y5: 3 | Z5: 17 | AA5: 76 | AB5: 0 | AC5: 12 | AD5: 0 | AE5: 1 | AF5: 7 | AG5: 0.267 | AH5: 0.324 | AI5: 0.415 | AJ5: 0.325 | AK5: 122 | AL5: 39 | AM5: 39 | AN5: 14 | AO5: 13 | AP5: 8 | AQ5: 7 | AR5: 137 | AS5: 3 | AT5: N | AU5: -0.03 | AV5: -25 | AW5: O | AX5: 467 | AY5: 0.287 | AZ5: 0.355 | BA5: 0.461 | BB5: 0.358 | BC5: 167 | BD5: 64 | BE5: kangju01 | BF5: 628356 | BG5: Slugger | BH5: Marwin Gonzalez | BI5: Troy Tulowitzki | BJ5: Starlin Castro | BK5: Limited improvement expected from here. Risk of injury or playing time.
A6: Seager | B6: Corey | C6: L | D6: 2016 | E6: 22 | F6: LAN | G6: NL | H6: SS | K6: 0.53 | L6: 0.299 | M6: 18 | N6: Y | O6: 58 | P6: 262 | Q6: 232 | R6: 32 | S6: 64 | T6: 14 | U6: 2 | V6: 5 | W6: 31 | X6: 5 | Y6: 1 | Z6: 27 | AA6: 45 | AB6: 1 | AC6: 2 | AD6: 1 | AE6: 1 | AF6: 4 | AG6: 0.274 | AH6: 0.354 | AI6: 0.417 | AJ6: 0.342 | AK6: 90 | AL6: 37 | AM6: 39 | AN6: 10 | AO6: 11 | AP6: 11 | AQ6: 9 | AR6: 139 | AS6: 4 | AT6: N | AU6: -0.08 | AV6: -11 | AW6: R | AX6: 113 | AY6: 0.337 | AZ6: 0.425 | BA6: 0.561 | BB6: 0.426 | BC6: 48 | BD6: 48 | BE6: seageco01 | BF6: 608369 | BG6: Young Gap Power | BH6: Ryan Brett | BI6: Ronald Torreyes | BJ6: Ketel Marte | BK6: Needs to establish himself at MLB level. Risk of injury or playing time. Consider platooning.
A7: Russell | B7: Addison | C7: R | D7: 2016 | E7: 22 | F7: CHN | G7: NL | H7: SS | I7: 2B | K7: 0.84 | L7: 0.312 | M7: 44 | N7: Y | O7: 136 | P7: 458 | Q7: 408 | R7: 49 | S7: 94 | T7: 31 | U7: 2 | V7: 10 | W7: 44 | X7: 5 | Y7: 2 | Z7: 44 | AA7: 113 | AB7: 2 | AC7: 2 | AD7: 1 | AE7: 2 | AF7: 8 | AG7: 0.231 | AH7: 0.308 | AI7: 0.389 | AJ7: 0.307 | AK7: 141 | AL7: 36 | AM7: 45 | AN7: 9 | AO7: 12 | AP7: 4 | AQ7: 14 | AR7: 95 | AS7: 5 | AT7: Y | AU7: 0 | AV7: -3 | AW7: R | AX7: 523 | AY7: 0.242 | AZ7: 0.307 | BA7: 0.389 | BB7: 0.306 | BC7: 160 | BD7: 39 | BE7: russead02 | BF7: 608365 | BG7: Young Capable Hitter | BH7: Pedro Severino | BI7: Carlos Sanchez | BJ7: Trevor Brown | BK7: Best years are still be ahead, even if last year was less than expected. Starter, but may sit occassionally. Already solid MLB caliber. Long term buy.
A8: Cabrera | B8: Asdrubal | C8: B | D8: 2016 | E8: 30 | F8: NYN | G8: NL | H8: SS | K8: 0.85 | L8: 0.312 | M8: 44 | N8: Y | O8: 133 | P8: 475 | Q8: 434 | R8: 56 | S8: 106 | T8: 26 | U8: 3 | V8: 13 | W8: 49 | X8: 7 | Y8: 2 | Z8: 30 | AA8: 87 | AB8: 2 | AC8: 4 | AD8: 2 | AE8: 5 | AF8: 12 | AG8: 0.245 | AH8: 0.296 | AI8: 0.409 | AJ8: 0.305 | AK8: 145 | AL8: 36 | AM8: 45 | AN8: 14 | AO8: 17 | AP8: 3 | AQ8: 15 | AR8: 92 | AS8: 6 | AT8: Y | AU8: -0.02 | AV8: -12 | AW8: R | AX8: 551 | AY8: 0.265 | AZ8: 0.315 | BA8: 0.43 | BB8: 0.322 | BC8: 177 | BD8: 48 | BE8: cabreas01 | BF8: 452678 | BG8: Agile Slugger | BH8: Brandon Crawford | BI8: Logan Forsythe | BJ8: Eduardo Escobar | BK8: Limited improvement expected from here. Expected to play regularly. Solid keeper.
A9: Reyes | B9: Jose | C9: B | D9: 2016 | E9: 32 | F9: COL | G9: NL | H9: SS | K9: 0.84 | L9: 0.312 | M9: 44 | N9: Y | O9: 110 | P9: 464 | Q9: 428 | R9: 58 | S9: 114 | T9: 19 | U9: 1 | V9: 8 | W9: 42 | X9: 20 | Y9: 4 | Z9: 28 | AA9: 57 | AB9: 1 | AC9: 1 | AD9: 4 | AE9: 3 | AF9: 6 | AG9: 0.268 | AH9: 0.31 | AI9: 0.371 | AJ9: 0.301 | AK9: 140 | AL9: 34 | AM9: 42 | AN9: 18 | AO9: 23 | AP9: 1 | AQ9: 18 | AR9: 108 | AS9: 7 | AT9: Y | AU9: 0 | AV9: -1 | AW9: R | AX9: 519 | AY9: 0.274 | AZ9: 0.31 | BA9: 0.378 | BB9: 0.298 | BC9: 155 | BD9: 35 | BE9: reyesjo01 | BF9: 408314 | BG9: SB Capable Hitter | BH9: Alexei Ramirez | BI9: Erick Aybar | BJ9: Elvis Andrus | BK9: Still In prime. Starter, but may sit occassionally. Trade him for two part timers who can platoon.
A10: Flores | B10: Wilmer | C10: R | D10: 2016 | E10: 24 | F10: NYN | G10: NL | H10: SS | I10: 2B | K10: 0.77 | L10: 0.312 | M10: 44 | N10: Y | O10: 139 | P10: 465 | Q10: 433 | R10: 48 | S10: 110 | T10: 25 | U10: 1 | V10: 11 | W10: 50 | X10: 3 | Y10: 1 | Z10: 25 | AA10: 64 | AB10: 2 | AC10: 3 | AD10: 2 | AE10: 2 | AF10: 11 | AG10: 0.254 | AH10: 0.295 | AI10: 0.393 | AJ10: 0.3 | AK10: 140 | AL10: 34 | AM10: 42 | AN10: 12 | AO10: 15 | AP10: 1 | AQ10: 19 | AR10: 109 | AS10: 8 | AT10: Y | AU10: 0 | AV10: -4 | AW10: R | AX10: 510 | AY10: 0.263 | AZ10: 0.295 | BA10: 0.408 | BB10: 0.304 | BC10: 155 | BD10: 37 | BE10: florewi01 | BF10: 527038 | BG10: Young Capable Hitter | BH10: Starlin Castro | BI10: Logan Forsythe | BJ10: Jordy Mercer | BK10: Career on the rise. Track his progress to determine upside. Starter, but may sit occassionally. Already solid MLB caliber. Long term buy.
A11: Segura | B11: Jean | C11: L | D11: 2016 | E11: 26 | F11: ARI | G11: NL | H11: SS | K11: 0.85 | L11: 0.312 | M11: 44 | N11: Y | O11: 140 | P11: 527 | Q11: 493 | R11: 56 | S11: 128 | T11: 18 | U11: 6 | V11: 7 | W11: 40 | X11: 22 | Y11: 7 | Z11: 23 | AA11: 75 | AB11: 3 | AC11: 5 | AD11: 4 | AE11: 2 | AF11: 14 | AG11: 0.259 | AH11: 0.295 | AI11: 0.365 | AJ11: 0.29 | AK11: 153 | AL11: 32 | AM11: 41 | AN11: 17 | AO11: 22 | AP11: -5 | AQ11: 21 | AR11: 113 | AS11: 9 | AT11: Y | AU11: 0.02 | AV11: 5 | AW11: S | AX11: 584 | AY11: 0.257 | AZ11: 0.281 | BA11: 0.336 | BB11: 0.271 | BC11: 159 | BD11: 27 | BE11: segurje01 | BF11: 516416 | BG11: SB Capable Hitter | BH11: Dee Gordon | BI11: Alcides Escobar | BJ11: Alexi Amarista | BK11: Should perform close to forecast. Will outperform last year, assuming regular playing time.
A12: Aybar | B12: Erick | C12: B | D12: 2016 | E12: 32 | F12: ATL | G12: NL | H12: SS | K12: 0.86 | L12: 0.312 | M12: 44 | N12: Y | O12: 135 | P12: 515 | Q12: 478 | R12: 60 | S12: 126 | T12: 23 | U12: 2 | V12: 5 | W12: 46 | X12: 12 | Y12: 6 | Z12: 24 | AA12: 58 | AB12: 2 | AC12: 3 | AD12: 5 | AE12: 5 | AF12: 11 | AG12: 0.265 | AH12: 0.299 | AI12: 0.354 | AJ12: 0.288 | AK12: 148 | AL12: 31 | AM12: 39 | AN12: 15 | AO12: 20 | AP12: -6 | AQ12: 23 | AR12: 132 | AS12: 10 | AT12: Y | AU12: 0.01 | AV12: -2 | AW12: R | AX12: 638 | AY12: 0.27 | AZ12: 0.301 | BA12: 0.338 | BB12: 0.282 | BC12: 180 | BD12: 33 | BE12: aybarer01 | BF12: 430947 | BG12: Agile Capable Hitter | BH12: Howie Kendrick | BI12: Ian Kinsler | BJ12: Omar Infante | BK12: Still In prime. Expected to play regularly. Trade him for two part timers who can platoon.
A13: Hechavarria | B13: Adeiny | C13: R | D13: 2016 | E13: 27 | F13: MIA | G13: NL | H13: SS | K13: 0.84 | L13: 0.312 | M13: 44 | N13: Y | O13: 134 | P13: 494 | Q13: 462 | R13: 44 | S13: 120 | T13: 18 | U13: 7 | V13: 4 | W13: 39 | X13: 7 | Y13: 4 | Z13: 25 | AA13: 76 | AB13: 3 | AC13: 1 | AD13: 2 | AE13: 4 | AF13: 17 | AG13: 0.26 | AH13: 0.297 | AI13: 0.356 | AJ13: 0.288 | AK13: 142 | AL13: 30 | AM13: 38 | AN13: 11 | AO13: 14 | AP13: -5 | AQ13: 25 | AR13: 148 | AS13: 11 | AT13: Y | AU13: -0.02 | AV13: -7 | AW13: R | AX13: 499 | AY13: 0.281 | AZ13: 0.315 | BA13: 0.374 | BB13: 0.304 | BC13: 152 | BD13: 37 | BE13: hechaad01 | BF13: 588751 | BG13: Agile Slap Hitter | BH13: Freddy Galvis | BI13: Alexi Amarista | BJ13: Brock Holt | BK13: Running out of time to prove himself. This year could establish who he is. Expected to play regularly.
A14: Ramirez | B14: Alexei | C14: R | D14: 2016 | E14: 34 | F14: SDN | G14: NL | H14: SS | K14: 0.87 | L14: 0.312 | M14: 44 | N14: Y | O14: 125 | P14: 467 | Q14: 435 | R14: 49 | S14: 111 | T14: 21 | U14: 1 | V14: 9 | W14: 46 | X14: 16 | Y14: 5 | Z14: 24 | AA14: 55 | AB14: 1 | AC14: 3 | AD14: 1 | AE14: 4 | AF14: 15 | AG14: 0.258 | AH14: 0.295 | AI14: 0.366 | AJ14: 0.291 | AK14: 136 | AL14: 30 | AM14: 37 | AN14: 15 | AO14: 19 | AP14: -4 | AQ14: 26 | AR14: 155 | AS14: 12 | AT14: Y | AU14: 0.01 | AV14: -2 | AW14: R | AX14: 622 | AY14: 0.249 | AZ14: 0.285 | BA14: 0.357 | BB14: 0.282 | BC14: 175 | BD14: 32 | BE14: ramiral03 | BF14: 493351 | BG14: Aging SB Capable Hitter | BH14: Jose Reyes | BI14: Erick Aybar | BJ14: Ian Kinsler | BK14: His best days are past him, but he should perform near projected levels. Starter, but may sit occassionally. Trade him for two part timers who can platoon.
A15: Rollins | B15: Jimmy | C15: B | D15: 2016 | E15: 37 | F15: LAN | G15: NL | H15: SS | K15: 0.86 | L15: 0.312 | M15: 44 | N15: Y | O15: 101 | P15: 397 | Q15: 347 | R15: 47 | S15: 79 | T15: 12 | U15: 1 | V15: 8 | W15: 31 | X15: 13 | Y15: 4 | Z15: 45 | AA15: 61 | AB15: 2 | AC15: 1 | AD15: 2 | AE15: 2 | AF15: 7 | AG15: 0.232 | AH15: 0.315 | AI15: 0.341 | AJ15: 0.297 | AK15: 118 | AL15: 29 | AM15: 35 | AN15: 10 | AO15: 12 | AP15: -1 | AQ15: 27 | AR15: 167 | AS15: 13 | AT15: N | AU15: 0.01 | AV15: -2 | AW15: R | AX15: 563 | AY15: 0.224 | AZ15: 0.285 | BA15: 0.358 | BB15: 0.284 | BC15: 160 | BD15: 31 | BE15: rolliji01 | BF15: 276519 | BG15: Aging SB Capable Hitter | BH15: Chase Utley | BI15: Brian Roberts | BJ15: Mike Aviles | BK15: His best days are past him, but he should perform near projected levels. Risk of injury or playing time.
A16: Mercer | B16: Jordy | C16: R | D16: 2016 | E16: 29 | F16: PIT | G16: NL | H16: SS | K16: 0.82 | L16: 0.299 | M16: 18 | N16: Y | O16: 131 | P16: 436 | Q16: 403 | R16: 41 | S16: 101 | T16: 23 | U16: 1 | V16: 8 | W16: 38 | X16: 4 | Y16: 2 | Z16: 24 | AA16: 73 | AB16: 8 | AC16: 3 | AD16: 4 | AE16: 3 | AF16: 10 | AG16: 0.25 | AH16: 0.292 | AI16: 0.373 | AJ16: 0.291 | AK16: 127 | AL16: 29 | AM16: 32 | AN16: 9 | AO16: 11 | AP16: -3 | AQ16: 28 | AR16: 184 | AS16: 14 | AT16: Y | AU16: 0.02 | AV16: 6 | AW16: S | AX16: 430 | AY16: 0.244 | AZ16: 0.293 | BA16: 0.32 | BB16: 0.274 | BC16: 118 | BD16: 23 | BE16: mercejo03 | BF16: 474568 | BG16: Capable Hitter | BH16: Starlin Castro | BI16: Wilmer Flores | BJ16: Logan Forsythe | BK16: Chance for rebound. Expect rebound.
A17: Galvis | B17: Freddy | C17: B | D17: 2016 | E17: 26 | F17: PHI | G17: NL | H17: SS | K17: 0.78 | L17: 0.312 | M17: 44 | N17: Y | O17: 140 | P17: 466 | Q17: 429 | R17: 46 | S17: 105 | T17: 15 | U17: 5 | V17: 8 | W17: 40 | X17: 6 | Y17: 1 | Z17: 28 | AA17: 83 | AB17: 2 | AC17: 2 | AD17: 4 | AE17: 3 | AF17: 9 | AG17: 0.246 | AH17: 0.291 | AI17: 0.36 | AJ17: 0.286 | AK17: 133 | AL17: 28 | AM17: 35 | AN17: 10 | AO17: 13 | AP17: -6 | AQ17: 29 | AR17: 166 | AS17: 15 | AT17: Y | AU17: 0 | AV17: -4 | AW17: R | AX17: 603 | AY17: 0.263 | AZ17: 0.302 | BA17: 0.343 | BB17: 0.285 | BC17: 172 | BD17: 33 | BE17: galvifr01 | BF17: 520471 | BG17: Contact Hitter | BH17: Adeiny Hechavarria | BI17: Alexi Amarista | BJ17: Brad Miller | BK17: Some upside still, but needs to start proving it. Plays regularly, but bottom of the order bat.
A18: Suarez | B18: Eugenio | C18: R | D18: 2016 | E18: 24 | F18: CIN | G18: NL | H18: SS | K18: 0.77 | L18: 0.299 | M18: 18 | N18: Y | O18: 103 | P18: 398 | Q18: 363 | R18: 41 | S18: 90 | T18: 17 | U18: 2 | V18: 8 | W18: 39 | X18: 5 | Y18: 2 | Z18: 24 | AA18: 87 | AB18: 1 | AC18: 4 | AD18: 4 | AE18: 2 | AF18: 6 | AG18: 0.246 | AH18: 0.297 | AI18: 0.37 | AJ18: 0.293 | AK18: 117 | AL18: 28 | AM18: 31 | AN18: 10 | AO18: 12 | AP18: -2 | AQ18: 30 | AR18: 198 | AS18: 16 | AT18: N | AU18: -0.03 | AV18: -13 | AW18: R | AX18: 398 | AY18: 0.28 | AZ18: 0.315 | BA18: 0.446 | BB18: 0.325 | BC18: 130 | BD18: 41 | BE18: suareeu01 | BF18: 553993 | BG18: Young Capable Hitter | BH18: Marwin Gonzalez | BI18: Xander Bogaerts | BJ18: Starlin Castro | BK18: Career taking off. Could continue to exceed forecasts. Risk of injury or playing time.
A19: Owings | B19: Chris | C19: R | D19: 2016 | E19: 24 | F19: ARI | G19: NL | H19: SS | I19: 2B | K19: 0.78 | L19: 0.312 | M19: 44 | N19: Y | O19: 146 | P19: 469 | Q19: 431 | R19: 47 | S19: 101 | T19: 28 | U19: 6 | V19: 6 | W19: 37 | X19: 14 | Y19: 3 | Z19: 29 | AA19: 101 | AB19: 2 | AC19: 2 | AD19: 4 | AE19: 3 | AF19: 8 | AG19: 0.234 | AH19: 0.282 | AI19: 0.366 | AJ19: 0.283 | AK19: 133 | AL19: 27 | AM19: 34 | AN19: 10 | AO19: 12 | AP19: -7 | AQ19: 32 | AR19: 175 | AS19: 17 | AT19: Y | AU19: 0.03 | AV19: 6 | AW19: S | AX19: 552 | AY19: 0.227 | AZ19: 0.264 | BA19: 0.322 | BB19: 0.256 | BC19: 141 | BD19: 21 | BE19: owingch01 | BF19: 572008 | BG19: Young SB Gap Power | BH19: Daniel Santana | BI19: Cory Spangenberg | BJ19: Marcus Semien | BK19: Young enough to develop a lot from here. Will outperform last year, assuming regular playing time.
A20: Tejada | B20: Ruben | C20: R | D20: 2016 | E20: 26 | F20: NYN | G20: NL | H20: SS | K20: 0.79 | L20: 0.299 | M20: 18 | N20: Y | O20: 106 | P20: 370 | Q20: 326 | R20: 32 | S20: 78 | T20: 17 | U20: 0 | V20: 3 | W20: 27 | X20: 2 | Y20: 2 | Z20: 34 | AA20: 62 | AB20: 5 | AC20: 5 | AD20: 3 | AE20: 2 | AF20: 6 | AG20: 0.24 | AH20: 0.317 | AI20: 0.326 | AJ20: 0.293 | AK20: 108 | AL20: 26 | AM20: 29 | AN20: 5 | AO20: 6 | AP20: -2 | AQ20: 33 | AR20: 209 | AS20: 18 | AT20: N | AU20: -0.02 | AV20: -9 | AW20: R | AX20: 407 | AY20: 0.261 | AZ20: 0.338 | BA20: 0.35 | BB20: 0.311 | BC20: 127 | BD20: 35 | BE20: tejadru01 | BF20: 514913 | BG20: Gap Power | BH20: Thomas La Stella | BI20: Dixon Machado | BJ20: Miguel Rojas | BK20: Some upside still, but needs to start proving it. Risk of injury or playing time.
A21: Blanco | B21: Andres | C21: B | D21: 2016 | E21: 32 | F21: PHI | G21: NL | H21: SS | I21: 2B | J21: 3B | K21: 0.63 | L21: 0.305 | M21: 22 | N21: Y | O21: 78 | P21: 225 | Q21: 204 | R21: 25 | S21: 52 | T21: 12 | U21: 1 | V21: 5 | W21: 21 | X21: 1 | Y21: 1 | Z21: 15 | AA21: 41 | AB21: 1 | AC21: 2 | AD21: 3 | AE21: 0 | AF21: 8 | AG21: 0.256 | AH21: 0.309 | AI21: 0.404 | AJ21: 0.31 | AK21: 70 | AL21: 24 | AM21: 24 | AN21: 6 | AO21: 6 | AP21: 1 | AQ21: 37 | AR21: 267 | AS21: 19 | AT21: N | AU21: -0.06 | AV21: -25 | AW21: O | AX21: 261 | AY21: 0.292 | AZ21: 0.36 | BA21: 0.502 | BB21: 0.368 | BC21: 96 | BD21: 49 | BE21: blancan01 | BF21: 433217 | BG21: Playing Time Risk | BH21: Rey Navarro | BI21: Daniel Descalso | BJ21: Jordy Mercer | BK21: Still In prime. Will be overpriced in most drafts, unless truly healthy.
A22: Ahmed | B22: Nick | C22: R | D22: 2016 | E22: 26 | F22: ARI | G22: NL | H22: SS | K22: 0.74 | L22: 0.312 | M22: 44 | N22: Y | O22: 103 | P22: 349 | Q22: 320 | R22: 38 | S22: 75 | T22: 14 | U22: 4 | V22: 6 | W22: 27 | X22: 4 | Y22: 4 | Z22: 22 | AA22: 60 | AB22: 1 | AC22: 1 | AD22: 4 | AE22: 2 | AF22: 5 | AG22: 0.234 | AH22: 0.28 | AI22: 0.361 | AJ22: 0.28 | AK22: 98 | AL22: 22 | AM22: 25 | AN22: 6 | AO22: 7 | AP22: -6 | AQ22: 39 | AR22: 247 | AS22: 20 | AT22: N | AU22: 0.01 | AV22: -2 | AW22: R | AX22: 459 | AY22: 0.226 | AZ22: 0.275 | BA22: 0.359 | BB22: 0.275 | BC22: 126 | BD22: 24 | BE22: ahmedni01 | BF22: 605113 | BH22: Brad Miller | BI22: Daniel Castro | BJ22: Ryan Goins | BK22: Some upside still, but needs to start proving it. Risk of injury or playing time.
A23: Drew | B23: Stephen | C23: L | D23: 2016 | E23: 33 | F23: WAS | G23: NL | H23: SS | I23: 2B | K23: 0.8 | L23: 0.299 | M23: 18 | N23: Y | O23: 86 | P23: 264 | Q23: 235 | R23: 26 | S23: 49 | T23: 11 | U23: 1 | V23: 9 | W23: 28 | X23: 2 | Y23: 1 | Z23: 26 | AA23: 55 | AB23: 2 | AC23: 1 | AD23: 1 | AE23: 2 | AF23: 4 | AG23: 0.212 | AH23: 0.286 | AI23: 0.378 | AJ23: 0.291 | AK23: 77 | AL23: 21 | AM23: 22 | AN23: 4 | AO23: 5 | AP23: -2 | AQ23: 40 | AR23: 289 | AS23: 21 | AT23: N | AU23: 0.01 | AV23: -4 | AW23: R | AX23: 428 | AY23: 0.201 | AZ23: 0.271 | BA23: 0.381 | BB23: 0.282 | BC23: 121 | BD23: 25 | BE23: drewst01 | BF23: 452220 | BG23: Slugger | BH23: Ryan Flaherty | BI23: Brandon Hicks | BJ23: Darnell Sweeney | BK23: His best days are past him, but he should perform near projected levels. Role player, not a keeper.
A24: Amarista | B24: Alexi | C24: R | D24: 2016 | E24: 27 | F24: SDN | G24: NL | H24: SS | K24: 0.8 | L24: 0.299 | M24: 18 | N24: Y | O24: 126 | P24: 370 | Q24: 337 | R24: 33 | S24: 79 | T24: 13 | U24: 3 | V24: 5 | W24: 32 | X24: 6 | Y24: 1 | Z24: 24 | AA24: 58 | AB24: 3 | AC24: 2 | AD24: 4 | AE24: 3 | AF24: 6 | AG24: 0.233 | AH24: 0.281 | AI24: 0.329 | AJ24: 0.271 | AK24: 100 | AL24: 20 | AM24: 22 | AN24: 6 | AO24: 7 | AP24: -10 | AQ24: 41 | AR24: 290 | AS24: 22 | AT24: N | AU24: 0.03 | AV24: 7 | AW24: S | AX24: 357 | AY24: 0.204 | AZ24: 0.257 | BA24: 0.287 | BB24: 0.243 | BC24: 87 | BD24: 13 | BE24: amarial01 | BF24: 506560 | BG24: Agile Slap Hitter | BH24: Freddy Galvis | BI24: Adeiny Hechavarria | BJ24: Jean Segura | BK24: Running out of time to prove himself. This year could establish who he is. Will outperform last year, assuming regular playing time.
A25: Cozart | B25: Zack | C25: R | D25: 2016 | E25: 30 | F25: CIN | G25: NL | H25: SS | K25: 0.81 | L25: 0.299 | M25: 18 | N25: Y | O25: 83 | P25: 324 | Q25: 300 | R25: 36 | S25: 73 | T25: 13 | U25: 2 | V25: 6 | W25: 31 | X25: 4 | Y25: 1 | Z25: 14 | AA25: 50 | AB25: 2 | AC25: 3 | AD25: 4 | AE25: 3 | AF25: 8 | AG25: 0.242 | AH25: 0.277 | AI25: 0.358 | AJ25: 0.277 | AK25: 90 | AL25: 20 | AM25: 21 | AN25: 7 | AO25: 8 | AP25: -7 | AQ25: 42 | AR25: 295 | AS25: 23 | AT25: N | AU25: -0.05 | AV25: -8 | AW25: R | AX25: 214 | AY25: 0.258 | AZ25: 0.31 | BA25: 0.459 | BB25: 0.328 | BC25: 70 | BD25: 28 | BE25: cozarza01 | BF25: 446359 | BG25: Contact Hitter | BH25: Darwin Barney | BI25: Omar Infante | BJ25: Johnny Giavotella | BK25: Limited improvement expected from here. Risk of injury or playing time.
A26: Garcia | B26: Greg | C26: L | D26: 2016 | E26: 26 | F26: SLN | G26: NL | H26: SS | K26: 0.36 | L26: 0.299 | M26: 18 | N26: Y | O26: 68 | P26: 170 | Q26: 151 | R26: 17 | S26: 36 | T26: 8 | U26: 1 | V26: 3 | W26: 13 | X26: 1 | Y26: 1 | Z26: 14 | AA26: 31 | AB26: 1 | AC26: 3 | AD26: 1 | AE26: 1 | AF26: 3 | AG26: 0.235 | AH26: 0.311 | AI26: 0.358 | AJ26: 0.299 | AK26: 51 | AL26: 17 | AM26: 17 | AN26: 3 | AO26: 3 | AP26: 0 | AQ26: 49 | AR26: 359 | AS26: 24 | AT26: N | AU26: -0.02 | AV26: 3 | AW26: R | AX26: 87 | AY26: 0.24 | AZ26: 0.337 | BA26: 0.387 | BB26: 0.321 | BC26: 28 | BD26: 15 | BE26: garcigr01 | BF26: 594824 | BG26: Bench Warmer | BH26: Orlando Calixte | BI26: Ronald Torreyes | BJ26: Ehire Adrianza | BK26: Some upside still, but needs to start proving it. Risk of injury or playing time. Consider platooning.
A27: Villar | B27: Jonathan | C27: S | D27: 2016 | E27: 24 | F27: MIL | G27: NL | H27: SS | K27: 0.68 | L27: 0.299 | M27: 18 | N27: Y | O27: 70 | P27: 225 | Q27: 202 | R27: 24 | S27: 46 | T27: 10 | U27: 2 | V27: 3 | W27: 17 | X27: 12 | Y27: 3 | Z27: 18 | AA27: 53 | AB27: 1 | AC27: 1 | AD27: 3 | AE27: 1 | AF27: 4 | AG27: 0.227 | AH27: 0.289 | AI27: 0.344 | AJ27: 0.281 | AK27: 63 | AL27: 17 | AM27: 17 | AN27: 6 | AO27: 7 | AP27: -4 | AQ27: 50 | AR27: 366 | AS27: 25 | AT27: N | AU27: -0.05 | AV27: -4 | AW27: R | AX27: 128 | AY27: 0.284 | AZ27: 0.339 | BA27: 0.414 | BB27: 0.328 | BC27: 42 | BD27: 20 | BE27: villajo01 | BF27: 542340 | BG27: Young SB Gap Power | BH27: Leury Garcia | BI27: Pedro Florimon Jr. | BJ27: Terrance Gore | BK27: Needs to establish himself at MLB level. Risk of injury or playing time.
A28: Turner | B28: Trea | C28: R | D28: 2016 | E28: 22 | F28: WAS | G28: NL | H28: SS | K28: 0.31 | L28: 0.299 | M28: 18 | N28: Y | O28: 68 | P28: 175 | Q28: 157 | R28: 18 | S28: 37 | T28: 7 | U28: 1 | V28: 3 | W28: 12 | X28: 5 | Y28: 3 | Z28: 15 | AA28: 36 | AB28: 1 | AC28: 1 | AD28: 1 | AE28: 1 | AF28: 2 | AG28: 0.228 | AH28: 0.301 | AI28: 0.342 | AJ28: 0.288 | AK28: 51 | AL28: 16 | AM28: 16 | AN28: 4 | AO28: 4 | AP28: -2 | AQ28: 51 | AR28: 391 | AS28: 26 | AT28: N | AU28: 0.01 | AV28: 10 | AW28: R | AX28: 44 | AY28: 0.225 | AZ28: 0.295 | BA28: 0.325 | BB28: 0.281 | BC28: 12 | BD28: 6 | BE28: turnetr01 | BF28: 607208 | BG28: Young Bench Warmer | BH28: Wilfredo Tovar | BI28: Wilmer Difo | BJ28: Orlando Calixte | BK28: Needs to establish himself at MLB level. Risk of injury or playing time.
A29: Castro | B29: Daniel | C29: R | D29: 2016 | E29: 23 | F29: ATL | G29: NL | H29: SS | K29: 0.5 | L29: 0.299 | M29: 18 | N29: Y | O29: 63 | P29: 205 | Q29: 190 | R29: 25 | S29: 45 | T29: 7 | U29: 2 | V29: 3 | W29: 14 | X29: 2 | Y29: 1 | Z29: 12 | AA29: 34 | AB29: 0 | AC29: 1 | AD29: 2 | AE29: 1 | AF29: 6 | AG29: 0.239 | AH29: 0.284 | AI29: 0.347 | AJ29: 0.279 | AK29: 57 | AL29: 15 | AM29: 15 | AN29: 4 | AO29: 4 | AP29: -4 | AQ29: 52 | AR29: 397 | AS29: 27 | AT29: N | AU29: 0.02 | AV29: 7 | AW29: S | AX29: 100 | AY29: 0.24 | AZ29: 0.263 | BA29: 0.344 | BB29: 0.263 | BC29: 26 | BD29: 8 | BE29: castrda01 | BF29: 593495 | BG29: Young Slap Hitter | BH29: Cristhian Adames | BI29: Jose Pirela | BJ29: Wilmer Difo | BK29: Needs to establish himself at MLB level. Will put up better numbers with full season.
A30: Descalso | B30: Daniel | C30: L | D30: 2016 | E30: 29 | F30: COL | G30: NL | H30: SS | K30: 0.7 | L30: 0.299 | M30: 18 | N30: Y | O30: 89 | P30: 209 | Q30: 190 | R30: 23 | S30: 44 | T30: 9 | U30: 1 | V30: 3 | W30: 20 | X30: 2 | Y30: 2 | Z30: 14 | AA30: 39 | AB30: 3 | AC30: 1 | AD30: 2 | AE30: 1 | AF30: 3 | AG30: 0.228 | AH30: 0.283 | AI30: 0.339 | AJ30: 0.276 | AK30: 58 | AL30: 15 | AM30: 15 | AN30: 4 | AO30: 4 | AP30: -5 | AQ30: 53 | AR30: 403 | AS30: 28 | AT30: N | AU30: 0.01 | AV30: 1 | AW30: R | AX30: 209 | AY30: 0.205 | AZ30: 0.283 | BA30: 0.324 | BB30: 0.269 | BC30: 56 | BD30: 13 | BE30: descada01 | BF30: 518614 | BG30: Gap Power | BH30: Ehire Adrianza | BI30: Peter Kozma | BJ30: Nick Noonan | BK30: Poised for modest break out above last year. Risk of injury or playing time.
A31: Adrianza | B31: Ehire | C31: S | D31: 2016 | E31: 26 | F31: SFN | G31: NL | H31: SS | I31: 2B | K31: 0.49 | L31: 0.299 | M31: 18 | N31: Y | O31: 74 | P31: 192 | Q31: 170 | R31: 19 | S31: 38 | T31: 10 | U31: 1 | V31: 2 | W31: 15 | X31: 3 | Y31: 2 | Z31: 16 | AA31: 36 | AB31: 1 | AC31: 3 | AD31: 3 | AE31: 1 | AF31: 3 | AG31: 0.225 | AH31: 0.295 | AI31: 0.328 | AJ31: 0.28 | AK31: 54 | AL31: 15 | AM31: 15 | AN31: 3 | AO31: 3 | AP31: -4 | AQ31: 54 | AR31: 407 | AS31: 29 | AT31: N | AU31: 0.01 | AV31: 5 | AW31: R | AX31: 134 | AY31: 0.186 | AZ31: 0.303 | BA31: 0.265 | BB31: 0.267 | BC31: 36 | BD31: 10 | BE31: adriaeh01 | BF31: 501303 | BG31: Gap Power | BH31: Orlando Calixte | BI31: Greg Garcia | BJ31: Ronald Torreyes | BK31: Some upside still, but needs to start proving it. Risk of injury or playing time.
A32: Rojas | B32: Miguel | C32: R | D32: 2016 | E32: 27 | F32: MIA | G32: NL | H32: SS | K32: 0.61 | L32: 0.299 | M32: 18 | N32: Y | O32: 82 | P32: 208 | Q32: 190 | R32: 20 | S32: 45 | T32: 8 | U32: 1 | V32: 2 | W32: 18 | X32: 1 | Y32: 1 | Z32: 14 | AA32: 33 | AB32: 1 | AC32: 1 | AD32: 2 | AE32: 1 | AF32: 5 | AG32: 0.239 | AH32: 0.291 | AI32: 0.321 | AJ32: 0.274 | AK32: 57 | AL32: 14 | AM32: 15 | AN32: 3 | AO32: 3 | AP32: -5 | AQ32: 56 | AR32: 411 | AS32: 30 | AT32: N | AU32: -0.03 | AV32: -3 | AW32: R | AX32: 157 | AY32: 0.282 | AZ32: 0.329 | BA32: 0.366 | BB32: 0.306 | BC32: 48 | BD32: 18 | BE32: rojasmi02 | BF32: 500743 | BG32: Slap Hitter | BH32: Christian Colon | BI32: Philip Gosselin | BJ32: Thomas La Stella | BK32: Make or break year for him. Fringe MLB caliber. Risk of injury or playing time.
A33: Adames | B33: Cristhian | C33: S | D33: 2016 | E33: 24 | F33: COL | G33: NL | H33: SS | K33: 0.28 | L33: 0.299 | M33: 18 | N33: Y | O33: 59 | P33: 171 | Q33: 155 | R33: 16 | S33: 36 | T33: 6 | U33: 2 | V33: 2 | W33: 13 | X33: 2 | Y33: 1 | Z33: 12 | AA33: 33 | AB33: 1 | AC33: 2 | AD33: 2 | AE33: 1 | AF33: 3 | AG33: 0.229 | AH33: 0.289 | AI33: 0.329 | AJ33: 0.276 | AK33: 47 | AL33: 13 | AM33: 13 | AN33: 2 | AO33: 2 | AP33: -4 | AQ33: 60 | AR33: 436 | AS33: 31 | AT33: N | AU33: 0.01 | AV33: 7 | AW33: R | AX33: 58 | AY33: 0.245 | AZ33: 0.298 | BA33: 0.302 | BB33: 0.269 | BC33: 16 | BD33: 6 | BE33: adamecr01 | BF33: 542436 | BG33: Young Bench Warmer | BH33: Jose Pirela | BI33: Daniel Castro | BJ33: Wilmer Difo | BK33: Needs to establish himself at MLB level. Risk of injury or playing time.
A34: Baez | B34: Javier | C34: R | D34: 2016 | E34: 23 | F34: CHN | G34: NL | H34: SS | K34: 0.59 | L34: 0.299 | M34: 18 | N34: Y | O34: 61 | P34: 198 | Q34: 181 | R34: 18 | S34: 37 | T34: 9 | U34: 1 | V34: 5 | W34: 15 | X34: 4 | Y34: 2 | Z34: 15 | AA34: 57 | AB34: 1 | AC34: 1 | AD34: 1 | AE34: 0 | AF34: 3 | AG34: 0.204 | AH34: 0.269 | AI34: 0.338 | AJ34: 0.269 | AK34: 53 | AL34: 13 | AM34: 13 | AN34: 2 | AO34: 2 | AP34: -6 | AQ34: 61 | AR34: 434 | AS34: 32 | AT34: N | AU34: -0.05 | AV34: -1 | AW34: R | AX34: 80 | AY34: 0.289 | AZ34: 0.325 | BA34: 0.408 | BB34: 0.322 | BC34: 26 | BD34: 14 | BE34: baezja01 | BF34: 595879 | BG34: Young Swings for Fences | BH34: Nick Franklin | BI34: Arismendy Alcantara | BJ34: Danny Espinosa | BK34: Needs to establish himself at MLB level. Risk of injury or playing time.
A35: Difo | B35: Wilmer | C35: B | D35: 2016 | E35: 24 | F35: WAS | G35: NL | H35: SS | K35: 0.1 | L35: 0.299 | M35: 18 | N35: Y | O35: 59 | P35: 149 | Q35: 136 | R35: 15 | S35: 32 | T35: 6 | U35: 1 | V35: 2 | W35: 12 | X35: 2 | Y35: 1 | Z35: 11 | AA35: 28 | AB35: 1 | AC35: 1 | AD35: 1 | AE35: 1 | AF35: 2 | AG35: 0.235 | AH35: 0.292 | AI35: 0.341 | AJ35: 0.282 | AK35: 42 | AL35: 13 | AM35: 13 | AN35: 3 | AO35: 3 | AP35: -3 | AQ35: 62 | AR35: 440 | AS35: 33 | AT35: B | AU35: 0.12 | AV35: 13 | AW35: R | AX35: 11 | AY35: 0.182 | AZ35: 0.182 | BA35: 0.182 | BB35: 0.164 | BC35: 2 | BD35: 0 | BE35: difowi01 | BF35: 594694 | BG35: Young Bench Warmer | BH35: Orlando Calixte | BI35: Wilfredo Tovar | BJ35: Dixon Machado | BK35: Young enough to develop a lot from here. Expect limited opportunities.
A36: d'Arnaud | B36: Chase | C36: R | D36: 2016 | E36: 29 | F36: PHI | G36: NL | H36: SS | K36: 0.09 | L36: 0.299 | M36: 18 | N36: Y | O36: 38 | P36: 109 | Q36: 100 | R36: 12 | S36: 23 | T36: 4 | U36: 1 | V36: 2 | W36: 9 | X36: 1 | Y36: 2 | Z36: 6 | AA36: 22 | AB36: 0 | AC36: 1 | AD36: 1 | AE36: 1 | AF36: 2 | AG36: 0.226 | AH36: 0.281 | AI36: 0.347 | AJ36: 0.277 | AK36: 30 | AL36: 10 | AM36: 10 | AN36: 2 | AO36: 2 | AP36: -2 | AQ36: 68 | AR36: 496 | AS36: 34 | AT36: B | AU36: 0.05 | AV36: 8 | AW36: R | AX36: 18 | AY36: 0.176 | AZ36: 0.222 | BA36: 0.294 | BB36: 0.227 | BC36: 4 | BD36: 2 | BE36: darnach01 | BF36: 488818 | BG36: Bench Warmer | BH36: Ivan De Jesus | BI36: Tony Abreu | BJ36: Tyler Ladendorf | BK36: Chance for rebound. Risky pick. Avoid.
A37: Noonan | B37: Nick | C37: L | D37: 2016 | E37: 27 | F37: SFN | G37: NL | H37: SS | K37: 0.36 | L37: 0.299 | M37: 18 | N37: Y | O37: 49 | P37: 122 | Q37: 112 | R37: 12 | S37: 25 | T37: 4 | U37: 0 | V37: 2 | W37: 9 | X37: 1 | Y37: 1 | Z37: 8 | AA37: 25 | AB37: 1 | AC37: 1 | AD37: 1 | AE37: 0 | AF37: 2 | AG37: 0.216 | AH37: 0.276 | AI37: 0.313 | AJ37: 0.264 | AK37: 32 | AL37: 9 | AM37: 9 | AN37: 1 | AO37: 1 | AP37: -4 | AQ37: 71 | AR37: 521 | AS37: 35 | AT37: B | AU37: 0.07 | AV37: 8 | AW37: R | AX37: 24 | AY37: 0.091 | AZ37: 0.167 | BA37: 0.273 | BB37: 0.193 | BC37: 5 | BD37: 1 | BE37: noonani01 | BF37: 519082 | BG37: Bench Warmer | BH37: Carlos Triunfel | BI37: Logan Watkins | BJ37: Dean Anna | BK37: Make or break year for him. Fringe MLB caliber. Risky pick. Avoid.
A38: Florimon Jr. | B38: Pedro | C38: B | D38: 2016 | E38: 29 | F38: PIT | G38: NL | H38: SS | K38: 0.6 | L38: 0.299 | M38: 18 | N38: Y | O38: 37 | P38: 110 | Q38: 100 | R38: 12 | S38: 21 | T38: 4 | U38: 1 | V38: 2 | W38: 9 | X38: 4 | Y38: 1 | Z38: 7 | AA38: 25 | AB38: 0 | AC38: 1 | AD38: 1 | AE38: 1 | AF38: 2 | AG38: 0.203 | AH38: 0.264 | AI38: 0.32 | AJ38: 0.259 | AK38: 28 | AL38: 8 | AM38: 8 | AN38: 2 | AO38: 2 | AP38: -4 | AQ38: 73 | AR38: 561 | AS38: 36 | AT38: B | AU38: 0.1 | AV38: 7 | AW38: R | AX38: 25 | AY38: 0.087 | AZ38: 0.16 | BA38: 0.174 | BB38: 0.156 | BC38: 4 | BD38: 0 | BE38: floripe01 | BF38: 465753 | BG38: SB Bench Warmer | BH38: Leury Garcia | BI38: Jeff Kobernus | BJ38: Emilio Bonifacio | BK38: Chance for rebound. Risky pick. Avoid.
A39: Anna | B39: Dean | C39: L | D39: 2016 | E39: 29 | F39: SLN | G39: NL | H39: SS | K39: 0.1 | L39: 0.261 | M39: 6 | N39: Y | O39: 34 | P39: 96 | Q39: 88 | R39: 10 | S39: 19 | T39: 3 | U39: 0 | V39: 2 | W39: 8 | X39: 1 | Y39: 1 | Z39: 6 | AA39: 20 | AB39: 0 | AC39: 1 | AD39: 1 | AE39: 1 | AF39: 1 | AG39: 0.218 | AH39: 0.268 | AI39: 0.326 | AJ39: 0.263 | AK39: 25 | AL39: 8 | AM39: 7 | AN39: 1 | AO39: 1 | AP39: -5 | AQ39: 75 | AR39: 593 | AS39: 37 | AT39: B | AU39: 0.26 | AV39: 8 | AW39: R | AX39: 1 | AY39: 0 | AZ39: 0 | BA39: 0 | BB39: 0 | BC39: 0 | BD39: 0 | BE39: annade01 | BF39: 542883 | BG39: Agile Bench Warmer | BH39: Carlos Triunfel | BI39: Danny Worth | BJ39: Jonathan Diaz | BK39: Chance for rebound. Risky pick. Avoid.
A40: Rivera | B40: Yadiel | C40: R | D40: 2016 | E40: 23 | F40: MIL | G40: NL | H40: SS | K40: 0.13 | L40: 0.236 | M40: 3 | N40: Y | O40: 74 | P40: 123 | Q40: 113 | R40: 11 | S40: 21 | T40: 6 | U40: 1 | V40: 1 | W40: 8 | X40: 1 | Y40: 1 | Z40: 5 | AA40: 31 | AB40: 0 | AC40: 1 | AD40: 4 | AE40: 0 | AF40: 2 | AG40: 0.189 | AH40: 0.224 | AI40: 0.285 | AJ40: 0.223 | AK40: 27 | AL40: 5 | AM40: 5 | AN40: 0 | AO40: 0 | AP40: -9 | AQ40: 81 | AR40: 624 | AS40: 38 | AT40: B | AU40: 0.16 | AV40: 5 | AW40: R | AX40: 15 | AY40: 0.071 | AZ40: 0.071 | BA40: 0.071 | BB40: 0.06 | BC40: 1 | BD40: 0 | BE40: riverya01 | BF40: 592680 | BG40: Young Wiff King | BH40: Ryan Jackson | BI40: Taylor Featherston | BJ40: Hector Gomez | BK40: Young enough to develop a lot from here. Expect limited opportunities.
A41: Harper | B41: Bryce | C41: L | D41: 2016 | E41: 23 | F41: WAS | G41: NL | H41: OF | K41: 0.84 | L41: 0.344 | M41: 63 | N41: Y | O41: 148 | P41: 623 | Q41: 520 | R41: 86 | S41: 143 | T41: 32 | U41: 3 | V41: 25 | W41: 72 | X41: 9 | Y41: 3 | Z41: 94 | AA41: 123 | AB41: 9 | AC41: 4 | AD41: 2 | AE41: 3 | AF41: 10 | AG41: 0.278 | AH41: 0.387 | AI41: 0.488 | AJ41: 0.382 | AK41: 238 | AL41: 97 | AM41: 89 | AN41: 27 | AO41: 25 | AP41: 39 | AQ41: 2 | AR41: 3 | AS41: 1 | AT41: Y | AU41: -0.09 | AV41: -112 | AW41: O | AX41: 654 | AY41: 0.33 | AZ41: 0.46 | BA41: 0.649 | BB41: 0.467 | BC41: 306 | BD41: 209 | BE41: harpebr03 | BF41: 547180 | BG41: Young Dominant Hitter | BH41: Freddie Freeman | BI41: Anthony Rizzo | BJ41: Mike Trout | BK41: Developing well. Will have to pay premium to get him. MVP candidate.
A42: McCutchen | B42: Andrew | C42: R | D42: 2016 | E42: 29 | F42: PIT | G42: NL | H42: OF | K42: 0.87 | L42: 0.344 | M42: 63 | N42: Y | O42: 142 | P42: 616 | Q42: 540 | R42: 82 | S42: 154 | T42: 32 | U42: 4 | V42: 21 | W42: 79 | X42: 15 | Y42: 5 | Z42: 60 | AA42: 110 | AB42: 9 | AC42: 9 | AD42: 0 | AE42: 6 | AF42: 10 | AG42: 0.285 | AH42: 0.362 | AI42: 0.475 | AJ42: 0.364 | AK42: 224 | AL42: 81 | AM42: 75 | AN42: 30 | AO42: 28 | AP42: 27 | AQ42: 4 | AR42: 7 | AS42: 2 | AT42: Y | AU42: -0.02 | AV42: -29 | AW42: O | AX42: 685 | AY42: 0.292 | AZ42: 0.401 | BA42: 0.488 | BB42: 0.389 | BC42: 266 | BD42: 110 | BE42: mccutan01 | BF42: 457705 | BG42: Fantasy Star | BH42: Paul Goldschmidt | BI42: Jason Heyward | BJ42: Freddie Freeman | BK42: Limited improvement expected from here. Will have to pay premium to get him. Star player.
A43: Heyward | B43: Jason | C43: L | D43: 2016 | E43: 26 | F43: CHN | G43: NL | H43: OF | K43: 0.85 | L43: 0.344 | M43: 63 | N43: Y | O43: 143 | P43: 569 | Q43: 505 | R43: 71 | S43: 136 | T43: 30 | U43: 3 | V43: 13 | W43: 54 | X43: 15 | Y43: 3 | Z43: 57 | AA43: 88 | AB43: 3 | AC43: 5 | AD43: 0 | AE43: 2 | AF43: 8 | AG43: 0.269 | AH43: 0.346 | AI43: 0.416 | AJ43: 0.337 | AK43: 192 | AL43: 58 | AM43: 54 | AN43: 21 | AO43: 19 | AP43: 10 | AQ43: 9 | AR43: 42 | AS43: 3 | AT43: Y | AU43: -0.01 | AV43: -12 | AW43: R | AX43: 608 | AY43: 0.293 | AZ43: 0.359 | BA43: 0.439 | BB43: 0.351 | BC43: 213 | BD43: 70 | BE43: heywaja01 | BF43: 518792 | BG43: Capable Hitter | BH43: Eric Hosmer | BI43: Andrew McCutchen | BJ43: Christian Yelich | BK43: Should perform close to forecast. Expected to play regularly. All-star.
A44: Pederson | B44: Joc | C44: L | D44: 2016 | E44: 24 | F44: LAN | G44: NL | H44: OF | K44: 0.77 | L44: 0.344 | M44: 63 | N44: Y | O44: 138 | P44: 441 | Q44: 356 | R44: 47 | S44: 76 | T44: 20 | U44: 1 | V44: 19 | W44: 39 | X44: 5 | Y44: 4 | Z44: 77 | AA44: 111 | AB44: 5 | AC44: 5 | AD44: 2 | AE44: 2 | AF44: 6 | AG44: 0.214 | AH44: 0.357 | AI44: 0.432 | AJ44: 0.35 | AK44: 154 | AL44: 57 | AM44: 52 | AN44: 10 | AO44: 9 | AP44: 13 | AQ44: 11 | AR44: 51 | AS44: 4 | AT44: Y | AU44: 0.01 | AV44: -4 | AW44: R | AX44: 585 | AY44: 0.21 | AZ44: 0.346 | BA44: 0.417 | BB44: 0.339 | BC44: 198 | BD44: 61 | BE44: pederjo01 | BF44: 592626 | BG44: Young Slugger | BH44: Yasmani Grandal | BI44: Miguel Sano | BJ44: Carlos Santana | BK44: Best years are still be ahead, even if last year was less than expected. Starter, but may sit occassionally. All-star, health permitting.
A45: Stanton | B45: Mike | C45: R | D45: 2016 | E45: 26 | F45: MIA | G45: NL | H45: OF | K45: 0.82 | L45: 0.32 | M45: 27 | N45: Y | O45: 89 | P45: 416 | Q45: 363 | R45: 53 | S45: 92 | T45: 18 | U45: 1 | V45: 20 | W45: 62 | X45: 5 | Y45: 1 | Z45: 48 | AA45: 105 | AB45: 8 | AC45: 3 | AD45: 0 | AE45: 2 | AF45: 8 | AG45: 0.247 | AH45: 0.342 | AI45: 0.474 | AJ45: 0.353 | AK45: 147 | AL45: 57 | AM45: 52 | AN45: 18 | AO45: 16 | AP45: 14 | AQ45: 12 | AR45: 52 | AS45: 5 | AT45: N | AU45: -0.04 | AV45: -15 | AW45: O | AX45: 318 | AY45: 0.265 | AZ45: 0.346 | BA45: 0.606 | BB45: 0.395 | BC45: 126 | BD45: 72 | BE45: stantmi03 | BF45: 519317 | BG45: Slugger | BH45: Gregory Bird | BI45: Chris Davis | BJ45: Lucas Duda | BK45: Likely to regress a bit. Will have to pay premium to get him. All-star, health permitting.
A46: Pollock | B46: A.J. | C46: R | D46: 2016 | E46: 28 | F46: ARI | G46: NL | H46: OF | K46: 0.83 | L46: 0.344 | M46: 63 | N46: Y | O46: 138 | P46: 551 | Q46: 512 | R46: 80 | S46: 146 | T46: 31 | U46: 6 | V46: 14 | W46: 55 | X46: 23 | Y46: 5 | Z46: 31 | AA46: 85 | AB46: 1 | AC46: 3 | AD46: 1 | AE46: 4 | AF46: 11 | AG46: 0.285 | AH46: 0.326 | AI46: 0.453 | AJ46: 0.336 | AK46: 185 | AL46: 56 | AM46: 52 | AN46: 28 | AO46: 26 | AP46: 9 | AQ46: 13 | AR46: 54 | AS46: 6 | AT46: Y | AU46: -0.04 | AV46: -37 | AW46: O | AX46: 673 | AY46: 0.315 | AZ46: 0.367 | BA46: 0.498 | BB46: 0.372 | BC46: 251 | BD46: 93 | BE46: polloaj01 | BF46: 572041 | BG46: SB Slugger | BH46: Charlie Blackmon | BI46: Starling Marte | BJ46: Lorenzo Cain | BK46: Career still on the rise, but nearing peak. Will have to pay premium to get him. All-star level.
A47: Marte | B47: Starling | C47: R | D47: 2016 | E47: 27 | F47: PIT | G47: NL | H47: OF | K47: 0.85 | L47: 0.344 | M47: 63 | N47: Y | O47: 144 | P47: 581 | Q47: 529 | R47: 74 | S47: 142 | T47: 29 | U47: 5 | V47: 15 | W47: 59 | X47: 27 | Y47: 10 | Z47: 31 | AA47: 120 | AB47: 2 | AC47: 16 | AD47: 2 | AE47: 2 | AF47: 9 | AG47: 0.267 | AH47: 0.326 | AI47: 0.431 | AJ47: 0.33 | AK47: 192 | AL47: 55 | AM47: 50 | AN47: 27 | AO47: 25 | AP47: 6 | AQ47: 15 | AR47: 60 | AS47: 7 | AT47: Y | AU47: -0.01 | AV47: -9 | AW47: R | AX47: 633 | AY47: 0.287 | AZ47: 0.337 | BA47: 0.444 | BB47: 0.339 | BC47: 215 | BD47: 64 | BE47: martest01 | BF47: 516782 | BG47: SB Slugger | BH47: Charlie Blackmon | BI47: A.J. Pollock | BJ47: Lorenzo Cain | BK47: Should perform close to forecast. Expected to play regularly. All-star level.
A48: Yelich | B48: Christian | C48: L | D48: 2016 | E48: 24 | F48: MIA | G48: NL | H48: OF | K48: 0.84 | L48: 0.344 | M48: 63 | N48: Y | O48: 127 | P48: 549 | Q48: 488 | R48: 67 | S48: 132 | T48: 30 | U48: 4 | V48: 8 | W48: 44 | X48: 19 | Y48: 4 | Z48: 57 | AA48: 106 | AB48: 2 | AC48: 3 | AD48: 1 | AE48: 1 | AF48: 10 | AG48: 0.27 | AH48: 0.348 | AI48: 0.395 | AJ48: 0.332 | AK48: 182 | AL48: 54 | AM48: 49 | AN48: 20 | AO48: 18 | AP48: 7 | AQ48: 17 | AR48: 64 | AS48: 8 | AT48: Y | AU48: -0.02 | AV48: -9 | AW48: R | AX48: 525 | AY48: 0.3 | AZ48: 0.366 | BA48: 0.416 | BB48: 0.348 | BC48: 183 | BD48: 62 | BE48: yelicch01 | BF48: 592885 | BG48: Young SB Capable Hitter | BH48: Jason Heyward | BI48: Gregory Polanco | BJ48: Mookie Betts | BK48: Career on the rise. Track his progress to determine upside. Expected to play regularly. Hits, but not a likey all-star this year.
A49: Blackmon | B49: Charlie | C49: L | D49: 2016 | E49: 29 | F49: COL | G49: NL | H49: OF | K49: 0.85 | L49: 0.344 | M49: 63 | N49: Y | O49: 151 | P49: 596 | Q49: 550 | R49: 77 | S49: 151 | T49: 27 | U49: 5 | V49: 17 | W49: 57 | X49: 27 | Y49: 8 | Z49: 29 | AA49: 98 | AB49: 3 | AC49: 10 | AD49: 4 | AE49: 4 | AF49: 4 | AG49: 0.275 | AH49: 0.318 | AI49: 0.434 | AJ49: 0.326 | AK49: 194 | AL49: 53 | AM49: 49 | AN49: 28 | AO49: 26 | AP49: 4 | AQ49: 18 | AR49: 66 | AS49: 9 | AT49: Y | AU49: -0.02 | AV49: -18 | AW49: O | AX49: 682 | AY49: 0.287 | AZ49: 0.347 | BA49: 0.45 | BB49: 0.345 | BC49: 236 | BD49: 72 | BE49: blackch02 | BF49: 453568 | BG49: SB Slugger | BH49: Lorenzo Cain | BI49: A.J. Pollock | BJ49: Starling Marte | BK49: Limited improvement expected from here. Overpriced in most drafts, be realistic. Hits, but not a likey all-star this year.
A50: Gonzalez | B50: Carlos | C50: L | D50: 2016 | E50: 30 | F50: COL | G50: NL | H50: OF | K50: 0.82 | L50: 0.344 | M50: 63 | N50: Y | O50: 125 | P50: 464 | Q50: 427 | R50: 63 | S50: 108 | T50: 21 | U50: 3 | V50: 26 | W50: 66 | X50: 7 | Y50: 1 | Z50: 32 | AA50: 104 | AB50: 4 | AC50: 2 | AD50: 1 | AE50: 3 | AF50: 9 | AG50: 0.254 | AH50: 0.304 | AI50: 0.501 | AJ50: 0.34 | AK50: 158 | AL50: 53 | AM50: 49 | AN50: 21 | AO50: 20 | AP50: 9 | AQ50: 19 | AR50: 67 | AS50: 10 | AT50: Y | AU50: -0.02 | AV50: -27 | AW50: O | AX50: 608 | AY50: 0.271 | AZ50: 0.325 | BA50: 0.54 | BB50: 0.363 | BC50: 221 | BD50: 80 | BE50: gonzaca01 | BF50: 471865 | BG50: Agile Slugger | BH50: Pedro Alvarez | BI50: Khris Davis | BJ50: Justin Upton | BK50: Limited improvement expected from here. Starter, but may sit occassionally. Hits, but not a likey all-star this year.
A51: Cespedes | B51: Yoenis | C51: R | D51: 2016 | E51: 30 | F51: NYN | G51: NL | H51: OF | K51: 0.86 | L51: 0.344 | M51: 63 | N51: Y | O51: 143 | P51: 552 | Q51: 515 | R51: 74 | S51: 131 | T51: 30 | U51: 4 | V51: 26 | W51: 79 | X51: 7 | Y51: 4 | Z51: 28 | AA51: 112 | AB51: 4 | AC51: 4 | AD51: 0 | AE51: 4 | AF51: 11 | AG51: 0.255 | AH51: 0.296 | AI51: 0.479 | AJ51: 0.329 | AK51: 181 | AL51: 52 | AM51: 48 | AN51: 23 | AO51: 21 | AP51: 5 | AQ51: 20 | AR51: 71 | AS51: 11 | AT51: Y | AU51: -0.04 | AV51: -37 | AW51: O | AX51: 676 | AY51: 0.291 | AZ51: 0.328 | BA51: 0.542 | BB51: 0.367 | BC51: 248 | BD51: 89 | BE51: cespeyo01 | BF51: 493316 | BG51: Agile Slugger | BH51: Evan Gattis | BI51: J.D. Martinez | BJ51: Khris Davis | BK51: Limited improvement expected from here. Overpriced in most drafts, be realistic. Hits, but not a likey all-star this year.
A52: Braun | B52: Ryan | C52: R | D52: 2016 | E52: 32 | F52: MIL | G52: NL | H52: OF | K52: 0.83 | L52: 0.344 | M52: 63 | N52: Y | O52: 126 | P52: 489 | Q52: 442 | R52: 63 | S52: 114 | T52: 22 | U52: 3 | V52: 19 | W52: 67 | X52: 14 | Y52: 4 | Z52: 41 | AA52: 96 | AB52: 5 | AC52: 4 | AD52: 0 | AE52: 3 | AF52: 16 | AG52: 0.259 | AH52: 0.323 | AI52: 0.45 | AJ52: 0.335 | AK52: 164 | AL52: 52 | AM52: 48 | AN52: 22 | AO52: 20 | AP52: 7 | AQ52: 21 | AR52: 74 | AS52: 12 | AT52: Y | AU52: -0.03 | AV52: -29 | AW52: O | AX52: 567 | AY52: 0.285 | AZ52: 0.356 | BA52: 0.498 | BB52: 0.368 | BC52: 209 | BD52: 80 | BE52: braunry02 | BF52: 460075 | BG52: Fantasy Star | BH52: Hanley Ramirez | BI52: Logan Morrison | BJ52: Matt Kemp | BK52: Still In prime. Overpriced in most drafts, be realistic. Hits, but not a likey all-star this year.
A53: Granderson | B53: Curtis | C53: L | D53: 2016 | E53: 35 | F53: NYN | G53: NL | H53: OF | K53: 0.85 | L53: 0.344 | M53: 63 | N53: Y | O53: 124 | P53: 454 | Q53: 380 | R53: 56 | S53: 86 | T53: 18 | U53: 1 | V53: 17 | W53: 44 | X53: 8 | Y53: 3 | Z53: 67 | AA53: 96 | AB53: 2 | AC53: 4 | AD53: 0 | AE53: 3 | AF53: 3 | AG53: 0.232 | AH53: 0.346 | AI53: 0.417 | AJ53: 0.339 | AK53: 154 | AL53: 51 | AM53: 47 | AN53: 13 | AO53: 12 | AP53: 8 | AQ53: 22 | AR53: 79 | AS53: 13 | AT53: Y | AU53: -0.02 | AV53: -32 | AW53: O | AX53: 682 | AY53: 0.259 | AZ53: 0.364 | BA53: 0.457 | BB53: 0.36 | BC53: 246 | BD53: 83 | BE53: grandcu01 | BF53: 434158 | BG53: Aging Agile Slugger | BH53: Mike Napoli | BI53: Adam LaRoche | BJ53: Mark Teixeira | BK53: His best days are past him, but he should perform near projected levels. Starter, but may sit occassionally. Hits, but all-star games not expected anymore.
A54: Fowler | B54: Dexter | C54: B | D54: 2016 | E54: 30 | F54: CHN | G54: NL | H54: OF | K54: 0.85 | L54: 0.344 | M54: 63 | N54: Y | O54: 139 | P54: 533 | Q54: 468 | R54: 72 | S54: 116 | T54: 23 | U54: 5 | V54: 14 | W54: 41 | X54: 15 | Y54: 6 | Z54: 57 | AA54: 113 | AB54: 2 | AC54: 4 | AD54: 2 | AE54: 2 | AF54: 6 | AG54: 0.25 | AH54: 0.333 | AI54: 0.407 | AJ54: 0.327 | AK54: 174 | AL54: 50 | AM54: 46 | AN54: 17 | AO54: 16 | AP54: 4 | AQ54: 23 | AR54: 85 | AS54: 14 | AT54: Y | AU54: -0.01 | AV54: -15 | AW54: R | AX54: 690 | AY54: 0.25 | AZ54: 0.346 | BA54: 0.411 | BB54: 0.335 | BC54: 231 | BD54: 65 | BE54: fowlede01 | BF54: 451594 | BG54: Agile Dominant Hitter | BH54: Brett Gardner | BI54: Chris Coghlan | BJ54: Mike Trout | BK54: Poised for strong production realtive to skills. Expected to play regularly. Hits, but not a likey all-star this year.
A55: Puig | B55: Yasiel | C55: R | D55: 2016 | E55: 25 | F55: LAN | G55: NL | H55: OF | K55: 0.82 | L55: 0.32 | M55: 27 | N55: Y | O55: 91 | P55: 424 | Q55: 380 | R55: 53 | S55: 102 | T55: 19 | U55: 4 | V55: 11 | W55: 44 | X55: 8 | Y55: 4 | Z55: 36 | AA55: 84 | AB55: 2 | AC55: 6 | AD55: 1 | AE55: 2 | AF55: 4 | AG55: 0.265 | AH55: 0.339 | AI55: 0.422 | AJ55: 0.335 | AK55: 142 | AL55: 47 | AM55: 44 | AN55: 15 | AO55: 14 | AP55: 7 | AQ55: 26 | AR55: 102 | AS55: 15 | AT55: N | AU55: 0.01 | AV55: 11 | AW55: S | AX55: 311 | AY55: 0.255 | AZ55: 0.322 | BA55: 0.436 | BB55: 0.33 | BC55: 103 | BD55: 37 | BE55: puigya01 | BF55: 624577 | BG55: Young Dominant Hitter | BH55: Stephen Piscotty | BI55: Corey Dickerson | BJ55: Adam Eaton | BK55: Best still to come, even if last year was a set back. Will outperform last year, assuming regular playing time.
A56: Kemp | B56: Matt | C56: R | D56: 2016 | E56: 31 | F56: SDN | G56: NL | H56: OF | K56: 0.84 | L56: 0.344 | M56: 63 | N56: Y | O56: 141 | P56: 530 | Q56: 485 | R56: 64 | S56: 123 | T56: 27 | U56: 2 | V56: 20 | W56: 72 | X56: 10 | Y56: 3 | Z56: 36 | AA56: 118 | AB56: 2 | AC56: 3 | AD56: 0 | AE56: 5 | AF56: 17 | AG56: 0.253 | AH56: 0.305 | AI56: 0.44 | AJ56: 0.321 | AK56: 170 | AL56: 47 | AM56: 43 | AN56: 20 | AO56: 19 | AP56: 1 | AQ56: 27 | AR56: 104 | AS56: 16 | AT56: Y | AU56: 0 | AV56: -9 | AW56: R | AX56: 648 | AY56: 0.265 | AZ56: 0.312 | BA56: 0.443 | BB56: 0.325 | BC56: 211 | BD56: 56 | BE56: kempma01 | BF56: 461314 | BG56: Agile Dominant Hitter | BH56: J.D. Martinez | BI56: Todd Frazier | BJ56: Justin Upton | BK56: This is the time to shine. Expected to play regularly. Trade him for two part timers who can platoon.
A57: Markakis | B57: Nick | C57: L | D57: 2016 | E57: 32 | F57: ATL | G57: NL | H57: OF | K57: 0.87 | L57: 0.344 | M57: 63 | N57: Y | O57: 134 | P57: 556 | Q57: 501 | R57: 64 | S57: 135 | T57: 22 | U57: 1 | V57: 8 | W57: 45 | X57: 3 | Y57: 2 | Z57: 48 | AA57: 70 | AB57: 6 | AC57: 3 | AD57: 0 | AE57: 3 | AF57: 12 | AG57: 0.273 | AH57: 0.335 | AI57: 0.367 | AJ57: 0.316 | AK57: 176 | AL57: 45 | AM57: 42 | AN57: 15 | AO57: 13 | AP57: -2 | AQ57: 30 | AR57: 111 | AS57: 17 | AT57: Y | AU57: -0.02 | AV57: -21 | AW57: O | AX57: 686 | AY57: 0.296 | AZ57: 0.37 | BA57: 0.376 | BB57: 0.339 | BC57: 232 | BD57: 67 | BE57: markani01 | BF57: 455976 | BG57: Lead Footed Capable Hitter | BH57: Yunel Escobar | BI57: James Loney | BJ57: Yadier Molina | BK57: Still In prime. Overpriced in most drafts, be realistic. Worth more in trade than as keeper.
A58: Peralta | B58: David | C58: L | D58: 2016 | E58: 28 | F58: ARI | G58: NL | H58: OF | K58: 0.82 | L58: 0.344 | M58: 63 | N58: Y | O58: 109 | P58: 468 | Q58: 437 | R58: 54 | S58: 122 | T58: 18 | U58: 7 | V58: 12 | W58: 59 | X58: 8 | Y58: 4 | Z58: 23 | AA58: 90 | AB58: 1 | AC58: 3 | AD58: 1 | AE58: 4 | AF58: 7 | AG58: 0.278 | AH58: 0.317 | AI58: 0.434 | AJ58: 0.325 | AK58: 152 | AL58: 45 | AM58: 41 | AN58: 19 | AO58: 17 | AP58: 2 | AQ58: 31 | AR58: 114 | AS58: 18 | AT58: Y | AU58: -0.06 | AV58: -42 | AW58: O | AX58: 517 | AY58: 0.312 | AZ58: 0.371 | BA58: 0.522 | BB58: 0.382 | BC58: 198 | BD58: 86 | BE58: peralda01 | BF58: 444482 | BG58: Agile Slugger | BH58: Adam Eaton | BI58: James McCann | BJ58: Eddie Rosario | BK58: Career still on the rise, but nearing peak. Starter, but may sit occassionally.
A59: Inciarte | B59: Ender | C59: L | D59: 2016 | E59: 25 | F59: ATL | G59: NL | H59: OF | K59: 0.84 | L59: 0.344 | M59: 63 | N59: Y | O59: 134 | P59: 550 | Q59: 510 | R59: 68 | S59: 144 | T59: 27 | U59: 4 | V59: 7 | W59: 43 | X59: 22 | Y59: 6 | Z59: 32 | AA59: 66 | AB59: 1 | AC59: 3 | AD59: 3 | AE59: 3 | AF59: 7 | AG59: 0.282 | AH59: 0.324 | AI59: 0.39 | AJ59: 0.315 | AK59: 173 | AL59: 45 | AM59: 41 | AN59: 22 | AO59: 20 | AP59: -3 | AQ59: 33 | AR59: 116 | AS59: 19 | AT59: Y | AU59: -0.01 | AV59: -7 | AW59: R | AX59: 561 | AY59: 0.303 | AZ59: 0.338 | BA59: 0.408 | BB59: 0.327 | BC59: 184 | BD59: 52 | BE59: inciaen01 | BF59: 542255 | BG59: Young SB Capable Hitter | BH59: Jose Altuve | BI59: Matt Duffy | BJ59: Ben Revere | BK59: Career on the rise. Track his progress to determine upside. Expected to play regularly.
A60: Polanco | B60: Gregory | C60: L | D60: 2016 | E60: 24 | F60: PIT | G60: NL | H60: OF | K60: 0.83 | L60: 0.344 | M60: 63 | N60: Y | O60: 148 | P60: 525 | Q60: 468 | R60: 68 | S60: 114 | T60: 30 | U60: 4 | V60: 10 | W60: 46 | X60: 24 | Y60: 7 | Z60: 53 | AA60: 96 | AB60: 4 | AC60: 1 | AD60: 1 | AE60: 2 | AF60: 5 | AG60: 0.247 | AH60: 0.321 | AI60: 0.387 | AJ60: 0.314 | AK60: 165 | AL60: 43 | AM60: 39 | AN60: 18 | AO60: 17 | AP60: -3 | AQ60: 39 | AR60: 133 | AS60: 20 | AT60: Y | AU60: 0 | AV60: -4 | AW60: R | AX60: 652 | AY60: 0.256 | AZ60: 0.32 | BA60: 0.381 | BB60: 0.311 | BC60: 202 | BD60: 47 | BE60: polangr01 | BF60: 570256 | BG60: Young SB Capable Hitter | BH60: Mookie Betts | BI60: Christian Yelich | BJ60: Jason Heyward | BK60: Best years are still be ahead, even if last year was less than expected. Expected to play regularly.
A61: Holliday | B61: Matt | C61: R | D61: 2016 | E61: 36 | F61: SLN | G61: NL | H61: OF | K61: 0.83 | L61: 0.32 | M61: 27 | N61: Y | O61: 74 | P61: 334 | Q61: 283 | R61: 42 | S61: 72 | T61: 11 | U61: 0 | V61: 9 | W61: 44 | X61: 3 | Y61: 1 | Z61: 42 | AA61: 53 | AB61: 3 | AC61: 6 | AD61: 0 | AE61: 2 | AF61: 11 | AG61: 0.255 | AH61: 0.362 | AI61: 0.389 | AJ61: 0.339 | AK61: 113 | AL61: 42 | AM61: 39 | AN61: 11 | AO61: 10 | AP61: 7 | AQ61: 42 | AR61: 140 | AS61: 21 | AT61: N | AU61: -0.02 | AV61: -6 | AW61: R | AX61: 277 | AY61: 0.279 | AZ61: 0.394 | BA61: 0.41 | BB61: 0.363 | BC61: 100 | BD61: 48 | BE61: hollima01 | BF61: 407812 | BG61: Aging Slugger | BH61: Jayson Werth | BI61: Victor Martinez | BJ61: Carlos Beltran | BK61: His best days are past him, but he should perform near projected levels. If only he were on the field more.
A62: Bruce | B62: Jay | C62: L | D62: 2016 | E62: 29 | F62: CIN | G62: NL | H62: OF | K62: 0.86 | L62: 0.344 | M62: 63 | N62: Y | O62: 142 | P62: 490 | Q62: 444 | R62: 58 | S62: 102 | T62: 29 | U62: 2 | V62: 22 | W62: 64 | X62: 8 | Y62: 3 | Z62: 38 | AA62: 116 | AB62: 7 | AC62: 2 | AD62: 0 | AE62: 5 | AF62: 9 | AG62: 0.231 | AH62: 0.289 | AI62: 0.453 | AJ62: 0.316 | AK62: 155 | AL62: 42 | AM62: 39 | AN62: 16 | AO62: 15 | AP62: -2 | AQ62: 43 | AR62: 145 | AS62: 22 | AT62: Y | AU62: 0 | AV62: -6 | AW62: R | AX62: 649 | AY62: 0.226 | AZ62: 0.294 | BA62: 0.434 | BB62: 0.313 | BC62: 203 | BD62: 48 | BE62: bruceja01 | BF62: 457803 | BG62: Fantasy Star | BH62: Khris Davis | BI62: Justin Upton | BJ62: Todd Frazier | BK62: Poised for modest break out above last year. Expected to play regularly. Trade him for two part timers who can platoon.
A63: Werth | B63: Jayson | C63: R | D63: 2016 | E63: 36 | F63: WAS | G63: NL | H63: OF | K63: 0.83 | L63: 0.32 | M63: 27 | N63: Y | O63: 79 | P63: 354 | Q63: 300 | R63: 47 | S63: 74 | T63: 11 | U63: 0 | V63: 11 | W63: 43 | X63: 4 | Y63: 1 | Z63: 47 | AA63: 67 | AB63: 1 | AC63: 4 | AD63: 0 | AE63: 3 | AF63: 6 | AG63: 0.246 | AH63: 0.352 | AI63: 0.39 | AJ63: 0.334 | AK63: 118 | AL63: 41 | AM63: 38 | AN63: 12 | AO63: 11 | AP63: 5 | AQ63: 44 | AR63: 147 | AS63: 23 | AT63: N | AU63: 0.03 | AV63: 12 | AW63: S | AX63: 378 | AY63: 0.221 | AZ63: 0.302 | BA63: 0.384 | BB63: 0.302 | BC63: 114 | BD63: 30 | BE63: werthja01 | BF63: 150029 | BG63: Aging Slugger | BH63: Matt Holliday | BI63: Carlos Beltran | BJ63: David Ortiz | BK63: Career may be nearing end. Looking for graceful flourish before its over. Either slipping or nice value. Use judgement.
A64: Revere | B64: Ben | C64: L | D64: 2016 | E64: 27 | F64: WAS | G64: NL | H64: OF | K64: 0.85 | L64: 0.344 | M64: 63 | N64: Y | O64: 146 | P64: 606 | Q64: 575 | R64: 73 | S64: 169 | T64: 18 | U64: 6 | V64: 4 | W64: 40 | X64: 33 | Y64: 8 | Z64: 21 | AA64: 66 | AB64: 1 | AC64: 3 | AD64: 5 | AE64: 2 | AF64: 9 | AG64: 0.294 | AH64: 0.318 | AI64: 0.368 | AJ64: 0.303 | AK64: 184 | AL64: 41 | AM64: 38 | AN64: 27 | AO64: 25 | AP64: -10 | AQ64: 45 | AR64: 150 | AS64: 24 | AT64: Y | AU64: -0.02 | AV64: -9 | AW64: R | AX64: 634 | AY64: 0.306 | AZ64: 0.342 | BA64: 0.377 | BB64: 0.318 | BC64: 202 | BD64: 51 | BE64: reverbe01 | BF64: 519184 | BG64: SB Capable Hitter | BH64: Billy Burns | BI64: Cameron Maybin | BJ64: Dee Gordon | BK64: Should perform close to forecast. Expect to see at top of the order all season.
A65: Parra | B65: Gerardo | C65: L | D65: 2016 | E65: 28 | F65: COL | G65: NL | H65: OF | K65: 0.86 | L65: 0.344 | M65: 63 | N65: Y | O65: 142 | P65: 529 | Q65: 491 | R65: 66 | S65: 130 | T65: 29 | U65: 4 | V65: 12 | W65: 44 | X65: 10 | Y65: 5 | Z65: 27 | AA65: 87 | AB65: 4 | AC65: 4 | AD65: 4 | AE65: 3 | AF65: 9 | AG65: 0.265 | AH65: 0.304 | AI65: 0.411 | AJ65: 0.31 | AK65: 164 | AL65: 41 | AM65: 38 | AN65: 17 | AO65: 16 | AP65: -5 | AQ65: 46 | AR65: 153 | AS65: 25 | AT65: Y | AU65: -0.03 | AV65: -17 | AW65: O | AX65: 589 | AY65: 0.291 | AZ65: 0.328 | BA65: 0.452 | BB65: 0.335 | BC65: 197 | BD65: 58 | BE65: parrage01 | BF65: 467827 | BG65: Agile Capable Hitter | BH65: Matt Duffy | BI65: Kevin Pillar | BJ65: Dustin Ackley | BK65: Career still on the rise, but nearing peak. Overpriced in most drafts, be realistic.
A66: Ozuna | B66: Marcell | C66: R | D66: 2016 | E66: 25 | F66: MIA | G66: NL | H66: OF | K66: 0.83 | L66: 0.344 | M66: 63 | N66: Y | O66: 132 | P66: 496 | Q66: 456 | R66: 51 | S66: 114 | T66: 28 | U66: 3 | V66: 13 | W66: 53 | X66: 5 | Y66: 2 | Z66: 35 | AA66: 109 | AB66: 1 | AC66: 2 | AD66: 0 | AE66: 3 | AF66: 10 | AG66: 0.25 | AH66: 0.305 | AI66: 0.411 | AJ66: 0.312 | AK66: 155 | AL66: 40 | AM66: 37 | AN66: 13 | AO66: 12 | AP66: -4 | AQ66: 48 | AR66: 158 | AS66: 26 | AT66: Y | AU66: 0.01 | AV66: 3 | AW66: R | AX66: 494 | AY66: 0.259 | AZ66: 0.308 | BA66: 0.383 | BB66: 0.305 | BC66: 151 | BD66: 37 | BE66: ozunama01 | BF66: 542303 | BG66: Young Slugger | BH66: Nick Castellanos | BI66: Brandon Belt | BJ66: Derek Norris | BK66: Best still to come, even if last year was a set back. Expected to play regularly.
A67: Herrera | B67: Odubel | C67: L | D67: 2016 | E67: 24 | F67: PHI | G67: NL | H67: OF | K67: 0.84 | L67: 0.344 | M67: 63 | N67: Y | O67: 111 | P67: 492 | Q67: 454 | R67: 56 | S67: 123 | T67: 24 | U67: 3 | V67: 6 | W67: 39 | X67: 16 | Y67: 6 | Z67: 27 | AA67: 108 | AB67: 0 | AC67: 6 | AD67: 4 | AE67: 1 | AF67: 5 | AG67: 0.27 | AH67: 0.319 | AI67: 0.38 | AJ67: 0.309 | AK67: 152 | AL67: 39 | AM67: 36 | AN67: 17 | AO67: 15 | AP67: -5 | AQ67: 50 | AR67: 165 | AS67: 27 | AT67: Y | AU67: -0.02 | AV67: -15 | AW67: O | AX67: 537 | AY67: 0.297 | AZ67: 0.344 | BA67: 0.418 | BB67: 0.333 | BC67: 179 | BD67: 54 | BE67: herreod01 | BF67: 546318 | BG67: Young SB Capable Hitter | BH67: Ender Inciarte | BI67: Lorenzo Cain | BJ67: Yasmany Tomas | BK67: Career taking off. Could continue to exceed forecasts. Truth coming. Breaking out or false hopes?
A68: Piscotty | B68: Stephen | C68: R | D68: 2016 | E68: 25 | F68: SLN | G68: NL | H68: OF | K68: 0.72 | L68: 0.32 | M68: 27 | N68: Y | O68: 69 | P68: 310 | Q68: 284 | R68: 33 | S68: 77 | T68: 15 | U68: 4 | V68: 7 | W68: 41 | X68: 3 | Y68: 1 | Z68: 22 | AA68: 65 | AB68: 2 | AC68: 2 | AD68: 0 | AE68: 2 | AF68: 6 | AG68: 0.269 | AH68: 0.326 | AI68: 0.42 | AJ68: 0.326 | AK68: 101 | AL68: 35 | AM68: 32 | AN68: 11 | AO68: 10 | AP68: 2 | AQ68: 58 | AR68: 186 | AS68: 28 | AT68: N | AU68: -0.04 | AV68: -13 | AW68: R | AX68: 256 | AY68: 0.305 | AZ68: 0.359 | BA68: 0.494 | BB68: 0.368 | BC68: 94 | BD68: 48 | BE68: piscost01 | BF68: 572039 | BG68: Young Gap Power | BH68: Tyler Collins | BI68: Trayce Thompson | BJ68: Yasiel Puig | BK68: Needs to establish himself at MLB level. Risk of injury or playing time.
A69: Grichuk | B69: Randal | C69: R | D69: 2016 | E69: 24 | F69: SLN | G69: NL | H69: OF | K69: 0.71 | L69: 0.32 | M69: 27 | N69: Y | O69: 104 | P69: 358 | Q69: 330 | R69: 42 | S69: 81 | T69: 21 | U69: 5 | V69: 11 | W69: 39 | X69: 4 | Y69: 2 | Z69: 23 | AA69: 94 | AB69: 1 | AC69: 3 | AD69: 1 | AE69: 1 | AF69: 7 | AG69: 0.241 | AH69: 0.298 | AI69: 0.44 | AJ69: 0.317 | AK69: 114 | AL69: 35 | AM69: 32 | AN69: 10 | AO69: 10 | AP69: -1 | AQ69: 59 | AR69: 187 | AS69: 29 | AT69: N | AU69: -0.05 | AV69: -25 | AW69: O | AX69: 350 | AY69: 0.276 | AZ69: 0.329 | BA69: 0.548 | BB69: 0.369 | BC69: 129 | BD69: 59 | BE69: grichra01 | BF69: 545341 | BG69: Young Slugger | BH69: Derek Dietrich | BI69: Aaron Altherr | BJ69: Jake Smolinski | BK69: Career taking off. Could continue to exceed forecasts. Truth coming. Breaking out or false hopes?
A70: Coghlan | B70: Chris | C70: L | D70: 2016 | E70: 30 | F70: CHN | G70: NL | H70: OF | K70: 0.8 | L70: 0.344 | M70: 63 | N70: Y | O70: 109 | P70: 384 | Q70: 346 | R70: 43 | S70: 86 | T70: 17 | U70: 3 | V70: 9 | W70: 33 | X70: 7 | Y70: 2 | Z70: 32 | AA70: 74 | AB70: 3 | AC70: 3 | AD70: 1 | AE70: 2 | AF70: 5 | AG70: 0.25 | AH70: 0.314 | AI70: 0.397 | AJ70: 0.313 | AK70: 120 | AL70: 34 | AM70: 32 | AN70: 11 | AO70: 10 | AP70: -3 | AQ70: 60 | AR70: 188 | AS70: 30 | AT70: N | AU70: -0.03 | AV70: -23 | AW70: O | AX70: 503 | AY70: 0.25 | AZ70: 0.341 | BA70: 0.443 | BB70: 0.342 | BC70: 172 | BD70: 57 | BE70: coghlch01 | BF70: 458085 | BG70: Agile Capable Hitter | BH70: Adam Eaton | BI70: Dexter Fowler | BJ70: Josh Reddick | BK70: Limited improvement expected from here. Risk of injury or playing time.
A71: Span | B71: Denard | C71: L | D71: 2016 | E71: 32 | F71: SFN | G71: NL | H71: OF | K71: 0.83 | L71: 0.32 | M71: 27 | N71: Y | O71: 82 | P71: 408 | Q71: 375 | R71: 53 | S71: 104 | T71: 16 | U71: 3 | V71: 5 | W71: 30 | X71: 15 | Y71: 3 | Z71: 26 | AA71: 49 | AB71: 1 | AC71: 2 | AD71: 2 | AE71: 2 | AF71: 5 | AG71: 0.277 | AH71: 0.323 | AI71: 0.37 | AJ71: 0.308 | AK71: 126 | AL71: 34 | AM71: 31 | AN71: 15 | AO71: 14 | AP71: -5 | AQ71: 62 | AR71: 190 | AS71: 31 | AT71: N | AU71: -0.04 | AV71: -8 | AW71: R | AX71: 275 | AY71: 0.301 | AZ71: 0.365 | BA71: 0.431 | BB71: 0.35 | BC71: 96 | BD71: 42 | BE71: spande01 | BF71: 452655 | BG71: SB Capable Hitter | BH71: Jack Shuck | BI71: Ben Revere | BJ71: Norichika Aoki | BK71: Still In prime. Risk of injury or playing time.
A72: Jackson | B72: Austin | C72: R | D72: 2016 | E72: 29 | F72: - | G72: NL | H72: OF | K72: 0.86 | L72: 0.344 | M72: 63 | N72: Y | O72: 128 | P72: 495 | Q72: 458 | R72: 59 | S72: 115 | T72: 24 | U72: 4 | V72: 9 | W72: 42 | X72: 12 | Y72: 5 | Z72: 29 | AA72: 106 | AB72: 1 | AC72: 3 | AD72: 2 | AE72: 3 | AF72: 9 | AG72: 0.251 | AH72: 0.298 | AI72: 0.381 | AJ72: 0.297 | AK72: 147 | AL72: 34 | AM72: 31 | AN72: 14 | AO72: 13 | AP72: -11 | AQ72: 64 | AR72: 192 | AS72: 32 | AT72: Y | AU72: -0.01 | AV72: -5 | AW72: R | AX72: 527 | AY72: 0.267 | AZ72: 0.311 | BA72: 0.385 | BB72: 0.305 | BC72: 161 | BD72: 39 | BE72: jacksau01 | BF72: 457706 | BG72: Agile Capable Hitter | BH72: Juan Lagares | BI72: Lorenzo Cain | BJ72: Gerardo Parra | BK72: Poised for modest break out above last year. Expected to play regularly. Trade him for two part timers who can platoon.
A73: Pence | B73: Hunter | C73: R | D73: 2016 | E73: 33 | F73: SFN | G73: NL | H73: OF | K73: 0.83 | L73: 0.32 | M73: 27 | N73: Y | O73: 77 | P73: 356 | Q73: 328 | R73: 48 | S73: 84 | T73: 13 | U73: 2 | V73: 11 | W73: 45 | X73: 8 | Y73: 2 | Z73: 25 | AA73: 65 | AB73: 1 | AC73: 2 | AD73: 0 | AE73: 1 | AF73: 8 | AG73: 0.256 | AH73: 0.311 | AI73: 0.408 | AJ73: 0.315 | AK73: 112 | AL73: 34 | AM73: 31 | AN73: 14 | AO73: 13 | AP73: -2 | AQ73: 65 | AR73: 197 | AS73: 33 | AT73: N | AU73: -0.03 | AV73: -2 | AW73: R | AX73: 223 | AY73: 0.275 | AZ73: 0.327 | BA73: 0.478 | BB73: 0.347 | BC73: 77 | BD73: 35 | BE73: pencehu01 | BF73: 452254 | BG73: Agile Slugger | BH73: Domonic Brown | BI73: Justin Morneau | BJ73: Logan Morrison | BK73: His best days are past him, but he should perform near projected levels. Risk of injury or playing time.
A74: Ethier | B74: Andre | C74: L | D74: 2016 | E74: 34 | F74: LAN | G74: NL | H74: OF | K74: 0.82 | L74: 0.344 | M74: 63 | N74: Y | O74: 92 | P74: 331 | Q74: 294 | R74: 34 | S74: 74 | T74: 12 | U74: 2 | V74: 7 | W74: 36 | X74: 3 | Y74: 2 | Z74: 31 | AA74: 59 | AB74: 3 | AC74: 4 | AD74: 0 | AE74: 2 | AF74: 6 | AG74: 0.254 | AH74: 0.329 | AI74: 0.381 | AJ74: 0.317 | AK74: 105 | AL74: 33 | AM74: 30 | AN74: 9 | AO74: 8 | AP74: -1 | AQ74: 66 | AR74: 201 | AS74: 34 | AT74: N | AU74: -0.05 | AV74: -37 | AW74: O | AX74: 445 | AY74: 0.294 | AZ74: 0.366 | BA74: 0.486 | BB74: 0.37 | BC74: 164 | BD74: 70 | BE74: ethiean01 | BF74: 444843 | BG74: Aging Contact Hitter | BH74: Justin Morneau | BI74: Victor Martinez | BJ74: David DeJesus | BK74: Best years are behind him, little upside. Risk of injury or playing time.
A75: Conforto | B75: Michael | C75: L | D75: 2016 | E75: 23 | F75: NYN | G75: NL | H75: OF | K75: 0.66 | L75: 0.32 | M75: 27 | N75: Y | O75: 73 | P75: 273 | Q75: 245 | R75: 37 | S75: 62 | T75: 17 | U75: 1 | V75: 8 | W75: 33 | X75: 1 | Y75: 1 | Z75: 24 | AA75: 55 | AB75: 0 | AC75: 2 | AD75: 0 | AE75: 2 | AF75: 5 | AG75: 0.25 | AH75: 0.32 | AI75: 0.431 | AJ75: 0.327 | AK75: 89 | AL75: 32 | AM75: 30 | AN75: 9 | AO75: 8 | AP75: 2 | AQ75: 67 | AR75: 203 | AS75: 35 | AT75: N | AU75: -0.03 | AV75: -4 | AW75: R | AX75: 194 | AY75: 0.27 | AZ75: 0.335 | BA75: 0.506 | BB75: 0.358 | BC75: 70 | BD75: 37 | BE75: confomi01 | BF75: 624424 | BG75: Young Lead Footed Slugger | BH75: Preston Tucker | BI75: Maikel Franco | BJ75: Brandon Drury | BK75: Needs to establish himself at MLB level. Risk of injury or playing time. Consider platooning.
A76: Blanco | B76: Gregor | C76: L | D76: 2016 | E76: 32 | F76: SFN | G76: NL | H76: OF | K76: 0.81 | L76: 0.32 | M76: 27 | N76: Y | O76: 115 | P76: 409 | Q76: 367 | R76: 51 | S76: 94 | T76: 14 | U76: 3 | V76: 5 | W76: 35 | X76: 13 | Y76: 5 | Z76: 35 | AA76: 72 | AB76: 4 | AC76: 2 | AD76: 2 | AE76: 2 | AF76: 5 | AG76: 0.256 | AH76: 0.321 | AI76: 0.354 | AJ76: 0.302 | AK76: 124 | AL76: 32 | AM76: 29 | AN76: 13 | AO76: 12 | AP76: -7 | AQ76: 68 | AR76: 205 | AS76: 36 | AT76: N | AU76: -0.05 | AV76: -18 | AW76: O | AX76: 372 | AY76: 0.291 | AZ76: 0.368 | BA76: 0.413 | BB76: 0.348 | BC76: 129 | BD76: 50 | BE76: blancgr01 | BF76: 453923 | BG76: Agile Capable Hitter | BH76: Norichika Aoki | BI76: Angel Pagan | BJ76: Denard Span | BK76: Still In prime. Will be overpriced in most drafts, unless truly healthy. Worth more in trade than as keeper.
A77: Byrd | B77: Marlon | C77: R | D77: 2016 | E77: 38 | F77: SFN | G77: NL | H77: OF | K77: 0.85 | L77: 0.344 | M77: 63 | N77: Y | O77: 96 | P77: 394 | Q77: 356 | R77: 43 | S77: 82 | T77: 12 | U77: 1 | V77: 15 | W77: 50 | X77: 2 | Y77: 2 | Z77: 31 | AA77: 97 | AB77: 3 | AC77: 4 | AD77: 0 | AE77: 3 | AF77: 6 | AG77: 0.233 | AH77: 0.297 | AI77: 0.397 | AJ77: 0.304 | AK77: 120 | AL77: 32 | AM77: 29 | AN77: 11 | AO77: 10 | AP77: -6 | AQ77: 69 | AR77: 207 | AS77: 37 | AT77: N | AU77: -0.01 | AV77: -14 | AW77: R | AX77: 544 | AY77: 0.247 | AZ77: 0.29 | BA77: 0.453 | BB77: 0.317 | BC77: 172 | BD77: 45 | BE77: byrdma01 | BF77: 407781 | BG77: Aging Slugger | BH77: Mike Morse | BI77: Ryan Howard | BJ77: Josh Hamilton | BK77: His best days are past him, but he should perform near projected levels. Role player, not a keeper.
A78: Soler | B78: Jorge | C78: R | D78: 2016 | E78: 24 | F78: CHN | G78: NL | H78: OF | K78: 0.73 | L78: 0.32 | M78: 27 | N78: Y | O78: 95 | P78: 384 | Q78: 349 | R78: 37 | S78: 85 | T78: 19 | U78: 2 | V78: 9 | W78: 45 | X78: 4 | Y78: 1 | Z78: 30 | AA78: 98 | AB78: 3 | AC78: 3 | AD78: 0 | AE78: 3 | AF78: 8 | AG78: 0.242 | AH78: 0.305 | AI78: 0.385 | AJ78: 0.304 | AK78: 117 | AL78: 31 | AM78: 29 | AN78: 10 | AO78: 9 | AP78: -6 | AQ78: 71 | AR78: 215 | AS78: 38 | AT78: N | AU78: -0.02 | AV78: -7 | AW78: R | AX78: 404 | AY78: 0.262 | AZ78: 0.324 | BA78: 0.399 | BB78: 0.319 | BC78: 129 | BD78: 38 | BE78: solerjo01 | BF78: 624585 | BG78: Young Capable Hitter | BH78: Marcell Ozuna | BI78: Wil Myers | BJ78: Blake Swihart | BK78: Career on the rise. Track his progress to determine upside. Risk of injury or playing time.
A79: Lagares | B79: Juan | C79: R | D79: 2016 | E79: 27 | F79: NYN | G79: NL | H79: OF | K79: 0.82 | L79: 0.344 | M79: 63 | N79: Y | O79: 140 | P79: 466 | Q79: 433 | R79: 46 | S79: 110 | T79: 23 | U79: 4 | V79: 7 | W79: 43 | X79: 8 | Y79: 3 | Z79: 23 | AA79: 90 | AB79: 3 | AC79: 4 | AD79: 2 | AE79: 4 | AF79: 7 | AG79: 0.253 | AH79: 0.294 | AI79: 0.374 | AJ79: 0.293 | AK79: 137 | AL79: 31 | AM79: 28 | AN79: 12 | AO79: 11 | AP79: -13 | AQ79: 72 | AR79: 216 | AS79: 39 | AT79: Y | AU79: 0.01 | AV79: 3 | AW79: R | AX79: 465 | AY79: 0.259 | AZ79: 0.289 | BA79: 0.358 | BB79: 0.284 | BC79: 132 | BD79: 28 | BE79: lagarju01 | BF79: 501571 | BG79: Agile Capable Hitter | BH79: Austin Jackson | BI79: Adam Eaton | BJ79: Matt Duffy | BK79: Running out of time to prove himself. This year could establish who he is. Starter, but may sit occassionally.
A80: Thompson | B80: Trayce | C80: R | D80: 2016 | E80: 25 | F80: LAN | G80: NL | H80: OF | K80: 0.57 | L80: 0.32 | M80: 27 | N80: Y | O80: 63 | P80: 229 | Q80: 209 | R80: 27 | S80: 55 | T80: 11 | U80: 3 | V80: 6 | W80: 25 | X80: 3 | Y80: 1 | Z80: 19 | AA80: 45 | AB80: 0 | AC80: 1 | AD80: 0 | AE80: 1 | AF80: 4 | AG80: 0.261 | AH80: 0.326 | AI80: 0.434 | AJ80: 0.332 | AK80: 76 | AL80: 31 | AM80: 28 | AN80: 8 | AO80: 7 | AP80: 3 | AQ80: 73 | AR80: 217 | AS80: 40 | AT80: N | AU80: -0.05 | AV80: -6 | AW80: R | AX80: 135 | AY80: 0.295 | AZ80: 0.363 | BA80: 0.533 | BB80: 0.383 | BC80: 52 | BD80: 37 | BE80: thomptr01 | BF80: 572204 | BG80: Young Playing Time Risk | BH80: Tyler Collins | BI80: Stephen Piscotty | BJ80: Cheslor Cuthbert | BK80: Needs to establish himself at MLB level. Risk of injury or playing time.
A81: Cuddyer | B81: Michael | C81: R | D81: 2016 | E81: 37 | F81: NYN | G81: NL | H81: OF | K81: 0.79 | L81: 0.32 | M81: 27 | N81: Y | O81: 66 | P81: 279 | Q81: 252 | R81: 33 | S81: 65 | T81: 9 | U81: 1 | V81: 8 | W81: 34 | X81: 4 | Y81: 1 | Z81: 24 | AA81: 53 | AB81: 1 | AC81: 2 | AD81: 0 | AE81: 1 | AF81: 7 | AG81: 0.258 | AH81: 0.324 | AI81: 0.389 | AJ81: 0.316 | AK81: 88 | AL81: 29 | AM81: 27 | AN81: 9 | AO81: 9 | AP81: -1 | AQ81: 76 | AR81: 230 | AS81: 41 | AT81: N | AU81: 0.01 | AV81: -5 | AW81: R | AX81: 408 | AY81: 0.259 | AZ81: 0.309 | BA81: 0.391 | BB81: 0.308 | BC81: 126 | BD81: 34 | BE81: cuddymi01 | BF81: 150212 | BG81: Aging Slugger | BH81: Torii Hunter | BI81: Juan Uribe | BJ81: A.J. Pierzynski | BK81: His best days are past him, but he should perform near projected levels. Role player, not a keeper.
A82: De Aza | B82: Alejandro | C82: L | D82: 2016 | E82: 32 | F82: NYN | G82: NL | H82: OF | K82: 0.83 | L82: 0.32 | M82: 27 | N82: Y | O82: 104 | P82: 400 | Q82: 362 | R82: 48 | S82: 88 | T82: 15 | U82: 4 | V82: 8 | W82: 36 | X82: 10 | Y82: 5 | Z82: 28 | AA82: 86 | AB82: 2 | AC82: 4 | AD82: 2 | AE82: 3 | AF82: 6 | AG82: 0.242 | AH82: 0.301 | AI82: 0.371 | AJ82: 0.297 | AK82: 119 | AL82: 29 | AM82: 27 | AN82: 11 | AO82: 10 | AP82: -9 | AQ82: 77 | AR82: 231 | AS82: 42 | AT82: N | AU82: -0.03 | AV82: -11 | AW82: R | AX82: 365 | AY82: 0.262 | AZ82: 0.333 | BA82: 0.422 | BB82: 0.33 | BC82: 120 | BD82: 40 | BE82: deazaal01 | BF82: 457477 | BG82: Agile Capable Hitter | BH82: Michael Bourn | BI82: David Lough | BJ82: Senger Peralta | BK82: Still In prime. Role player, not a keeper.
A83: Hamilton | B83: Billy | C83: S | D83: 2016 | E83: 25 | F83: CIN | G83: NL | H83: OF | K83: 0.8 | L83: 0.344 | M83: 63 | N83: Y | O83: 128 | P83: 453 | Q83: 409 | R83: 55 | S83: 99 | T83: 18 | U83: 5 | V83: 6 | W83: 35 | X83: 49 | Y83: 10 | Z83: 33 | AA83: 81 | AB83: 1 | AC83: 1 | AD83: 6 | AE83: 3 | AF83: 4 | AG83: 0.242 | AH83: 0.294 | AI83: 0.357 | AJ83: 0.287 | AK83: 130 | AL83: 28 | AM83: 26 | AN83: 23 | AO83: 21 | AP83: -15 | AQ83: 82 | AR83: 243 | AS83: 43 | AT83: Y | AU83: 0.04 | AV83: 11 | AW83: S | AX83: 454 | AY83: 0.226 | AZ83: 0.274 | BA83: 0.289 | BB83: 0.25 | BC83: 114 | BD83: 17 | BE83: hamilbi02 | BF83: 571740 | BG83: Young SB Slap Hitter | BH83: Jarrod Dyson | BI83: Eric Young | BJ83: Terrance Gore | BK83: Upside remains, but only cautiously optimisitc. Needs to find his groove. Will outperform last year, assuming regular playing time.
A84: Jay | B84: Jon | C84: L | D84: 2016 | E84: 31 | F84: SDN | G84: NL | H84: OF | K84: 0.81 | L84: 0.32 | M84: 27 | N84: Y | O84: 93 | P84: 355 | Q84: 315 | R84: 40 | S84: 81 | T84: 11 | U84: 1 | V84: 4 | W84: 33 | X84: 4 | Y84: 3 | Z84: 22 | AA84: 60 | AB84: 4 | AC84: 11 | AD84: 3 | AE84: 3 | AF84: 9 | AG84: 0.255 | AH84: 0.322 | AI84: 0.337 | AJ84: 0.298 | AK84: 106 | AL84: 28 | AM84: 25 | AN84: 9 | AO84: 8 | AP84: -8 | AQ84: 86 | AR84: 248 | AS84: 44 | AT84: N | AU84: 0.03 | AV84: 13 | AW84: S | AX84: 245 | AY84: 0.21 | AZ84: 0.306 | BA84: 0.257 | BB84: 0.265 | BC84: 65 | BD84: 14 | BE84: jayjo02 | BF84: 445055 | BG84: Slap Hitter | BH84: Angel Pagan | BI84: James Loney | BJ84: Norichika Aoki | BK84: May do better, but doubful of return to past. Sleeper pick. Buy at discount.
A85: Joyce | B85: Matthew | C85: L | D85: 2016 | E85: 31 | F85: PIT | G85: NL | H85: OF | K85: 0.8 | L85: 0.32 | M85: 27 | N85: Y | O85: 102 | P85: 329 | Q85: 288 | R85: 34 | S85: 65 | T85: 14 | U85: 1 | V85: 9 | W85: 32 | X85: 3 | Y85: 3 | Z85: 34 | AA85: 70 | AB85: 2 | AC85: 3 | AD85: 0 | AE85: 4 | AF85: 7 | AG85: 0.223 | AH85: 0.307 | AI85: 0.371 | AJ85: 0.301 | AK85: 99 | AL85: 27 | AM85: 25 | AN85: 6 | AO85: 6 | AP85: -6 | AQ85: 87 | AR85: 252 | AS85: 45 | AT85: N | AU85: 0.04 | AV85: 13 | AW85: S | AX85: 284 | AY85: 0.174 | AZ85: 0.272 | BA85: 0.291 | BB85: 0.258 | BC85: 73 | BD85: 14 | BE85: joycema01 | BF85: 459964 | BG85: Slugger | BH85: Mike Napoli | BI85: Curtis Granderson | BJ85: Carlos Santana | BK85: May do better, but doubful of return to past. Sleeper pick. Buy at discount.
A86: Myers | B86: Wil | C86: R | D86: 2016 | E86: 25 | F86: SDN | G86: NL | H86: OF | I86: 1B | K86: 0.76 | L86: 0.32 | M86: 27 | N86: Y | O86: 76 | P86: 307 | Q86: 276 | R86: 37 | S86: 66 | T86: 15 | U86: 1 | V86: 7 | W86: 33 | X86: 6 | Y86: 2 | Z86: 28 | AA86: 69 | AB86: 2 | AC86: 1 | AD86: 0 | AE86: 2 | AF86: 6 | AG86: 0.239 | AH86: 0.311 | AI86: 0.375 | AJ86: 0.305 | AK86: 94 | AL86: 27 | AM86: 25 | AN86: 8 | AO86: 8 | AP86: -5 | AQ86: 88 | AR86: 255 | AS86: 46 | AT86: N | AU86: -0.03 | AV86: -7 | AW86: R | AX86: 253 | AY86: 0.253 | AZ86: 0.336 | BA86: 0.427 | BB86: 0.336 | BC86: 85 | BD86: 34 | BE86: myerswi01 | BF86: 571976 | BG86: Young On Base | BH86: Jorge Soler | BI86: Pedro Severino | BJ86: Michael Conforto | BK86: Needs to establish himself at MLB level. Risk of injury or playing time.
A87: Parker | B87: Jarrett | C87: L | D87: 2016 | E87: 27 | F87: SFN | G87: NL | H87: OF | K87: 0.35 | L87: 0.32 | M87: 27 | N87: Y | O87: 47 | P87: 168 | Q87: 154 | R87: 23 | S87: 41 | T87: 6 | U87: 1 | V87: 8 | W87: 25 | X87: 2 | Y87: 2 | Z87: 12 | AA87: 44 | AB87: 0 | AC87: 1 | AD87: 0 | AE87: 1 | AF87: 3 | AG87: 0.255 | AH87: 0.319 | AI87: 0.459 | AJ87: 0.335 | AK87: 56 | AL87: 26 | AM87: 24 | AN87: 8 | AO87: 7 | AP87: 3 | AQ87: 90 | AR87: 263 | AS87: 47 | AT87: N | AU87: -0.14 | AV87: -20 | AW87: R | AX87: 54 | AY87: 0.347 | AZ87: 0.407 | BA87: 0.755 | BB87: 0.479 | BC87: 26 | BD87: 46 | BE87: parkeja03 | BF87: 592620 | BG87: Power off Bench | BH87: Travis Shaw | BI87: Mikie Mahtook | BJ87: Franklin Gutierrez | BK87: Birds of a feather... Risk of injury or playing time. Consider platooning.
A88: Altherr | B88: Aaron | C88: R | D88: 2016 | E88: 25 | F88: PHI | G88: NL | H88: OF | K88: 0.48 | L88: 0.32 | M88: 27 | N88: Y | O88: 60 | P88: 219 | Q88: 193 | R88: 28 | S88: 45 | T88: 12 | U88: 3 | V88: 6 | W88: 25 | X88: 6 | Y88: 2 | Z88: 19 | AA88: 51 | AB88: 0 | AC88: 4 | AD88: 1 | AE88: 2 | AF88: 4 | AG88: 0.23 | AH88: 0.313 | AI88: 0.421 | AJ88: 0.319 | AK88: 70 | AL88: 26 | AM88: 24 | AN88: 7 | AO88: 6 | AP88: 0 | AQ88: 94 | AR88: 269 | AS88: 48 | AT88: N | AU88: -0.03 | AV88: -4 | AW88: R | AX88: 161 | AY88: 0.241 | AZ88: 0.338 | BA88: 0.489 | BB88: 0.352 | BC88: 57 | BD88: 30 | BE88: altheaa01 | BF88: 571437 | BG88: Young SB Swings for Fences | BH88: Dalton Pompey | BI88: Randal Grichuk | BJ88: Abraham Almonte | BK88: Needs to establish himself at MLB level. Risk of injury or playing time.
A89: Brown | B89: Domonic | C89: L | D89: 2016 | E89: 28 | F89: PHI | G89: NL | H89: OF | K89: 0.8 | L89: 0.32 | M89: 27 | N89: Y | O89: 87 | P89: 325 | Q89: 304 | R89: 35 | S89: 75 | T89: 13 | U89: 1 | V89: 10 | W89: 42 | X89: 5 | Y89: 1 | Z89: 17 | AA89: 60 | AB89: 2 | AC89: 1 | AD89: 0 | AE89: 2 | AF89: 4 | AG89: 0.245 | AH89: 0.288 | AI89: 0.394 | AJ89: 0.297 | AK89: 96 | AL89: 26 | AM89: 24 | AN89: 10 | AO89: 9 | AP89: -7 | AQ89: 95 | AR89: 270 | AS89: 49 | AT89: N | AU89: 0.02 | AV89: 10 | AW89: S | AX89: 204 | AY89: 0.228 | AZ89: 0.284 | BA89: 0.349 | BB89: 0.282 | BC89: 57 | BD89: 16 | BE89: browndo01 | BF89: 502126 | BG89: Agile Slugger | BH89: Adam Jones | BI89: Logan Morrison | BJ89: Mark Canha | BK89: Poised for modest break out above last year. Expect rebound.
A90: Van Slyke | B90: Scott | C90: R | D90: 2016 | E90: 29 | F90: LAN | G90: NL | H90: OF | I90: 1B | K90: 0.69 | L90: 0.32 | M90: 27 | N90: Y | O90: 89 | P90: 255 | Q90: 230 | R90: 25 | S90: 56 | T90: 12 | U90: 1 | V90: 8 | W90: 28 | X90: 3 | Y90: 2 | Z90: 19 | AA90: 62 | AB90: 1 | AC90: 3 | AD90: 1 | AE90: 2 | AF90: 5 | AG90: 0.239 | AH90: 0.305 | AI90: 0.401 | AJ90: 0.309 | AK90: 79 | AL90: 25 | AM90: 23 | AN90: 7 | AO90: 6 | AP90: -3 | AQ90: 98 | AR90: 274 | AS90: 50 | AT90: N | AU90: 0 | AV90: 0 | AW90: R | AX90: 253 | AY90: 0.239 | AZ90: 0.317 | BA90: 0.383 | BB90: 0.31 | BC90: 78 | BD90: 25 | BE90: vanslsc01 | BF90: 475100 | BG90: Slugger | BH90: Darin Ruf | BI90: Brett Wallace | BJ90: Justin Smoak | BK90: Poised for modest break out above last year. Risk of injury or playing time.
